Workbook

Sheet INTRO
C1: Cette version sera utilisée par les pays endémiques à la Loase
B2: Formulaire de demande commune de médicaments pour CP v.3.1 (L)
B4: Dans le cadre des efforts mondiaux entrepris pour accélérer l'expansion de la chimioprévention (CP) pour l'élimination de la filariose lymphatique et la lutte contre la schistosomiase et les géohelminthiases, l'Organisation mondiale de la Santé (OMS) facilite l'approvisionnement en albendazole, comprimés de 400 mg (GSK), pour les programmes nationaux d'élimination de la filariose lymphatique et programmes nationaux de lutte contre les géohelminthiases; en diethylcarbamazine, comprimés de 100 mg (Eisai), pour les programmes nationaux d'élimination de la filariose lymphatique; en mebendazole, comprimés de 500 mg (J&J) pour les programmes nationaux de lutte contre les géohelminthiases et en praziquantel, comprimés de 600 mg (Merck KGaA), destinés aux enfants d'âge scolaire, pour les programmes nationaux de lutte contre la schistosomiase. L'OMS contribue également à l'approvisionnement en ivermectine, comprimés de 3 mg (Merck), pour les programmes de donation pour l'onchocercose et la filariose lymphatique. Cet outil Excel est concu pour aider les pays à quantifier le nombre de comprimés nécessaires, selon le traitement de chimioprévention requis, pour atteindre les objectifs de couverture de traitement de populations et districts pour l'année de la demande de médicaments. Le résultat de cet outil est une demande commune de médicaments pour la chimioprévention des maladies tropicales négligées, qui peut être imprimée, signée et soumise à l'OMS pour la demande de ces médicaments.
B6: Structure de l'application (feuilles de travail) :
B8: INTRO | C8: Cette feuille contient des instructions pour compléter le formulaire de demande de médicaments pour la chimioprévention et des informations sur le statut de la chimioprévention pour les maladies d'endémie du pays.
B9: COUNTRY_INFO | C9: Cette feuille contient des informations sur la structure administrative du pays, la population par groupe d'âge, le statut d'endémicité pour chaque maladie, la population devant être traitée par chimioprévention et les interventions prévues.
B10: DEC, ALB_MBD, PZQ et IVM | C10: Ces feuilles contiennent des informations sur l'endémicité des districts ciblés pour le traitement aux médicaments spécifiques à la chimioprévention, les plans de traitement, et le nombre de comprimés requis et demandés.
B11: SUMMARY | C11: Cette feuille inclut un résumé du nombre de comprimés demandés, des informations concernant le stock et les dates de soumission de la demande de médicaments. Avant de générer le rapport (run macros), veuillez sélectionner le médicament pour lequel le rapport est nécessaire. Veuillez suivre la même règle pour voir le nombre de personnes à traiter pour les maladies spécifiques. Cette feuille doit être imprimée et soumise en tant que "Formulaire de demande commune de médicaments pour chimioprévention" (voir les instructions pour la soumission du formulaire sous la feuille SUMMARY).
B13: Instructions pour la saisie des données
B15: La plupart des cellules des feuilles de travail mentionnées ci-dessus contiennent des formules calculées automatiquement en fonction du protocole de traitement recommandé par l'OMS pour chaque maladie. Voir : http://www.who.int/neglected_diseases/preventive_chemotherapy/pct_manual/en/index.html
B17: Veuillez entrer vos données dans les cellules en fonction de leur code de couleur :
C19: Blanc - la cellule n'est pas protégée. Veuillez entrer la valeur de l'indicateur demandé.
C21: Jaune - la cellule est protégée et inclut le nom de l'indicateur. Aucune entrée de données requise.
C23: Orange - la cellule n'est pas protégée et contient un menu déroulant. Veuillez sélectionner la valeur dans le menu déroulant.
C26: Vert - la cellule n'est pas protégée et contient des formules. Veuillez changer la valeur indiquée uniquement si vos données sont différentes de celles calculées automatiquement.
C29: Bleu - la cellule est protégée et contient des formules. Aucune entrée de données requise.
B31: Données pays
B33: PAYS | E33: Chad
B35: Année de la demande de médicaments | E35: 2020
B37: Le pays est-il endémique à la filariose lymphatique (FL) ? | E37: Endémique
B39: Le pays est-il endémique à l'onchocercose (ONCHO) ? | E39: Endémique
B41: Le pays est-il endémique aux géohelminthiases (STH) ? | E41: Endémique
B43: Le pays est-il endémique à la schistosomiase (SCH) ? | E43: Endémique
B45: Combien d'unités administratives compte le pays ? | E45: 120
B47: Si les données démographiques par groupe d'âge ne sont pas disponibles au second niveau administratif, veuillez entrer la proportion (%) de population, par groupe d'âge, du pays. Si les données sont disponibles, veuillez laisser les cellules vierges.
B48: 1-4 ans | C48: Enfants d'âge pré-scolaire (EAPréS) | E48: 0.155
B49: 5-14 ans | C49: Enfants d'âge scolaire (EAS) | E49: 0.307
B50: 15 ans et plus | C50: Adultes | E50: 0.494

Sheet COUNTRY_INFO
A1: INFORMATIONS PAYS
A2: Struture administrative, population par groupe d'âge, statut d'endémicité et interventions planifiées | V2: 1.03285
A4: TOTAL | D4: =SUM(D$9:D$1000) -> 16580780 | E4: =SUM(E$9:E$1000) -> 2570021 | F4: =SUM(F$9:F$1000) -> 5090299 | G4: =SUM(G$9:G$1000) -> 8190906 | M4: =SUM(M$9:M$1000) -> 4743379 | N4: =SUM(N$9:N$1000) -> 6121069 | O4: =SUM(O$9:O$1000) -> 508636 | P4: =SUM(P$9:P$1000) -> 3952167.92
A6: Structure administrative du pays | D6: Population | H6: Endémicité | M6: Population nécessitant la CP | Q6: Nombre de tournées de traitement prévues pour l'année | U6: Enquêtes épidémiologiques planifiées pour l’année
A7: Pays | B7: Région/Département | C7: District | D7: Total | E7: EAPréS | F7: EAS | G7: Adultes | H7: FL | I7: Oncho | J7: STH | K7: SCH | L7: Loa | M7: FL | N7: Oncho | O7: STH | P7: SCH | Q7: FL | R7: Oncho | S7: STH | T7: SCH | U7: FL | V7: Oncho | W7: STH | X7: SCH | Y7: IU_ID | Z7: IU_Name | AE7: 2018 | AF7: 2019
A9: =IF(INTRO!$E$33<>0,INTRO!$E$33, " ") -> Chad | B9: Bahr El Gazel | C9: Chadra | D9: 97180 | E9: =IF(INTRO!$E$48="","",ROUND($D9*INTRO!$E$48,0)) -> 15063 | F9: =IF(INTRO!$E$49="","",ROUND($D9*INTRO!$E$49,0)) -> 29834 | G9: =IF(INTRO!$E$50="","",ROUND($D9*INTRO!$E$50,0)) -> 48007 | H9: 0 | I9: 0 | J9: 2 | K9: 2 | M9: =IF(INTRO!$E$37="Endémique",IF($H9>0,IF($H9=4,"Inconnu",IF($H9=99,"Interrompu",$D9)),0),"Non requis") -> 0 | N9: =IF(INTRO!$E$39="Endémique", IF($I9>0, IF($I9=4,"Inconnu",IF($I9=99,"Interrompu",$D9)), 0),"Non requis") -> 0 | O9: =IF(INTRO!$E$41="Endémique", IF(AND($J9>1,$J9<5), IF($J9=4, "Inconnu", E9+F9), 0),"Non requis") -> 44897 | P9: =IF(INTRO!$E$43="Endémique", IF(AND($K9>0,$K9<5), IF($K9=4,"Inconnu", IF($K9=1, $F9*0.33, IF($K9=2, $F9*0.5+$G9*0.2, SUM(F9:G9)))), 0),"Non requis") -> 24518.4 | Q9: 0 | R9: 0 | S9: 1 | T9: 1 | Y9: 10660 | Z9: Chadra | AE9: 1 | AF9: 0 | AG9: =+AE9+AF9 -> 1
A10: =IF(INTRO!$E$33<>0,INTRO!$E$33, " ") -> Chad | B10: Bahr El Gazel | C10: Michemire | D10: 46647 | E10: =IF(INTRO!$E$48="","",ROUND($D10*INTRO!$E$48,0)) -> 7230 | F10: =IF(INTRO!$E$49="","",ROUND($D10*INTRO!$E$49,0)) -> 14321 | G10: =IF(INTRO!$E$50="","",ROUND($D10*INTRO!$E$50,0)) -> 23044 | H10: 0 | I10: 0 | J10: 1 | K10: 2 | M10: =IF(INTRO!$E$37="Endémique",IF($H10>0,IF($H10=4,"Inconnu",IF($H10=99,"Interrompu",$D10)),0),"Non requis") -> 0 | N10: =IF(INTRO!$E$39="Endémique", IF($I10>0, IF($I10=4,"Inconnu",IF($I10=99,"Interrompu",$D10)), 0),"Non requis") -> 0 | O10: =IF(INTRO!$E$41="Endémique", IF(AND($J10>1,$J10<5), IF($J10=4, "Inconnu", E10+F10), 0),"Non requis") -> 0 | P10: =IF(INTRO!$E$43="Endémique", IF(AND($K10>0,$K10<5), IF($K10=4,"Inconnu", IF($K10=1, $F10*0.33, IF($K10=2, $F10*0.5+$G10*0.2, SUM(F10:G10)))), 0),"Non requis") -> 11769.3 | Q10: 0 | R10: 0 | S10: 0 | T10: 1 | Y10: 10670 | Z10: Michemire | AE10: 1 | AF10: 0 | AG10: =+AE10+AF10 -> 1
A11: =IF(INTRO!$E$33<>0,INTRO!$E$33, " ") -> Chad | B11: Bahr El Gazel | C11: Moussoro | D11: 194359 | E11: =IF(INTRO!$E$48="","",ROUND($D11*INTRO!$E$48,0)) -> 30126 | F11: =IF(INTRO!$E$49="","",ROUND($D11*INTRO!$E$49,0)) -> 59668 | G11: =IF(INTRO!$E$50="","",ROUND($D11*INTRO!$E$50,0)) -> 96013 | H11: 0 | I11: 0 | J11: 1 | K11: 2 | M11: =IF(INTRO!$E$37="Endémique",IF($H11>0,IF($H11=4,"Inconnu",IF($H11=99,"Interrompu",$D11)),0),"Non requis") -> 0 | N11: =IF(INTRO!$E$39="Endémique", IF($I11>0, IF($I11=4,"Inconnu",IF($I11=99,"Interrompu",$D11)), 0),"Non requis") -> 0 | O11: =IF(INTRO!$E$41="Endémique", IF(AND($J11>1,$J11<5), IF($J11=4, "Inconnu", E11+F11), 0),"Non requis") -> 0 | P11: =IF(INTRO!$E$43="Endémique", IF(AND($K11>0,$K11<5), IF($K11=4,"Inconnu", IF($K11=1, $F11*0.33, IF($K11=2, $F11*0.5+$G11*0.2, SUM(F11:G11)))), 0),"Non requis") -> 49036.6 | Q11: 0 | R11: 0 | S11: 0 | T11: 1 | Y11: 10661 | Z11: Moussoro | AE11: 1 | AF11: 0 | AG11: 1
A12: =IF(INTRO!$E$33<>0,INTRO!$E$33, " ") -> Chad | B12: Bahr El Gazel | C12: Salal | D12: 50533 | E12: =IF(INTRO!$E$48="","",ROUND($D12*INTRO!$E$48,0)) -> 7833 | F12: =IF(INTRO!$E$49="","",ROUND($D12*INTRO!$E$49,0)) -> 15514 | G12: =IF(INTRO!$E$50="","",ROUND($D12*INTRO!$E$50,0)) -> 24963 | H12: 0 | I12: 0 | J12: 1 | K12: 2 | M12: =IF(INTRO!$E$37="Endémique",IF($H12>0,IF($H12=4,"Inconnu",IF($H12=99,"Interrompu",$D12)),0),"Non requis") -> 0 | N12: =IF(INTRO!$E$39="Endémique", IF($I12>0, IF($I12=4,"Inconnu",IF($I12=99,"Interrompu",$D12)), 0),"Non requis") -> 0 | O12: =IF(INTRO!$E$41="Endémique", IF(AND($J12>1,$J12<5), IF($J12=4, "Inconnu", E12+F12), 0),"Non requis") -> 0 | P12: =IF(INTRO!$E$43="Endémique", IF(AND($K12>0,$K12<5), IF($K12=4,"Inconnu", IF($K12=1, $F12*0.33, IF($K12=2, $F12*0.5+$G12*0.2, SUM(F12:G12)))), 0),"Non requis") -> 12749.6 | Q12: 0 | R12: 0 | S12: 0 | T12: 1 | Y12: 10711 | Z12: Salal | AE12: 1 | AF12: 0 | AG12: 1
A13: =IF(INTRO!$E$33<>0,INTRO!$E$33, " ") -> Chad | B13: Batha | C13: Alifa | D13: 110705 | E13: =IF(INTRO!$E$48="","",ROUND($D13*INTRO!$E$48,0)) -> 17159 | F13: =IF(INTRO!$E$49="","",ROUND($D13*INTRO!$E$49,0)) -> 33986 | G13: =IF(INTRO!$E$50="","",ROUND($D13*INTRO!$E$50,0)) -> 54688 | H13: 0 | I13: 0 | J13: 0 | K13: 2 | M13: =IF(INTRO!$E$37="Endémique",IF($H13>0,IF($H13=4,"Inconnu",IF($H13=99,"Interrompu",$D13)),0),"Non requis") -> 0 | N13: =IF(INTRO!$E$39="Endémique", IF($I13>0, IF($I13=4,"Inconnu",IF($I13=99,"Interrompu",$D13)), 0),"Non requis") -> 0 | O13: =IF(INTRO!$E$41="Endémique", IF(AND($J13>1,$J13<5), IF($J13=4, "Inconnu", E13+F13), 0),"Non requis") -> 0 | P13: =IF(INTRO!$E$43="Endémique", IF(AND($K13>0,$K13<5), IF($K13=4,"Inconnu", IF($K13=1, $F13*0.33, IF($K13=2, $F13*0.5+$G13*0.2, SUM(F13:G13)))), 0),"Non requis") -> 27930.6 | Q13: 0 | R13: 0 | S13: 0 | T13: 1 | Y13: 10739 | Z13: Alifa | AE13: 1 | AF13: 0 | AG13: 1
A14: =IF(INTRO!$E$33<>0,INTRO!$E$33, " ") -> Chad | B14: Batha | C14: Assinet | D14: 88563 | E14: =IF(INTRO!$E$48="","",ROUND($D14*INTRO!$E$48,0)) -> 13727 | F14: =IF(INTRO!$E$49="","",ROUND($D14*INTRO!$E$49,0)) -> 27189 | G14: =IF(INTRO!$E$50="","",ROUND($D14*INTRO!$E$50,0)) -> 43750 | H14: 0 | I14: 0 | J14: 0 | K14: 2 | M14: =IF(INTRO!$E$37="Endémique",IF($H14>0,IF($H14=4,"Inconnu",IF($H14=99,"Interrompu",$D14)),0),"Non requis") -> 0 | N14: =IF(INTRO!$E$39="Endémique", IF($I14>0, IF($I14=4,"Inconnu",IF($I14=99,"Interrompu",$D14)), 0),"Non requis") -> 0 | O14: =IF(INTRO!$E$41="Endémique", IF(AND($J14>1,$J14<5), IF($J14=4, "Inconnu", E14+F14), 0),"Non requis") -> 0 | P14: =IF(INTRO!$E$43="Endémique", IF(AND($K14>0,$K14<5), IF($K14=4,"Inconnu", IF($K14=1, $F14*0.33, IF($K14=2, $F14*0.5+$G14*0.2, SUM(F14:G14)))), 0),"Non requis") -> 22344.5 | Q14: 0 | R14: 0 | S14: 0 | T14: 1 | Y14: 10745 | Z14: Assinet | AE14: 1 | AF14: 0 | AG14: 1
A15: =IF(INTRO!$E$33<>0,INTRO!$E$33, " ") -> Chad | B15: Batha | C15: Ati | D15: 57566 | E15: =IF(INTRO!$E$48="","",ROUND($D15*INTRO!$E$48,0)) -> 8923 | F15: =IF(INTRO!$E$49="","",ROUND($D15*INTRO!$E$49,0)) -> 17673 | G15: =IF(INTRO!$E$50="","",ROUND($D15*INTRO!$E$50,0)) -> 28438 | H15: 0 | I15: 0 | J15: 0 | K15: 2 | M15: =IF(INTRO!$E$37="Endémique",IF($H15>0,IF($H15=4,"Inconnu",IF($H15=99,"Interrompu",$D15)),0),"Non requis") -> 0 | N15: =IF(INTRO!$E$39="Endémique", IF($I15>0, IF($I15=4,"Inconnu",IF($I15=99,"Interrompu",$D15)), 0),"Non requis") -> 0 | O15: =IF(INTRO!$E$41="Endémique", IF(AND($J15>1,$J15<5), IF($J15=4, "Inconnu", E15+F15), 0),"Non requis") -> 0 | P15: =IF(INTRO!$E$43="Endémique", IF(AND($K15>0,$K15<5), IF($K15=4,"Inconnu", IF($K15=1, $F15*0.33, IF($K15=2, $F15*0.5+$G15*0.2, SUM(F15:G15)))), 0),"Non requis") -> 14524.1 | Q15: 0 | R15: 0 | S15: 0 | T15: 1 | Y15: 10662 | Z15: Ati | AE15: 1 | AF15: 0 | AG15: 1
A16: =IF(INTRO!$E$33<>0,INTRO!$E$33, " ") -> Chad | B16: Batha | C16: Djedda | D16: 51810 | E16: =IF(INTRO!$E$48="","",ROUND($D16*INTRO!$E$48,0)) -> 8031 | F16: =IF(INTRO!$E$49="","",ROUND($D16*INTRO!$E$49,0)) -> 15906 | G16: =IF(INTRO!$E$50="","",ROUND($D16*INTRO!$E$50,0)) -> 25594 | H16: 0 | I16: 0 | J16: 0 | K16: 2 | M16: =IF(INTRO!$E$37="Endémique",IF($H16>0,IF($H16=4,"Inconnu",IF($H16=99,"Interrompu",$D16)),0),"Non requis") -> 0 | N16: =IF(INTRO!$E$39="Endémique", IF($I16>0, IF($I16=4,"Inconnu",IF($I16=99,"Interrompu",$D16)), 0),"Non requis") -> 0 | O16: =IF(INTRO!$E$41="Endémique", IF(AND($J16>1,$J16<5), IF($J16=4, "Inconnu", E16+F16), 0),"Non requis") -> 0 | P16: =IF(INTRO!$E$43="Endémique", IF(AND($K16>0,$K16<5), IF($K16=4,"Inconnu", IF($K16=1, $F16*0.33, IF($K16=2, $F16*0.5+$G16*0.2, SUM(F16:G16)))), 0),"Non requis") -> 13071.8 | Q16: 0 | R16: 0 | S16: 0 | T16: 0 | Y16: 10761 | Z16: Djedda | AE16: 1 | AF16: 1 | AG16: 2
A17: =IF(INTRO!$E$33<>0,INTRO!$E$33, " ") -> Chad | B17: Batha | C17: Koundjourou | D17: 82512 | E17: =IF(INTRO!$E$48="","",ROUND($D17*INTRO!$E$48,0)) -> 12789 | F17: =IF(INTRO!$E$49="","",ROUND($D17*INTRO!$E$49,0)) -> 25331 | G17: =IF(INTRO!$E$50="","",ROUND($D17*INTRO!$E$50,0)) -> 40761 | H17: 0 | I17: 0 | J17: 0 | K17: 2 | M17: =IF(INTRO!$E$37="Endémique",IF($H17>0,IF($H17=4,"Inconnu",IF($H17=99,"Interrompu",$D17)),0),"Non requis") -> 0 | N17: =IF(INTRO!$E$39="Endémique", IF($I17>0, IF($I17=4,"Inconnu",IF($I17=99,"Interrompu",$D17)), 0),"Non requis") -> 0 | O17: =IF(INTRO!$E$41="Endémique", IF(AND($J17>1,$J17<5), IF($J17=4, "Inconnu", E17+F17), 0),"Non requis") -> 0 | P17: =IF(INTRO!$E$43="Endémique", IF(AND($K17>0,$K17<5), IF($K17=4,"Inconnu", IF($K17=1, $F17*0.33, IF($K17=2, $F17*0.5+$G17*0.2, SUM(F17:G17)))), 0),"Non requis") -> 20817.7 | Q17: 0 | R17: 0 | S17: 0 | T17: 0 | Y17: 10762 | Z17: Koundjourou | AE17: 1 | AF17: 1 | AG17: 2
A18: =IF(INTRO!$E$33<>0,INTRO!$E$33, " ") -> Chad | B18: Batha | C18: Oum-Hadjer | D18: 177128 | E18: =IF(INTRO!$E$48="","",ROUND($D18*INTRO!$E$48,0)) -> 27455 | F18: =IF(INTRO!$E$49="","",ROUND($D18*INTRO!$E$49,0)) -> 54378 | G18: =IF(INTRO!$E$50="","",ROUND($D18*INTRO!$E$50,0)) -> 87501 | H18: 0 | I18: 0 | J18: 0 | K18: 2 | M18: =IF(INTRO!$E$37="Endémique",IF($H18>0,IF($H18=4,"Inconnu",IF($H18=99,"Interrompu",$D18)),0),"Non requis") -> 0 | N18: =IF(INTRO!$E$39="Endémique", IF($I18>0, IF($I18=4,"Inconnu",IF($I18=99,"Interrompu",$D18)), 0),"Non requis") -> 0 | O18: =IF(INTRO!$E$41="Endémique", IF(AND($J18>1,$J18<5), IF($J18=4, "Inconnu", E18+F18), 0),"Non requis") -> 0 | P18: =IF(INTRO!$E$43="Endémique", IF(AND($K18>0,$K18<5), IF($K18=4,"Inconnu", IF($K18=1, $F18*0.33, IF($K18=2, $F18*0.5+$G18*0.2, SUM(F18:G18)))), 0),"Non requis") -> 44689.2 | Q18: 0 | R18: 0 | S18: 0 | T18: 1 | Y18: 10663 | Z18: Oum-Hadjer | AE18: 1 | AF18: 0 | AG18: 1
A19: =IF(INTRO!$E$33<>0,INTRO!$E$33, " ") -> Chad | B19: Batha | C19: Yao | D19: 169749 | E19: =IF(INTRO!$E$48="","",ROUND($D19*INTRO!$E$48,0)) -> 26311 | F19: =IF(INTRO!$E$49="","",ROUND($D19*INTRO!$E$49,0)) -> 52113 | G19: =IF(INTRO!$E$50="","",ROUND($D19*INTRO!$E$50,0)) -> 83856 | H19: 0 | I19: 0 | J19: 1 | K19: 2 | M19: =IF(INTRO!$E$37="Endémique",IF($H19>0,IF($H19=4,"Inconnu",IF($H19=99,"Interrompu",$D19)),0),"Non requis") -> 0 | N19: =IF(INTRO!$E$39="Endémique", IF($I19>0, IF($I19=4,"Inconnu",IF($I19=99,"Interrompu",$D19)), 0),"Non requis") -> 0 | O19: =IF(INTRO!$E$41="Endémique", IF(AND($J19>1,$J19<5), IF($J19=4, "Inconnu", E19+F19), 0),"Non requis") -> 0 | P19: =IF(INTRO!$E$43="Endémique", IF(AND($K19>0,$K19<5), IF($K19=4,"Inconnu", IF($K19=1, $F19*0.33, IF($K19=2, $F19*0.5+$G19*0.2, SUM(F19:G19)))), 0),"Non requis") -> 42827.7 | Q19: 0 | R19: 0 | S19: 0 | T19: 1 | Y19: 10664 | Z19: Yao | AE19: 1 | AF19: 0 | AG19: 1
A20: =IF(INTRO!$E$33<>0,INTRO!$E$33, " ") -> Chad | B20: Borkou | C20: Faya | D20: 103152 | E20: =IF(INTRO!$E$48="","",ROUND($D20*INTRO!$E$48,0)) -> 15989 | F20: =IF(INTRO!$E$49="","",ROUND($D20*INTRO!$E$49,0)) -> 31668 | G20: =IF(INTRO!$E$50="","",ROUND($D20*INTRO!$E$50,0)) -> 50957 | H20: 0 | I20: 0 | J20: 1 | K20: 1 | M20: =IF(INTRO!$E$37="Endémique",IF($H20>0,IF($H20=4,"Inconnu",IF($H20=99,"Interrompu",$D20)),0),"Non requis") -> 0 | N20: =IF(INTRO!$E$39="Endémique", IF($I20>0, IF($I20=4,"Inconnu",IF($I20=99,"Interrompu",$D20)), 0),"Non requis") -> 0 | O20: =IF(INTRO!$E$41="Endémique", IF(AND($J20>1,$J20<5), IF($J20=4, "Inconnu", E20+F20), 0),"Non requis") -> 0 | P20: =IF(INTRO!$E$43="Endémique", IF(AND($K20>0,$K20<5), IF($K20=4,"Inconnu", IF($K20=1, $F20*0.33, IF($K20=2, $F20*0.5+$G20*0.2, SUM(F20:G20)))), 0),"Non requis") -> 10450.44 | Q20: 0 | R20: 0 | S20: 0 | T20: 1 | Y20: 10666 | Z20: Faya | AE20: 0 | AF20: 1 | AG20: 1
A21: =IF(INTRO!$E$33<>0,INTRO!$E$33, " ") -> Chad | B21: Borkou | C21: Kirdimi | D21: 38178 | E21: =IF(INTRO!$E$48="","",ROUND($D21*INTRO!$E$48,0)) -> 5918 | F21: =IF(INTRO!$E$49="","",ROUND($D21*INTRO!$E$49,0)) -> 11721 | G21: =IF(INTRO!$E$50="","",ROUND($D21*INTRO!$E$50,0)) -> 18860 | H21: 0 | I21: 0 | J21: 1 | K21: 1 | M21: =IF(INTRO!$E$37="Endémique",IF($H21>0,IF($H21=4,"Inconnu",IF($H21=99,"Interrompu",$D21)),0),"Non requis") -> 0 | N21: =IF(INTRO!$E$39="Endémique", IF($I21>0, IF($I21=4,"Inconnu",IF($I21=99,"Interrompu",$D21)), 0),"Non requis") -> 0 | O21: =IF(INTRO!$E$41="Endémique", IF(AND($J21>1,$J21<5), IF($J21=4, "Inconnu", E21+F21), 0),"Non requis") -> 0 | P21: =IF(INTRO!$E$43="Endémique", IF(AND($K21>0,$K21<5), IF($K21=4,"Inconnu", IF($K21=1, $F21*0.33, IF($K21=2, $F21*0.5+$G21*0.2, SUM(F21:G21)))), 0),"Non requis") -> 3867.93 | Q21: 0 | R21: 0 | S21: 0 | T21: 1 | Y21: 10746 | Z21: Kirdimi | AE21: 0 | AF21: 1 | AG21: 1
A22: =IF(INTRO!$E$33<>0,INTRO!$E$33, " ") -> Chad | B22: Chari Baguirmi | C22: Ba-Illi | D22: 97281 | E22: =IF(INTRO!$E$48="","",ROUND($D22*INTRO!$E$48,0)) -> 15079 | F22: =IF(INTRO!$E$49="","",ROUND($D22*INTRO!$E$49,0)) -> 29865 | G22: =IF(INTRO!$E$50="","",ROUND($D22*INTRO!$E$50,0)) -> 48057 | H22: 0 | I22: 0 | J22: 1 | K22: 2 | M22: =IF(INTRO!$E$37="Endémique",IF($H22>0,IF($H22=4,"Inconnu",IF($H22=99,"Interrompu",$D22)),0),"Non requis") -> 0 | N22: =IF(INTRO!$E$39="Endémique", IF($I22>0, IF($I22=4,"Inconnu",IF($I22=99,"Interrompu",$D22)), 0),"Non requis") -> 0 | O22: =IF(INTRO!$E$41="Endémique", IF(AND($J22>1,$J22<5), IF($J22=4, "Inconnu", E22+F22), 0),"Non requis") -> 0 | P22: =IF(INTRO!$E$43="Endémique", IF(AND($K22>0,$K22<5), IF($K22=4,"Inconnu", IF($K22=1, $F22*0.33, IF($K22=2, $F22*0.5+$G22*0.2, SUM(F22:G22)))), 0),"Non requis") -> 24543.9 | Q22: 0 | R22: 0 | S22: 0 | T22: 1 | Y22: 10667 | Z22: Ba-Illi | AE22: 1 | AF22: 0 | AG22: 1
A23: =IF(INTRO!$E$33<>0,INTRO!$E$33, " ") -> Chad | B23: Chari Baguirmi | C23: Bousso | D23: 157091 | E23: =IF(INTRO!$E$48="","",ROUND($D23*INTRO!$E$48,0)) -> 24349 | F23: =IF(INTRO!$E$49="","",ROUND($D23*INTRO!$E$49,0)) -> 48227 | G23: =IF(INTRO!$E$50="","",ROUND($D23*INTRO!$E$50,0)) -> 77603 | H23: 0 | I23: 0 | J23: 1 | K23: 2 | M23: =IF(INTRO!$E$37="Endémique",IF($H23>0,IF($H23=4,"Inconnu",IF($H23=99,"Interrompu",$D23)),0),"Non requis") -> 0 | N23: =IF(INTRO!$E$39="Endémique", IF($I23>0, IF($I23=4,"Inconnu",IF($I23=99,"Interrompu",$D23)), 0),"Non requis") -> 0 | O23: =IF(INTRO!$E$41="Endémique", IF(AND($J23>1,$J23<5), IF($J23=4, "Inconnu", E23+F23), 0),"Non requis") -> 0 | P23: =IF(INTRO!$E$43="Endémique", IF(AND($K23>0,$K23<5), IF($K23=4,"Inconnu", IF($K23=1, $F23*0.33, IF($K23=2, $F23*0.5+$G23*0.2, SUM(F23:G23)))), 0),"Non requis") -> 39634.1 | Q23: 0 | R23: 0 | S23: 0 | T23: 1 | Y23: 10668 | Z23: Bousso | AE23: 1 | AF23: 0 | AG23: 1
A24: =IF(INTRO!$E$33<>0,INTRO!$E$33, " ") -> Chad | B24: Chari Baguirmi | C24: Dourbali | D24: 167993 | E24: =IF(INTRO!$E$48="","",ROUND($D24*INTRO!$E$48,0)) -> 26039 | F24: =IF(INTRO!$E$49="","",ROUND($D24*INTRO!$E$49,0)) -> 51574 | G24: =IF(INTRO!$E$50="","",ROUND($D24*INTRO!$E$50,0)) -> 82989 | H24: 0 | I24: 0 | J24: 1 | K24: 2 | M24: =IF(INTRO!$E$37="Endémique",IF($H24>0,IF($H24=4,"Inconnu",IF($H24=99,"Interrompu",$D24)),0),"Non requis") -> 0 | N24: =IF(INTRO!$E$39="Endémique", IF($I24>0, IF($I24=4,"Inconnu",IF($I24=99,"Interrompu",$D24)), 0),"Non requis") -> 0 | O24: =IF(INTRO!$E$41="Endémique", IF(AND($J24>1,$J24<5), IF($J24=4, "Inconnu", E24+F24), 0),"Non requis") -> 0 | P24: =IF(INTRO!$E$43="Endémique", IF(AND($K24>0,$K24<5), IF($K24=4,"Inconnu", IF($K24=1, $F24*0.33, IF($K24=2, $F24*0.5+$G24*0.2, SUM(F24:G24)))), 0),"Non requis") -> 42384.8 | Q24: 0 | R24: 0 | S24: 0 | T24: 1 | Y24: 10669 | Z24: Dourbali | AE24: 1 | AF24: 0 | AG24: 1
A25: =IF(INTRO!$E$33<>0,INTRO!$E$33, " ") -> Chad | B25: Chari Baguirmi | C25: Koulno | D25: 267457 | E25: =IF(INTRO!$E$48="","",ROUND($D25*INTRO!$E$48,0)) -> 41456 | F25: =IF(INTRO!$E$49="","",ROUND($D25*INTRO!$E$49,0)) -> 82109 | G25: =IF(INTRO!$E$50="","",ROUND($D25*INTRO!$E$50,0)) -> 132124 | H25: 0 | I25: 0 | J25: 1 | K25: 2 | M25: =IF(INTRO!$E$37="Endémique",IF($H25>0,IF($H25=4,"Inconnu",IF($H25=99,"Interrompu",$D25)),0),"Non requis") -> 0 | N25: =IF(INTRO!$E$39="Endémique", IF($I25>0, IF($I25=4,"Inconnu",IF($I25=99,"Interrompu",$D25)), 0),"Non requis") -> 0 | O25: =IF(INTRO!$E$41="Endémique", IF(AND($J25>1,$J25<5), IF($J25=4, "Inconnu", E25+F25), 0),"Non requis") -> 0 | P25: =IF(INTRO!$E$43="Endémique", IF(AND($K25>0,$K25<5), IF($K25=4,"Inconnu", IF($K25=1, $F25*0.33, IF($K25=2, $F25*0.5+$G25*0.2, SUM(F25:G25)))), 0),"Non requis") -> 67479.3 | Q25: 0 | R25: 0 | S25: 0 | T25: 1 | Y25: 10747 | Z25: Koulno | AE25: 1 | AF25: 0 | AG25: 1
A26: =IF(INTRO!$E$33<>0,INTRO!$E$33, " ") -> Chad | B26: Chari Baguirmi | C26: Mandélia | D26: 146367 | E26: =IF(INTRO!$E$48="","",ROUND($D26*INTRO!$E$48,0)) -> 22687 | F26: =IF(INTRO!$E$49="","",ROUND($D26*INTRO!$E$49,0)) -> 44935 | G26: =IF(INTRO!$E$50="","",ROUND($D26*INTRO!$E$50,0)) -> 72305 | H26: 0 | I26: 0 | J26: 1 | K26: 2 | M26: =IF(INTRO!$E$37="Endémique",IF($H26>0,IF($H26=4,"Inconnu",IF($H26=99,"Interrompu",$D26)),0),"Non requis") -> 0 | N26: =IF(INTRO!$E$39="Endémique", IF($I26>0, IF($I26=4,"Inconnu",IF($I26=99,"Interrompu",$D26)), 0),"Non requis") -> 0 | O26: =IF(INTRO!$E$41="Endémique", IF(AND($J26>1,$J26<5), IF($J26=4, "Inconnu", E26+F26), 0),"Non requis") -> 0 | P26: =IF(INTRO!$E$43="Endémique", IF(AND($K26>0,$K26<5), IF($K26=4,"Inconnu", IF($K26=1, $F26*0.33, IF($K26=2, $F26*0.5+$G26*0.2, SUM(F26:G26)))), 0),"Non requis") -> 36928.5 | Q26: 0 | R26: 0 | S26: 0 | T26: 1 | Y26: 10671 | Z26: Mandélia | AE26: 1 | AF26: 0 | AG26: 1
A27: =IF(INTRO!$E$33<>0,INTRO!$E$33, " ") -> Chad | B27: Chari Baguirmi | C27: Massenya | D27: 147163 | E27: =IF(INTRO!$E$48="","",ROUND($D27*INTRO!$E$48,0)) -> 22810 | F27: =IF(INTRO!$E$49="","",ROUND($D27*INTRO!$E$49,0)) -> 45179 | G27: =IF(INTRO!$E$50="","",ROUND($D27*INTRO!$E$50,0)) -> 72699 | H27: 0 | I27: 0 | J27: 1 | K27: 2 | M27: =IF(INTRO!$E$37="Endémique",IF($H27>0,IF($H27=4,"Inconnu",IF($H27=99,"Interrompu",$D27)),0),"Non requis") -> 0 | N27: =IF(INTRO!$E$39="Endémique", IF($I27>0, IF($I27=4,"Inconnu",IF($I27=99,"Interrompu",$D27)), 0),"Non requis") -> 0 | O27: =IF(INTRO!$E$41="Endémique", IF(AND($J27>1,$J27<5), IF($J27=4, "Inconnu", E27+F27), 0),"Non requis") -> 0 | P27: =IF(INTRO!$E$43="Endémique", IF(AND($K27>0,$K27<5), IF($K27=4,"Inconnu", IF($K27=1, $F27*0.33, IF($K27=2, $F27*0.5+$G27*0.2, SUM(F27:G27)))), 0),"Non requis") -> 37129.3 | Q27: 0 | R27: 0 | S27: 0 | T27: 1 | Y27: 10672 | Z27: Massenya | AE27: 1 | AF27: 0 | AG27: 1
A28: =IF(INTRO!$E$33<>0,INTRO!$E$33, " ") -> Chad | B28: Ennedi Est | C28: Amdjarass | D28: 97172 | E28: =IF(INTRO!$E$48="","",ROUND($D28*INTRO!$E$48,0)) -> 15062 | F28: =IF(INTRO!$E$49="","",ROUND($D28*INTRO!$E$49,0)) -> 29832 | G28: =IF(INTRO!$E$50="","",ROUND($D28*INTRO!$E$50,0)) -> 48003 | H28: 0 | I28: 0 | J28: 1 | K28: 0 | M28: =IF(INTRO!$E$37="Endémique",IF($H28>0,IF($H28=4,"Inconnu",IF($H28=99,"Interrompu",$D28)),0),"Non requis") -> 0 | N28: =IF(INTRO!$E$39="Endémique", IF($I28>0, IF($I28=4,"Inconnu",IF($I28=99,"Interrompu",$D28)), 0),"Non requis") -> 0 | O28: =IF(INTRO!$E$41="Endémique", IF(AND($J28>1,$J28<5), IF($J28=4, "Inconnu", E28+F28), 0),"Non requis") -> 0 | P28: =IF(INTRO!$E$43="Endémique", IF(AND($K28>0,$K28<5), IF($K28=4,"Inconnu", IF($K28=1, $F28*0.33, IF($K28=2, $F28*0.5+$G28*0.2, SUM(F28:G28)))), 0),"Non requis") -> 0 | Q28: 0 | R28: 0 | S28: 0 | T28: 0 | Y28: 10675 | Z28: Amdjarass | AE28: 0 | AF28: 0 | AG28: 0
A29: =IF(INTRO!$E$33<>0,INTRO!$E$33, " ") -> Chad | B29: Ennedi Est | C29: Bahaï | D29: 42137 | E29: =IF(INTRO!$E$48="","",ROUND($D29*INTRO!$E$48,0)) -> 6531 | F29: =IF(INTRO!$E$49="","",ROUND($D29*INTRO!$E$49,0)) -> 12936 | G29: =IF(INTRO!$E$50="","",ROUND($D29*INTRO!$E$50,0)) -> 20816 | H29: 0 | I29: 0 | J29: 1 | K29: 0 | M29: =IF(INTRO!$E$37="Endémique",IF($H29>0,IF($H29=4,"Inconnu",IF($H29=99,"Interrompu",$D29)),0),"Non requis") -> 0 | N29: =IF(INTRO!$E$39="Endémique", IF($I29>0, IF($I29=4,"Inconnu",IF($I29=99,"Interrompu",$D29)), 0),"Non requis") -> 0 | O29: =IF(INTRO!$E$41="Endémique", IF(AND($J29>1,$J29<5), IF($J29=4, "Inconnu", E29+F29), 0),"Non requis") -> 0 | P29: =IF(INTRO!$E$43="Endémique", IF(AND($K29>0,$K29<5), IF($K29=4,"Inconnu", IF($K29=1, $F29*0.33, IF($K29=2, $F29*0.5+$G29*0.2, SUM(F29:G29)))), 0),"Non requis") -> 0 | Q29: 0 | R29: 0 | S29: 0 | T29: 0 | Y29: 10676 | Z29: Bahaï | AE29: 0 | AF29: 0 | AG29: 0
A30: =IF(INTRO!$E$33<>0,INTRO!$E$33, " ") -> Chad | B30: Ennedi Est | C30: Kaoura | D30: 22802 | E30: =IF(INTRO!$E$48="","",ROUND($D30*INTRO!$E$48,0)) -> 3534 | F30: =IF(INTRO!$E$49="","",ROUND($D30*INTRO!$E$49,0)) -> 7000 | G30: =IF(INTRO!$E$50="","",ROUND($D30*INTRO!$E$50,0)) -> 11264 | H30: 0 | I30: 0 | J30: 1 | K30: 1 | M30: =IF(INTRO!$E$37="Endémique",IF($H30>0,IF($H30=4,"Inconnu",IF($H30=99,"Interrompu",$D30)),0),"Non requis") -> 0 | N30: =IF(INTRO!$E$39="Endémique", IF($I30>0, IF($I30=4,"Inconnu",IF($I30=99,"Interrompu",$D30)), 0),"Non requis") -> 0 | O30: =IF(INTRO!$E$41="Endémique", IF(AND($J30>1,$J30<5), IF($J30=4, "Inconnu", E30+F30), 0),"Non requis") -> 0 | P30: =IF(INTRO!$E$43="Endémique", IF(AND($K30>0,$K30<5), IF($K30=4,"Inconnu", IF($K30=1, $F30*0.33, IF($K30=2, $F30*0.5+$G30*0.2, SUM(F30:G30)))), 0),"Non requis") -> 2310 | Q30: 0 | R30: 0 | S30: 0 | T30: 1 | Y30: 10678 | Z30: Kaoura | AE30: 0 | AF30: 1 | AG30: 1
A31: =IF(INTRO!$E$33<>0,INTRO!$E$33, " ") -> Chad | B31: Ennedi Ouest | C31: Fada | D31: 59387 | E31: =IF(INTRO!$E$48="","",ROUND($D31*INTRO!$E$48,0)) -> 9205 | F31: =IF(INTRO!$E$49="","",ROUND($D31*INTRO!$E$49,0)) -> 18232 | G31: =IF(INTRO!$E$50="","",ROUND($D31*INTRO!$E$50,0)) -> 29337 | H31: 0 | I31: 0 | J31: 1 | K31: 1 | M31: =IF(INTRO!$E$37="Endémique",IF($H31>0,IF($H31=4,"Inconnu",IF($H31=99,"Interrompu",$D31)),0),"Non requis") -> 0 | N31: =IF(INTRO!$E$39="Endémique", IF($I31>0, IF($I31=4,"Inconnu",IF($I31=99,"Interrompu",$D31)), 0),"Non requis") -> 0 | O31: =IF(INTRO!$E$41="Endémique", IF(AND($J31>1,$J31<5), IF($J31=4, "Inconnu", E31+F31), 0),"Non requis") -> 0 | P31: =IF(INTRO!$E$43="Endémique", IF(AND($K31>0,$K31<5), IF($K31=4,"Inconnu", IF($K31=1, $F31*0.33, IF($K31=2, $F31*0.5+$G31*0.2, SUM(F31:G31)))), 0),"Non requis") -> 6016.56 | Q31: 0 | R31: 0 | S31: 0 | T31: 1 | Y31: 10665 | Z31: Fada | AE31: 0 | AF31: 1 | AG31: 1
A32: =IF(INTRO!$E$33<>0,INTRO!$E$33, " ") -> Chad | B32: Ennedi Ouest | C32: Kalaït | D32: 32203 | E32: =IF(INTRO!$E$48="","",ROUND($D32*INTRO!$E$48,0)) -> 4991 | F32: =IF(INTRO!$E$49="","",ROUND($D32*INTRO!$E$49,0)) -> 9886 | G32: =IF(INTRO!$E$50="","",ROUND($D32*INTRO!$E$50,0)) -> 15908 | H32: 0 | I32: 0 | J32: 1 | K32: 1 | M32: =IF(INTRO!$E$37="Endémique",IF($H32>0,IF($H32=4,"Inconnu",IF($H32=99,"Interrompu",$D32)),0),"Non requis") -> 0 | N32: =IF(INTRO!$E$39="Endémique", IF($I32>0, IF($I32=4,"Inconnu",IF($I32=99,"Interrompu",$D32)), 0),"Non requis") -> 0 | O32: =IF(INTRO!$E$41="Endémique", IF(AND($J32>1,$J32<5), IF($J32=4, "Inconnu", E32+F32), 0),"Non requis") -> 0 | P32: =IF(INTRO!$E$43="Endémique", IF(AND($K32>0,$K32<5), IF($K32=4,"Inconnu", IF($K32=1, $F32*0.33, IF($K32=2, $F32*0.5+$G32*0.2, SUM(F32:G32)))), 0),"Non requis") -> 3262.38 | Q32: 0 | R32: 0 | S32: 0 | T32: 1 | Y32: 10677 | Z32: Kalaït | AE32: 0 | AF32: 1 | AG32: 1
A33: =IF(INTRO!$E$33<>0,INTRO!$E$33, " ") -> Chad | B33: Guéra | C33: Barou | D33: 67745 | E33: =IF(INTRO!$E$48="","",ROUND($D33*INTRO!$E$48,0)) -> 10500 | F33: =IF(INTRO!$E$49="","",ROUND($D33*INTRO!$E$49,0)) -> 20798 | G33: =IF(INTRO!$E$50="","",ROUND($D33*INTRO!$E$50,0)) -> 33466 | H33: 0 | I33: 0 | J33: 0 | K33: 2 | M33: =IF(INTRO!$E$37="Endémique",IF($H33>0,IF($H33=4,"Inconnu",IF($H33=99,"Interrompu",$D33)),0),"Non requis") -> 0 | N33: =IF(INTRO!$E$39="Endémique", IF($I33>0, IF($I33=4,"Inconnu",IF($I33=99,"Interrompu",$D33)), 0),"Non requis") -> 0 | O33: =IF(INTRO!$E$41="Endémique", IF(AND($J33>1,$J33<5), IF($J33=4, "Inconnu", E33+F33), 0),"Non requis") -> 0 | P33: =IF(INTRO!$E$43="Endémique", IF(AND($K33>0,$K33<5), IF($K33=4,"Inconnu", IF($K33=1, $F33*0.33, IF($K33=2, $F33*0.5+$G33*0.2, SUM(F33:G33)))), 0),"Non requis") -> 17092.2 | Q33: 0 | R33: 0 | S33: 0 | T33: 0 | Y33: 10763 | Z33: Barou | AE33: 1 | AF33: 1 | AG33: 2
A34: =IF(INTRO!$E$33<>0,INTRO!$E$33, " ") -> Chad | B34: Guéra | C34: Bitkine | D34: 252982 | E34: =IF(INTRO!$E$48="","",ROUND($D34*INTRO!$E$48,0)) -> 39212 | F34: =IF(INTRO!$E$49="","",ROUND($D34*INTRO!$E$49,0)) -> 77665 | G34: =IF(INTRO!$E$50="","",ROUND($D34*INTRO!$E$50,0)) -> 124973 | H34: 0 | I34: 0 | J34: 1 | K34: 2 | M34: =IF(INTRO!$E$37="Endémique",IF($H34>0,IF($H34=4,"Inconnu",IF($H34=99,"Interrompu",$D34)),0),"Non requis") -> 0 | N34: =IF(INTRO!$E$39="Endémique", IF($I34>0, IF($I34=4,"Inconnu",IF($I34=99,"Interrompu",$D34)), 0),"Non requis") -> 0 | O34: =IF(INTRO!$E$41="Endémique", IF(AND($J34>1,$J34<5), IF($J34=4, "Inconnu", E34+F34), 0),"Non requis") -> 0 | P34: =IF(INTRO!$E$43="Endémique", IF(AND($K34>0,$K34<5), IF($K34=4,"Inconnu", IF($K34=1, $F34*0.33, IF($K34=2, $F34*0.5+$G34*0.2, SUM(F34:G34)))), 0),"Non requis") -> 63827.1 | Q34: 0 | R34: 0 | S34: 0 | T34: 1 | Y34: 10679 | Z34: Bitkine | AE34: 1 | AF34: 0 | AG34: 1
A35: =IF(INTRO!$E$33<>0,INTRO!$E$33, " ") -> Chad | B35: Guéra | C35: Mangalmé | D35: 143400 | E35: =IF(INTRO!$E$48="","",ROUND($D35*INTRO!$E$48,0)) -> 22227 | F35: =IF(INTRO!$E$49="","",ROUND($D35*INTRO!$E$49,0)) -> 44024 | G35: =IF(INTRO!$E$50="","",ROUND($D35*INTRO!$E$50,0)) -> 70840 | H35: 0 | I35: 0 | J35: 0 | K35: 2 | M35: =IF(INTRO!$E$37="Endémique",IF($H35>0,IF($H35=4,"Inconnu",IF($H35=99,"Interrompu",$D35)),0),"Non requis") -> 0 | N35: =IF(INTRO!$E$39="Endémique", IF($I35>0, IF($I35=4,"Inconnu",IF($I35=99,"Interrompu",$D35)), 0),"Non requis") -> 0 | O35: =IF(INTRO!$E$41="Endémique", IF(AND($J35>1,$J35<5), IF($J35=4, "Inconnu", E35+F35), 0),"Non requis") -> 0 | P35: =IF(INTRO!$E$43="Endémique", IF(AND($K35>0,$K35<5), IF($K35=4,"Inconnu", IF($K35=1, $F35*0.33, IF($K35=2, $F35*0.5+$G35*0.2, SUM(F35:G35)))), 0),"Non requis") -> 36180 | Q35: 0 | R35: 0 | S35: 0 | T35: 1 | Y35: 10680 | Z35: Mangalmé | AE35: 1 | AF35: 0 | AG35: 1
A36: =IF(INTRO!$E$33<>0,INTRO!$E$33, " ") -> Chad | B36: Guéra | C36: Melfi | D36: 156492 | E36: =IF(INTRO!$E$48="","",ROUND($D36*INTRO!$E$48,0)) -> 24256 | F36: =IF(INTRO!$E$49="","",ROUND($D36*INTRO!$E$49,0)) -> 48043 | G36: =IF(INTRO!$E$50="","",ROUND($D36*INTRO!$E$50,0)) -> 77307 | H36: 0 | I36: 0 | J36: 1 | K36: 2 | M36: =IF(INTRO!$E$37="Endémique",IF($H36>0,IF($H36=4,"Inconnu",IF($H36=99,"Interrompu",$D36)),0),"Non requis") -> 0 | N36: =IF(INTRO!$E$39="Endémique", IF($I36>0, IF($I36=4,"Inconnu",IF($I36=99,"Interrompu",$D36)), 0),"Non requis") -> 0 | O36: =IF(INTRO!$E$41="Endémique", IF(AND($J36>1,$J36<5), IF($J36=4, "Inconnu", E36+F36), 0),"Non requis") -> 0 | P36: =IF(INTRO!$E$43="Endémique", IF(AND($K36>0,$K36<5), IF($K36=4,"Inconnu", IF($K36=1, $F36*0.33, IF($K36=2, $F36*0.5+$G36*0.2, SUM(F36:G36)))), 0),"Non requis") -> 39482.9 | Q36: 0 | R36: 0 | S36: 0 | T36: 1 | Y36: 10681 | Z36: Melfi | AE36: 1 | AF36: 0 | AG36: 1
A37: =IF(INTRO!$E$33<>0,INTRO!$E$33, " ") -> Chad | B37: Guéra | C37: Mongo | D37: 192812 | E37: =IF(INTRO!$E$48="","",ROUND($D37*INTRO!$E$48,0)) -> 29886 | F37: =IF(INTRO!$E$49="","",ROUND($D37*INTRO!$E$49,0)) -> 59193 | G37: =IF(INTRO!$E$50="","",ROUND($D37*INTRO!$E$50,0)) -> 95249 | H37: 0 | I37: 0 | J37: 0 | K37: 2 | M37: =IF(INTRO!$E$37="Endémique",IF($H37>0,IF($H37=4,"Inconnu",IF($H37=99,"Interrompu",$D37)),0),"Non requis") -> 0 | N37: =IF(INTRO!$E$39="Endémique", IF($I37>0, IF($I37=4,"Inconnu",IF($I37=99,"Interrompu",$D37)), 0),"Non requis") -> 0 | O37: =IF(INTRO!$E$41="Endémique", IF(AND($J37>1,$J37<5), IF($J37=4, "Inconnu", E37+F37), 0),"Non requis") -> 0 | P37: =IF(INTRO!$E$43="Endémique", IF(AND($K37>0,$K37<5), IF($K37=4,"Inconnu", IF($K37=1, $F37*0.33, IF($K37=2, $F37*0.5+$G37*0.2, SUM(F37:G37)))), 0),"Non requis") -> 48646.3 | Q37: 0 | R37: 0 | S37: 0 | T37: 1 | Y37: 10682 | Z37: Mongo | AE37: 1 | AF37: 0 | AG37: 1
A38: =IF(INTRO!$E$33<>0,INTRO!$E$33, " ") -> Chad | B38: Hadjer Lamis | C38: Bokoro | D38: 245063 | E38: =IF(INTRO!$E$48="","",ROUND($D38*INTRO!$E$48,0)) -> 37985 | F38: =IF(INTRO!$E$49="","",ROUND($D38*INTRO!$E$49,0)) -> 75234 | G38: =IF(INTRO!$E$50="","",ROUND($D38*INTRO!$E$50,0)) -> 121061 | H38: 0 | I38: 0 | J38: 1 | K38: 3 | M38: =IF(INTRO!$E$37="Endémique",IF($H38>0,IF($H38=4,"Inconnu",IF($H38=99,"Interrompu",$D38)),0),"Non requis") -> 0 | N38: =IF(INTRO!$E$39="Endémique", IF($I38>0, IF($I38=4,"Inconnu",IF($I38=99,"Interrompu",$D38)), 0),"Non requis") -> 0 | O38: =IF(INTRO!$E$41="Endémique", IF(AND($J38>1,$J38<5), IF($J38=4, "Inconnu", E38+F38), 0),"Non requis") -> 0 | P38: =IF(INTRO!$E$43="Endémique", IF(AND($K38>0,$K38<5), IF($K38=4,"Inconnu", IF($K38=1, $F38*0.33, IF($K38=2, $F38*0.5+$G38*0.2, SUM(F38:G38)))), 0),"Non requis") -> 196295 | Q38: 0 | R38: 0 | S38: 0 | T38: 0 | Y38: 10683 | Z38: Bokoro | AE38: 1 | AF38: 1 | AG38: 2
A39: =IF(INTRO!$E$33<>0,INTRO!$E$33, " ") -> Chad | B39: Hadjer Lamis | C39: Gama | D39: 100121 | E39: =IF(INTRO!$E$48="","",ROUND($D39*INTRO!$E$48,0)) -> 15519 | F39: =IF(INTRO!$E$49="","",ROUND($D39*INTRO!$E$49,0)) -> 30737 | G39: =IF(INTRO!$E$50="","",ROUND($D39*INTRO!$E$50,0)) -> 49460 | H39: 0 | I39: 0 | J39: 1 | K39: 3 | M39: =IF(INTRO!$E$37="Endémique",IF($H39>0,IF($H39=4,"Inconnu",IF($H39=99,"Interrompu",$D39)),0),"Non requis") -> 0 | N39: =IF(INTRO!$E$39="Endémique", IF($I39>0, IF($I39=4,"Inconnu",IF($I39=99,"Interrompu",$D39)), 0),"Non requis") -> 0 | O39: =IF(INTRO!$E$41="Endémique", IF(AND($J39>1,$J39<5), IF($J39=4, "Inconnu", E39+F39), 0),"Non requis") -> 0 | P39: =IF(INTRO!$E$43="Endémique", IF(AND($K39>0,$K39<5), IF($K39=4,"Inconnu", IF($K39=1, $F39*0.33, IF($K39=2, $F39*0.5+$G39*0.2, SUM(F39:G39)))), 0),"Non requis") -> 80197 | Q39: 0 | R39: 0 | S39: 0 | T39: 0 | Y39: 10748 | Z39: Gama | AE39: 1 | AF39: 1 | AG39: 2
A40: =IF(INTRO!$E$33<>0,INTRO!$E$33, " ") -> Chad | B40: Hadjer Lamis | C40: Mani | D40: 147957 | E40: =IF(INTRO!$E$48="","",ROUND($D40*INTRO!$E$48,0)) -> 22933 | F40: =IF(INTRO!$E$49="","",ROUND($D40*INTRO!$E$49,0)) -> 45423 | G40: =IF(INTRO!$E$50="","",ROUND($D40*INTRO!$E$50,0)) -> 73091 | H40: 0 | I40: 0 | J40: 1 | K40: 2 | M40: =IF(INTRO!$E$37="Endémique",IF($H40>0,IF($H40=4,"Inconnu",IF($H40=99,"Interrompu",$D40)),0),"Non requis") -> 0 | N40: =IF(INTRO!$E$39="Endémique", IF($I40>0, IF($I40=4,"Inconnu",IF($I40=99,"Interrompu",$D40)), 0),"Non requis") -> 0 | O40: =IF(INTRO!$E$41="Endémique", IF(AND($J40>1,$J40<5), IF($J40=4, "Inconnu", E40+F40), 0),"Non requis") -> 0 | P40: =IF(INTRO!$E$43="Endémique", IF(AND($K40>0,$K40<5), IF($K40=4,"Inconnu", IF($K40=1, $F40*0.33, IF($K40=2, $F40*0.5+$G40*0.2, SUM(F40:G40)))), 0),"Non requis") -> 37329.7 | Q40: 0 | R40: 0 | S40: 0 | T40: 1 | Y40: 10684 | Z40: Mani | AE40: 1 | AF40: 0 | AG40: 1
A41: =IF(INTRO!$E$33<>0,INTRO!$E$33, " ") -> Chad | B41: Hadjer Lamis | C41: Massaguet | D41: 78790 | E41: =IF(INTRO!$E$48="","",ROUND($D41*INTRO!$E$48,0)) -> 12212 | F41: =IF(INTRO!$E$49="","",ROUND($D41*INTRO!$E$49,0)) -> 24189 | G41: =IF(INTRO!$E$50="","",ROUND($D41*INTRO!$E$50,0)) -> 38922 | H41: 0 | I41: 0 | J41: 1 | K41: 2 | M41: =IF(INTRO!$E$37="Endémique",IF($H41>0,IF($H41=4,"Inconnu",IF($H41=99,"Interrompu",$D41)),0),"Non requis") -> 0 | N41: =IF(INTRO!$E$39="Endémique", IF($I41>0, IF($I41=4,"Inconnu",IF($I41=99,"Interrompu",$D41)), 0),"Non requis") -> 0 | O41: =IF(INTRO!$E$41="Endémique", IF(AND($J41>1,$J41<5), IF($J41=4, "Inconnu", E41+F41), 0),"Non requis") -> 0 | P41: =IF(INTRO!$E$43="Endémique", IF(AND($K41>0,$K41<5), IF($K41=4,"Inconnu", IF($K41=1, $F41*0.33, IF($K41=2, $F41*0.5+$G41*0.2, SUM(F41:G41)))), 0),"Non requis") -> 19878.9 | Q41: 0 | R41: 0 | S41: 0 | T41: 1 | Y41: 10685 | Z41: Massaguet | AE41: 1 | AF41: 0 | AG41: 1
A42: =IF(INTRO!$E$33<>0,INTRO!$E$33, " ") -> Chad | B42: Hadjer Lamis | C42: Massakory | D42: 284584 | E42: =IF(INTRO!$E$48="","",ROUND($D42*INTRO!$E$48,0)) -> 44111 | F42: =IF(INTRO!$E$49="","",ROUND($D42*INTRO!$E$49,0)) -> 87367 | G42: =IF(INTRO!$E$50="","",ROUND($D42*INTRO!$E$50,0)) -> 140584 | H42: 0 | I42: 0 | J42: 1 | K42: 2 | M42: =IF(INTRO!$E$37="Endémique",IF($H42>0,IF($H42=4,"Inconnu",IF($H42=99,"Interrompu",$D42)),0),"Non requis") -> 0 | N42: =IF(INTRO!$E$39="Endémique", IF($I42>0, IF($I42=4,"Inconnu",IF($I42=99,"Interrompu",$D42)), 0),"Non requis") -> 0 | O42: =IF(INTRO!$E$41="Endémique", IF(AND($J42>1,$J42<5), IF($J42=4, "Inconnu", E42+F42), 0),"Non requis") -> 0 | P42: =IF(INTRO!$E$43="Endémique", IF(AND($K42>0,$K42<5), IF($K42=4,"Inconnu", IF($K42=1, $F42*0.33, IF($K42=2, $F42*0.5+$G42*0.2, SUM(F42:G42)))), 0),"Non requis") -> 71800.3 | Q42: 0 | R42: 0 | S42: 0 | T42: 0 | Y42: 10686 | Z42: Massakory | AE42: 0 | AF42: 1 | AG42: 1
A43: =IF(INTRO!$E$33<>0,INTRO!$E$33, " ") -> Chad | B43: Kanem | C43: Mao | D43: 178210 | E43: =IF(INTRO!$E$48="","",ROUND($D43*INTRO!$E$48,0)) -> 27623 | F43: =IF(INTRO!$E$49="","",ROUND($D43*INTRO!$E$49,0)) -> 54710 | G43: =IF(INTRO!$E$50="","",ROUND($D43*INTRO!$E$50,0)) -> 88036 | H43: 0 | I43: 0 | J43: 1 | K43: 1 | M43: =IF(INTRO!$E$37="Endémique",IF($H43>0,IF($H43=4,"Inconnu",IF($H43=99,"Interrompu",$D43)),0),"Non requis") -> 0 | N43: =IF(INTRO!$E$39="Endémique", IF($I43>0, IF($I43=4,"Inconnu",IF($I43=99,"Interrompu",$D43)), 0),"Non requis") -> 0 | O43: =IF(INTRO!$E$41="Endémique", IF(AND($J43>1,$J43<5), IF($J43=4, "Inconnu", E43+F43), 0),"Non requis") -> 0 | P43: =IF(INTRO!$E$43="Endémique", IF(AND($K43>0,$K43<5), IF($K43=4,"Inconnu", IF($K43=1, $F43*0.33, IF($K43=2, $F43*0.5+$G43*0.2, SUM(F43:G43)))), 0),"Non requis") -> 18054.3 | Q43: 0 | R43: 0 | S43: 0 | T43: 1 | Y43: 10687 | Z43: Mao | AE43: 0 | AF43: 1 | AG43: 1
A44: =IF(INTRO!$E$33<>0,INTRO!$E$33, " ") -> Chad | B44: Kanem | C44: Mondo | D44: 134846 | E44: =IF(INTRO!$E$48="","",ROUND($D44*INTRO!$E$48,0)) -> 20901 | F44: =IF(INTRO!$E$49="","",ROUND($D44*INTRO!$E$49,0)) -> 41398 | G44: =IF(INTRO!$E$50="","",ROUND($D44*INTRO!$E$50,0)) -> 66614 | H44: 0 | I44: 0 | J44: 0 | K44: 1 | M44: =IF(INTRO!$E$37="Endémique",IF($H44>0,IF($H44=4,"Inconnu",IF($H44=99,"Interrompu",$D44)),0),"Non requis") -> 0 | N44: =IF(INTRO!$E$39="Endémique", IF($I44>0, IF($I44=4,"Inconnu",IF($I44=99,"Interrompu",$D44)), 0),"Non requis") -> 0 | O44: =IF(INTRO!$E$41="Endémique", IF(AND($J44>1,$J44<5), IF($J44=4, "Inconnu", E44+F44), 0),"Non requis") -> 0 | P44: =IF(INTRO!$E$43="Endémique", IF(AND($K44>0,$K44<5), IF($K44=4,"Inconnu", IF($K44=1, $F44*0.33, IF($K44=2, $F44*0.5+$G44*0.2, SUM(F44:G44)))), 0),"Non requis") -> 13661.34 | Q44: 0 | R44: 0 | S44: 0 | T44: 1 | Y44: 10688 | Z44: Mondo | AE44: 0 | AF44: 1 | AG44: 1
A45: =IF(INTRO!$E$33<>0,INTRO!$E$33, " ") -> Chad | B45: Kanem | C45: Nokou | D45: 89851 | E45: =IF(INTRO!$E$48="","",ROUND($D45*INTRO!$E$48,0)) -> 13927 | F45: =IF(INTRO!$E$49="","",ROUND($D45*INTRO!$E$49,0)) -> 27584 | G45: =IF(INTRO!$E$50="","",ROUND($D45*INTRO!$E$50,0)) -> 44386 | H45: 0 | I45: 0 | J45: 0 | K45: 0 | M45: =IF(INTRO!$E$37="Endémique",IF($H45>0,IF($H45=4,"Inconnu",IF($H45=99,"Interrompu",$D45)),0),"Non requis") -> 0 | N45: =IF(INTRO!$E$39="Endémique", IF($I45>0, IF($I45=4,"Inconnu",IF($I45=99,"Interrompu",$D45)), 0),"Non requis") -> 0 | O45: =IF(INTRO!$E$41="Endémique", IF(AND($J45>1,$J45<5), IF($J45=4, "Inconnu", E45+F45), 0),"Non requis") -> 0 | P45: =IF(INTRO!$E$43="Endémique", IF(AND($K45>0,$K45<5), IF($K45=4,"Inconnu", IF($K45=1, $F45*0.33, IF($K45=2, $F45*0.5+$G45*0.2, SUM(F45:G45)))), 0),"Non requis") -> 0 | Q45: 0 | R45: 0 | S45: 0 | T45: 0 | Y45: 10689 | Z45: Nokou | AE45: 0 | AF45: 0 | AG45: 0
A46: =IF(INTRO!$E$33<>0,INTRO!$E$33, " ") -> Chad | B46: Kanem | C46: Ntiona | D46: 53231 | E46: =IF(INTRO!$E$48="","",ROUND($D46*INTRO!$E$48,0)) -> 8251 | F46: =IF(INTRO!$E$49="","",ROUND($D46*INTRO!$E$49,0)) -> 16342 | G46: =IF(INTRO!$E$50="","",ROUND($D46*INTRO!$E$50,0)) -> 26296 | H46: 0 | I46: 0 | J46: 1 | K46: 1 | M46: =IF(INTRO!$E$37="Endémique",IF($H46>0,IF($H46=4,"Inconnu",IF($H46=99,"Interrompu",$D46)),0),"Non requis") -> 0 | N46: =IF(INTRO!$E$39="Endémique", IF($I46>0, IF($I46=4,"Inconnu",IF($I46=99,"Interrompu",$D46)), 0),"Non requis") -> 0 | O46: =IF(INTRO!$E$41="Endémique", IF(AND($J46>1,$J46<5), IF($J46=4, "Inconnu", E46+F46), 0),"Non requis") -> 0 | P46: =IF(INTRO!$E$43="Endémique", IF(AND($K46>0,$K46<5), IF($K46=4,"Inconnu", IF($K46=1, $F46*0.33, IF($K46=2, $F46*0.5+$G46*0.2, SUM(F46:G46)))), 0),"Non requis") -> 5392.86 | Q46: 0 | R46: 0 | S46: 0 | T46: 1 | Y46: 10764 | Z46: Ntiona | AE46: 1 | AF46: 1 | AG46: 2
A47: =IF(INTRO!$E$33<>0,INTRO!$E$33, " ") -> Chad | B47: Kanem | C47: Rig-Rig | D47: 47593 | E47: =IF(INTRO!$E$48="","",ROUND($D47*INTRO!$E$48,0)) -> 7377 | F47: =IF(INTRO!$E$49="","",ROUND($D47*INTRO!$E$49,0)) -> 14611 | G47: =IF(INTRO!$E$50="","",ROUND($D47*INTRO!$E$50,0)) -> 23511 | H47: 0 | I47: 0 | J47: 0 | K47: 0 | M47: =IF(INTRO!$E$37="Endémique",IF($H47>0,IF($H47=4,"Inconnu",IF($H47=99,"Interrompu",$D47)),0),"Non requis") -> 0 | N47: =IF(INTRO!$E$39="Endémique", IF($I47>0, IF($I47=4,"Inconnu",IF($I47=99,"Interrompu",$D47)), 0),"Non requis") -> 0 | O47: =IF(INTRO!$E$41="Endémique", IF(AND($J47>1,$J47<5), IF($J47=4, "Inconnu", E47+F47), 0),"Non requis") -> 0 | P47: =IF(INTRO!$E$43="Endémique", IF(AND($K47>0,$K47<5), IF($K47=4,"Inconnu", IF($K47=1, $F47*0.33, IF($K47=2, $F47*0.5+$G47*0.2, SUM(F47:G47)))), 0),"Non requis") -> 0 | Q47: 0 | R47: 0 | S47: 0 | T47: 0 | Y47: 10690 | Z47: Rig-Rig | AE47: 0 | AF47: 0 | AG47: 0
A48: =IF(INTRO!$E$33<>0,INTRO!$E$33, " ") -> Chad | B48: Lac | C48: Bagassola | D48: 90277 | E48: =IF(INTRO!$E$48="","",ROUND($D48*INTRO!$E$48,0)) -> 13993 | F48: =IF(INTRO!$E$49="","",ROUND($D48*INTRO!$E$49,0)) -> 27715 | G48: =IF(INTRO!$E$50="","",ROUND($D48*INTRO!$E$50,0)) -> 44597 | H48: 0 | I48: 0 | J48: 1 | K48: 2 | M48: =IF(INTRO!$E$37="Endémique",IF($H48>0,IF($H48=4,"Inconnu",IF($H48=99,"Interrompu",$D48)),0),"Non requis") -> 0 | N48: =IF(INTRO!$E$39="Endémique", IF($I48>0, IF($I48=4,"Inconnu",IF($I48=99,"Interrompu",$D48)), 0),"Non requis") -> 0 | O48: =IF(INTRO!$E$41="Endémique", IF(AND($J48>1,$J48<5), IF($J48=4, "Inconnu", E48+F48), 0),"Non requis") -> 0 | P48: =IF(INTRO!$E$43="Endémique", IF(AND($K48>0,$K48<5), IF($K48=4,"Inconnu", IF($K48=1, $F48*0.33, IF($K48=2, $F48*0.5+$G48*0.2, SUM(F48:G48)))), 0),"Non requis") -> 22776.9 | Q48: 0 | R48: 0 | S48: 0 | T48: 1 | Y48: 10691 | Z48: Bagassola | AE48: 1 | AF48: 0 | AG48: 1
A49: =IF(INTRO!$E$33<>0,INTRO!$E$33, " ") -> Chad | B49: Lac | C49: Bol | D49: 187702 | E49: =IF(INTRO!$E$48="","",ROUND($D49*INTRO!$E$48,0)) -> 29094 | F49: =IF(INTRO!$E$49="","",ROUND($D49*INTRO!$E$49,0)) -> 57625 | G49: =IF(INTRO!$E$50="","",ROUND($D49*INTRO!$E$50,0)) -> 92725 | H49: 0 | I49: 0 | J49: 1 | K49: 2 | M49: =IF(INTRO!$E$37="Endémique",IF($H49>0,IF($H49=4,"Inconnu",IF($H49=99,"Interrompu",$D49)),0),"Non requis") -> 0 | N49: =IF(INTRO!$E$39="Endémique", IF($I49>0, IF($I49=4,"Inconnu",IF($I49=99,"Interrompu",$D49)), 0),"Non requis") -> 0 | O49: =IF(INTRO!$E$41="Endémique", IF(AND($J49>1,$J49<5), IF($J49=4, "Inconnu", E49+F49), 0),"Non requis") -> 0 | P49: =IF(INTRO!$E$43="Endémique", IF(AND($K49>0,$K49<5), IF($K49=4,"Inconnu", IF($K49=1, $F49*0.33, IF($K49=2, $F49*0.5+$G49*0.2, SUM(F49:G49)))), 0),"Non requis") -> 47357.5 | Q49: 0 | R49: 0 | S49: 0 | T49: 1 | Y49: 10692 | Z49: Bol | AE49: 1 | AF49: 0 | AG49: 1
A50: =IF(INTRO!$E$33<>0,INTRO!$E$33, " ") -> Chad | B50: Lac | C50: Isserom | D50: 64782 | E50: =IF(INTRO!$E$48="","",ROUND($D50*INTRO!$E$48,0)) -> 10041 | F50: =IF(INTRO!$E$49="","",ROUND($D50*INTRO!$E$49,0)) -> 19888 | G50: =IF(INTRO!$E$50="","",ROUND($D50*INTRO!$E$50,0)) -> 32002 | H50: 0 | I50: 0 | J50: 1 | K50: 1 | M50: =IF(INTRO!$E$37="Endémique",IF($H50>0,IF($H50=4,"Inconnu",IF($H50=99,"Interrompu",$D50)),0),"Non requis") -> 0 | N50: =IF(INTRO!$E$39="Endémique", IF($I50>0, IF($I50=4,"Inconnu",IF($I50=99,"Interrompu",$D50)), 0),"Non requis") -> 0 | O50: =IF(INTRO!$E$41="Endémique", IF(AND($J50>1,$J50<5), IF($J50=4, "Inconnu", E50+F50), 0),"Non requis") -> 0 | P50: =IF(INTRO!$E$43="Endémique", IF(AND($K50>0,$K50<5), IF($K50=4,"Inconnu", IF($K50=1, $F50*0.33, IF($K50=2, $F50*0.5+$G50*0.2, SUM(F50:G50)))), 0),"Non requis") -> 6563.04 | Q50: 0 | R50: 0 | S50: 0 | T50: 1 | Y50: 10749 | Z50: Isserom | AE50: 0 | AF50: 1 | AG50: 1
A51: =IF(INTRO!$E$33<>0,INTRO!$E$33, " ") -> Chad | B51: Lac | C51: Kouloudia | D51: 78711 | E51: =IF(INTRO!$E$48="","",ROUND($D51*INTRO!$E$48,0)) -> 12200 | F51: =IF(INTRO!$E$49="","",ROUND($D51*INTRO!$E$49,0)) -> 24164 | G51: =IF(INTRO!$E$50="","",ROUND($D51*INTRO!$E$50,0)) -> 38883 | H51: 0 | I51: 0 | J51: 1 | K51: 2 | M51: =IF(INTRO!$E$37="Endémique",IF($H51>0,IF($H51=4,"Inconnu",IF($H51=99,"Interrompu",$D51)),0),"Non requis") -> 0 | N51: =IF(INTRO!$E$39="Endémique", IF($I51>0, IF($I51=4,"Inconnu",IF($I51=99,"Interrompu",$D51)), 0),"Non requis") -> 0 | O51: =IF(INTRO!$E$41="Endémique", IF(AND($J51>1,$J51<5), IF($J51=4, "Inconnu", E51+F51), 0),"Non requis") -> 0 | P51: =IF(INTRO!$E$43="Endémique", IF(AND($K51>0,$K51<5), IF($K51=4,"Inconnu", IF($K51=1, $F51*0.33, IF($K51=2, $F51*0.5+$G51*0.2, SUM(F51:G51)))), 0),"Non requis") -> 19858.6 | Q51: 0 | R51: 0 | S51: 0 | T51: 1 | Y51: 10693 | Z51: Kouloudia | AE51: 1 | AF51: 0 | AG51: 1
A52: =IF(INTRO!$E$33<>0,INTRO!$E$33, " ") -> Chad | B52: Lac | C52: Liwa | D52: 58801 | E52: =IF(INTRO!$E$48="","",ROUND($D52*INTRO!$E$48,0)) -> 9114 | F52: =IF(INTRO!$E$49="","",ROUND($D52*INTRO!$E$49,0)) -> 18052 | G52: =IF(INTRO!$E$50="","",ROUND($D52*INTRO!$E$50,0)) -> 29048 | H52: 0 | I52: 0 | J52: 1 | K52: 1 | M52: =IF(INTRO!$E$37="Endémique",IF($H52>0,IF($H52=4,"Inconnu",IF($H52=99,"Interrompu",$D52)),0),"Non requis") -> 0 | N52: =IF(INTRO!$E$39="Endémique", IF($I52>0, IF($I52=4,"Inconnu",IF($I52=99,"Interrompu",$D52)), 0),"Non requis") -> 0 | O52: =IF(INTRO!$E$41="Endémique", IF(AND($J52>1,$J52<5), IF($J52=4, "Inconnu", E52+F52), 0),"Non requis") -> 0 | P52: =IF(INTRO!$E$43="Endémique", IF(AND($K52>0,$K52<5), IF($K52=4,"Inconnu", IF($K52=1, $F52*0.33, IF($K52=2, $F52*0.5+$G52*0.2, SUM(F52:G52)))), 0),"Non requis") -> 5957.16 | Q52: 0 | R52: 0 | S52: 0 | T52: 1 | Y52: 10694 | Z52: Liwa | AE52: 0 | AF52: 1 | AG52: 1
A53: =IF(INTRO!$E$33<>0,INTRO!$E$33, " ") -> Chad | B53: Lac | C53: Ngouri | D53: 175152 | E53: =IF(INTRO!$E$48="","",ROUND($D53*INTRO!$E$48,0)) -> 27149 | F53: =IF(INTRO!$E$49="","",ROUND($D53*INTRO!$E$49,0)) -> 53772 | G53: =IF(INTRO!$E$50="","",ROUND($D53*INTRO!$E$50,0)) -> 86525 | H53: 0 | I53: 0 | J53: 1 | K53: 1 | M53: =IF(INTRO!$E$37="Endémique",IF($H53>0,IF($H53=4,"Inconnu",IF($H53=99,"Interrompu",$D53)),0),"Non requis") -> 0 | N53: =IF(INTRO!$E$39="Endémique", IF($I53>0, IF($I53=4,"Inconnu",IF($I53=99,"Interrompu",$D53)), 0),"Non requis") -> 0 | O53: =IF(INTRO!$E$41="Endémique", IF(AND($J53>1,$J53<5), IF($J53=4, "Inconnu", E53+F53), 0),"Non requis") -> 0 | P53: =IF(INTRO!$E$43="Endémique", IF(AND($K53>0,$K53<5), IF($K53=4,"Inconnu", IF($K53=1, $F53*0.33, IF($K53=2, $F53*0.5+$G53*0.2, SUM(F53:G53)))), 0),"Non requis") -> 17744.76 | Q53: 0 | R53: 0 | S53: 0 | T53: 1 | Y53: 10695 | Z53: Ngouri | AE53: 0 | AF53: 1 | AG53: 1
A54: =IF(INTRO!$E$33<>0,INTRO!$E$33, " ") -> Chad | B54: Logone Occidental | C54: Benamar | D54: 136163 | E54: =IF(INTRO!$E$48="","",ROUND($D54*INTRO!$E$48,0)) -> 21105 | F54: =IF(INTRO!$E$49="","",ROUND($D54*INTRO!$E$49,0)) -> 41802 | G54: =IF(INTRO!$E$50="","",ROUND($D54*INTRO!$E$50,0)) -> 67265 | H54: 1 | I54: 1 | J54: 1 | K54: 2 | M54: =IF(INTRO!$E$37="Endémique",IF($H54>0,IF($H54=4,"Inconnu",IF($H54=99,"Interrompu",$D54)),0),"Non requis") -> 136163 | N54: =IF(INTRO!$E$39="Endémique", IF($I54>0, IF($I54=4,"Inconnu",IF($I54=99,"Interrompu",$D54)), 0),"Non requis") -> 136163 | O54: =IF(INTRO!$E$41="Endémique", IF(AND($J54>1,$J54<5), IF($J54=4, "Inconnu", E54+F54), 0),"Non requis") -> 0 | P54: =IF(INTRO!$E$43="Endémique", IF(AND($K54>0,$K54<5), IF($K54=4,"Inconnu", IF($K54=1, $F54*0.33, IF($K54=2, $F54*0.5+$G54*0.2, SUM(F54:G54)))), 0),"Non requis") -> 34354 | Q54: 1 | R54: 1 | S54: 0 | T54: 0 | Y54: 10765 | Z54: Benamar | AE54: 1 | AF54: 1 | AG54: 2
A55: =IF(INTRO!$E$33<>0,INTRO!$E$33, " ") -> Chad | B55: Logone Occidental | C55: Benoye | D55: 183568 | E55: =IF(INTRO!$E$48="","",ROUND($D55*INTRO!$E$48,0)) -> 28453 | F55: =IF(INTRO!$E$49="","",ROUND($D55*INTRO!$E$49,0)) -> 56355 | G55: =IF(INTRO!$E$50="","",ROUND($D55*INTRO!$E$50,0)) -> 90683 | H55: 1 | I55: 0 | J55: 1 | K55: 2 | M55: =IF(INTRO!$E$37="Endémique",IF($H55>0,IF($H55=4,"Inconnu",IF($H55=99,"Interrompu",$D55)),0),"Non requis") -> 183568 | N55: =IF(INTRO!$E$39="Endémique", IF($I55>0, IF($I55=4,"Inconnu",IF($I55=99,"Interrompu",$D55)), 0),"Non requis") -> 0 | O55: =IF(INTRO!$E$41="Endémique", IF(AND($J55>1,$J55<5), IF($J55=4, "Inconnu", E55+F55), 0),"Non requis") -> 0 | P55: =IF(INTRO!$E$43="Endémique", IF(AND($K55>0,$K55<5), IF($K55=4,"Inconnu", IF($K55=1, $F55*0.33, IF($K55=2, $F55*0.5+$G55*0.2, SUM(F55:G55)))), 0),"Non requis") -> 46314.1 | Q55: 1 | R55: 0 | S55: 0 | T55: 1 | Y55: 10696 | Z55: Benoye | AE55: 1 | AF55: 0 | AG55: 1
A56: =IF(INTRO!$E$33<>0,INTRO!$E$33, " ") -> Chad | B56: Logone Occidental | C56: Laokassy | D56: 197273 | E56: =IF(INTRO!$E$48="","",ROUND($D56*INTRO!$E$48,0)) -> 30577 | F56: =IF(INTRO!$E$49="","",ROUND($D56*INTRO!$E$49,0)) -> 60563 | G56: =IF(INTRO!$E$50="","",ROUND($D56*INTRO!$E$50,0)) -> 97453 | H56: 1 | I56: 1 | J56: 1 | K56: 2 | M56: =IF(INTRO!$E$37="Endémique",IF($H56>0,IF($H56=4,"Inconnu",IF($H56=99,"Interrompu",$D56)),0),"Non requis") -> 197273 | N56: =IF(INTRO!$E$39="Endémique", IF($I56>0, IF($I56=4,"Inconnu",IF($I56=99,"Interrompu",$D56)), 0),"Non requis") -> 197273 | O56: =IF(INTRO!$E$41="Endémique", IF(AND($J56>1,$J56<5), IF($J56=4, "Inconnu", E56+F56), 0),"Non requis") -> 0 | P56: =IF(INTRO!$E$43="Endémique", IF(AND($K56>0,$K56<5), IF($K56=4,"Inconnu", IF($K56=1, $F56*0.33, IF($K56=2, $F56*0.5+$G56*0.2, SUM(F56:G56)))), 0),"Non requis") -> 49772.1 | Q56: 1 | R56: 1 | S56: 0 | T56: 1 | Y56: 10697 | Z56: Laokassy | AE56: 1 | AF56: 0 | AG56: 1
A57: =IF(INTRO!$E$33<>0,INTRO!$E$33, " ") -> Chad | B57: Logone Occidental | C57: Moundou | D57: 329547 | E57: =IF(INTRO!$E$48="","",ROUND($D57*INTRO!$E$48,0)) -> 51080 | F57: =IF(INTRO!$E$49="","",ROUND($D57*INTRO!$E$49,0)) -> 101171 | G57: =IF(INTRO!$E$50="","",ROUND($D57*INTRO!$E$50,0)) -> 162796 | H57: 1 | I57: 1 | J57: 1 | K57: 1 | M57: =IF(INTRO!$E$37="Endémique",IF($H57>0,IF($H57=4,"Inconnu",IF($H57=99,"Interrompu",$D57)),0),"Non requis") -> 329547 | N57: =IF(INTRO!$E$39="Endémique", IF($I57>0, IF($I57=4,"Inconnu",IF($I57=99,"Interrompu",$D57)), 0),"Non requis") -> 329547 | O57: =IF(INTRO!$E$41="Endémique", IF(AND($J57>1,$J57<5), IF($J57=4, "Inconnu", E57+F57), 0),"Non requis") -> 0 | P57: =IF(INTRO!$E$43="Endémique", IF(AND($K57>0,$K57<5), IF($K57=4,"Inconnu", IF($K57=1, $F57*0.33, IF($K57=2, $F57*0.5+$G57*0.2, SUM(F57:G57)))), 0),"Non requis") -> 33386.43 | Q57: 1 | R57: 1 | S57: 0 | T57: 0 | Y57: 10698 | Z57: Moundou | AE57: 0 | AF57: 0 | AG57: 0
A58: =IF(INTRO!$E$33<>0,INTRO!$E$33, " ") -> Chad | B58: Logone Orientlal | C58: Baibokoum | D58: 87162 | E58: =IF(INTRO!$E$48="","",ROUND($D58*INTRO!$E$48,0)) -> 13510 | F58: =IF(INTRO!$E$49="","",ROUND($D58*INTRO!$E$49,0)) -> 26759 | G58: =IF(INTRO!$E$50="","",ROUND($D58*INTRO!$E$50,0)) -> 43058 | H58: 1 | I58: 1 | J58: 1 | K58: 2 | M58: =IF(INTRO!$E$37="Endémique",IF($H58>0,IF($H58=4,"Inconnu",IF($H58=99,"Interrompu",$D58)),0),"Non requis") -> 87162 | N58: =IF(INTRO!$E$39="Endémique", IF($I58>0, IF($I58=4,"Inconnu",IF($I58=99,"Interrompu",$D58)), 0),"Non requis") -> 87162 | O58: =IF(INTRO!$E$41="Endémique", IF(AND($J58>1,$J58<5), IF($J58=4, "Inconnu", E58+F58), 0),"Non requis") -> 0 | P58: =IF(INTRO!$E$43="Endémique", IF(AND($K58>0,$K58<5), IF($K58=4,"Inconnu", IF($K58=1, $F58*0.33, IF($K58=2, $F58*0.5+$G58*0.2, SUM(F58:G58)))), 0),"Non requis") -> 21991.1 | Q58: 1 | R58: 1 | S58: 0 | T58: 0 | Y58: 10766 | Z58: Baibokoum | AE58: 1 | AF58: 1 | AG58: 2
A59: =IF(INTRO!$E$33<>0,INTRO!$E$33, " ") -> Chad | B59: Logone Orientlal | C59: Bebedja | D59: 182381 | E59: =IF(INTRO!$E$48="","",ROUND($D59*INTRO!$E$48,0)) -> 28269 | F59: =IF(INTRO!$E$49="","",ROUND($D59*INTRO!$E$49,0)) -> 55991 | G59: =IF(INTRO!$E$50="","",ROUND($D59*INTRO!$E$50,0)) -> 90096 | H59: 1 | I59: 1 | J59: 1 | K59: 2 | M59: =IF(INTRO!$E$37="Endémique",IF($H59>0,IF($H59=4,"Inconnu",IF($H59=99,"Interrompu",$D59)),0),"Non requis") -> 182381 | N59: =IF(INTRO!$E$39="Endémique", IF($I59>0, IF($I59=4,"Inconnu",IF($I59=99,"Interrompu",$D59)), 0),"Non requis") -> 182381 | O59: =IF(INTRO!$E$41="Endémique", IF(AND($J59>1,$J59<5), IF($J59=4, "Inconnu", E59+F59), 0),"Non requis") -> 0 | P59: =IF(INTRO!$E$43="Endémique", IF(AND($K59>0,$K59<5), IF($K59=4,"Inconnu", IF($K59=1, $F59*0.33, IF($K59=2, $F59*0.5+$G59*0.2, SUM(F59:G59)))), 0),"Non requis") -> 46014.7 | Q59: 1 | R59: 1 | S59: 0 | T59: 1 | Y59: 10699 | Z59: Bebedja | AE59: 1 | AF59: 0 | AG59: 1
A60: =IF(INTRO!$E$33<>0,INTRO!$E$33, " ") -> Chad | B60: Logone Orientlal | C60: Beboto | D60: 99801 | E60: =IF(INTRO!$E$48="","",ROUND($D60*INTRO!$E$48,0)) -> 15469 | F60: =IF(INTRO!$E$49="","",ROUND($D60*INTRO!$E$49,0)) -> 30639 | G60: =IF(INTRO!$E$50="","",ROUND($D60*INTRO!$E$50,0)) -> 49302 | H60: 1 | I60: 1 | J60: 1 | K60: 2 | M60: =IF(INTRO!$E$37="Endémique",IF($H60>0,IF($H60=4,"Inconnu",IF($H60=99,"Interrompu",$D60)),0),"Non requis") -> 99801 | N60: =IF(INTRO!$E$39="Endémique", IF($I60>0, IF($I60=4,"Inconnu",IF($I60=99,"Interrompu",$D60)), 0),"Non requis") -> 99801 | O60: =IF(INTRO!$E$41="Endémique", IF(AND($J60>1,$J60<5), IF($J60=4, "Inconnu", E60+F60), 0),"Non requis") -> 0 | P60: =IF(INTRO!$E$43="Endémique", IF(AND($K60>0,$K60<5), IF($K60=4,"Inconnu", IF($K60=1, $F60*0.33, IF($K60=2, $F60*0.5+$G60*0.2, SUM(F60:G60)))), 0),"Non requis") -> 25179.9 | Q60: 1 | R60: 1 | S60: 0 | T60: 1 | Y60: 10700 | Z60: Beboto | AE60: 1 | AF60: 0 | AG60: 1
A61: =IF(INTRO!$E$33<>0,INTRO!$E$33, " ") -> Chad | B61: Logone Orientlal | C61: Bessao | D61: 176161 | E61: =IF(INTRO!$E$48="","",ROUND($D61*INTRO!$E$48,0)) -> 27305 | F61: =IF(INTRO!$E$49="","",ROUND($D61*INTRO!$E$49,0)) -> 54081 | G61: =IF(INTRO!$E$50="","",ROUND($D61*INTRO!$E$50,0)) -> 87024 | H61: 1 | I61: 1 | J61: 1 | K61: 2 | M61: =IF(INTRO!$E$37="Endémique",IF($H61>0,IF($H61=4,"Inconnu",IF($H61=99,"Interrompu",$D61)),0),"Non requis") -> 176161 | N61: =IF(INTRO!$E$39="Endémique", IF($I61>0, IF($I61=4,"Inconnu",IF($I61=99,"Interrompu",$D61)), 0),"Non requis") -> 176161 | O61: =IF(INTRO!$E$41="Endémique", IF(AND($J61>1,$J61<5), IF($J61=4, "Inconnu", E61+F61), 0),"Non requis") -> 0 | P61: =IF(INTRO!$E$43="Endémique", IF(AND($K61>0,$K61<5), IF($K61=4,"Inconnu", IF($K61=1, $F61*0.33, IF($K61=2, $F61*0.5+$G61*0.2, SUM(F61:G61)))), 0),"Non requis") -> 44445.3 | Q61: 1 | R61: 1 | S61: 0 | T61: 1 | Y61: 10701 | Z61: Bessao | AE61: 1 | AF61: 0 | AG61: 1
A62: =IF(INTRO!$E$33<>0,INTRO!$E$33, " ") -> Chad | B62: Logone Orientlal | C62: Bodo | D62: 99680 | E62: =IF(INTRO!$E$48="","",ROUND($D62*INTRO!$E$48,0)) -> 15450 | F62: =IF(INTRO!$E$49="","",ROUND($D62*INTRO!$E$49,0)) -> 30602 | G62: =IF(INTRO!$E$50="","",ROUND($D62*INTRO!$E$50,0)) -> 49242 | H62: 1 | I62: 0 | J62: 1 | K62: 2 | M62: =IF(INTRO!$E$37="Endémique",IF($H62>0,IF($H62=4,"Inconnu",IF($H62=99,"Interrompu",$D62)),0),"Non requis") -> 99680 | N62: =IF(INTRO!$E$39="Endémique", IF($I62>0, IF($I62=4,"Inconnu",IF($I62=99,"Interrompu",$D62)), 0),"Non requis") -> 0 | O62: =IF(INTRO!$E$41="Endémique", IF(AND($J62>1,$J62<5), IF($J62=4, "Inconnu", E62+F62), 0),"Non requis") -> 0 | P62: =IF(INTRO!$E$43="Endémique", IF(AND($K62>0,$K62<5), IF($K62=4,"Inconnu", IF($K62=1, $F62*0.33, IF($K62=2, $F62*0.5+$G62*0.2, SUM(F62:G62)))), 0),"Non requis") -> 25149.4 | Q62: 1 | R62: 0 | S62: 0 | T62: 0 | Y62: 10702 | Z62: Bodo | AE62: 0 | AF62: 1 | AG62: 1
A63: =IF(INTRO!$E$33<>0,INTRO!$E$33, " ") -> Chad | B63: Logone Orientlal | C63: Doba | D63: 221558 | E63: =IF(INTRO!$E$48="","",ROUND($D63*INTRO!$E$48,0)) -> 34341 | F63: =IF(INTRO!$E$49="","",ROUND($D63*INTRO!$E$49,0)) -> 68018 | G63: =IF(INTRO!$E$50="","",ROUND($D63*INTRO!$E$50,0)) -> 109450 | H63: 1 | I63: 1 | J63: 1 | K63: 1 | M63: =IF(INTRO!$E$37="Endémique",IF($H63>0,IF($H63=4,"Inconnu",IF($H63=99,"Interrompu",$D63)),0),"Non requis") -> 221558 | N63: =IF(INTRO!$E$39="Endémique", IF($I63>0, IF($I63=4,"Inconnu",IF($I63=99,"Interrompu",$D63)), 0),"Non requis") -> 221558 | O63: =IF(INTRO!$E$41="Endémique", IF(AND($J63>1,$J63<5), IF($J63=4, "Inconnu", E63+F63), 0),"Non requis") -> 0 | P63: =IF(INTRO!$E$43="Endémique", IF(AND($K63>0,$K63<5), IF($K63=4,"Inconnu", IF($K63=1, $F63*0.33, IF($K63=2, $F63*0.5+$G63*0.2, SUM(F63:G63)))), 0),"Non requis") -> 22445.94 | Q63: 1 | R63: 1 | S63: 0 | T63: 0 | Y63: 10703 | Z63: Doba | AE63: 0 | AF63: 0 | AG63: 0
A64: =IF(INTRO!$E$33<>0,INTRO!$E$33, " ") -> Chad | B64: Logone Orientlal | C64: DONIA | D64: 84977 | E64: =IF(INTRO!$E$48="","",ROUND($D64*INTRO!$E$48,0)) -> 13171 | F64: =IF(INTRO!$E$49="","",ROUND($D64*INTRO!$E$49,0)) -> 26088 | G64: =IF(INTRO!$E$50="","",ROUND($D64*INTRO!$E$50,0)) -> 41979 | H64: 1 | I64: 1 | J64: 1 | K64: 2 | M64: =IF(INTRO!$E$37="Endémique",IF($H64>0,IF($H64=4,"Inconnu",IF($H64=99,"Interrompu",$D64)),0),"Non requis") -> 84977 | N64: =IF(INTRO!$E$39="Endémique", IF($I64>0, IF($I64=4,"Inconnu",IF($I64=99,"Interrompu",$D64)), 0),"Non requis") -> 84977 | O64: =IF(INTRO!$E$41="Endémique", IF(AND($J64>1,$J64<5), IF($J64=4, "Inconnu", E64+F64), 0),"Non requis") -> 0 | P64: =IF(INTRO!$E$43="Endémique", IF(AND($K64>0,$K64<5), IF($K64=4,"Inconnu", IF($K64=1, $F64*0.33, IF($K64=2, $F64*0.5+$G64*0.2, SUM(F64:G64)))), 0),"Non requis") -> 21439.8 | Q64: 1 | R64: 1 | S64: 0 | T64: 0 | Y64: 10767 | Z64: DONIA | AE64: 1 | AF64: 1 | AG64: 2
A65: =IF(INTRO!$E$33<>0,INTRO!$E$33, " ") -> Chad | B65: Logone Orientlal | C65: Goré | D65: 163015 | E65: =IF(INTRO!$E$48="","",ROUND($D65*INTRO!$E$48,0)) -> 25267 | F65: =IF(INTRO!$E$49="","",ROUND($D65*INTRO!$E$49,0)) -> 50046 | G65: =IF(INTRO!$E$50="","",ROUND($D65*INTRO!$E$50,0)) -> 80529 | H65: 1 | I65: 1 | J65: 1 | K65: 2 | M65: =IF(INTRO!$E$37="Endémique",IF($H65>0,IF($H65=4,"Inconnu",IF($H65=99,"Interrompu",$D65)),0),"Non requis") -> 163015 | N65: =IF(INTRO!$E$39="Endémique", IF($I65>0, IF($I65=4,"Inconnu",IF($I65=99,"Interrompu",$D65)), 0),"Non requis") -> 163015 | O65: =IF(INTRO!$E$41="Endémique", IF(AND($J65>1,$J65<5), IF($J65=4, "Inconnu", E65+F65), 0),"Non requis") -> 0 | P65: =IF(INTRO!$E$43="Endémique", IF(AND($K65>0,$K65<5), IF($K65=4,"Inconnu", IF($K65=1, $F65*0.33, IF($K65=2, $F65*0.5+$G65*0.2, SUM(F65:G65)))), 0),"Non requis") -> 41128.8 | Q65: 1 | R65: 1 | S65: 0 | T65: 1 | Y65: 10704 | Z65: Goré | AE65: 1 | AF65: 0 | AG65: 1
A66: =IF(INTRO!$E$33<>0,INTRO!$E$33, " ") -> Chad | B66: Logone Orientlal | C66: Kara | D66: 63318 | E66: =IF(INTRO!$E$48="","",ROUND($D66*INTRO!$E$48,0)) -> 9814 | F66: =IF(INTRO!$E$49="","",ROUND($D66*INTRO!$E$49,0)) -> 19439 | G66: =IF(INTRO!$E$50="","",ROUND($D66*INTRO!$E$50,0)) -> 31279 | H66: 1 | I66: 1 | J66: 1 | K66: 1 | M66: =IF(INTRO!$E$37="Endémique",IF($H66>0,IF($H66=4,"Inconnu",IF($H66=99,"Interrompu",$D66)),0),"Non requis") -> 63318 | N66: =IF(INTRO!$E$39="Endémique", IF($I66>0, IF($I66=4,"Inconnu",IF($I66=99,"Interrompu",$D66)), 0),"Non requis") -> 63318 | O66: =IF(INTRO!$E$41="Endémique", IF(AND($J66>1,$J66<5), IF($J66=4, "Inconnu", E66+F66), 0),"Non requis") -> 0 | P66: =IF(INTRO!$E$43="Endémique", IF(AND($K66>0,$K66<5), IF($K66=4,"Inconnu", IF($K66=1, $F66*0.33, IF($K66=2, $F66*0.5+$G66*0.2, SUM(F66:G66)))), 0),"Non requis") -> 6414.87 | Q66: 1 | R66: 1 | S66: 0 | T66: 0 | Y66: 10768 | Z66: Kara | AE66: 0 | AF66: 0 | AG66: 0
A67: =IF(INTRO!$E$33<>0,INTRO!$E$33, " ") -> Chad | B67: Logone Orientlal | C67: Larmanaye | D67: 81251 | E67: =IF(INTRO!$E$48="","",ROUND($D67*INTRO!$E$48,0)) -> 12594 | F67: =IF(INTRO!$E$49="","",ROUND($D67*INTRO!$E$49,0)) -> 24944 | G67: =IF(INTRO!$E$50="","",ROUND($D67*INTRO!$E$50,0)) -> 40138 | H67: 1 | I67: 1 | J67: 2 | K67: 2 | M67: =IF(INTRO!$E$37="Endémique",IF($H67>0,IF($H67=4,"Inconnu",IF($H67=99,"Interrompu",$D67)),0),"Non requis") -> 81251 | N67: =IF(INTRO!$E$39="Endémique", IF($I67>0, IF($I67=4,"Inconnu",IF($I67=99,"Interrompu",$D67)), 0),"Non requis") -> 81251 | O67: =IF(INTRO!$E$41="Endémique", IF(AND($J67>1,$J67<5), IF($J67=4, "Inconnu", E67+F67), 0),"Non requis") -> 37538 | P67: =IF(INTRO!$E$43="Endémique", IF(AND($K67>0,$K67<5), IF($K67=4,"Inconnu", IF($K67=1, $F67*0.33, IF($K67=2, $F67*0.5+$G67*0.2, SUM(F67:G67)))), 0),"Non requis") -> 20499.6 | Q67: 1 | R67: 1 | S67: 1 | T67: 1 | Y67: 10705 | Z67: Larmanaye | AE67: 1 | AF67: 0 | AG67: 1
A68: =IF(INTRO!$E$33<>0,INTRO!$E$33, " ") -> Chad | B68: Mandoul | C68: Bedaya | D68: 105095 | E68: =IF(INTRO!$E$48="","",ROUND($D68*INTRO!$E$48,0)) -> 16290 | F68: =IF(INTRO!$E$49="","",ROUND($D68*INTRO!$E$49,0)) -> 32264 | G68: =IF(INTRO!$E$50="","",ROUND($D68*INTRO!$E$50,0)) -> 51917 | H68: 1 | I68: 1 | J68: 1 | K68: 1 | M68: =IF(INTRO!$E$37="Endémique",IF($H68>0,IF($H68=4,"Inconnu",IF($H68=99,"Interrompu",$D68)),0),"Non requis") -> 105095 | N68: =IF(INTRO!$E$39="Endémique", IF($I68>0, IF($I68=4,"Inconnu",IF($I68=99,"Interrompu",$D68)), 0),"Non requis") -> 105095 | O68: =IF(INTRO!$E$41="Endémique", IF(AND($J68>1,$J68<5), IF($J68=4, "Inconnu", E68+F68), 0),"Non requis") -> 0 | P68: =IF(INTRO!$E$43="Endémique", IF(AND($K68>0,$K68<5), IF($K68=4,"Inconnu", IF($K68=1, $F68*0.33, IF($K68=2, $F68*0.5+$G68*0.2, SUM(F68:G68)))), 0),"Non requis") -> 10647.12 | Q68: 1 | R68: 1 | S68: 0 | T68: 0 | Y68: 10769 | Z68: Bedaya | AE68: 0 | AF68: 0 | AG68: 0
A69: =IF(INTRO!$E$33<>0,INTRO!$E$33, " ") -> Chad | B69: Mandoul | C69: Bedjondo | D69: 122403 | E69: =IF(INTRO!$E$48="","",ROUND($D69*INTRO!$E$48,0)) -> 18972 | F69: =IF(INTRO!$E$49="","",ROUND($D69*INTRO!$E$49,0)) -> 37578 | G69: =IF(INTRO!$E$50="","",ROUND($D69*INTRO!$E$50,0)) -> 60467 | H69: 0 | I69: 1 | J69: 0 | K69: 1 | M69: =IF(INTRO!$E$37="Endémique",IF($H69>0,IF($H69=4,"Inconnu",IF($H69=99,"Interrompu",$D69)),0),"Non requis") -> 0 | N69: =IF(INTRO!$E$39="Endémique", IF($I69>0, IF($I69=4,"Inconnu",IF($I69=99,"Interrompu",$D69)), 0),"Non requis") -> 122403 | O69: =IF(INTRO!$E$41="Endémique", IF(AND($J69>1,$J69<5), IF($J69=4, "Inconnu", E69+F69), 0),"Non requis") -> 0 | P69: =IF(INTRO!$E$43="Endémique", IF(AND($K69>0,$K69<5), IF($K69=4,"Inconnu", IF($K69=1, $F69*0.33, IF($K69=2, $F69*0.5+$G69*0.2, SUM(F69:G69)))), 0),"Non requis") -> 12400.74 | Q69: 0 | R69: 1 | S69: 0 | T69: 0 | Y69: 10706 | Z69: Bedjondo | AE69: 0 | AF69: 0 | AG69: 0
A70: =IF(INTRO!$E$33<>0,INTRO!$E$33, " ") -> Chad | B70: Mandoul | C70: Bekourou | D70: 89353 | E70: =IF(INTRO!$E$48="","",ROUND($D70*INTRO!$E$48,0)) -> 13850 | F70: =IF(INTRO!$E$49="","",ROUND($D70*INTRO!$E$49,0)) -> 27431 | G70: =IF(INTRO!$E$50="","",ROUND($D70*INTRO!$E$50,0)) -> 44140 | H70: 0 | I70: 1 | J70: 0 | K70: 0 | M70: =IF(INTRO!$E$37="Endémique",IF($H70>0,IF($H70=4,"Inconnu",IF($H70=99,"Interrompu",$D70)),0),"Non requis") -> 0 | N70: =IF(INTRO!$E$39="Endémique", IF($I70>0, IF($I70=4,"Inconnu",IF($I70=99,"Interrompu",$D70)), 0),"Non requis") -> 89353 | O70: =IF(INTRO!$E$41="Endémique", IF(AND($J70>1,$J70<5), IF($J70=4, "Inconnu", E70+F70), 0),"Non requis") -> 0 | P70: =IF(INTRO!$E$43="Endémique", IF(AND($K70>0,$K70<5), IF($K70=4,"Inconnu", IF($K70=1, $F70*0.33, IF($K70=2, $F70*0.5+$G70*0.2, SUM(F70:G70)))), 0),"Non requis") -> 0 | Q70: 0 | R70: 1 | S70: 0 | T70: 0 | Y70: 10770 | Z70: Bekourou | AE70: 0 | AF70: 0 | AG70: 0
A71: =IF(INTRO!$E$33<>0,INTRO!$E$33, " ") -> Chad | B71: Mandoul | C71: Bouna | D71: 105095 | E71: =IF(INTRO!$E$48="","",ROUND($D71*INTRO!$E$48,0)) -> 16290 | F71: =IF(INTRO!$E$49="","",ROUND($D71*INTRO!$E$49,0)) -> 32264 | G71: =IF(INTRO!$E$50="","",ROUND($D71*INTRO!$E$50,0)) -> 51917 | H71: 0 | I71: 1 | J71: 1 | K71: 0 | M71: =IF(INTRO!$E$37="Endémique",IF($H71>0,IF($H71=4,"Inconnu",IF($H71=99,"Interrompu",$D71)),0),"Non requis") -> 0 | N71: =IF(INTRO!$E$39="Endémique", IF($I71>0, IF($I71=4,"Inconnu",IF($I71=99,"Interrompu",$D71)), 0),"Non requis") -> 105095 | O71: =IF(INTRO!$E$41="Endémique", IF(AND($J71>1,$J71<5), IF($J71=4, "Inconnu", E71+F71), 0),"Non requis") -> 0 | P71: =IF(INTRO!$E$43="Endémique", IF(AND($K71>0,$K71<5), IF($K71=4,"Inconnu", IF($K71=1, $F71*0.33, IF($K71=2, $F71*0.5+$G71*0.2, SUM(F71:G71)))), 0),"Non requis") -> 0 | Q71: 0 | R71: 1 | S71: 0 | T71: 0 | Y71: 10707 | Z71: Bouna | AE71: 0 | AF71: 0 | AG71: 0
A72: =IF(INTRO!$E$33<>0,INTRO!$E$33, " ") -> Chad | B72: Mandoul | C72: Goundi | D72: 200203 | E72: =IF(INTRO!$E$48="","",ROUND($D72*INTRO!$E$48,0)) -> 31031 | F72: =IF(INTRO!$E$49="","",ROUND($D72*INTRO!$E$49,0)) -> 61462 | G72: =IF(INTRO!$E$50="","",ROUND($D72*INTRO!$E$50,0)) -> 98900 | H72: 0 | I72: 0 | J72: 1 | K72: 1 | M72: =IF(INTRO!$E$37="Endémique",IF($H72>0,IF($H72=4,"Inconnu",IF($H72=99,"Interrompu",$D72)),0),"Non requis") -> 0 | N72: =IF(INTRO!$E$39="Endémique", IF($I72>0, IF($I72=4,"Inconnu",IF($I72=99,"Interrompu",$D72)), 0),"Non requis") -> 0 | O72: =IF(INTRO!$E$41="Endémique", IF(AND($J72>1,$J72<5), IF($J72=4, "Inconnu", E72+F72), 0),"Non requis") -> 0 | P72: =IF(INTRO!$E$43="Endémique", IF(AND($K72>0,$K72<5), IF($K72=4,"Inconnu", IF($K72=1, $F72*0.33, IF($K72=2, $F72*0.5+$G72*0.2, SUM(F72:G72)))), 0),"Non requis") -> 20282.46 | Q72: 0 | R72: 0 | S72: 0 | T72: 1 | Y72: 10708 | Z72: Goundi | AE72: 0 | AF72: 1 | AG72: 1
A73: =IF(INTRO!$E$33<>0,INTRO!$E$33, " ") -> Chad | B73: Mandoul | C73: Koumra | D73: 237304 | E73: =IF(INTRO!$E$48="","",ROUND($D73*INTRO!$E$48,0)) -> 36782 | F73: =IF(INTRO!$E$49="","",ROUND($D73*INTRO!$E$49,0)) -> 72852 | G73: =IF(INTRO!$E$50="","",ROUND($D73*INTRO!$E$50,0)) -> 117228 | H73: 1 | I73: 1 | J73: 1 | K73: 1 | M73: =IF(INTRO!$E$37="Endémique",IF($H73>0,IF($H73=4,"Inconnu",IF($H73=99,"Interrompu",$D73)),0),"Non requis") -> 237304 | N73: =IF(INTRO!$E$39="Endémique", IF($I73>0, IF($I73=4,"Inconnu",IF($I73=99,"Interrompu",$D73)), 0),"Non requis") -> 237304 | O73: =IF(INTRO!$E$41="Endémique", IF(AND($J73>1,$J73<5), IF($J73=4, "Inconnu", E73+F73), 0),"Non requis") -> 0 | P73: =IF(INTRO!$E$43="Endémique", IF(AND($K73>0,$K73<5), IF($K73=4,"Inconnu", IF($K73=1, $F73*0.33, IF($K73=2, $F73*0.5+$G73*0.2, SUM(F73:G73)))), 0),"Non requis") -> 24041.16 | Q73: 1 | R73: 1 | S73: 0 | T73: 0 | Y73: 10709 | Z73: Koumra | AE73: 0 | AF73: 0 | AG73: 0
A74: =IF(INTRO!$E$33<>0,INTRO!$E$33, " ") -> Chad | B74: Mandoul | C74: Moissala | D74: 198492 | E74: =IF(INTRO!$E$48="","",ROUND($D74*INTRO!$E$48,0)) -> 30766 | F74: =IF(INTRO!$E$49="","",ROUND($D74*INTRO!$E$49,0)) -> 60937 | G74: =IF(INTRO!$E$50="","",ROUND($D74*INTRO!$E$50,0)) -> 98055 | H74: 0 | I74: 1 | J74: 0 | K74: 0 | M74: =IF(INTRO!$E$37="Endémique",IF($H74>0,IF($H74=4,"Inconnu",IF($H74=99,"Interrompu",$D74)),0),"Non requis") -> 0 | N74: =IF(INTRO!$E$39="Endémique", IF($I74>0, IF($I74=4,"Inconnu",IF($I74=99,"Interrompu",$D74)), 0),"Non requis") -> 198492 | O74: =IF(INTRO!$E$41="Endémique", IF(AND($J74>1,$J74<5), IF($J74=4, "Inconnu", E74+F74), 0),"Non requis") -> 0 | P74: =IF(INTRO!$E$43="Endémique", IF(AND($K74>0,$K74<5), IF($K74=4,"Inconnu", IF($K74=1, $F74*0.33, IF($K74=2, $F74*0.5+$G74*0.2, SUM(F74:G74)))), 0),"Non requis") -> 0 | Q74: 0 | R74: 1 | S74: 0 | T74: 0 | Y74: 10710 | Z74: Moissala | AE74: 0 | AF74: 0 | AG74: =+AE74+AF74 -> 0
A75: =IF(INTRO!$E$33<>0,INTRO!$E$33, " ") -> Chad | B75: Mayo Kebbi Est | C75: Bongor | D75: 160702 | E75: =IF(INTRO!$E$48="","",ROUND($D75*INTRO!$E$48,0)) -> 24909 | F75: =IF(INTRO!$E$49="","",ROUND($D75*INTRO!$E$49,0)) -> 49336 | G75: =IF(INTRO!$E$50="","",ROUND($D75*INTRO!$E$50,0)) -> 79387 | H75: 0 | I75: 0 | J75: 1 | K75: 2 | M75: =IF(INTRO!$E$37="Endémique",IF($H75>0,IF($H75=4,"Inconnu",IF($H75=99,"Interrompu",$D75)),0),"Non requis") -> 0 | N75: =IF(INTRO!$E$39="Endémique", IF($I75>0, IF($I75=4,"Inconnu",IF($I75=99,"Interrompu",$D75)), 0),"Non requis") -> 0 | O75: =IF(INTRO!$E$41="Endémique", IF(AND($J75>1,$J75<5), IF($J75=4, "Inconnu", E75+F75), 0),"Non requis") -> 0 | P75: =IF(INTRO!$E$43="Endémique", IF(AND($K75>0,$K75<5), IF($K75=4,"Inconnu", IF($K75=1, $F75*0.33, IF($K75=2, $F75*0.5+$G75*0.2, SUM(F75:G75)))), 0),"Non requis") -> 40545.4 | Q75: 0 | R75: 0 | S75: 0 | T75: 1 | Y75: 10753 | Z75: Bongor | AE75: 1 | AF75: 0 | AG75: 1
A76: =IF(INTRO!$E$33<>0,INTRO!$E$33, " ") -> Chad | B76: Mayo Kebbi Est | C76: Fianga | D76: 145936 | E76: =IF(INTRO!$E$48="","",ROUND($D76*INTRO!$E$48,0)) -> 22620 | F76: =IF(INTRO!$E$49="","",ROUND($D76*INTRO!$E$49,0)) -> 44802 | G76: =IF(INTRO!$E$50="","",ROUND($D76*INTRO!$E$50,0)) -> 72092 | H76: 0 | I76: 1 | J76: 1 | K76: 3 | M76: =IF(INTRO!$E$37="Endémique",IF($H76>0,IF($H76=4,"Inconnu",IF($H76=99,"Interrompu",$D76)),0),"Non requis") -> 0 | N76: =IF(INTRO!$E$39="Endémique", IF($I76>0, IF($I76=4,"Inconnu",IF($I76=99,"Interrompu",$D76)), 0),"Non requis") -> 145936 | O76: =IF(INTRO!$E$41="Endémique", IF(AND($J76>1,$J76<5), IF($J76=4, "Inconnu", E76+F76), 0),"Non requis") -> 0 | P76: =IF(INTRO!$E$43="Endémique", IF(AND($K76>0,$K76<5), IF($K76=4,"Inconnu", IF($K76=1, $F76*0.33, IF($K76=2, $F76*0.5+$G76*0.2, SUM(F76:G76)))), 0),"Non requis") -> 116894 | Q76: 0 | R76: 1 | S76: 0 | T76: 0 | Y76: 10712 | Z76: Fianga | AE76: 0 | AF76: 1 | AG76: 1
A77: =IF(INTRO!$E$33<>0,INTRO!$E$33, " ") -> Chad | B77: Mayo Kebbi Est | C77: Gounou Gaya | D77: 124920 | E77: =IF(INTRO!$E$48="","",ROUND($D77*INTRO!$E$48,0)) -> 19363 | F77: =IF(INTRO!$E$49="","",ROUND($D77*INTRO!$E$49,0)) -> 38350 | G77: =IF(INTRO!$E$50="","",ROUND($D77*INTRO!$E$50,0)) -> 61710 | H77: 0 | I77: 1 | J77: 2 | K77: 2 | M77: =IF(INTRO!$E$37="Endémique",IF($H77>0,IF($H77=4,"Inconnu",IF($H77=99,"Interrompu",$D77)),0),"Non requis") -> 0 | N77: =IF(INTRO!$E$39="Endémique", IF($I77>0, IF($I77=4,"Inconnu",IF($I77=99,"Interrompu",$D77)), 0),"Non requis") -> 124920 | O77: =IF(INTRO!$E$41="Endémique", IF(AND($J77>1,$J77<5), IF($J77=4, "Inconnu", E77+F77), 0),"Non requis") -> 57713 | P77: =IF(INTRO!$E$43="Endémique", IF(AND($K77>0,$K77<5), IF($K77=4,"Inconnu", IF($K77=1, $F77*0.33, IF($K77=2, $F77*0.5+$G77*0.2, SUM(F77:G77)))), 0),"Non requis") -> 31517 | Q77: 0 | R77: 1 | S77: 1 | T77: 1 | Y77: 10713 | Z77: Gounou Gaya | AE77: 1 | AF77: 0 | AG77: 1
A78: =IF(INTRO!$E$33<>0,INTRO!$E$33, " ") -> Chad | B78: Mayo Kebbi Est | C78: Guelinding | D78: 88113 | E78: =IF(INTRO!$E$48="","",ROUND($D78*INTRO!$E$48,0)) -> 13658 | F78: =IF(INTRO!$E$49="","",ROUND($D78*INTRO!$E$49,0)) -> 27051 | G78: =IF(INTRO!$E$50="","",ROUND($D78*INTRO!$E$50,0)) -> 43528 | H78: 1 | I78: 0 | J78: 1 | K78: 1 | M78: =IF(INTRO!$E$37="Endémique",IF($H78>0,IF($H78=4,"Inconnu",IF($H78=99,"Interrompu",$D78)),0),"Non requis") -> 88113 | N78: =IF(INTRO!$E$39="Endémique", IF($I78>0, IF($I78=4,"Inconnu",IF($I78=99,"Interrompu",$D78)), 0),"Non requis") -> 0 | O78: =IF(INTRO!$E$41="Endémique", IF(AND($J78>1,$J78<5), IF($J78=4, "Inconnu", E78+F78), 0),"Non requis") -> 0 | P78: =IF(INTRO!$E$43="Endémique", IF(AND($K78>0,$K78<5), IF($K78=4,"Inconnu", IF($K78=1, $F78*0.33, IF($K78=2, $F78*0.5+$G78*0.2, SUM(F78:G78)))), 0),"Non requis") -> 8926.83 | Q78: 1 | R78: 0 | S78: 0 | T78: 0 | Y78: 10714 | Z78: Guelinding | AE78: 0 | AF78: 0 | AG78: 0
A79: =IF(INTRO!$E$33<>0,INTRO!$E$33, " ") -> Chad | B79: Mayo Kebbi Est | C79: Moulkou | D79: 73705 | E79: =IF(INTRO!$E$48="","",ROUND($D79*INTRO!$E$48,0)) -> 11424 | F79: =IF(INTRO!$E$49="","",ROUND($D79*INTRO!$E$49,0)) -> 22627 | G79: =IF(INTRO!$E$50="","",ROUND($D79*INTRO!$E$50,0)) -> 36410 | H79: 1 | I79: 0 | J79: 1 | K79: 1 | M79: =IF(INTRO!$E$37="Endémique",IF($H79>0,IF($H79=4,"Inconnu",IF($H79=99,"Interrompu",$D79)),0),"Non requis") -> 73705 | N79: =IF(INTRO!$E$39="Endémique", IF($I79>0, IF($I79=4,"Inconnu",IF($I79=99,"Interrompu",$D79)), 0),"Non requis") -> 0 | O79: =IF(INTRO!$E$41="Endémique", IF(AND($J79>1,$J79<5), IF($J79=4, "Inconnu", E79+F79), 0),"Non requis") -> 0 | P79: =IF(INTRO!$E$43="Endémique", IF(AND($K79>0,$K79<5), IF($K79=4,"Inconnu", IF($K79=1, $F79*0.33, IF($K79=2, $F79*0.5+$G79*0.2, SUM(F79:G79)))), 0),"Non requis") -> 7466.91 | Q79: 1 | R79: 0 | S79: 0 | T79: 0 | Y79: 10750 | Z79: Moulkou | AE79: 0 | AF79: 0 | AG79: 0
A80: =IF(INTRO!$E$33<>0,INTRO!$E$33, " ") -> Chad | B80: Mayo Kebbi Est | C80: Pont Carol | D80: 81763 | E80: =IF(INTRO!$E$48="","",ROUND($D80*INTRO!$E$48,0)) -> 12673 | F80: =IF(INTRO!$E$49="","",ROUND($D80*INTRO!$E$49,0)) -> 25101 | G80: =IF(INTRO!$E$50="","",ROUND($D80*INTRO!$E$50,0)) -> 40391 | H80: 0 | I80: 1 | J80: 2 | K80: 2 | M80: =IF(INTRO!$E$37="Endémique",IF($H80>0,IF($H80=4,"Inconnu",IF($H80=99,"Interrompu",$D80)),0),"Non requis") -> 0 | N80: =IF(INTRO!$E$39="Endémique", IF($I80>0, IF($I80=4,"Inconnu",IF($I80=99,"Interrompu",$D80)), 0),"Non requis") -> 81763 | O80: =IF(INTRO!$E$41="Endémique", IF(AND($J80>1,$J80<5), IF($J80=4, "Inconnu", E80+F80), 0),"Non requis") -> 37774 | P80: =IF(INTRO!$E$43="Endémique", IF(AND($K80>0,$K80<5), IF($K80=4,"Inconnu", IF($K80=1, $F80*0.33, IF($K80=2, $F80*0.5+$G80*0.2, SUM(F80:G80)))), 0),"Non requis") -> 20628.7 | Q80: 0 | R80: 1 | S80: 1 | T80: 1 | Y80: 10751 | Z80: Pont Carol | AE80: 1 | AF80: 0 | AG80: 1
A81: =IF(INTRO!$E$33<>0,INTRO!$E$33, " ") -> Chad | B81: Mayo Kebbi Est | C81: Youé | D81: 143398 | E81: =IF(INTRO!$E$48="","",ROUND($D81*INTRO!$E$48,0)) -> 22227 | F81: =IF(INTRO!$E$49="","",ROUND($D81*INTRO!$E$49,0)) -> 44023 | G81: =IF(INTRO!$E$50="","",ROUND($D81*INTRO!$E$50,0)) -> 70839 | H81: 0 | I81: 1 | J81: 1 | K81: 3 | M81: =IF(INTRO!$E$37="Endémique",IF($H81>0,IF($H81=4,"Inconnu",IF($H81=99,"Interrompu",$D81)),0),"Non requis") -> 0 | N81: =IF(INTRO!$E$39="Endémique", IF($I81>0, IF($I81=4,"Inconnu",IF($I81=99,"Interrompu",$D81)), 0),"Non requis") -> 143398 | O81: =IF(INTRO!$E$41="Endémique", IF(AND($J81>1,$J81<5), IF($J81=4, "Inconnu", E81+F81), 0),"Non requis") -> 0 | P81: =IF(INTRO!$E$43="Endémique", IF(AND($K81>0,$K81<5), IF($K81=4,"Inconnu", IF($K81=1, $F81*0.33, IF($K81=2, $F81*0.5+$G81*0.2, SUM(F81:G81)))), 0),"Non requis") -> 114862 | Q81: 0 | R81: 1 | S81: 0 | T81: 0 | Y81: 10752 | Z81: Youé | AE81: 1 | AF81: 1 | AG81: 2
A82: =IF(INTRO!$E$33<>0,INTRO!$E$33, " ") -> Chad | B82: Mayo Kebbi Ouest | C82: Binder | D82: 80464 | E82: =IF(INTRO!$E$48="","",ROUND($D82*INTRO!$E$48,0)) -> 12472 | F82: =IF(INTRO!$E$49="","",ROUND($D82*INTRO!$E$49,0)) -> 24702 | G82: =IF(INTRO!$E$50="","",ROUND($D82*INTRO!$E$50,0)) -> 39749 | H82: 0 | I82: 1 | J82: 1 | K82: 3 | M82: =IF(INTRO!$E$37="Endémique",IF($H82>0,IF($H82=4,"Inconnu",IF($H82=99,"Interrompu",$D82)),0),"Non requis") -> 0 | N82: =IF(INTRO!$E$39="Endémique", IF($I82>0, IF($I82=4,"Inconnu",IF($I82=99,"Interrompu",$D82)), 0),"Non requis") -> 80464 | O82: =IF(INTRO!$E$41="Endémique", IF(AND($J82>1,$J82<5), IF($J82=4, "Inconnu", E82+F82), 0),"Non requis") -> 0 | P82: =IF(INTRO!$E$43="Endémique", IF(AND($K82>0,$K82<5), IF($K82=4,"Inconnu", IF($K82=1, $F82*0.33, IF($K82=2, $F82*0.5+$G82*0.2, SUM(F82:G82)))), 0),"Non requis") -> 64451 | Q82: 0 | R82: 1 | S82: 0 | T82: 0 | Y82: 10754 | Z82: Binder | AE82: 1 | AF82: 1 | AG82: 2
A83: =IF(INTRO!$E$33<>0,INTRO!$E$33, " ") -> Chad | B83: Mayo Kebbi Ouest | C83: Gagal | D83: 145726 | E83: =IF(INTRO!$E$48="","",ROUND($D83*INTRO!$E$48,0)) -> 22588 | F83: =IF(INTRO!$E$49="","",ROUND($D83*INTRO!$E$49,0)) -> 44738 | G83: =IF(INTRO!$E$50="","",ROUND($D83*INTRO!$E$50,0)) -> 71989 | H83: 0 | I83: 1 | J83: 1 | K83: 2 | M83: =IF(INTRO!$E$37="Endémique",IF($H83>0,IF($H83=4,"Inconnu",IF($H83=99,"Interrompu",$D83)),0),"Non requis") -> 0 | N83: =IF(INTRO!$E$39="Endémique", IF($I83>0, IF($I83=4,"Inconnu",IF($I83=99,"Interrompu",$D83)), 0),"Non requis") -> 145726 | O83: =IF(INTRO!$E$41="Endémique", IF(AND($J83>1,$J83<5), IF($J83=4, "Inconnu", E83+F83), 0),"Non requis") -> 0 | P83: =IF(INTRO!$E$43="Endémique", IF(AND($K83>0,$K83<5), IF($K83=4,"Inconnu", IF($K83=1, $F83*0.33, IF($K83=2, $F83*0.5+$G83*0.2, SUM(F83:G83)))), 0),"Non requis") -> 36766.8 | Q83: 0 | R83: 1 | S83: 0 | T83: 1 | Y83: 10755 | Z83: Gagal | AE83: 1 | AF83: 0 | AG83: 1
A84: =IF(INTRO!$E$33<>0,INTRO!$E$33, " ") -> Chad | B84: Mayo Kebbi Ouest | C84: Guegou | D84: 40614 | E84: =IF(INTRO!$E$48="","",ROUND($D84*INTRO!$E$48,0)) -> 6295 | F84: =IF(INTRO!$E$49="","",ROUND($D84*INTRO!$E$49,0)) -> 12468 | G84: =IF(INTRO!$E$50="","",ROUND($D84*INTRO!$E$50,0)) -> 20063 | H84: 0 | I84: 1 | J84: 1 | K84: 3 | M84: =IF(INTRO!$E$37="Endémique",IF($H84>0,IF($H84=4,"Inconnu",IF($H84=99,"Interrompu",$D84)),0),"Non requis") -> 0 | N84: =IF(INTRO!$E$39="Endémique", IF($I84>0, IF($I84=4,"Inconnu",IF($I84=99,"Interrompu",$D84)), 0),"Non requis") -> 40614 | O84: =IF(INTRO!$E$41="Endémique", IF(AND($J84>1,$J84<5), IF($J84=4, "Inconnu", E84+F84), 0),"Non requis") -> 0 | P84: =IF(INTRO!$E$43="Endémique", IF(AND($K84>0,$K84<5), IF($K84=4,"Inconnu", IF($K84=1, $F84*0.33, IF($K84=2, $F84*0.5+$G84*0.2, SUM(F84:G84)))), 0),"Non requis") -> 32531 | Q84: 0 | R84: 1 | S84: 0 | T84: 0 | Y84: 10771 | Z84: Guegou | AE84: 1 | AF84: 1 | AG84: 2
A85: =IF(INTRO!$E$33<>0,INTRO!$E$33, " ") -> Chad | B85: Mayo Kebbi Ouest | C85: GUELO | D85: 51256 | E85: =IF(INTRO!$E$48="","",ROUND($D85*INTRO!$E$48,0)) -> 7945 | F85: =IF(INTRO!$E$49="","",ROUND($D85*INTRO!$E$49,0)) -> 15736 | G85: =IF(INTRO!$E$50="","",ROUND($D85*INTRO!$E$50,0)) -> 25320 | H85: 0 | I85: 1 | J85: 1 | K85: 3 | M85: =IF(INTRO!$E$37="Endémique",IF($H85>0,IF($H85=4,"Inconnu",IF($H85=99,"Interrompu",$D85)),0),"Non requis") -> 0 | N85: =IF(INTRO!$E$39="Endémique", IF($I85>0, IF($I85=4,"Inconnu",IF($I85=99,"Interrompu",$D85)), 0),"Non requis") -> 51256 | O85: =IF(INTRO!$E$41="Endémique", IF(AND($J85>1,$J85<5), IF($J85=4, "Inconnu", E85+F85), 0),"Non requis") -> 0 | P85: =IF(INTRO!$E$43="Endémique", IF(AND($K85>0,$K85<5), IF($K85=4,"Inconnu", IF($K85=1, $F85*0.33, IF($K85=2, $F85*0.5+$G85*0.2, SUM(F85:G85)))), 0),"Non requis") -> 41056 | Q85: 0 | R85: 1 | S85: 0 | T85: 0 | Y85: 10772 | Z85: GUELO | AE85: 1 | AF85: 1 | AG85: 2
A86: =IF(INTRO!$E$33<>0,INTRO!$E$33, " ") -> Chad | B86: Mayo Kebbi Ouest | C86: Lagon | D86: 81453 | E86: =IF(INTRO!$E$48="","",ROUND($D86*INTRO!$E$48,0)) -> 12625 | F86: =IF(INTRO!$E$49="","",ROUND($D86*INTRO!$E$49,0)) -> 25006 | G86: =IF(INTRO!$E$50="","",ROUND($D86*INTRO!$E$50,0)) -> 40238 | H86: 0 | I86: 1 | J86: 1 | K86: 3 | M86: =IF(INTRO!$E$37="Endémique",IF($H86>0,IF($H86=4,"Inconnu",IF($H86=99,"Interrompu",$D86)),0),"Non requis") -> 0 | N86: =IF(INTRO!$E$39="Endémique", IF($I86>0, IF($I86=4,"Inconnu",IF($I86=99,"Interrompu",$D86)), 0),"Non requis") -> 81453 | O86: =IF(INTRO!$E$41="Endémique", IF(AND($J86>1,$J86<5), IF($J86=4, "Inconnu", E86+F86), 0),"Non requis") -> 0 | P86: =IF(INTRO!$E$43="Endémique", IF(AND($K86>0,$K86<5), IF($K86=4,"Inconnu", IF($K86=1, $F86*0.33, IF($K86=2, $F86*0.5+$G86*0.2, SUM(F86:G86)))), 0),"Non requis") -> 65244 | Q86: 0 | R86: 1 | S86: 0 | T86: 0 | Y86: 10756 | Z86: Lagon | AE86: 1 | AF86: 1 | AG86: 2
A87: =IF(INTRO!$E$33<>0,INTRO!$E$33, " ") -> Chad | B87: Mayo Kebbi Ouest | C87: Lamé | D87: 86958 | E87: =IF(INTRO!$E$48="","",ROUND($D87*INTRO!$E$48,0)) -> 13478 | F87: =IF(INTRO!$E$49="","",ROUND($D87*INTRO!$E$49,0)) -> 26696 | G87: =IF(INTRO!$E$50="","",ROUND($D87*INTRO!$E$50,0)) -> 42957 | H87: 0 | I87: 1 | J87: 1 | K87: 2 | M87: =IF(INTRO!$E$37="Endémique",IF($H87>0,IF($H87=4,"Inconnu",IF($H87=99,"Interrompu",$D87)),0),"Non requis") -> 0 | N87: =IF(INTRO!$E$39="Endémique", IF($I87>0, IF($I87=4,"Inconnu",IF($I87=99,"Interrompu",$D87)), 0),"Non requis") -> 86958 | O87: =IF(INTRO!$E$41="Endémique", IF(AND($J87>1,$J87<5), IF($J87=4, "Inconnu", E87+F87), 0),"Non requis") -> 0 | P87: =IF(INTRO!$E$43="Endémique", IF(AND($K87>0,$K87<5), IF($K87=4,"Inconnu", IF($K87=1, $F87*0.33, IF($K87=2, $F87*0.5+$G87*0.2, SUM(F87:G87)))), 0),"Non requis") -> 21939.4 | Q87: 0 | R87: 1 | S87: 0 | T87: 1 | Y87: 10757 | Z87: Lamé | AE87: 1 | AF87: 0 | AG87: 1
A88: =IF(INTRO!$E$33<>0,INTRO!$E$33, " ") -> Chad | B88: Mayo Kebbi Ouest | C88: Lere | D88: 146959 | E88: =IF(INTRO!$E$48="","",ROUND($D88*INTRO!$E$48,0)) -> 22779 | F88: =IF(INTRO!$E$49="","",ROUND($D88*INTRO!$E$49,0)) -> 45116 | G88: =IF(INTRO!$E$50="","",ROUND($D88*INTRO!$E$50,0)) -> 72598 | H88: 0 | I88: 1 | J88: 1 | K88: 3 | M88: =IF(INTRO!$E$37="Endémique",IF($H88>0,IF($H88=4,"Inconnu",IF($H88=99,"Interrompu",$D88)),0),"Non requis") -> 0 | N88: =IF(INTRO!$E$39="Endémique", IF($I88>0, IF($I88=4,"Inconnu",IF($I88=99,"Interrompu",$D88)), 0),"Non requis") -> 146959 | O88: =IF(INTRO!$E$41="Endémique", IF(AND($J88>1,$J88<5), IF($J88=4, "Inconnu", E88+F88), 0),"Non requis") -> 0 | P88: =IF(INTRO!$E$43="Endémique", IF(AND($K88>0,$K88<5), IF($K88=4,"Inconnu", IF($K88=1, $F88*0.33, IF($K88=2, $F88*0.5+$G88*0.2, SUM(F88:G88)))), 0),"Non requis") -> 117714 | Q88: 0 | R88: 1 | S88: 0 | T88: 0 | Y88: 10715 | Z88: Lere | AE88: 1 | AF88: 1 | AG88: 2
A89: =IF(INTRO!$E$33<>0,INTRO!$E$33, " ") -> Chad | B89: Mayo Kebbi Ouest | C89: Pala | D89: 459476 | E89: =IF(INTRO!$E$48="","",ROUND($D89*INTRO!$E$48,0)) -> 71219 | F89: =IF(INTRO!$E$49="","",ROUND($D89*INTRO!$E$49,0)) -> 141059 | G89: =IF(INTRO!$E$50="","",ROUND($D89*INTRO!$E$50,0)) -> 226981 | H89: 0 | I89: 1 | J89: 1 | K89: 2 | M89: =IF(INTRO!$E$37="Endémique",IF($H89>0,IF($H89=4,"Inconnu",IF($H89=99,"Interrompu",$D89)),0),"Non requis") -> 0 | N89: =IF(INTRO!$E$39="Endémique", IF($I89>0, IF($I89=4,"Inconnu",IF($I89=99,"Interrompu",$D89)), 0),"Non requis") -> 459476 | O89: =IF(INTRO!$E$41="Endémique", IF(AND($J89>1,$J89<5), IF($J89=4, "Inconnu", E89+F89), 0),"Non requis") -> 0 | P89: =IF(INTRO!$E$43="Endémique", IF(AND($K89>0,$K89<5), IF($K89=4,"Inconnu", IF($K89=1, $F89*0.33, IF($K89=2, $F89*0.5+$G89*0.2, SUM(F89:G89)))), 0),"Non requis") -> 115925.7 | Q89: 0 | R89: 1 | S89: 0 | T89: 1 | Y89: 10716 | Z89: Pala | AE89: 1 | AF89: 0 | AG89: 1
A90: =IF(INTRO!$E$33<>0,INTRO!$E$33, " ") -> Chad | B90: Mayo Kebbi Ouest | C90: Torrock | D90: 75113 | E90: =IF(INTRO!$E$48="","",ROUND($D90*INTRO!$E$48,0)) -> 11643 | F90: =IF(INTRO!$E$49="","",ROUND($D90*INTRO!$E$49,0)) -> 23060 | G90: =IF(INTRO!$E$50="","",ROUND($D90*INTRO!$E$50,0)) -> 37106 | H90: 0 | I90: 1 | J90: 1 | K90: 2 | M90: =IF(INTRO!$E$37="Endémique",IF($H90>0,IF($H90=4,"Inconnu",IF($H90=99,"Interrompu",$D90)),0),"Non requis") -> 0 | N90: =IF(INTRO!$E$39="Endémique", IF($I90>0, IF($I90=4,"Inconnu",IF($I90=99,"Interrompu",$D90)), 0),"Non requis") -> 75113 | O90: =IF(INTRO!$E$41="Endémique", IF(AND($J90>1,$J90<5), IF($J90=4, "Inconnu", E90+F90), 0),"Non requis") -> 0 | P90: =IF(INTRO!$E$43="Endémique", IF(AND($K90>0,$K90<5), IF($K90=4,"Inconnu", IF($K90=1, $F90*0.33, IF($K90=2, $F90*0.5+$G90*0.2, SUM(F90:G90)))), 0),"Non requis") -> 18951.2 | Q90: 0 | R90: 1 | S90: 0 | T90: 1 | Y90: 10758 | Z90: Torrock | AE90: 1 | AF90: 0 | AG90: 1
A91: =IF(INTRO!$E$33<>0,INTRO!$E$33, " ") -> Chad | B91: Moyen Chari | C91: Biobe Singako | D91: 88556 | E91: =IF(INTRO!$E$48="","",ROUND($D91*INTRO!$E$48,0)) -> 13726 | F91: =IF(INTRO!$E$49="","",ROUND($D91*INTRO!$E$49,0)) -> 27187 | G91: =IF(INTRO!$E$50="","",ROUND($D91*INTRO!$E$50,0)) -> 43747 | H91: 1 | I91: 1 | J91: 1 | K91: 2 | M91: =IF(INTRO!$E$37="Endémique",IF($H91>0,IF($H91=4,"Inconnu",IF($H91=99,"Interrompu",$D91)),0),"Non requis") -> 88556 | N91: =IF(INTRO!$E$39="Endémique", IF($I91>0, IF($I91=4,"Inconnu",IF($I91=99,"Interrompu",$D91)), 0),"Non requis") -> 88556 | O91: =IF(INTRO!$E$41="Endémique", IF(AND($J91>1,$J91<5), IF($J91=4, "Inconnu", E91+F91), 0),"Non requis") -> 0 | P91: =IF(INTRO!$E$43="Endémique", IF(AND($K91>0,$K91<5), IF($K91=4,"Inconnu", IF($K91=1, $F91*0.33, IF($K91=2, $F91*0.5+$G91*0.2, SUM(F91:G91)))), 0),"Non requis") -> 22342.9 | Q91: 1 | R91: 1 | S91: 0 | T91: 1 | Y91: 10717 | Z91: Biobe Singako | AE91: 1 | AF91: 0 | AG91: 1
A92: =IF(INTRO!$E$33<>0,INTRO!$E$33, " ") -> Chad | B92: Moyen Chari | C92: Danamadji | D92: 298072 | E92: =IF(INTRO!$E$48="","",ROUND($D92*INTRO!$E$48,0)) -> 46201 | F92: =IF(INTRO!$E$49="","",ROUND($D92*INTRO!$E$49,0)) -> 91508 | G92: =IF(INTRO!$E$50="","",ROUND($D92*INTRO!$E$50,0)) -> 147248 | H92: 1 | I92: 1 | J92: 1 | K92: 1 | M92: =IF(INTRO!$E$37="Endémique",IF($H92>0,IF($H92=4,"Inconnu",IF($H92=99,"Interrompu",$D92)),0),"Non requis") -> 298072 | N92: =IF(INTRO!$E$39="Endémique", IF($I92>0, IF($I92=4,"Inconnu",IF($I92=99,"Interrompu",$D92)), 0),"Non requis") -> 298072 | O92: =IF(INTRO!$E$41="Endémique", IF(AND($J92>1,$J92<5), IF($J92=4, "Inconnu", E92+F92), 0),"Non requis") -> 0 | P92: =IF(INTRO!$E$43="Endémique", IF(AND($K92>0,$K92<5), IF($K92=4,"Inconnu", IF($K92=1, $F92*0.33, IF($K92=2, $F92*0.5+$G92*0.2, SUM(F92:G92)))), 0),"Non requis") -> 30197.64 | Q92: 1 | R92: 1 | S92: 0 | T92: 0 | Y92: 10718 | Z92: Danamadji | AE92: 0 | AF92: 0 | AG92: 0
A93: =IF(INTRO!$E$33<>0,INTRO!$E$33, " ") -> Chad | B93: Moyen Chari | C93: Korbol | D93: 146178 | E93: =IF(INTRO!$E$48="","",ROUND($D93*INTRO!$E$48,0)) -> 22658 | F93: =IF(INTRO!$E$49="","",ROUND($D93*INTRO!$E$49,0)) -> 44877 | G93: =IF(INTRO!$E$50="","",ROUND($D93*INTRO!$E$50,0)) -> 72212 | H93: 1 | I93: 1 | J93: 2 | K93: 2 | M93: =IF(INTRO!$E$37="Endémique",IF($H93>0,IF($H93=4,"Inconnu",IF($H93=99,"Interrompu",$D93)),0),"Non requis") -> 146178 | N93: =IF(INTRO!$E$39="Endémique", IF($I93>0, IF($I93=4,"Inconnu",IF($I93=99,"Interrompu",$D93)), 0),"Non requis") -> 146178 | O93: =IF(INTRO!$E$41="Endémique", IF(AND($J93>1,$J93<5), IF($J93=4, "Inconnu", E93+F93), 0),"Non requis") -> 67535 | P93: =IF(INTRO!$E$43="Endémique", IF(AND($K93>0,$K93<5), IF($K93=4,"Inconnu", IF($K93=1, $F93*0.33, IF($K93=2, $F93*0.5+$G93*0.2, SUM(F93:G93)))), 0),"Non requis") -> 36880.9 | Q93: 1 | R93: 1 | S93: 1 | T93: 0 | Y93: 10773 | Z93: Korbol | AE93: 1 | AF93: 1 | AG93: 2
A94: =IF(INTRO!$E$33<>0,INTRO!$E$33, " ") -> Chad | B94: Moyen Chari | C94: Kyabe | D94: 119758 | E94: =IF(INTRO!$E$48="","",ROUND($D94*INTRO!$E$48,0)) -> 18562 | F94: =IF(INTRO!$E$49="","",ROUND($D94*INTRO!$E$49,0)) -> 36766 | G94: =IF(INTRO!$E$50="","",ROUND($D94*INTRO!$E$50,0)) -> 59160 | H94: 1 | I94: 1 | J94: 1 | K94: 2 | M94: =IF(INTRO!$E$37="Endémique",IF($H94>0,IF($H94=4,"Inconnu",IF($H94=99,"Interrompu",$D94)),0),"Non requis") -> 119758 | N94: =IF(INTRO!$E$39="Endémique", IF($I94>0, IF($I94=4,"Inconnu",IF($I94=99,"Interrompu",$D94)), 0),"Non requis") -> 119758 | O94: =IF(INTRO!$E$41="Endémique", IF(AND($J94>1,$J94<5), IF($J94=4, "Inconnu", E94+F94), 0),"Non requis") -> 0 | P94: =IF(INTRO!$E$43="Endémique", IF(AND($K94>0,$K94<5), IF($K94=4,"Inconnu", IF($K94=1, $F94*0.33, IF($K94=2, $F94*0.5+$G94*0.2, SUM(F94:G94)))), 0),"Non requis") -> 30215 | Q94: 1 | R94: 1 | S94: 0 | T94: 1 | Y94: 10719 | Z94: Kyabe | AE94: 1 | AF94: 0 | AG94: 1
A95: =IF(INTRO!$E$33<>0,INTRO!$E$33, " ") -> Chad | B95: Moyen Chari | C95: Maro | D95: 257576 | E95: =IF(INTRO!$E$48="","",ROUND($D95*INTRO!$E$48,0)) -> 39924 | F95: =IF(INTRO!$E$49="","",ROUND($D95*INTRO!$E$49,0)) -> 79076 | G95: =IF(INTRO!$E$50="","",ROUND($D95*INTRO!$E$50,0)) -> 127243 | H95: 1 | I95: 1 | J95: 1 | K95: 1 | M95: =IF(INTRO!$E$37="Endémique",IF($H95>0,IF($H95=4,"Inconnu",IF($H95=99,"Interrompu",$D95)),0),"Non requis") -> 257576 | N95: =IF(INTRO!$E$39="Endémique", IF($I95>0, IF($I95=4,"Inconnu",IF($I95=99,"Interrompu",$D95)), 0),"Non requis") -> 257576 | O95: =IF(INTRO!$E$41="Endémique", IF(AND($J95>1,$J95<5), IF($J95=4, "Inconnu", E95+F95), 0),"Non requis") -> 0 | P95: =IF(INTRO!$E$43="Endémique", IF(AND($K95>0,$K95<5), IF($K95=4,"Inconnu", IF($K95=1, $F95*0.33, IF($K95=2, $F95*0.5+$G95*0.2, SUM(F95:G95)))), 0),"Non requis") -> 26095.08 | Q95: 1 | R95: 1 | S95: 0 | T95: 1 | Y95: 10774 | Z95: Maro | AE95: 0 | AF95: 1 | AG95: 1
A96: =IF(INTRO!$E$33<>0,INTRO!$E$33, " ") -> Chad | B96: Moyen Chari | C96: Sarh | D96: 196619 | E96: =IF(INTRO!$E$48="","",ROUND($D96*INTRO!$E$48,0)) -> 30476 | F96: =IF(INTRO!$E$49="","",ROUND($D96*INTRO!$E$49,0)) -> 60362 | G96: =IF(INTRO!$E$50="","",ROUND($D96*INTRO!$E$50,0)) -> 97130 | H96: 1 | I96: 1 | J96: 2 | K96: 2 | M96: =IF(INTRO!$E$37="Endémique",IF($H96>0,IF($H96=4,"Inconnu",IF($H96=99,"Interrompu",$D96)),0),"Non requis") -> 196619 | N96: =IF(INTRO!$E$39="Endémique", IF($I96>0, IF($I96=4,"Inconnu",IF($I96=99,"Interrompu",$D96)), 0),"Non requis") -> 196619 | O96: =IF(INTRO!$E$41="Endémique", IF(AND($J96>1,$J96<5), IF($J96=4, "Inconnu", E96+F96), 0),"Non requis") -> 90838 | P96: =IF(INTRO!$E$43="Endémique", IF(AND($K96>0,$K96<5), IF($K96=4,"Inconnu", IF($K96=1, $F96*0.33, IF($K96=2, $F96*0.5+$G96*0.2, SUM(F96:G96)))), 0),"Non requis") -> 49607 | Q96: 1 | R96: 1 | S96: 1 | T96: 1 | Y96: 10720 | Z96: Sarh | AE96: 1 | AF96: 0 | AG96: 1
A97: =IF(INTRO!$E$33<>0,INTRO!$E$33, " ") -> Chad | B97: N'Djaména | C97: N'Djaména Centre | D97: 457858 | E97: =IF(INTRO!$E$48="","",ROUND($D97*INTRO!$E$48,0)) -> 70968 | F97: =IF(INTRO!$E$49="","",ROUND($D97*INTRO!$E$49,0)) -> 140562 | G97: =IF(INTRO!$E$50="","",ROUND($D97*INTRO!$E$50,0)) -> 226182 | H97: 0 | I97: 0 | J97: 1 | K97: 1 | M97: =IF(INTRO!$E$37="Endémique",IF($H97>0,IF($H97=4,"Inconnu",IF($H97=99,"Interrompu",$D97)),0),"Non requis") -> 0 | N97: =IF(INTRO!$E$39="Endémique", IF($I97>0, IF($I97=4,"Inconnu",IF($I97=99,"Interrompu",$D97)), 0),"Non requis") -> 0 | O97: =IF(INTRO!$E$41="Endémique", IF(AND($J97>1,$J97<5), IF($J97=4, "Inconnu", E97+F97), 0),"Non requis") -> 0 | P97: =IF(INTRO!$E$43="Endémique", IF(AND($K97>0,$K97<5), IF($K97=4,"Inconnu", IF($K97=1, $F97*0.33, IF($K97=2, $F97*0.5+$G97*0.2, SUM(F97:G97)))), 0),"Non requis") -> 46385.46 | Q97: 0 | R97: 0 | S97: 0 | T97: 1 | Y97: 10721 | Z97: N'Djaména Centre | AE97: 0 | AF97: 1 | AG97: 1
A98: =IF(INTRO!$E$33<>0,INTRO!$E$33, " ") -> Chad | B98: N'Djaména | C98: N'Djaména Est | D98: 167905 | E98: =IF(INTRO!$E$48="","",ROUND($D98*INTRO!$E$48,0)) -> 26025 | F98: =IF(INTRO!$E$49="","",ROUND($D98*INTRO!$E$49,0)) -> 51547 | G98: =IF(INTRO!$E$50="","",ROUND($D98*INTRO!$E$50,0)) -> 82945 | H98: 0 | I98: 0 | J98: 0 | K98: 1 | M98: =IF(INTRO!$E$37="Endémique",IF($H98>0,IF($H98=4,"Inconnu",IF($H98=99,"Interrompu",$D98)),0),"Non requis") -> 0 | N98: =IF(INTRO!$E$39="Endémique", IF($I98>0, IF($I98=4,"Inconnu",IF($I98=99,"Interrompu",$D98)), 0),"Non requis") -> 0 | O98: =IF(INTRO!$E$41="Endémique", IF(AND($J98>1,$J98<5), IF($J98=4, "Inconnu", E98+F98), 0),"Non requis") -> 0 | P98: =IF(INTRO!$E$43="Endémique", IF(AND($K98>0,$K98<5), IF($K98=4,"Inconnu", IF($K98=1, $F98*0.33, IF($K98=2, $F98*0.5+$G98*0.2, SUM(F98:G98)))), 0),"Non requis") -> 17010.51 | Q98: 0 | R98: 0 | S98: 0 | T98: 1 | Y98: 10722 | Z98: N'Djaména Est | AE98: 0 | AF98: 1 | AG98: 1
A99: =IF(INTRO!$E$33<>0,INTRO!$E$33, " ") -> Chad | B99: N'Djaména | C99: N'Djaména Nord | D99: 162731 | E99: =IF(INTRO!$E$48="","",ROUND($D99*INTRO!$E$48,0)) -> 25223 | F99: =IF(INTRO!$E$49="","",ROUND($D99*INTRO!$E$49,0)) -> 49958 | G99: =IF(INTRO!$E$50="","",ROUND($D99*INTRO!$E$50,0)) -> 80389 | H99: 0 | I99: 0 | J99: 0 | K99: 1 | M99: =IF(INTRO!$E$37="Endémique",IF($H99>0,IF($H99=4,"Inconnu",IF($H99=99,"Interrompu",$D99)),0),"Non requis") -> 0 | N99: =IF(INTRO!$E$39="Endémique", IF($I99>0, IF($I99=4,"Inconnu",IF($I99=99,"Interrompu",$D99)), 0),"Non requis") -> 0 | O99: =IF(INTRO!$E$41="Endémique", IF(AND($J99>1,$J99<5), IF($J99=4, "Inconnu", E99+F99), 0),"Non requis") -> 0 | P99: =IF(INTRO!$E$43="Endémique", IF(AND($K99>0,$K99<5), IF($K99=4,"Inconnu", IF($K99=1, $F99*0.33, IF($K99=2, $F99*0.5+$G99*0.2, SUM(F99:G99)))), 0),"Non requis") -> 16486.14 | Q99: 0 | R99: 0 | S99: 0 | T99: 1 | Y99: 10723 | Z99: N'Djaména Nord | AE99: 0 | AF99: 1 | AG99: 1
A100: =IF(INTRO!$E$33<>0,INTRO!$E$33, " ") -> Chad | B100: N'Djaména | C100: N'Djaména Sud | D100: 649049 | E100: =IF(INTRO!$E$48="","",ROUND($D100*INTRO!$E$48,0)) -> 100603 | F100: =IF(INTRO!$E$49="","",ROUND($D100*INTRO!$E$49,0)) -> 199258 | G100: =IF(INTRO!$E$50="","",ROUND($D100*INTRO!$E$50,0)) -> 320630 | H100: 0 | I100: 0 | J100: 1 | K100: 1 | M100: =IF(INTRO!$E$37="Endémique",IF($H100>0,IF($H100=4,"Inconnu",IF($H100=99,"Interrompu",$D100)),0),"Non requis") -> 0 | N100: =IF(INTRO!$E$39="Endémique", IF($I100>0, IF($I100=4,"Inconnu",IF($I100=99,"Interrompu",$D100)), 0),"Non requis") -> 0 | O100: =IF(INTRO!$E$41="Endémique", IF(AND($J100>1,$J100<5), IF($J100=4, "Inconnu", E100+F100), 0),"Non requis") -> 0 | P100: =IF(INTRO!$E$43="Endémique", IF(AND($K100>0,$K100<5), IF($K100=4,"Inconnu", IF($K100=1, $F100*0.33, IF($K100=2, $F100*0.5+$G100*0.2, SUM(F100:G100)))), 0),"Non requis") -> 65755.14 | Q100: 0 | R100: 0 | S100: 0 | T100: 1 | Y100: 10724 | Z100: N'Djaména Sud | AE100: 0 | AF100: 1 | AG100: 1
A101: =IF(INTRO!$E$33<>0,INTRO!$E$33, " ") -> Chad | B101: Ouaddai | C101: Abdi | D101: 161492 | E101: =IF(INTRO!$E$48="","",ROUND($D101*INTRO!$E$48,0)) -> 25031 | F101: =IF(INTRO!$E$49="","",ROUND($D101*INTRO!$E$49,0)) -> 49578 | G101: =IF(INTRO!$E$50="","",ROUND($D101*INTRO!$E$50,0)) -> 79777 | H101: 0 | I101: 0 | J101: 1 | K101: 2 | M101: =IF(INTRO!$E$37="Endémique",IF($H101>0,IF($H101=4,"Inconnu",IF($H101=99,"Interrompu",$D101)),0),"Non requis") -> 0 | N101: =IF(INTRO!$E$39="Endémique", IF($I101>0, IF($I101=4,"Inconnu",IF($I101=99,"Interrompu",$D101)), 0),"Non requis") -> 0 | O101: =IF(INTRO!$E$41="Endémique", IF(AND($J101>1,$J101<5), IF($J101=4, "Inconnu", E101+F101), 0),"Non requis") -> 0 | P101: =IF(INTRO!$E$43="Endémique", IF(AND($K101>0,$K101<5), IF($K101=4,"Inconnu", IF($K101=1, $F101*0.33, IF($K101=2, $F101*0.5+$G101*0.2, SUM(F101:G101)))), 0),"Non requis") -> 40744.4 | Q101: 0 | R101: 0 | S101: 0 | T101: 1 | Y101: 10727 | Z101: Abdi | AE101: 1 | AF101: 0 | AG101: 1
A102: =IF(INTRO!$E$33<>0,INTRO!$E$33, " ") -> Chad | B102: Ouaddai | C102: Abeche | D102: 364367 | E102: =IF(INTRO!$E$48="","",ROUND($D102*INTRO!$E$48,0)) -> 56477 | F102: =IF(INTRO!$E$49="","",ROUND($D102*INTRO!$E$49,0)) -> 111861 | G102: =IF(INTRO!$E$50="","",ROUND($D102*INTRO!$E$50,0)) -> 179997 | H102: 0 | I102: 0 | J102: 1 | K102: 2 | M102: =IF(INTRO!$E$37="Endémique",IF($H102>0,IF($H102=4,"Inconnu",IF($H102=99,"Interrompu",$D102)),0),"Non requis") -> 0 | N102: =IF(INTRO!$E$39="Endémique", IF($I102>0, IF($I102=4,"Inconnu",IF($I102=99,"Interrompu",$D102)), 0),"Non requis") -> 0 | O102: =IF(INTRO!$E$41="Endémique", IF(AND($J102>1,$J102<5), IF($J102=4, "Inconnu", E102+F102), 0),"Non requis") -> 0 | P102: =IF(INTRO!$E$43="Endémique", IF(AND($K102>0,$K102<5), IF($K102=4,"Inconnu", IF($K102=1, $F102*0.33, IF($K102=2, $F102*0.5+$G102*0.2, SUM(F102:G102)))), 0),"Non requis") -> 91929.9 | Q102: 0 | R102: 0 | S102: 0 | T102: 1 | Y102: 10728 | Z102: Abeche | AE102: 1 | AF102: 0 | AG102: 1
A103: =IF(INTRO!$E$33<>0,INTRO!$E$33, " ") -> Chad | B103: Ouaddai | C103: Abougoudam | D103: 132199 | E103: =IF(INTRO!$E$48="","",ROUND($D103*INTRO!$E$48,0)) -> 20491 | F103: =IF(INTRO!$E$49="","",ROUND($D103*INTRO!$E$49,0)) -> 40585 | G103: =IF(INTRO!$E$50="","",ROUND($D103*INTRO!$E$50,0)) -> 65306 | H103: 0 | I103: 0 | J103: 0 | K103: 2 | M103: =IF(INTRO!$E$37="Endémique",IF($H103>0,IF($H103=4,"Inconnu",IF($H103=99,"Interrompu",$D103)),0),"Non requis") -> 0 | N103: =IF(INTRO!$E$39="Endémique", IF($I103>0, IF($I103=4,"Inconnu",IF($I103=99,"Interrompu",$D103)), 0),"Non requis") -> 0 | O103: =IF(INTRO!$E$41="Endémique", IF(AND($J103>1,$J103<5), IF($J103=4, "Inconnu", E103+F103), 0),"Non requis") -> 0 | P103: =IF(INTRO!$E$43="Endémique", IF(AND($K103>0,$K103<5), IF($K103=4,"Inconnu", IF($K103=1, $F103*0.33, IF($K103=2, $F103*0.5+$G103*0.2, SUM(F103:G103)))), 0),"Non requis") -> 33353.7 | Q103: 0 | R103: 0 | S103: 0 | T103: 1 | Y103: 10729 | Z103: Abougoudam | AE103: 1 | AF103: 0 | AG103: 1
A104: =IF(INTRO!$E$33<>0,INTRO!$E$33, " ") -> Chad | B104: Ouaddai | C104: Adré | D104: 431583 | E104: =IF(INTRO!$E$48="","",ROUND($D104*INTRO!$E$48,0)) -> 66895 | F104: =IF(INTRO!$E$49="","",ROUND($D104*INTRO!$E$49,0)) -> 132496 | G104: =IF(INTRO!$E$50="","",ROUND($D104*INTRO!$E$50,0)) -> 213202 | H104: 0 | I104: 0 | J104: 1 | K104: 2 | M104: =IF(INTRO!$E$37="Endémique",IF($H104>0,IF($H104=4,"Inconnu",IF($H104=99,"Interrompu",$D104)),0),"Non requis") -> 0 | N104: =IF(INTRO!$E$39="Endémique", IF($I104>0, IF($I104=4,"Inconnu",IF($I104=99,"Interrompu",$D104)), 0),"Non requis") -> 0 | O104: =IF(INTRO!$E$41="Endémique", IF(AND($J104>1,$J104<5), IF($J104=4, "Inconnu", E104+F104), 0),"Non requis") -> 0 | P104: =IF(INTRO!$E$43="Endémique", IF(AND($K104>0,$K104<5), IF($K104=4,"Inconnu", IF($K104=1, $F104*0.33, IF($K104=2, $F104*0.5+$G104*0.2, SUM(F104:G104)))), 0),"Non requis") -> 108888.4 | Q104: 0 | R104: 0 | S104: 0 | T104: 1 | Y104: 10730 | Z104: Adré | AE104: 1 | AF104: 0 | AG104: 1
A105: =IF(INTRO!$E$33<>0,INTRO!$E$33, " ") -> Chad | B105: Salamat | C105: Aboudeia | D105: 97727 | E105: =IF(INTRO!$E$48="","",ROUND($D105*INTRO!$E$48,0)) -> 15148 | F105: =IF(INTRO!$E$49="","",ROUND($D105*INTRO!$E$49,0)) -> 30002 | G105: =IF(INTRO!$E$50="","",ROUND($D105*INTRO!$E$50,0)) -> 48277 | H105: 0 | I105: 0 | J105: 2 | K105: 3 | M105: =IF(INTRO!$E$37="Endémique",IF($H105>0,IF($H105=4,"Inconnu",IF($H105=99,"Interrompu",$D105)),0),"Non requis") -> 0 | N105: =IF(INTRO!$E$39="Endémique", IF($I105>0, IF($I105=4,"Inconnu",IF($I105=99,"Interrompu",$D105)), 0),"Non requis") -> 0 | O105: =IF(INTRO!$E$41="Endémique", IF(AND($J105>1,$J105<5), IF($J105=4, "Inconnu", E105+F105), 0),"Non requis") -> 45150 | P105: =IF(INTRO!$E$43="Endémique", IF(AND($K105>0,$K105<5), IF($K105=4,"Inconnu", IF($K105=1, $F105*0.33, IF($K105=2, $F105*0.5+$G105*0.2, SUM(F105:G105)))), 0),"Non requis") -> 78279 | Q105: 0 | R105: 0 | S105: 1 | T105: 0 | Y105: 10731 | Z105: Aboudeia | AE105: 1 | AF105: 1 | AG105: 2
A106: =IF(INTRO!$E$33<>0,INTRO!$E$33, " ") -> Chad | B106: Salamat | C106: Am-Timan | D106: 275305 | E106: =IF(INTRO!$E$48="","",ROUND($D106*INTRO!$E$48,0)) -> 42672 | F106: =IF(INTRO!$E$49="","",ROUND($D106*INTRO!$E$49,0)) -> 84519 | G106: =IF(INTRO!$E$50="","",ROUND($D106*INTRO!$E$50,0)) -> 136001 | H106: 0 | I106: 0 | J106: 2 | K106: 1 | M106: =IF(INTRO!$E$37="Endémique",IF($H106>0,IF($H106=4,"Inconnu",IF($H106=99,"Interrompu",$D106)),0),"Non requis") -> 0 | N106: =IF(INTRO!$E$39="Endémique", IF($I106>0, IF($I106=4,"Inconnu",IF($I106=99,"Interrompu",$D106)), 0),"Non requis") -> 0 | O106: =IF(INTRO!$E$41="Endémique", IF(AND($J106>1,$J106<5), IF($J106=4, "Inconnu", E106+F106), 0),"Non requis") -> 127191 | P106: =IF(INTRO!$E$43="Endémique", IF(AND($K106>0,$K106<5), IF($K106=4,"Inconnu", IF($K106=1, $F106*0.33, IF($K106=2, $F106*0.5+$G106*0.2, SUM(F106:G106)))), 0),"Non requis") -> 27891.27 | Q106: 0 | R106: 0 | S106: 1 | T106: 1 | Y106: 10732 | Z106: Am-Timan | AE106: 0 | AF106: 1 | AG106: 1
A107: =IF(INTRO!$E$33<>0,INTRO!$E$33, " ") -> Chad | B107: Salamat | C107: Haraze | D107: 83728 | E107: =IF(INTRO!$E$48="","",ROUND($D107*INTRO!$E$48,0)) -> 12978 | F107: =IF(INTRO!$E$49="","",ROUND($D107*INTRO!$E$49,0)) -> 25704 | G107: =IF(INTRO!$E$50="","",ROUND($D107*INTRO!$E$50,0)) -> 41362 | H107: 0 | I107: 0 | J107: 1 | K107: 2 | M107: =IF(INTRO!$E$37="Endémique",IF($H107>0,IF($H107=4,"Inconnu",IF($H107=99,"Interrompu",$D107)),0),"Non requis") -> 0 | N107: =IF(INTRO!$E$39="Endémique", IF($I107>0, IF($I107=4,"Inconnu",IF($I107=99,"Interrompu",$D107)), 0),"Non requis") -> 0 | O107: =IF(INTRO!$E$41="Endémique", IF(AND($J107>1,$J107<5), IF($J107=4, "Inconnu", E107+F107), 0),"Non requis") -> 0 | P107: =IF(INTRO!$E$43="Endémique", IF(AND($K107>0,$K107<5), IF($K107=4,"Inconnu", IF($K107=1, $F107*0.33, IF($K107=2, $F107*0.5+$G107*0.2, SUM(F107:G107)))), 0),"Non requis") -> 21124.4 | Q107: 0 | R107: 0 | S107: 0 | T107: 1 | Y107: 10733 | Z107: Haraze | AE107: 1 | AF107: 0 | AG107: 1
A108: =IF(INTRO!$E$33<>0,INTRO!$E$33, " ") -> Chad | B108: Sila | C108: Am-dam | D108: 5152 | E108: =IF(INTRO!$E$48="","",ROUND($D108*INTRO!$E$48,0)) -> 799 | F108: =IF(INTRO!$E$49="","",ROUND($D108*INTRO!$E$49,0)) -> 1582 | G108: =IF(INTRO!$E$50="","",ROUND($D108*INTRO!$E$50,0)) -> 2545 | H108: 0 | I108: 0 | J108: 0 | K108: 2 | M108: =IF(INTRO!$E$37="Endémique",IF($H108>0,IF($H108=4,"Inconnu",IF($H108=99,"Interrompu",$D108)),0),"Non requis") -> 0 | N108: =IF(INTRO!$E$39="Endémique", IF($I108>0, IF($I108=4,"Inconnu",IF($I108=99,"Interrompu",$D108)), 0),"Non requis") -> 0 | O108: =IF(INTRO!$E$41="Endémique", IF(AND($J108>1,$J108<5), IF($J108=4, "Inconnu", E108+F108), 0),"Non requis") -> 0 | P108: =IF(INTRO!$E$43="Endémique", IF(AND($K108>0,$K108<5), IF($K108=4,"Inconnu", IF($K108=1, $F108*0.33, IF($K108=2, $F108*0.5+$G108*0.2, SUM(F108:G108)))), 0),"Non requis") -> 1300 | Q108: 0 | R108: 0 | S108: 0 | T108: 1 | Y108: 10725 | Z108: Am-dam | AE108: 1 | AF108: 0 | AG108: 1
A109: =IF(INTRO!$E$33<>0,INTRO!$E$33, " ") -> Chad | B109: Sila | C109: Goz-beida | D109: 252204 | E109: =IF(INTRO!$E$48="","",ROUND($D109*INTRO!$E$48,0)) -> 39092 | F109: =IF(INTRO!$E$49="","",ROUND($D109*INTRO!$E$49,0)) -> 77427 | G109: =IF(INTRO!$E$50="","",ROUND($D109*INTRO!$E$50,0)) -> 124589 | H109: 0 | I109: 0 | J109: 1 | K109: 2 | M109: =IF(INTRO!$E$37="Endémique",IF($H109>0,IF($H109=4,"Inconnu",IF($H109=99,"Interrompu",$D109)),0),"Non requis") -> 0 | N109: =IF(INTRO!$E$39="Endémique", IF($I109>0, IF($I109=4,"Inconnu",IF($I109=99,"Interrompu",$D109)), 0),"Non requis") -> 0 | O109: =IF(INTRO!$E$41="Endémique", IF(AND($J109>1,$J109<5), IF($J109=4, "Inconnu", E109+F109), 0),"Non requis") -> 0 | P109: =IF(INTRO!$E$43="Endémique", IF(AND($K109>0,$K109<5), IF($K109=4,"Inconnu", IF($K109=1, $F109*0.33, IF($K109=2, $F109*0.5+$G109*0.2, SUM(F109:G109)))), 0),"Non requis") -> 63631.3 | Q109: 0 | R109: 0 | S109: 0 | T109: 1 | Y109: 10726 | Z109: Goz-beida | AE109: 1 | AF109: 0 | AG109: 1
A110: =IF(INTRO!$E$33<>0,INTRO!$E$33, " ") -> Chad | B110: Sila | C110: Koukou | D110: 79100 | E110: =IF(INTRO!$E$48="","",ROUND($D110*INTRO!$E$48,0)) -> 12261 | F110: =IF(INTRO!$E$49="","",ROUND($D110*INTRO!$E$49,0)) -> 24284 | G110: =IF(INTRO!$E$50="","",ROUND($D110*INTRO!$E$50,0)) -> 39075 | H110: 0 | I110: 0 | J110: 1 | K110: 2 | M110: =IF(INTRO!$E$37="Endémique",IF($H110>0,IF($H110=4,"Inconnu",IF($H110=99,"Interrompu",$D110)),0),"Non requis") -> 0 | N110: =IF(INTRO!$E$39="Endémique", IF($I110>0, IF($I110=4,"Inconnu",IF($I110=99,"Interrompu",$D110)), 0),"Non requis") -> 0 | O110: =IF(INTRO!$E$41="Endémique", IF(AND($J110>1,$J110<5), IF($J110=4, "Inconnu", E110+F110), 0),"Non requis") -> 0 | P110: =IF(INTRO!$E$43="Endémique", IF(AND($K110>0,$K110<5), IF($K110=4,"Inconnu", IF($K110=1, $F110*0.33, IF($K110=2, $F110*0.5+$G110*0.2, SUM(F110:G110)))), 0),"Non requis") -> 19957 | Q110: 0 | R110: 0 | S110: 0 | T110: 1 | Y110: 10673 | Z110: Koukou | AE110: 1 | AF110: 0 | AG110: 1
A111: =IF(INTRO!$E$33<>0,INTRO!$E$33, " ") -> Chad | B111: Sila | C111: Tissi | D111: 134510 | E111: =IF(INTRO!$E$48="","",ROUND($D111*INTRO!$E$48,0)) -> 20849 | F111: =IF(INTRO!$E$49="","",ROUND($D111*INTRO!$E$49,0)) -> 41295 | G111: =IF(INTRO!$E$50="","",ROUND($D111*INTRO!$E$50,0)) -> 66448 | H111: 0 | I111: 0 | J111: 4 | K111: 4 | M111: =IF(INTRO!$E$37="Endémique",IF($H111>0,IF($H111=4,"Inconnu",IF($H111=99,"Interrompu",$D111)),0),"Non requis") -> 0 | N111: =IF(INTRO!$E$39="Endémique", IF($I111>0, IF($I111=4,"Inconnu",IF($I111=99,"Interrompu",$D111)), 0),"Non requis") -> 0 | O111: =IF(INTRO!$E$41="Endémique", IF(AND($J111>1,$J111<5), IF($J111=4, "Inconnu", E111+F111), 0),"Non requis") -> Inconnu | P111: =IF(INTRO!$E$43="Endémique", IF(AND($K111>0,$K111<5), IF($K111=4,"Inconnu", IF($K111=1, $F111*0.33, IF($K111=2, $F111*0.5+$G111*0.2, SUM(F111:G111)))), 0),"Non requis") -> Inconnu | Q111: 0 | R111: 0 | S111: 0 | T111: 0 | Y111: 10674 | Z111: Tissi | AE111: 0 | AF111: 0 | AG111: 0
A112: =IF(INTRO!$E$33<>0,INTRO!$E$33, " ") -> Chad | B112: Tandjile | C112: Batchoro | D112: 97837 | E112: =IF(INTRO!$E$48="","",ROUND($D112*INTRO!$E$48,0)) -> 15165 | F112: =IF(INTRO!$E$49="","",ROUND($D112*INTRO!$E$49,0)) -> 30036 | G112: =IF(INTRO!$E$50="","",ROUND($D112*INTRO!$E$50,0)) -> 48331 | H112: 1 | I112: 1 | J112: 1 | K112: 2 | M112: =IF(INTRO!$E$37="Endémique",IF($H112>0,IF($H112=4,"Inconnu",IF($H112=99,"Interrompu",$D112)),0),"Non requis") -> 97837 | N112: =IF(INTRO!$E$39="Endémique", IF($I112>0, IF($I112=4,"Inconnu",IF($I112=99,"Interrompu",$D112)), 0),"Non requis") -> 97837 | O112: =IF(INTRO!$E$41="Endémique", IF(AND($J112>1,$J112<5), IF($J112=4, "Inconnu", E112+F112), 0),"Non requis") -> 0 | P112: =IF(INTRO!$E$43="Endémique", IF(AND($K112>0,$K112<5), IF($K112=4,"Inconnu", IF($K112=1, $F112*0.33, IF($K112=2, $F112*0.5+$G112*0.2, SUM(F112:G112)))), 0),"Non requis") -> 24684.2 | Q112: 1 | R112: 1 | S112: 0 | T112: 0 | Y112: 10775 | Z112: Batchoro | AE112: 1 | AF112: 1 | AG112: 2
A113: =IF(INTRO!$E$33<>0,INTRO!$E$33, " ") -> Chad | B113: Tandjile | C113: Bere | D113: 172141 | E113: =IF(INTRO!$E$48="","",ROUND($D113*INTRO!$E$48,0)) -> 26682 | F113: =IF(INTRO!$E$49="","",ROUND($D113*INTRO!$E$49,0)) -> 52847 | G113: =IF(INTRO!$E$50="","",ROUND($D113*INTRO!$E$50,0)) -> 85038 | H113: 1 | I113: 1 | J113: 1 | K113: 3 | M113: =IF(INTRO!$E$37="Endémique",IF($H113>0,IF($H113=4,"Inconnu",IF($H113=99,"Interrompu",$D113)),0),"Non requis") -> 172141 | N113: =IF(INTRO!$E$39="Endémique", IF($I113>0, IF($I113=4,"Inconnu",IF($I113=99,"Interrompu",$D113)), 0),"Non requis") -> 172141 | O113: =IF(INTRO!$E$41="Endémique", IF(AND($J113>1,$J113<5), IF($J113=4, "Inconnu", E113+F113), 0),"Non requis") -> 0 | P113: =IF(INTRO!$E$43="Endémique", IF(AND($K113>0,$K113<5), IF($K113=4,"Inconnu", IF($K113=1, $F113*0.33, IF($K113=2, $F113*0.5+$G113*0.2, SUM(F113:G113)))), 0),"Non requis") -> 137885 | Q113: 1 | R113: 1 | S113: 0 | T113: 0 | Y113: 10734 | Z113: Bere | AE113: 1 | AF113: 1 | AG113: 2
A114: =IF(INTRO!$E$33<>0,INTRO!$E$33, " ") -> Chad | B114: Tandjile | C114: Dafra | D114: 91772 | E114: =IF(INTRO!$E$48="","",ROUND($D114*INTRO!$E$48,0)) -> 14225 | F114: =IF(INTRO!$E$49="","",ROUND($D114*INTRO!$E$49,0)) -> 28174 | G114: =IF(INTRO!$E$50="","",ROUND($D114*INTRO!$E$50,0)) -> 45335 | H114: 1 | I114: 1 | J114: 1 | K114: 2 | M114: =IF(INTRO!$E$37="Endémique",IF($H114>0,IF($H114=4,"Inconnu",IF($H114=99,"Interrompu",$D114)),0),"Non requis") -> 91772 | N114: =IF(INTRO!$E$39="Endémique", IF($I114>0, IF($I114=4,"Inconnu",IF($I114=99,"Interrompu",$D114)), 0),"Non requis") -> 91772 | O114: =IF(INTRO!$E$41="Endémique", IF(AND($J114>1,$J114<5), IF($J114=4, "Inconnu", E114+F114), 0),"Non requis") -> 0 | P114: =IF(INTRO!$E$43="Endémique", IF(AND($K114>0,$K114<5), IF($K114=4,"Inconnu", IF($K114=1, $F114*0.33, IF($K114=2, $F114*0.5+$G114*0.2, SUM(F114:G114)))), 0),"Non requis") -> 23154 | Q114: 1 | R114: 1 | S114: 0 | T114: 1 | Y114: 10759 | Z114: Dafra | AE114: 1 | AF114: 0 | AG114: 1
A115: =IF(INTRO!$E$33<>0,INTRO!$E$33, " ") -> Chad | B115: Tandjile | C115: Donamanga | D115: 124944 | E115: =IF(INTRO!$E$48="","",ROUND($D115*INTRO!$E$48,0)) -> 19366 | F115: =IF(INTRO!$E$49="","",ROUND($D115*INTRO!$E$49,0)) -> 38358 | G115: =IF(INTRO!$E$50="","",ROUND($D115*INTRO!$E$50,0)) -> 61722 | H115: 1 | I115: 0 | J115: 1 | K115: 2 | M115: =IF(INTRO!$E$37="Endémique",IF($H115>0,IF($H115=4,"Inconnu",IF($H115=99,"Interrompu",$D115)),0),"Non requis") -> 124944 | N115: =IF(INTRO!$E$39="Endémique", IF($I115>0, IF($I115=4,"Inconnu",IF($I115=99,"Interrompu",$D115)), 0),"Non requis") -> 0 | O115: =IF(INTRO!$E$41="Endémique", IF(AND($J115>1,$J115<5), IF($J115=4, "Inconnu", E115+F115), 0),"Non requis") -> 0 | P115: =IF(INTRO!$E$43="Endémique", IF(AND($K115>0,$K115<5), IF($K115=4,"Inconnu", IF($K115=1, $F115*0.33, IF($K115=2, $F115*0.5+$G115*0.2, SUM(F115:G115)))), 0),"Non requis") -> 31523.4 | Q115: 1 | R115: 0 | S115: 0 | T115: 1 | Y115: 10735 | Z115: Donamanga | AE115: 1 | AF115: 0 | AG115: 1
A116: =IF(INTRO!$E$33<>0,INTRO!$E$33, " ") -> Chad | B116: Tandjile | C116: Guidari | D116: 41334 | E116: =IF(INTRO!$E$48="","",ROUND($D116*INTRO!$E$48,0)) -> 6407 | F116: =IF(INTRO!$E$49="","",ROUND($D116*INTRO!$E$49,0)) -> 12690 | G116: =IF(INTRO!$E$50="","",ROUND($D116*INTRO!$E$50,0)) -> 20419 | H116: 1 | I116: 0 | J116: 1 | K116: 2 | M116: =IF(INTRO!$E$37="Endémique",IF($H116>0,IF($H116=4,"Inconnu",IF($H116=99,"Interrompu",$D116)),0),"Non requis") -> 41334 | N116: =IF(INTRO!$E$39="Endémique", IF($I116>0, IF($I116=4,"Inconnu",IF($I116=99,"Interrompu",$D116)), 0),"Non requis") -> 0 | O116: =IF(INTRO!$E$41="Endémique", IF(AND($J116>1,$J116<5), IF($J116=4, "Inconnu", E116+F116), 0),"Non requis") -> 0 | P116: =IF(INTRO!$E$43="Endémique", IF(AND($K116>0,$K116<5), IF($K116=4,"Inconnu", IF($K116=1, $F116*0.33, IF($K116=2, $F116*0.5+$G116*0.2, SUM(F116:G116)))), 0),"Non requis") -> 10428.8 | Q116: 1 | R116: 0 | S116: 0 | T116: 1 | Y116: 10776 | Z116: Guidari | AE116: 1 | AF116: 0 | AG116: 1
A117: =IF(INTRO!$E$33<>0,INTRO!$E$33, " ") -> Chad | B117: Tandjile | C117: Kelo | D117: 226470 | E117: =IF(INTRO!$E$48="","",ROUND($D117*INTRO!$E$48,0)) -> 35103 | F117: =IF(INTRO!$E$49="","",ROUND($D117*INTRO!$E$49,0)) -> 69526 | G117: =IF(INTRO!$E$50="","",ROUND($D117*INTRO!$E$50,0)) -> 111876 | H117: 1 | I117: 1 | J117: 1 | K117: 2 | M117: =IF(INTRO!$E$37="Endémique",IF($H117>0,IF($H117=4,"Inconnu",IF($H117=99,"Interrompu",$D117)),0),"Non requis") -> 226470 | N117: =IF(INTRO!$E$39="Endémique", IF($I117>0, IF($I117=4,"Inconnu",IF($I117=99,"Interrompu",$D117)), 0),"Non requis") -> 226470 | O117: =IF(INTRO!$E$41="Endémique", IF(AND($J117>1,$J117<5), IF($J117=4, "Inconnu", E117+F117), 0),"Non requis") -> 0 | P117: =IF(INTRO!$E$43="Endémique", IF(AND($K117>0,$K117<5), IF($K117=4,"Inconnu", IF($K117=1, $F117*0.33, IF($K117=2, $F117*0.5+$G117*0.2, SUM(F117:G117)))), 0),"Non requis") -> 57138.2 | Q117: 1 | R117: 1 | S117: 0 | T117: 1 | Y117: 10736 | Z117: Kelo | AE117: 1 | AF117: 0 | AG117: 1
A118: =IF(INTRO!$E$33<>0,INTRO!$E$33, " ") -> Chad | B118: Tandjile | C118: Kolon | D118: 81705 | E118: =IF(INTRO!$E$48="","",ROUND($D118*INTRO!$E$48,0)) -> 12664 | F118: =IF(INTRO!$E$49="","",ROUND($D118*INTRO!$E$49,0)) -> 25083 | G118: =IF(INTRO!$E$50="","",ROUND($D118*INTRO!$E$50,0)) -> 40362 | H118: 1 | I118: 1 | J118: 1 | K118: 3 | M118: =IF(INTRO!$E$37="Endémique",IF($H118>0,IF($H118=4,"Inconnu",IF($H118=99,"Interrompu",$D118)),0),"Non requis") -> 81705 | N118: =IF(INTRO!$E$39="Endémique", IF($I118>0, IF($I118=4,"Inconnu",IF($I118=99,"Interrompu",$D118)), 0),"Non requis") -> 81705 | O118: =IF(INTRO!$E$41="Endémique", IF(AND($J118>1,$J118<5), IF($J118=4, "Inconnu", E118+F118), 0),"Non requis") -> 0 | P118: =IF(INTRO!$E$43="Endémique", IF(AND($K118>0,$K118<5), IF($K118=4,"Inconnu", IF($K118=1, $F118*0.33, IF($K118=2, $F118*0.5+$G118*0.2, SUM(F118:G118)))), 0),"Non requis") -> 65445 | Q118: 1 | R118: 1 | S118: 0 | T118: 0 | Y118: 10777 | Z118: Kolon | AE118: 1 | AF118: 1 | AG118: 2
A119: =IF(INTRO!$E$33<>0,INTRO!$E$33, " ") -> Chad | B119: Tandjile | C119: Lai | D119: 190345 | E119: =IF(INTRO!$E$48="","",ROUND($D119*INTRO!$E$48,0)) -> 29503 | F119: =IF(INTRO!$E$49="","",ROUND($D119*INTRO!$E$49,0)) -> 58436 | G119: =IF(INTRO!$E$50="","",ROUND($D119*INTRO!$E$50,0)) -> 94030 | H119: 1 | I119: 0 | J119: 1 | K119: 2 | M119: =IF(INTRO!$E$37="Endémique",IF($H119>0,IF($H119=4,"Inconnu",IF($H119=99,"Interrompu",$D119)),0),"Non requis") -> 190345 | N119: =IF(INTRO!$E$39="Endémique", IF($I119>0, IF($I119=4,"Inconnu",IF($I119=99,"Interrompu",$D119)), 0),"Non requis") -> 0 | O119: =IF(INTRO!$E$41="Endémique", IF(AND($J119>1,$J119<5), IF($J119=4, "Inconnu", E119+F119), 0),"Non requis") -> 0 | P119: =IF(INTRO!$E$43="Endémique", IF(AND($K119>0,$K119<5), IF($K119=4,"Inconnu", IF($K119=1, $F119*0.33, IF($K119=2, $F119*0.5+$G119*0.2, SUM(F119:G119)))), 0),"Non requis") -> 48024 | Q119: 1 | R119: 0 | S119: 0 | T119: 1 | Y119: 10737 | Z119: Lai | AE119: 1 | AF119: 0 | AG119: 1
A120: =IF(INTRO!$E$33<>0,INTRO!$E$33, " ") -> Chad | B120: Tibesti | C120: Bardaï | D120: 21738 | E120: =IF(INTRO!$E$48="","",ROUND($D120*INTRO!$E$48,0)) -> 3369 | F120: =IF(INTRO!$E$49="","",ROUND($D120*INTRO!$E$49,0)) -> 6674 | G120: =IF(INTRO!$E$50="","",ROUND($D120*INTRO!$E$50,0)) -> 10739 | H120: 0 | I120: 0 | J120: 0 | K120: 0 | M120: =IF(INTRO!$E$37="Endémique",IF($H120>0,IF($H120=4,"Inconnu",IF($H120=99,"Interrompu",$D120)),0),"Non requis") -> 0 | N120: =IF(INTRO!$E$39="Endémique", IF($I120>0, IF($I120=4,"Inconnu",IF($I120=99,"Interrompu",$D120)), 0),"Non requis") -> 0 | O120: =IF(INTRO!$E$41="Endémique", IF(AND($J120>1,$J120<5), IF($J120=4, "Inconnu", E120+F120), 0),"Non requis") -> 0 | P120: =IF(INTRO!$E$43="Endémique", IF(AND($K120>0,$K120<5), IF($K120=4,"Inconnu", IF($K120=1, $F120*0.33, IF($K120=2, $F120*0.5+$G120*0.2, SUM(F120:G120)))), 0),"Non requis") -> 0 | Q120: 0 | R120: 0 | S120: 0 | T120: 0 | Y120: 10738 | Z120: Bardaï | AE120: 0 | AF120: 0 | AG120: 0
A121: =IF(INTRO!$E$33<>0,INTRO!$E$33, " ") -> Chad | B121: Tibesti | C121: Zouar | D121: 16765 | E121: =IF(INTRO!$E$48="","",ROUND($D121*INTRO!$E$48,0)) -> 2599 | F121: =IF(INTRO!$E$49="","",ROUND($D121*INTRO!$E$49,0)) -> 5147 | G121: =IF(INTRO!$E$50="","",ROUND($D121*INTRO!$E$50,0)) -> 8282 | H121: 0 | I121: 0 | J121: 0 | K121: 0 | M121: =IF(INTRO!$E$37="Endémique",IF($H121>0,IF($H121=4,"Inconnu",IF($H121=99,"Interrompu",$D121)),0),"Non requis") -> 0 | N121: =IF(INTRO!$E$39="Endémique", IF($I121>0, IF($I121=4,"Inconnu",IF($I121=99,"Interrompu",$D121)), 0),"Non requis") -> 0 | O121: =IF(INTRO!$E$41="Endémique", IF(AND($J121>1,$J121<5), IF($J121=4, "Inconnu", E121+F121), 0),"Non requis") -> 0 | P121: =IF(INTRO!$E$43="Endémique", IF(AND($K121>0,$K121<5), IF($K121=4,"Inconnu", IF($K121=1, $F121*0.33, IF($K121=2, $F121*0.5+$G121*0.2, SUM(F121:G121)))), 0),"Non requis") -> 0 | Q121: 0 | R121: 0 | S121: 0 | T121: 0 | Y121: 10760 | Z121: Zouar | AE121: 0 | AF121: 0 | AG121: 0
A122: =IF(INTRO!$E$33<>0,INTRO!$E$33, " ") -> Chad | B122: Wadi Fira | C122: amzoer | D122: 57616 | E122: =IF(INTRO!$E$48="","",ROUND($D122*INTRO!$E$48,0)) -> 8930 | F122: =IF(INTRO!$E$49="","",ROUND($D122*INTRO!$E$49,0)) -> 17688 | G122: =IF(INTRO!$E$50="","",ROUND($D122*INTRO!$E$50,0)) -> 28462 | H122: 0 | I122: 0 | J122: 1 | K122: 1 | M122: =IF(INTRO!$E$37="Endémique",IF($H122>0,IF($H122=4,"Inconnu",IF($H122=99,"Interrompu",$D122)),0),"Non requis") -> 0 | N122: =IF(INTRO!$E$39="Endémique", IF($I122>0, IF($I122=4,"Inconnu",IF($I122=99,"Interrompu",$D122)), 0),"Non requis") -> 0 | O122: =IF(INTRO!$E$41="Endémique", IF(AND($J122>1,$J122<5), IF($J122=4, "Inconnu", E122+F122), 0),"Non requis") -> 0 | P122: =IF(INTRO!$E$43="Endémique", IF(AND($K122>0,$K122<5), IF($K122=4,"Inconnu", IF($K122=1, $F122*0.33, IF($K122=2, $F122*0.5+$G122*0.2, SUM(F122:G122)))), 0),"Non requis") -> 5837.04 | Q122: 0 | R122: 0 | S122: 0 | T122: 1 | Y122: 10778 | Z122: amzoer | AE122: 0 | AF122: 1 | AG122: 1
A123: =IF(INTRO!$E$33<>0,INTRO!$E$33, " ") -> Chad | B123: Wadi Fira | C123: Arada | D123: 40811 | E123: =IF(INTRO!$E$48="","",ROUND($D123*INTRO!$E$48,0)) -> 6326 | F123: =IF(INTRO!$E$49="","",ROUND($D123*INTRO!$E$49,0)) -> 12529 | G123: =IF(INTRO!$E$50="","",ROUND($D123*INTRO!$E$50,0)) -> 20161 | H123: 0 | I123: 0 | J123: 1 | K123: 1 | M123: =IF(INTRO!$E$37="Endémique",IF($H123>0,IF($H123=4,"Inconnu",IF($H123=99,"Interrompu",$D123)),0),"Non requis") -> 0 | N123: =IF(INTRO!$E$39="Endémique", IF($I123>0, IF($I123=4,"Inconnu",IF($I123=99,"Interrompu",$D123)), 0),"Non requis") -> 0 | O123: =IF(INTRO!$E$41="Endémique", IF(AND($J123>1,$J123<5), IF($J123=4, "Inconnu", E123+F123), 0),"Non requis") -> 0 | P123: =IF(INTRO!$E$43="Endémique", IF(AND($K123>0,$K123<5), IF($K123=4,"Inconnu", IF($K123=1, $F123*0.33, IF($K123=2, $F123*0.5+$G123*0.2, SUM(F123:G123)))), 0),"Non requis") -> 4134.57 | Q123: 0 | R123: 0 | S123: 0 | T123: 1 | Y123: 10779 | Z123: Arada | AE123: 0 | AF123: 1 | AG123: 1
A124: =IF(INTRO!$E$33<>0,INTRO!$E$33, " ") -> Chad | B124: Wadi Fira | C124: Biltine | D124: 141639 | E124: =IF(INTRO!$E$48="","",ROUND($D124*INTRO!$E$48,0)) -> 21954 | F124: =IF(INTRO!$E$49="","",ROUND($D124*INTRO!$E$49,0)) -> 43483 | G124: =IF(INTRO!$E$50="","",ROUND($D124*INTRO!$E$50,0)) -> 69970 | H124: 0 | I124: 0 | J124: 1 | K124: 1 | M124: =IF(INTRO!$E$37="Endémique",IF($H124>0,IF($H124=4,"Inconnu",IF($H124=99,"Interrompu",$D124)),0),"Non requis") -> 0 | N124: =IF(INTRO!$E$39="Endémique", IF($I124>0, IF($I124=4,"Inconnu",IF($I124=99,"Interrompu",$D124)), 0),"Non requis") -> 0 | O124: =IF(INTRO!$E$41="Endémique", IF(AND($J124>1,$J124<5), IF($J124=4, "Inconnu", E124+F124), 0),"Non requis") -> 0 | P124: =IF(INTRO!$E$43="Endémique", IF(AND($K124>0,$K124<5), IF($K124=4,"Inconnu", IF($K124=1, $F124*0.33, IF($K124=2, $F124*0.5+$G124*0.2, SUM(F124:G124)))), 0),"Non requis") -> 14349.39 | Q124: 0 | R124: 0 | S124: 0 | T124: 1 | Y124: 10740 | Z124: Biltine | AE124: 0 | AF124: 1 | AG124: 1
A125: =IF(INTRO!$E$33<>0,INTRO!$E$33, " ") -> Chad | B125: Wadi Fira | C125: Guéréda | D125: 105439 | E125: =IF(INTRO!$E$48="","",ROUND($D125*INTRO!$E$48,0)) -> 16343 | F125: =IF(INTRO!$E$49="","",ROUND($D125*INTRO!$E$49,0)) -> 32370 | G125: =IF(INTRO!$E$50="","",ROUND($D125*INTRO!$E$50,0)) -> 52087 | H125: 0 | I125: 0 | J125: 1 | K125: 1 | M125: =IF(INTRO!$E$37="Endémique",IF($H125>0,IF($H125=4,"Inconnu",IF($H125=99,"Interrompu",$D125)),0),"Non requis") -> 0 | N125: =IF(INTRO!$E$39="Endémique", IF($I125>0, IF($I125=4,"Inconnu",IF($I125=99,"Interrompu",$D125)), 0),"Non requis") -> 0 | O125: =IF(INTRO!$E$41="Endémique", IF(AND($J125>1,$J125<5), IF($J125=4, "Inconnu", E125+F125), 0),"Non requis") -> 0 | P125: =IF(INTRO!$E$43="Endémique", IF(AND($K125>0,$K125<5), IF($K125=4,"Inconnu", IF($K125=1, $F125*0.33, IF($K125=2, $F125*0.5+$G125*0.2, SUM(F125:G125)))), 0),"Non requis") -> 10682.1 | Q125: 0 | R125: 0 | S125: 0 | T125: 1 | Y125: 10741 | Z125: Guéréda | AE125: 0 | AF125: 1 | AG125: 1
A126: =IF(INTRO!$E$33<>0,INTRO!$E$33, " ") -> Chad | B126: Wadi Fira | C126: Iriba | D126: 93392 | E126: =IF(INTRO!$E$48="","",ROUND($D126*INTRO!$E$48,0)) -> 14476 | F126: =IF(INTRO!$E$49="","",ROUND($D126*INTRO!$E$49,0)) -> 28671 | G126: =IF(INTRO!$E$50="","",ROUND($D126*INTRO!$E$50,0)) -> 46136 | H126: 0 | I126: 0 | J126: 1 | K126: 0 | M126: =IF(INTRO!$E$37="Endémique",IF($H126>0,IF($H126=4,"Inconnu",IF($H126=99,"Interrompu",$D126)),0),"Non requis") -> 0 | N126: =IF(INTRO!$E$39="Endémique", IF($I126>0, IF($I126=4,"Inconnu",IF($I126=99,"Interrompu",$D126)), 0),"Non requis") -> 0 | O126: =IF(INTRO!$E$41="Endémique", IF(AND($J126>1,$J126<5), IF($J126=4, "Inconnu", E126+F126), 0),"Non requis") -> 0 | P126: =IF(INTRO!$E$43="Endémique", IF(AND($K126>0,$K126<5), IF($K126=4,"Inconnu", IF($K126=1, $F126*0.33, IF($K126=2, $F126*0.5+$G126*0.2, SUM(F126:G126)))), 0),"Non requis") -> 0 | Q126: 0 | R126: 0 | S126: 0 | T126: 0 | Y126: 10742 | Z126: Iriba | AE126: 0 | AF126: 0 | AG126: 0
A127: =IF(INTRO!$E$33<>0,INTRO!$E$33, " ") -> Chad | B127: Wadi Fira | C127: Matadjana | D127: 30570 | E127: =IF(INTRO!$E$48="","",ROUND($D127*INTRO!$E$48,0)) -> 4738 | F127: =IF(INTRO!$E$49="","",ROUND($D127*INTRO!$E$49,0)) -> 9385 | G127: =IF(INTRO!$E$50="","",ROUND($D127*INTRO!$E$50,0)) -> 15102 | H127: 0 | I127: 0 | J127: 1 | K127: 1 | M127: =IF(INTRO!$E$37="Endémique",IF($H127>0,IF($H127=4,"Inconnu",IF($H127=99,"Interrompu",$D127)),0),"Non requis") -> 0 | N127: =IF(INTRO!$E$39="Endémique", IF($I127>0, IF($I127=4,"Inconnu",IF($I127=99,"Interrompu",$D127)), 0),"Non requis") -> 0 | O127: =IF(INTRO!$E$41="Endémique", IF(AND($J127>1,$J127<5), IF($J127=4, "Inconnu", E127+F127), 0),"Non requis") -> 0 | P127: =IF(INTRO!$E$43="Endémique", IF(AND($K127>0,$K127<5), IF($K127=4,"Inconnu", IF($K127=1, $F127*0.33, IF($K127=2, $F127*0.5+$G127*0.2, SUM(F127:G127)))), 0),"Non requis") -> 3097.05 | Q127: 0 | R127: 0 | S127: 0 | T127: 1 | Y127: 10743 | Z127: Matadjana | AE127: 0 | AF127: 1 | AG127: 1
A128: =IF(INTRO!$E$33<>0,INTRO!$E$33, " ") -> Chad | E128: =IF(INTRO!$E$48="","",ROUND($D128*INTRO!$E$48,0)) -> 0 | F128: =IF(INTRO!$E$49="","",ROUND($D128*INTRO!$E$49,0)) -> 0 | G128: =IF(INTRO!$E$50="","",ROUND($D128*INTRO!$E$50,0)) -> 0 | M128: =IF(INTRO!$E$37="Endémique",IF($H128>0,IF($H128=4,"Inconnu",IF($H128=99,"Interrompu",$D128)),0),"Non requis") -> 0 | N128: =IF(INTRO!$E$39="Endémique", IF($I128>0, IF($I128=4,"Inconnu",IF($I128=99,"Interrompu",$D128)), 0),"Non requis") -> 0 | O128: =IF(INTRO!$E$41="Endémique", IF(AND($J128>1,$J128<5), IF($J128=4, "Inconnu", E128+F128), 0),"Non requis") -> 0 | P128: =IF(INTRO!$E$43="Endémique", IF(AND($K128>0,$K128<5), IF($K128=4,"Inconnu", IF($K128=1, $F128*0.33, IF($K128=2, $F128*0.5+$G128*0.2, SUM(F128:G128)))), 0),"Non requis") -> 0

Sheet ALB_MBD
A1: Albendazole (ALB) et Mebendazole (MBD)
A2: Structure administrative, population ciblée par groupe d'âge, plan de traitement et information sur les comprimés
A4: TOTAL | D4: =SUM(D$9:D$1000) -> 2214176 | E4: =SUM(E$9:E$1000) -> 4385494 | F4: =SUM(F$9:F$1000) -> 6599670 | I4: =SUM(I$9:I$1000) -> 3799448 | J4: =SUM(J$9:J$1000) -> 0 | M4: =SUM(M$9:M$1000) -> 12594 | N4: =SUM(N$9:N$1000) -> 0 | O4: =SUM(O$9:O$1000) -> 0 | P4: =SUM(P$9:P$1000) -> 12594 | Q4: =SUM(Q$9:Q$1000) -> 158053 | R4: =SUM(R$9:R$1000) -> 207806 | S4: 0 | T4: 365859 | U4: 0 | V4: 3799448 | W4: 19014 | X4: 0 | Y4: 0 | Z4: 0 | AA4: 0 | AB4: 207806 | AC4: 1388
A6: Structure administrative du pays | D6: Population nécessitant un traitement avec ALB/MBD | G6: Plan de traitement | I6: Population couverte par le PEFL avec ALB | J6: Endémique à la Loase | L6: Médicament choisi pour le traitement des STH | M6: Population cible | U6: Albendazole (ALB) | AA6: Mebendazole (MBD)
A7: Pays | B7: Région/Département | C7: District | D7: EAPréS | E7: EAS | F7: Total | G7: FL | H7: STH | J7: Population | K7: Tours planifiés | M7: STH (ALB) | Q7: STH (MBD) | U7: Reste en stock (FL) | V7: Comprimés devant être fournis (FL) | W7: Flacons (400mg) 200 comprimés (FL) | X7: Reste en stock (STH) | Y7: Comprimés devant être fournis pour EAS (STH) | Z7: Flacons (400mg) 200 comprimés (STH) | AA7: Reste en stock | AB7: Comprimés devant être fournis pour EAS | AC7: Flacons (500mg) 150 comprimés
M8: EAPréS | N8: EAS | O8: Autres | P8: Total | Q8: EAPréS | R8: EAS | S8: Autres | T8: Total
A9: =IF(AND(INTRO!$E$37="Non endémique",INTRO!$E$41="Non endémique")," ",IF(COUNTRY_INFO!A9=0," ",COUNTRY_INFO!A9)) -> Chad | B9: =IF(AND(INTRO!$E$37="Non endémique",INTRO!$E$41="Non endémique")," ",IF(COUNTRY_INFO!B9=0," ",COUNTRY_INFO!B9)) -> Bahr El Gazel | C9: =IF(AND(INTRO!$E$37="Non endémique",INTRO!$E$41="Non endémique")," ",IF(COUNTRY_INFO!C9=0," ",COUNTRY_INFO!C9)) -> Chadra | D9: =IF(AND(INTRO!$E$37="Non endémique",INTRO!$E$41="Non endémique"),0,IF(AND(OR(COUNTRY_INFO!$H9=0,COUNTRY_INFO!$H9=4,COUNTRY_INFO!$H9=99),OR(COUNTRY_INFO!$J9=0,COUNTRY_INFO!$J9=4)),0,COUNTRY_INFO!$E9)) -> 15063 | E9: =IF(AND(INTRO!$E$37="Non endémique",INTRO!$E$41="Non endémique"),0,IF(AND(OR(COUNTRY_INFO!$H9=0,COUNTRY_INFO!$H9=4,COUNTRY_INFO!$H9=99),OR(COUNTRY_INFO!$J9=0,COUNTRY_INFO!$J9=4)),0,COUNTRY_INFO!$F9)) -> 29834 | F9: =SUM(D9:E9) -> 44897 | G9: =IF(AND(INTRO!$E$37="Non endémique",INTRO!$E$41="Non endémique"),0,COUNTRY_INFO!Q9) -> 0 | H9: =IF(AND(INTRO!$E$37="Non endémique",INTRO!$E$41="Non endémique"),0,COUNTRY_INFO!S9) -> 1 | I9: =IF($G9=1,IVM!$G9,0) -> 0 | J9: =IF($G9=0, " ", IF(COUNTRY_INFO!$H9=1, IF(COUNTRY_INFO!$L9=1, 0," ")," ")) ->  | L9: MBD | M9: =IF($L9="ALB", IF(INTRO!$E$39="Non endémique",IF($H9<>0,$D9*($H9-$G9),0),$D9*$H9), 0) -> 0 | N9: =IF($L9="ALB", IF($H9=0, 0, IF(AND($I9=0, OR($J9=0,$J9=" ")), $E9*$H9, IF(AND($I9=0, $J9>0), IF(($H9-$K9)<=0, 0, $E9*(MAX($H9,$K9)-MIN($H9,$K9))), IF(AND($I9>0, $J9=0), $E9*($H9-$G9), IF($J9=" ", 0, $J9*$E9/($I9+$J9)*$K9+$I9*$E9/($I9+$J9)*($H9-$G9)))))), 0) -> 0 | P9: =SUM(M9:O9) -> 0 | Q9: =IF($L9="MBD", IF(INTRO!$E$39="Non endémique",IF($H9<>0,$D9*($H9-$G9),0),$D9*$H9),0) -> 15063 | R9: =IF($L9="MBD", IF($H9=0, 0, IF(AND($I9=0, OR($J9=0,$J9=" ")), $E9*$H9, IF(AND($I9=0, $J9>0), IF(($H9-$K9)<=0, 0, $E9*(MAX($H9,$K9)-MIN($H9,$K9))), IF(AND($I9>0, $J9=0), $E9*($H9-$G9), IF($J9=" ", 0, $J9*$E9/($I9+$J9)*$K9+$I9*$E9/($I9+$J9)*($H9-$G9)))))), 0) -> 29834 | T9: =SUM(Q9:S9) -> 44897 | V9: =IF($J9<>" ", IF(($I9+$J9*$K9)>$U9, ($I9+$J9*$K9)-$U9,0), IF($I9>$U9, $I9-$U9, 0)) -> 0 | W9: =IF($J9<>" ", ROUNDUP(($I9+$J9*$K9)/200,0), ROUNDUP($I9/200,0)) -> 0 | Y9: =IF($N9>$X9,$N9-$X9,0) -> 0 | Z9: =ROUNDUP($N9/200,0) -> 0 | AB9: =IF($R9>$AA9,$R9-$AA9,0) -> 29834 | AC9: =ROUNDUP($R9/150,0) -> 199
A10: =IF(AND(INTRO!$E$37="Non endémique",INTRO!$E$41="Non endémique")," ",IF(COUNTRY_INFO!A10=0," ",COUNTRY_INFO!A10)) -> Chad | B10: =IF(AND(INTRO!$E$37="Non endémique",INTRO!$E$41="Non endémique")," ",IF(COUNTRY_INFO!B10=0," ",COUNTRY_INFO!B10)) -> Bahr El Gazel | C10: =IF(AND(INTRO!$E$37="Non endémique",INTRO!$E$41="Non endémique")," ",IF(COUNTRY_INFO!C10=0," ",COUNTRY_INFO!C10)) -> Michemire | D10: =IF(AND(INTRO!$E$37="Non endémique",INTRO!$E$41="Non endémique"),0,IF(AND(OR(COUNTRY_INFO!$H10=0,COUNTRY_INFO!$H10=4,COUNTRY_INFO!$H10=99),OR(COUNTRY_INFO!$J10=0,COUNTRY_INFO!$J10=4)),0,COUNTRY_INFO!$E10)) -> 7230 | E10: =IF(AND(INTRO!$E$37="Non endémique",INTRO!$E$41="Non endémique"),0,IF(AND(OR(COUNTRY_INFO!$H10=0,COUNTRY_INFO!$H10=4,COUNTRY_INFO!$H10=99),OR(COUNTRY_INFO!$J10=0,COUNTRY_INFO!$J10=4)),0,COUNTRY_INFO!$F10)) -> 14321 | F10: 21551 | G10: =IF(AND(INTRO!$E$37="Non endémique",INTRO!$E$41="Non endémique"),0,COUNTRY_INFO!Q10) -> 0 | H10: =IF(AND(INTRO!$E$37="Non endémique",INTRO!$E$41="Non endémique"),0,COUNTRY_INFO!S10) -> 0 | I10: =IF($G10=1,IVM!$G10,0) -> 0 | J10: =IF($G10=0, " ", IF(COUNTRY_INFO!$H10=1, IF(COUNTRY_INFO!$L10=1, 0," ")," ")) ->  | M10: =IF($L10="ALB", IF(INTRO!$E$39="Non endémique",IF($H10<>0,$D10*($H10-$G10),0),$D10*$H10), 0) -> 0 | N10: 0 | P10: 0 | Q10: =IF($L10="MBD", IF(INTRO!$E$39="Non endémique",IF($H10<>0,$D10*($H10-$G10),0),$D10*$H10),0) -> 0 | R10: 0 | T10: 0 | V10: 0 | W10: 0 | Y10: 0 | Z10: 0 | AB10: 0 | AC10: 0
A11: =IF(AND(INTRO!$E$37="Non endémique",INTRO!$E$41="Non endémique")," ",IF(COUNTRY_INFO!A11=0," ",COUNTRY_INFO!A11)) -> Chad | B11: =IF(AND(INTRO!$E$37="Non endémique",INTRO!$E$41="Non endémique")," ",IF(COUNTRY_INFO!B11=0," ",COUNTRY_INFO!B11)) -> Bahr El Gazel | C11: =IF(AND(INTRO!$E$37="Non endémique",INTRO!$E$41="Non endémique")," ",IF(COUNTRY_INFO!C11=0," ",COUNTRY_INFO!C11)) -> Moussoro | D11: =IF(AND(INTRO!$E$37="Non endémique",INTRO!$E$41="Non endémique"),0,IF(AND(OR(COUNTRY_INFO!$H11=0,COUNTRY_INFO!$H11=4,COUNTRY_INFO!$H11=99),OR(COUNTRY_INFO!$J11=0,COUNTRY_INFO!$J11=4)),0,COUNTRY_INFO!$E11)) -> 30126 | E11: =IF(AND(INTRO!$E$37="Non endémique",INTRO!$E$41="Non endémique"),0,IF(AND(OR(COUNTRY_INFO!$H11=0,COUNTRY_INFO!$H11=4,COUNTRY_INFO!$H11=99),OR(COUNTRY_INFO!$J11=0,COUNTRY_INFO!$J11=4)),0,COUNTRY_INFO!$F11)) -> 59668 | F11: 89794 | G11: =IF(AND(INTRO!$E$37="Non endémique",INTRO!$E$41="Non endémique"),0,COUNTRY_INFO!Q11) -> 0 | H11: =IF(AND(INTRO!$E$37="Non endémique",INTRO!$E$41="Non endémique"),0,COUNTRY_INFO!S11) -> 0 | I11: =IF($G11=1,IVM!$G11,0) -> 0 | J11: =IF($G11=0, " ", IF(COUNTRY_INFO!$H11=1, IF(COUNTRY_INFO!$L11=1, 0," ")," ")) ->  | M11: =IF($L11="ALB", IF(INTRO!$E$39="Non endémique",IF($H11<>0,$D11*($H11-$G11),0),$D11*$H11), 0) -> 0 | N11: 0 | P11: 0 | Q11: =IF($L11="MBD", IF(INTRO!$E$39="Non endémique",IF($H11<>0,$D11*($H11-$G11),0),$D11*$H11),0) -> 0 | R11: 0 | T11: 0 | V11: 0 | W11: 0 | Y11: 0 | Z11: 0 | AB11: 0 | AC11: 0
A12: =IF(AND(INTRO!$E$37="Non endémique",INTRO!$E$41="Non endémique")," ",IF(COUNTRY_INFO!A12=0," ",COUNTRY_INFO!A12)) -> Chad | B12: =IF(AND(INTRO!$E$37="Non endémique",INTRO!$E$41="Non endémique")," ",IF(COUNTRY_INFO!B12=0," ",COUNTRY_INFO!B12)) -> Bahr El Gazel | C12: =IF(AND(INTRO!$E$37="Non endémique",INTRO!$E$41="Non endémique")," ",IF(COUNTRY_INFO!C12=0," ",COUNTRY_INFO!C12)) -> Salal | D12: =IF(AND(INTRO!$E$37="Non endémique",INTRO!$E$41="Non endémique"),0,IF(AND(OR(COUNTRY_INFO!$H12=0,COUNTRY_INFO!$H12=4,COUNTRY_INFO!$H12=99),OR(COUNTRY_INFO!$J12=0,COUNTRY_INFO!$J12=4)),0,COUNTRY_INFO!$E12)) -> 7833 | E12: =IF(AND(INTRO!$E$37="Non endémique",INTRO!$E$41="Non endémique"),0,IF(AND(OR(COUNTRY_INFO!$H12=0,COUNTRY_INFO!$H12=4,COUNTRY_INFO!$H12=99),OR(COUNTRY_INFO!$J12=0,COUNTRY_INFO!$J12=4)),0,COUNTRY_INFO!$F12)) -> 15514 | F12: 23347 | G12: =IF(AND(INTRO!$E$37="Non endémique",INTRO!$E$41="Non endémique"),0,COUNTRY_INFO!Q12) -> 0 | H12: =IF(AND(INTRO!$E$37="Non endémique",INTRO!$E$41="Non endémique"),0,COUNTRY_INFO!S12) -> 0 | I12: =IF($G12=1,IVM!$G12,0) -> 0 | J12: =IF($G12=0, " ", IF(COUNTRY_INFO!$H12=1, IF(COUNTRY_INFO!$L12=1, 0," ")," ")) ->  | M12: =IF($L12="ALB", IF(INTRO!$E$39="Non endémique",IF($H12<>0,$D12*($H12-$G12),0),$D12*$H12), 0) -> 0 | N12: 0 | P12: 0 | Q12: =IF($L12="MBD", IF(INTRO!$E$39="Non endémique",IF($H12<>0,$D12*($H12-$G12),0),$D12*$H12),0) -> 0 | R12: 0 | T12: 0 | V12: 0 | W12: 0 | Y12: 0 | Z12: 0 | AB12: 0 | AC12: 0
A13: =IF(AND(INTRO!$E$37="Non endémique",INTRO!$E$41="Non endémique")," ",IF(COUNTRY_INFO!A13=0," ",COUNTRY_INFO!A13)) -> Chad | B13: =IF(AND(INTRO!$E$37="Non endémique",INTRO!$E$41="Non endémique")," ",IF(COUNTRY_INFO!B13=0," ",COUNTRY_INFO!B13)) -> Batha | C13: =IF(AND(INTRO!$E$37="Non endémique",INTRO!$E$41="Non endémique")," ",IF(COUNTRY_INFO!C13=0," ",COUNTRY_INFO!C13)) -> Alifa | D13: =IF(AND(INTRO!$E$37="Non endémique",INTRO!$E$41="Non endémique"),0,IF(AND(OR(COUNTRY_INFO!$H13=0,COUNTRY_INFO!$H13=4,COUNTRY_INFO!$H13=99),OR(COUNTRY_INFO!$J13=0,COUNTRY_INFO!$J13=4)),0,COUNTRY_INFO!$E13)) -> 0 | E13: =IF(AND(INTRO!$E$37="Non endémique",INTRO!$E$41="Non endémique"),0,IF(AND(OR(COUNTRY_INFO!$H13=0,COUNTRY_INFO!$H13=4,COUNTRY_INFO!$H13=99),OR(COUNTRY_INFO!$J13=0,COUNTRY_INFO!$J13=4)),0,COUNTRY_INFO!$F13)) -> 0 | F13: 0 | G13: =IF(AND(INTRO!$E$37="Non endémique",INTRO!$E$41="Non endémique"),0,COUNTRY_INFO!Q13) -> 0 | H13: =IF(AND(INTRO!$E$37="Non endémique",INTRO!$E$41="Non endémique"),0,COUNTRY_INFO!S13) -> 0 | I13: =IF($G13=1,IVM!$G13,0) -> 0 | J13: =IF($G13=0, " ", IF(COUNTRY_INFO!$H13=1, IF(COUNTRY_INFO!$L13=1, 0," ")," ")) ->  | M13: =IF($L13="ALB", IF(INTRO!$E$39="Non endémique",IF($H13<>0,$D13*($H13-$G13),0),$D13*$H13), 0) -> 0 | N13: 0 | P13: 0 | Q13: =IF($L13="MBD", IF(INTRO!$E$39="Non endémique",IF($H13<>0,$D13*($H13-$G13),0),$D13*$H13),0) -> 0 | R13: 0 | T13: 0 | V13: 0 | W13: 0 | Y13: 0 | Z13: 0 | AB13: 0 | AC13: 0
A14: =IF(AND(INTRO!$E$37="Non endémique",INTRO!$E$41="Non endémique")," ",IF(COUNTRY_INFO!A14=0," ",COUNTRY_INFO!A14)) -> Chad | B14: =IF(AND(INTRO!$E$37="Non endémique",INTRO!$E$41="Non endémique")," ",IF(COUNTRY_INFO!B14=0," ",COUNTRY_INFO!B14)) -> Batha | C14: =IF(AND(INTRO!$E$37="Non endémique",INTRO!$E$41="Non endémique")," ",IF(COUNTRY_INFO!C14=0," ",COUNTRY_INFO!C14)) -> Assinet | D14: =IF(AND(INTRO!$E$37="Non endémique",INTRO!$E$41="Non endémique"),0,IF(AND(OR(COUNTRY_INFO!$H14=0,COUNTRY_INFO!$H14=4,COUNTRY_INFO!$H14=99),OR(COUNTRY_INFO!$J14=0,COUNTRY_INFO!$J14=4)),0,COUNTRY_INFO!$E14)) -> 0 | E14: =IF(AND(INTRO!$E$37="Non endémique",INTRO!$E$41="Non endémique"),0,IF(AND(OR(COUNTRY_INFO!$H14=0,COUNTRY_INFO!$H14=4,COUNTRY_INFO!$H14=99),OR(COUNTRY_INFO!$J14=0,COUNTRY_INFO!$J14=4)),0,COUNTRY_INFO!$F14)) -> 0 | F14: 0 | G14: =IF(AND(INTRO!$E$37="Non endémique",INTRO!$E$41="Non endémique"),0,COUNTRY_INFO!Q14) -> 0 | H14: =IF(AND(INTRO!$E$37="Non endémique",INTRO!$E$41="Non endémique"),0,COUNTRY_INFO!S14) -> 0 | I14: =IF($G14=1,IVM!$G14,0) -> 0 | J14: =IF($G14=0, " ", IF(COUNTRY_INFO!$H14=1, IF(COUNTRY_INFO!$L14=1, 0," ")," ")) ->  | M14: =IF($L14="ALB", IF(INTRO!$E$39="Non endémique",IF($H14<>0,$D14*($H14-$G14),0),$D14*$H14), 0) -> 0 | N14: 0 | P14: 0 | Q14: =IF($L14="MBD", IF(INTRO!$E$39="Non endémique",IF($H14<>0,$D14*($H14-$G14),0),$D14*$H14),0) -> 0 | R14: 0 | T14: 0 | V14: 0 | W14: 0 | Y14: 0 | Z14: 0 | AB14: 0 | AC14: 0
A15: =IF(AND(INTRO!$E$37="Non endémique",INTRO!$E$41="Non endémique")," ",IF(COUNTRY_INFO!A15=0," ",COUNTRY_INFO!A15)) -> Chad | B15: =IF(AND(INTRO!$E$37="Non endémique",INTRO!$E$41="Non endémique")," ",IF(COUNTRY_INFO!B15=0," ",COUNTRY_INFO!B15)) -> Batha | C15: =IF(AND(INTRO!$E$37="Non endémique",INTRO!$E$41="Non endémique")," ",IF(COUNTRY_INFO!C15=0," ",COUNTRY_INFO!C15)) -> Ati | D15: =IF(AND(INTRO!$E$37="Non endémique",INTRO!$E$41="Non endémique"),0,IF(AND(OR(COUNTRY_INFO!$H15=0,COUNTRY_INFO!$H15=4,COUNTRY_INFO!$H15=99),OR(COUNTRY_INFO!$J15=0,COUNTRY_INFO!$J15=4)),0,COUNTRY_INFO!$E15)) -> 0 | E15: =IF(AND(INTRO!$E$37="Non endémique",INTRO!$E$41="Non endémique"),0,IF(AND(OR(COUNTRY_INFO!$H15=0,COUNTRY_INFO!$H15=4,COUNTRY_INFO!$H15=99),OR(COUNTRY_INFO!$J15=0,COUNTRY_INFO!$J15=4)),0,COUNTRY_INFO!$F15)) -> 0 | F15: 0 | G15: =IF(AND(INTRO!$E$37="Non endémique",INTRO!$E$41="Non endémique"),0,COUNTRY_INFO!Q15) -> 0 | H15: =IF(AND(INTRO!$E$37="Non endémique",INTRO!$E$41="Non endémique"),0,COUNTRY_INFO!S15) -> 0 | I15: =IF($G15=1,IVM!$G15,0) -> 0 | J15: =IF($G15=0, " ", IF(COUNTRY_INFO!$H15=1, IF(COUNTRY_INFO!$L15=1, 0," ")," ")) ->  | M15: =IF($L15="ALB", IF(INTRO!$E$39="Non endémique",IF($H15<>0,$D15*($H15-$G15),0),$D15*$H15), 0) -> 0 | N15: 0 | P15: 0 | Q15: =IF($L15="MBD", IF(INTRO!$E$39="Non endémique",IF($H15<>0,$D15*($H15-$G15),0),$D15*$H15),0) -> 0 | R15: 0 | T15: 0 | V15: 0 | W15: 0 | Y15: 0 | Z15: 0 | AB15: 0 | AC15: 0
A16: =IF(AND(INTRO!$E$37="Non endémique",INTRO!$E$41="Non endémique")," ",IF(COUNTRY_INFO!A16=0," ",COUNTRY_INFO!A16)) -> Chad | B16: =IF(AND(INTRO!$E$37="Non endémique",INTRO!$E$41="Non endémique")," ",IF(COUNTRY_INFO!B16=0," ",COUNTRY_INFO!B16)) -> Batha | C16: =IF(AND(INTRO!$E$37="Non endémique",INTRO!$E$41="Non endémique")," ",IF(COUNTRY_INFO!C16=0," ",COUNTRY_INFO!C16)) -> Djedda | D16: =IF(AND(INTRO!$E$37="Non endémique",INTRO!$E$41="Non endémique"),0,IF(AND(OR(COUNTRY_INFO!$H16=0,COUNTRY_INFO!$H16=4,COUNTRY_INFO!$H16=99),OR(COUNTRY_INFO!$J16=0,COUNTRY_INFO!$J16=4)),0,COUNTRY_INFO!$E16)) -> 0 | E16: =IF(AND(INTRO!$E$37="Non endémique",INTRO!$E$41="Non endémique"),0,IF(AND(OR(COUNTRY_INFO!$H16=0,COUNTRY_INFO!$H16=4,COUNTRY_INFO!$H16=99),OR(COUNTRY_INFO!$J16=0,COUNTRY_INFO!$J16=4)),0,COUNTRY_INFO!$F16)) -> 0 | F16: 0 | G16: =IF(AND(INTRO!$E$37="Non endémique",INTRO!$E$41="Non endémique"),0,COUNTRY_INFO!Q16) -> 0 | H16: =IF(AND(INTRO!$E$37="Non endémique",INTRO!$E$41="Non endémique"),0,COUNTRY_INFO!S16) -> 0 | I16: =IF($G16=1,IVM!$G16,0) -> 0 | J16: =IF($G16=0, " ", IF(COUNTRY_INFO!$H16=1, IF(COUNTRY_INFO!$L16=1, 0," ")," ")) ->  | M16: =IF($L16="ALB", IF(INTRO!$E$39="Non endémique",IF($H16<>0,$D16*($H16-$G16),0),$D16*$H16), 0) -> 0 | N16: 0 | P16: 0 | Q16: =IF($L16="MBD", IF(INTRO!$E$39="Non endémique",IF($H16<>0,$D16*($H16-$G16),0),$D16*$H16),0) -> 0 | R16: 0 | T16: 0 | V16: 0 | W16: 0 | Y16: 0 | Z16: 0 | AB16: 0 | AC16: 0
A17: =IF(AND(INTRO!$E$37="Non endémique",INTRO!$E$41="Non endémique")," ",IF(COUNTRY_INFO!A17=0," ",COUNTRY_INFO!A17)) -> Chad | B17: =IF(AND(INTRO!$E$37="Non endémique",INTRO!$E$41="Non endémique")," ",IF(COUNTRY_INFO!B17=0," ",COUNTRY_INFO!B17)) -> Batha | C17: =IF(AND(INTRO!$E$37="Non endémique",INTRO!$E$41="Non endémique")," ",IF(COUNTRY_INFO!C17=0," ",COUNTRY_INFO!C17)) -> Koundjourou | D17: =IF(AND(INTRO!$E$37="Non endémique",INTRO!$E$41="Non endémique"),0,IF(AND(OR(COUNTRY_INFO!$H17=0,COUNTRY_INFO!$H17=4,COUNTRY_INFO!$H17=99),OR(COUNTRY_INFO!$J17=0,COUNTRY_INFO!$J17=4)),0,COUNTRY_INFO!$E17)) -> 0 | E17: =IF(AND(INTRO!$E$37="Non endémique",INTRO!$E$41="Non endémique"),0,IF(AND(OR(COUNTRY_INFO!$H17=0,COUNTRY_INFO!$H17=4,COUNTRY_INFO!$H17=99),OR(COUNTRY_INFO!$J17=0,COUNTRY_INFO!$J17=4)),0,COUNTRY_INFO!$F17)) -> 0 | F17: 0 | G17: =IF(AND(INTRO!$E$37="Non endémique",INTRO!$E$41="Non endémique"),0,COUNTRY_INFO!Q17) -> 0 | H17: =IF(AND(INTRO!$E$37="Non endémique",INTRO!$E$41="Non endémique"),0,COUNTRY_INFO!S17) -> 0 | I17: =IF($G17=1,IVM!$G17,0) -> 0 | J17: =IF($G17=0, " ", IF(COUNTRY_INFO!$H17=1, IF(COUNTRY_INFO!$L17=1, 0," ")," ")) ->  | M17: =IF($L17="ALB", IF(INTRO!$E$39="Non endémique",IF($H17<>0,$D17*($H17-$G17),0),$D17*$H17), 0) -> 0 | N17: 0 | P17: 0 | Q17: =IF($L17="MBD", IF(INTRO!$E$39="Non endémique",IF($H17<>0,$D17*($H17-$G17),0),$D17*$H17),0) -> 0 | R17: 0 | T17: 0 | V17: 0 | W17: 0 | Y17: 0 | Z17: 0 | AB17: 0 | AC17: 0
A18: =IF(AND(INTRO!$E$37="Non endémique",INTRO!$E$41="Non endémique")," ",IF(COUNTRY_INFO!A18=0," ",COUNTRY_INFO!A18)) -> Chad | B18: =IF(AND(INTRO!$E$37="Non endémique",INTRO!$E$41="Non endémique")," ",IF(COUNTRY_INFO!B18=0," ",COUNTRY_INFO!B18)) -> Batha | C18: =IF(AND(INTRO!$E$37="Non endémique",INTRO!$E$41="Non endémique")," ",IF(COUNTRY_INFO!C18=0," ",COUNTRY_INFO!C18)) -> Oum-Hadjer | D18: =IF(AND(INTRO!$E$37="Non endémique",INTRO!$E$41="Non endémique"),0,IF(AND(OR(COUNTRY_INFO!$H18=0,COUNTRY_INFO!$H18=4,COUNTRY_INFO!$H18=99),OR(COUNTRY_INFO!$J18=0,COUNTRY_INFO!$J18=4)),0,COUNTRY_INFO!$E18)) -> 0 | E18: =IF(AND(INTRO!$E$37="Non endémique",INTRO!$E$41="Non endémique"),0,IF(AND(OR(COUNTRY_INFO!$H18=0,COUNTRY_INFO!$H18=4,COUNTRY_INFO!$H18=99),OR(COUNTRY_INFO!$J18=0,COUNTRY_INFO!$J18=4)),0,COUNTRY_INFO!$F18)) -> 0 | F18: 0 | G18: =IF(AND(INTRO!$E$37="Non endémique",INTRO!$E$41="Non endémique"),0,COUNTRY_INFO!Q18) -> 0 | H18: =IF(AND(INTRO!$E$37="Non endémique",INTRO!$E$41="Non endémique"),0,COUNTRY_INFO!S18) -> 0 | I18: =IF($G18=1,IVM!$G18,0) -> 0 | J18: =IF($G18=0, " ", IF(COUNTRY_INFO!$H18=1, IF(COUNTRY_INFO!$L18=1, 0," ")," ")) ->  | M18: =IF($L18="ALB", IF(INTRO!$E$39="Non endémique",IF($H18<>0,$D18*($H18-$G18),0),$D18*$H18), 0) -> 0 | N18: 0 | P18: 0 | Q18: =IF($L18="MBD", IF(INTRO!$E$39="Non endémique",IF($H18<>0,$D18*($H18-$G18),0),$D18*$H18),0) -> 0 | R18: 0 | T18: 0 | V18: 0 | W18: 0 | Y18: 0 | Z18: 0 | AB18: 0 | AC18: 0
A19: =IF(AND(INTRO!$E$37="Non endémique",INTRO!$E$41="Non endémique")," ",IF(COUNTRY_INFO!A19=0," ",COUNTRY_INFO!A19)) -> Chad | B19: =IF(AND(INTRO!$E$37="Non endémique",INTRO!$E$41="Non endémique")," ",IF(COUNTRY_INFO!B19=0," ",COUNTRY_INFO!B19)) -> Batha | C19: =IF(AND(INTRO!$E$37="Non endémique",INTRO!$E$41="Non endémique")," ",IF(COUNTRY_INFO!C19=0," ",COUNTRY_INFO!C19)) -> Yao | D19: =IF(AND(INTRO!$E$37="Non endémique",INTRO!$E$41="Non endémique"),0,IF(AND(OR(COUNTRY_INFO!$H19=0,COUNTRY_INFO!$H19=4,COUNTRY_INFO!$H19=99),OR(COUNTRY_INFO!$J19=0,COUNTRY_INFO!$J19=4)),0,COUNTRY_INFO!$E19)) -> 26311 | E19: =IF(AND(INTRO!$E$37="Non endémique",INTRO!$E$41="Non endémique"),0,IF(AND(OR(COUNTRY_INFO!$H19=0,COUNTRY_INFO!$H19=4,COUNTRY_INFO!$H19=99),OR(COUNTRY_INFO!$J19=0,COUNTRY_INFO!$J19=4)),0,COUNTRY_INFO!$F19)) -> 52113 | F19: 78424 | G19: =IF(AND(INTRO!$E$37="Non endémique",INTRO!$E$41="Non endémique"),0,COUNTRY_INFO!Q19) -> 0 | H19: =IF(AND(INTRO!$E$37="Non endémique",INTRO!$E$41="Non endémique"),0,COUNTRY_INFO!S19) -> 0 | I19: =IF($G19=1,IVM!$G19,0) -> 0 | J19: =IF($G19=0, " ", IF(COUNTRY_INFO!$H19=1, IF(COUNTRY_INFO!$L19=1, 0," ")," ")) ->  | M19: =IF($L19="ALB", IF(INTRO!$E$39="Non endémique",IF($H19<>0,$D19*($H19-$G19),0),$D19*$H19), 0) -> 0 | N19: 0 | P19: 0 | Q19: =IF($L19="MBD", IF(INTRO!$E$39="Non endémique",IF($H19<>0,$D19*($H19-$G19),0),$D19*$H19),0) -> 0 | R19: 0 | T19: 0 | V19: 0 | W19: 0 | Y19: 0 | Z19: 0 | AB19: 0 | AC19: 0
A20: =IF(AND(INTRO!$E$37="Non endémique",INTRO!$E$41="Non endémique")," ",IF(COUNTRY_INFO!A20=0," ",COUNTRY_INFO!A20)) -> Chad | B20: =IF(AND(INTRO!$E$37="Non endémique",INTRO!$E$41="Non endémique")," ",IF(COUNTRY_INFO!B20=0," ",COUNTRY_INFO!B20)) -> Borkou | C20: =IF(AND(INTRO!$E$37="Non endémique",INTRO!$E$41="Non endémique")," ",IF(COUNTRY_INFO!C20=0," ",COUNTRY_INFO!C20)) -> Faya | D20: =IF(AND(INTRO!$E$37="Non endémique",INTRO!$E$41="Non endémique"),0,IF(AND(OR(COUNTRY_INFO!$H20=0,COUNTRY_INFO!$H20=4,COUNTRY_INFO!$H20=99),OR(COUNTRY_INFO!$J20=0,COUNTRY_INFO!$J20=4)),0,COUNTRY_INFO!$E20)) -> 15989 | E20: =IF(AND(INTRO!$E$37="Non endémique",INTRO!$E$41="Non endémique"),0,IF(AND(OR(COUNTRY_INFO!$H20=0,COUNTRY_INFO!$H20=4,COUNTRY_INFO!$H20=99),OR(COUNTRY_INFO!$J20=0,COUNTRY_INFO!$J20=4)),0,COUNTRY_INFO!$F20)) -> 31668 | F20: 47657 | G20: =IF(AND(INTRO!$E$37="Non endémique",INTRO!$E$41="Non endémique"),0,COUNTRY_INFO!Q20) -> 0 | H20: =IF(AND(INTRO!$E$37="Non endémique",INTRO!$E$41="Non endémique"),0,COUNTRY_INFO!S20) -> 0 | I20: =IF($G20=1,IVM!$G20,0) -> 0 | J20: =IF($G20=0, " ", IF(COUNTRY_INFO!$H20=1, IF(COUNTRY_INFO!$L20=1, 0," ")," ")) ->  | M20: =IF($L20="ALB", IF(INTRO!$E$39="Non endémique",IF($H20<>0,$D20*($H20-$G20),0),$D20*$H20), 0) -> 0 | N20: 0 | P20: 0 | Q20: =IF($L20="MBD", IF(INTRO!$E$39="Non endémique",IF($H20<>0,$D20*($H20-$G20),0),$D20*$H20),0) -> 0 | R20: 0 | T20: 0 | V20: 0 | W20: 0 | Y20: 0 | Z20: 0 | AB20: 0 | AC20: 0
A21: =IF(AND(INTRO!$E$37="Non endémique",INTRO!$E$41="Non endémique")," ",IF(COUNTRY_INFO!A21=0," ",COUNTRY_INFO!A21)) -> Chad | B21: =IF(AND(INTRO!$E$37="Non endémique",INTRO!$E$41="Non endémique")," ",IF(COUNTRY_INFO!B21=0," ",COUNTRY_INFO!B21)) -> Borkou | C21: =IF(AND(INTRO!$E$37="Non endémique",INTRO!$E$41="Non endémique")," ",IF(COUNTRY_INFO!C21=0," ",COUNTRY_INFO!C21)) -> Kirdimi | D21: =IF(AND(INTRO!$E$37="Non endémique",INTRO!$E$41="Non endémique"),0,IF(AND(OR(COUNTRY_INFO!$H21=0,COUNTRY_INFO!$H21=4,COUNTRY_INFO!$H21=99),OR(COUNTRY_INFO!$J21=0,COUNTRY_INFO!$J21=4)),0,COUNTRY_INFO!$E21)) -> 5918 | E21: =IF(AND(INTRO!$E$37="Non endémique",INTRO!$E$41="Non endémique"),0,IF(AND(OR(COUNTRY_INFO!$H21=0,COUNTRY_INFO!$H21=4,COUNTRY_INFO!$H21=99),OR(COUNTRY_INFO!$J21=0,COUNTRY_INFO!$J21=4)),0,COUNTRY_INFO!$F21)) -> 11721 | F21: 17639 | G21: =IF(AND(INTRO!$E$37="Non endémique",INTRO!$E$41="Non endémique"),0,COUNTRY_INFO!Q21) -> 0 | H21: =IF(AND(INTRO!$E$37="Non endémique",INTRO!$E$41="Non endémique"),0,COUNTRY_INFO!S21) -> 0 | I21: =IF($G21=1,IVM!$G21,0) -> 0 | J21: =IF($G21=0, " ", IF(COUNTRY_INFO!$H21=1, IF(COUNTRY_INFO!$L21=1, 0," ")," ")) ->  | M21: =IF($L21="ALB", IF(INTRO!$E$39="Non endémique",IF($H21<>0,$D21*($H21-$G21),0),$D21*$H21), 0) -> 0 | N21: 0 | P21: 0 | Q21: =IF($L21="MBD", IF(INTRO!$E$39="Non endémique",IF($H21<>0,$D21*($H21-$G21),0),$D21*$H21),0) -> 0 | R21: 0 | T21: 0 | V21: 0 | W21: 0 | Y21: 0 | Z21: 0 | AB21: 0 | AC21: 0
A22: =IF(AND(INTRO!$E$37="Non endémique",INTRO!$E$41="Non endémique")," ",IF(COUNTRY_INFO!A22=0," ",COUNTRY_INFO!A22)) -> Chad | B22: =IF(AND(INTRO!$E$37="Non endémique",INTRO!$E$41="Non endémique")," ",IF(COUNTRY_INFO!B22=0," ",COUNTRY_INFO!B22)) -> Chari Baguirmi | C22: =IF(AND(INTRO!$E$37="Non endémique",INTRO!$E$41="Non endémique")," ",IF(COUNTRY_INFO!C22=0," ",COUNTRY_INFO!C22)) -> Ba-Illi | D22: =IF(AND(INTRO!$E$37="Non endémique",INTRO!$E$41="Non endémique"),0,IF(AND(OR(COUNTRY_INFO!$H22=0,COUNTRY_INFO!$H22=4,COUNTRY_INFO!$H22=99),OR(COUNTRY_INFO!$J22=0,COUNTRY_INFO!$J22=4)),0,COUNTRY_INFO!$E22)) -> 15079 | E22: =IF(AND(INTRO!$E$37="Non endémique",INTRO!$E$41="Non endémique"),0,IF(AND(OR(COUNTRY_INFO!$H22=0,COUNTRY_INFO!$H22=4,COUNTRY_INFO!$H22=99),OR(COUNTRY_INFO!$J22=0,COUNTRY_INFO!$J22=4)),0,COUNTRY_INFO!$F22)) -> 29865 | F22: 44944 | G22: =IF(AND(INTRO!$E$37="Non endémique",INTRO!$E$41="Non endémique"),0,COUNTRY_INFO!Q22) -> 0 | H22: =IF(AND(INTRO!$E$37="Non endémique",INTRO!$E$41="Non endémique"),0,COUNTRY_INFO!S22) -> 0 | I22: =IF($G22=1,IVM!$G22,0) -> 0 | J22: =IF($G22=0, " ", IF(COUNTRY_INFO!$H22=1, IF(COUNTRY_INFO!$L22=1, 0," ")," ")) ->  | M22: =IF($L22="ALB", IF(INTRO!$E$39="Non endémique",IF($H22<>0,$D22*($H22-$G22),0),$D22*$H22), 0) -> 0 | N22: 0 | P22: 0 | Q22: =IF($L22="MBD", IF(INTRO!$E$39="Non endémique",IF($H22<>0,$D22*($H22-$G22),0),$D22*$H22),0) -> 0 | R22: 0 | T22: 0 | V22: 0 | W22: 0 | Y22: 0 | Z22: 0 | AB22: 0 | AC22: 0
A23: =IF(AND(INTRO!$E$37="Non endémique",INTRO!$E$41="Non endémique")," ",IF(COUNTRY_INFO!A23=0," ",COUNTRY_INFO!A23)) -> Chad | B23: =IF(AND(INTRO!$E$37="Non endémique",INTRO!$E$41="Non endémique")," ",IF(COUNTRY_INFO!B23=0," ",COUNTRY_INFO!B23)) -> Chari Baguirmi | C23: =IF(AND(INTRO!$E$37="Non endémique",INTRO!$E$41="Non endémique")," ",IF(COUNTRY_INFO!C23=0," ",COUNTRY_INFO!C23)) -> Bousso | D23: =IF(AND(INTRO!$E$37="Non endémique",INTRO!$E$41="Non endémique"),0,IF(AND(OR(COUNTRY_INFO!$H23=0,COUNTRY_INFO!$H23=4,COUNTRY_INFO!$H23=99),OR(COUNTRY_INFO!$J23=0,COUNTRY_INFO!$J23=4)),0,COUNTRY_INFO!$E23)) -> 24349 | E23: =IF(AND(INTRO!$E$37="Non endémique",INTRO!$E$41="Non endémique"),0,IF(AND(OR(COUNTRY_INFO!$H23=0,COUNTRY_INFO!$H23=4,COUNTRY_INFO!$H23=99),OR(COUNTRY_INFO!$J23=0,COUNTRY_INFO!$J23=4)),0,COUNTRY_INFO!$F23)) -> 48227 | F23: 72576 | G23: =IF(AND(INTRO!$E$37="Non endémique",INTRO!$E$41="Non endémique"),0,COUNTRY_INFO!Q23) -> 0 | H23: =IF(AND(INTRO!$E$37="Non endémique",INTRO!$E$41="Non endémique"),0,COUNTRY_INFO!S23) -> 0 | I23: =IF($G23=1,IVM!$G23,0) -> 0 | J23: =IF($G23=0, " ", IF(COUNTRY_INFO!$H23=1, IF(COUNTRY_INFO!$L23=1, 0," ")," ")) ->  | M23: =IF($L23="ALB", IF(INTRO!$E$39="Non endémique",IF($H23<>0,$D23*($H23-$G23),0),$D23*$H23), 0) -> 0 | N23: 0 | P23: 0 | Q23: =IF($L23="MBD", IF(INTRO!$E$39="Non endémique",IF($H23<>0,$D23*($H23-$G23),0),$D23*$H23),0) -> 0 | R23: 0 | T23: 0 | V23: 0 | W23: 0 | Y23: 0 | Z23: 0 | AB23: 0 | AC23: 0
A24: =IF(AND(INTRO!$E$37="Non endémique",INTRO!$E$41="Non endémique")," ",IF(COUNTRY_INFO!A24=0," ",COUNTRY_INFO!A24)) -> Chad | B24: =IF(AND(INTRO!$E$37="Non endémique",INTRO!$E$41="Non endémique")," ",IF(COUNTRY_INFO!B24=0," ",COUNTRY_INFO!B24)) -> Chari Baguirmi | C24: =IF(AND(INTRO!$E$37="Non endémique",INTRO!$E$41="Non endémique")," ",IF(COUNTRY_INFO!C24=0," ",COUNTRY_INFO!C24)) -> Dourbali | D24: =IF(AND(INTRO!$E$37="Non endémique",INTRO!$E$41="Non endémique"),0,IF(AND(OR(COUNTRY_INFO!$H24=0,COUNTRY_INFO!$H24=4,COUNTRY_INFO!$H24=99),OR(COUNTRY_INFO!$J24=0,COUNTRY_INFO!$J24=4)),0,COUNTRY_INFO!$E24)) -> 26039 | E24: =IF(AND(INTRO!$E$37="Non endémique",INTRO!$E$41="Non endémique"),0,IF(AND(OR(COUNTRY_INFO!$H24=0,COUNTRY_INFO!$H24=4,COUNTRY_INFO!$H24=99),OR(COUNTRY_INFO!$J24=0,COUNTRY_INFO!$J24=4)),0,COUNTRY_INFO!$F24)) -> 51574 | F24: 77613 | G24: =IF(AND(INTRO!$E$37="Non endémique",INTRO!$E$41="Non endémique"),0,COUNTRY_INFO!Q24) -> 0 | H24: =IF(AND(INTRO!$E$37="Non endémique",INTRO!$E$41="Non endémique"),0,COUNTRY_INFO!S24) -> 0 | I24: =IF($G24=1,IVM!$G24,0) -> 0 | J24: =IF($G24=0, " ", IF(COUNTRY_INFO!$H24=1, IF(COUNTRY_INFO!$L24=1, 0," ")," ")) ->  | M24: =IF($L24="ALB", IF(INTRO!$E$39="Non endémique",IF($H24<>0,$D24*($H24-$G24),0),$D24*$H24), 0) -> 0 | N24: 0 | P24: 0 | Q24: =IF($L24="MBD", IF(INTRO!$E$39="Non endémique",IF($H24<>0,$D24*($H24-$G24),0),$D24*$H24),0) -> 0 | R24: 0 | T24: 0 | V24: 0 | W24: 0 | Y24: 0 | Z24: 0 | AB24: 0 | AC24: 0
A25: =IF(AND(INTRO!$E$37="Non endémique",INTRO!$E$41="Non endémique")," ",IF(COUNTRY_INFO!A25=0," ",COUNTRY_INFO!A25)) -> Chad | B25: =IF(AND(INTRO!$E$37="Non endémique",INTRO!$E$41="Non endémique")," ",IF(COUNTRY_INFO!B25=0," ",COUNTRY_INFO!B25)) -> Chari Baguirmi | C25: =IF(AND(INTRO!$E$37="Non endémique",INTRO!$E$41="Non endémique")," ",IF(COUNTRY_INFO!C25=0," ",COUNTRY_INFO!C25)) -> Koulno | D25: =IF(AND(INTRO!$E$37="Non endémique",INTRO!$E$41="Non endémique"),0,IF(AND(OR(COUNTRY_INFO!$H25=0,COUNTRY_INFO!$H25=4,COUNTRY_INFO!$H25=99),OR(COUNTRY_INFO!$J25=0,COUNTRY_INFO!$J25=4)),0,COUNTRY_INFO!$E25)) -> 41456 | E25: =IF(AND(INTRO!$E$37="Non endémique",INTRO!$E$41="Non endémique"),0,IF(AND(OR(COUNTRY_INFO!$H25=0,COUNTRY_INFO!$H25=4,COUNTRY_INFO!$H25=99),OR(COUNTRY_INFO!$J25=0,COUNTRY_INFO!$J25=4)),0,COUNTRY_INFO!$F25)) -> 82109 | F25: 123565 | G25: =IF(AND(INTRO!$E$37="Non endémique",INTRO!$E$41="Non endémique"),0,COUNTRY_INFO!Q25) -> 0 | H25: =IF(AND(INTRO!$E$37="Non endémique",INTRO!$E$41="Non endémique"),0,COUNTRY_INFO!S25) -> 0 | I25: =IF($G25=1,IVM!$G25,0) -> 0 | J25: =IF($G25=0, " ", IF(COUNTRY_INFO!$H25=1, IF(COUNTRY_INFO!$L25=1, 0," ")," ")) ->  | M25: =IF($L25="ALB", IF(INTRO!$E$39="Non endémique",IF($H25<>0,$D25*($H25-$G25),0),$D25*$H25), 0) -> 0 | N25: 0 | P25: 0 | Q25: =IF($L25="MBD", IF(INTRO!$E$39="Non endémique",IF($H25<>0,$D25*($H25-$G25),0),$D25*$H25),0) -> 0 | R25: 0 | T25: 0 | V25: 0 | W25: 0 | Y25: 0 | Z25: 0 | AB25: 0 | AC25: 0
A26: =IF(AND(INTRO!$E$37="Non endémique",INTRO!$E$41="Non endémique")," ",IF(COUNTRY_INFO!A26=0," ",COUNTRY_INFO!A26)) -> Chad | B26: =IF(AND(INTRO!$E$37="Non endémique",INTRO!$E$41="Non endémique")," ",IF(COUNTRY_INFO!B26=0," ",COUNTRY_INFO!B26)) -> Chari Baguirmi | C26: =IF(AND(INTRO!$E$37="Non endémique",INTRO!$E$41="Non endémique")," ",IF(COUNTRY_INFO!C26=0," ",COUNTRY_INFO!C26)) -> Mandélia | D26: =IF(AND(INTRO!$E$37="Non endémique",INTRO!$E$41="Non endémique"),0,IF(AND(OR(COUNTRY_INFO!$H26=0,COUNTRY_INFO!$H26=4,COUNTRY_INFO!$H26=99),OR(COUNTRY_INFO!$J26=0,COUNTRY_INFO!$J26=4)),0,COUNTRY_INFO!$E26)) -> 22687 | E26: =IF(AND(INTRO!$E$37="Non endémique",INTRO!$E$41="Non endémique"),0,IF(AND(OR(COUNTRY_INFO!$H26=0,COUNTRY_INFO!$H26=4,COUNTRY_INFO!$H26=99),OR(COUNTRY_INFO!$J26=0,COUNTRY_INFO!$J26=4)),0,COUNTRY_INFO!$F26)) -> 44935 | F26: 67622 | G26: =IF(AND(INTRO!$E$37="Non endémique",INTRO!$E$41="Non endémique"),0,COUNTRY_INFO!Q26) -> 0 | H26: =IF(AND(INTRO!$E$37="Non endémique",INTRO!$E$41="Non endémique"),0,COUNTRY_INFO!S26) -> 0 | I26: =IF($G26=1,IVM!$G26,0) -> 0 | J26: =IF($G26=0, " ", IF(COUNTRY_INFO!$H26=1, IF(COUNTRY_INFO!$L26=1, 0," ")," ")) ->  | M26: =IF($L26="ALB", IF(INTRO!$E$39="Non endémique",IF($H26<>0,$D26*($H26-$G26),0),$D26*$H26), 0) -> 0 | N26: 0 | P26: 0 | Q26: =IF($L26="MBD", IF(INTRO!$E$39="Non endémique",IF($H26<>0,$D26*($H26-$G26),0),$D26*$H26),0) -> 0 | R26: 0 | T26: 0 | V26: 0 | W26: 0 | Y26: 0 | Z26: 0 | AB26: 0 | AC26: 0
A27: =IF(AND(INTRO!$E$37="Non endémique",INTRO!$E$41="Non endémique")," ",IF(COUNTRY_INFO!A27=0," ",COUNTRY_INFO!A27)) -> Chad | B27: =IF(AND(INTRO!$E$37="Non endémique",INTRO!$E$41="Non endémique")," ",IF(COUNTRY_INFO!B27=0," ",COUNTRY_INFO!B27)) -> Chari Baguirmi | C27: =IF(AND(INTRO!$E$37="Non endémique",INTRO!$E$41="Non endémique")," ",IF(COUNTRY_INFO!C27=0," ",COUNTRY_INFO!C27)) -> Massenya | D27: =IF(AND(INTRO!$E$37="Non endémique",INTRO!$E$41="Non endémique"),0,IF(AND(OR(COUNTRY_INFO!$H27=0,COUNTRY_INFO!$H27=4,COUNTRY_INFO!$H27=99),OR(COUNTRY_INFO!$J27=0,COUNTRY_INFO!$J27=4)),0,COUNTRY_INFO!$E27)) -> 22810 | E27: =IF(AND(INTRO!$E$37="Non endémique",INTRO!$E$41="Non endémique"),0,IF(AND(OR(COUNTRY_INFO!$H27=0,COUNTRY_INFO!$H27=4,COUNTRY_INFO!$H27=99),OR(COUNTRY_INFO!$J27=0,COUNTRY_INFO!$J27=4)),0,COUNTRY_INFO!$F27)) -> 45179 | F27: 67989 | G27: =IF(AND(INTRO!$E$37="Non endémique",INTRO!$E$41="Non endémique"),0,COUNTRY_INFO!Q27) -> 0 | H27: =IF(AND(INTRO!$E$37="Non endémique",INTRO!$E$41="Non endémique"),0,COUNTRY_INFO!S27) -> 0 | I27: =IF($G27=1,IVM!$G27,0) -> 0 | J27: =IF($G27=0, " ", IF(COUNTRY_INFO!$H27=1, IF(COUNTRY_INFO!$L27=1, 0," ")," ")) ->  | M27: =IF($L27="ALB", IF(INTRO!$E$39="Non endémique",IF($H27<>0,$D27*($H27-$G27),0),$D27*$H27), 0) -> 0 | N27: 0 | P27: 0 | Q27: =IF($L27="MBD", IF(INTRO!$E$39="Non endémique",IF($H27<>0,$D27*($H27-$G27),0),$D27*$H27),0) -> 0 | R27: 0 | T27: 0 | V27: 0 | W27: 0 | Y27: 0 | Z27: 0 | AB27: 0 | AC27: 0
A28: =IF(AND(INTRO!$E$37="Non endémique",INTRO!$E$41="Non endémique")," ",IF(COUNTRY_INFO!A28=0," ",COUNTRY_INFO!A28)) -> Chad | B28: =IF(AND(INTRO!$E$37="Non endémique",INTRO!$E$41="Non endémique")," ",IF(COUNTRY_INFO!B28=0," ",COUNTRY_INFO!B28)) -> Ennedi Est | C28: =IF(AND(INTRO!$E$37="Non endémique",INTRO!$E$41="Non endémique")," ",IF(COUNTRY_INFO!C28=0," ",COUNTRY_INFO!C28)) -> Amdjarass | D28: =IF(AND(INTRO!$E$37="Non endémique",INTRO!$E$41="Non endémique"),0,IF(AND(OR(COUNTRY_INFO!$H28=0,COUNTRY_INFO!$H28=4,COUNTRY_INFO!$H28=99),OR(COUNTRY_INFO!$J28=0,COUNTRY_INFO!$J28=4)),0,COUNTRY_INFO!$E28)) -> 15062 | E28: =IF(AND(INTRO!$E$37="Non endémique",INTRO!$E$41="Non endémique"),0,IF(AND(OR(COUNTRY_INFO!$H28=0,COUNTRY_INFO!$H28=4,COUNTRY_INFO!$H28=99),OR(COUNTRY_INFO!$J28=0,COUNTRY_INFO!$J28=4)),0,COUNTRY_INFO!$F28)) -> 29832 | F28: 44894 | G28: =IF(AND(INTRO!$E$37="Non endémique",INTRO!$E$41="Non endémique"),0,COUNTRY_INFO!Q28) -> 0 | H28: =IF(AND(INTRO!$E$37="Non endémique",INTRO!$E$41="Non endémique"),0,COUNTRY_INFO!S28) -> 0 | I28: =IF($G28=1,IVM!$G28,0) -> 0 | J28: =IF($G28=0, " ", IF(COUNTRY_INFO!$H28=1, IF(COUNTRY_INFO!$L28=1, 0," ")," ")) ->  | M28: =IF($L28="ALB", IF(INTRO!$E$39="Non endémique",IF($H28<>0,$D28*($H28-$G28),0),$D28*$H28), 0) -> 0 | N28: 0 | P28: 0 | Q28: =IF($L28="MBD", IF(INTRO!$E$39="Non endémique",IF($H28<>0,$D28*($H28-$G28),0),$D28*$H28),0) -> 0 | R28: 0 | T28: 0 | V28: 0 | W28: 0 | Y28: 0 | Z28: 0 | AB28: 0 | AC28: 0
A29: =IF(AND(INTRO!$E$37="Non endémique",INTRO!$E$41="Non endémique")," ",IF(COUNTRY_INFO!A29=0," ",COUNTRY_INFO!A29)) -> Chad | B29: =IF(AND(INTRO!$E$37="Non endémique",INTRO!$E$41="Non endémique")," ",IF(COUNTRY_INFO!B29=0," ",COUNTRY_INFO!B29)) -> Ennedi Est | C29: =IF(AND(INTRO!$E$37="Non endémique",INTRO!$E$41="Non endémique")," ",IF(COUNTRY_INFO!C29=0," ",COUNTRY_INFO!C29)) -> Bahaï | D29: =IF(AND(INTRO!$E$37="Non endémique",INTRO!$E$41="Non endémique"),0,IF(AND(OR(COUNTRY_INFO!$H29=0,COUNTRY_INFO!$H29=4,COUNTRY_INFO!$H29=99),OR(COUNTRY_INFO!$J29=0,COUNTRY_INFO!$J29=4)),0,COUNTRY_INFO!$E29)) -> 6531 | E29: =IF(AND(INTRO!$E$37="Non endémique",INTRO!$E$41="Non endémique"),0,IF(AND(OR(COUNTRY_INFO!$H29=0,COUNTRY_INFO!$H29=4,COUNTRY_INFO!$H29=99),OR(COUNTRY_INFO!$J29=0,COUNTRY_INFO!$J29=4)),0,COUNTRY_INFO!$F29)) -> 12936 | F29: 19467 | G29: =IF(AND(INTRO!$E$37="Non endémique",INTRO!$E$41="Non endémique"),0,COUNTRY_INFO!Q29) -> 0 | H29: =IF(AND(INTRO!$E$37="Non endémique",INTRO!$E$41="Non endémique"),0,COUNTRY_INFO!S29) -> 0 | I29: =IF($G29=1,IVM!$G29,0) -> 0 | J29: =IF($G29=0, " ", IF(COUNTRY_INFO!$H29=1, IF(COUNTRY_INFO!$L29=1, 0," ")," ")) ->  | M29: =IF($L29="ALB", IF(INTRO!$E$39="Non endémique",IF($H29<>0,$D29*($H29-$G29),0),$D29*$H29), 0) -> 0 | N29: 0 | P29: 0 | Q29: =IF($L29="MBD", IF(INTRO!$E$39="Non endémique",IF($H29<>0,$D29*($H29-$G29),0),$D29*$H29),0) -> 0 | R29: 0 | T29: 0 | V29: 0 | W29: 0 | Y29: 0 | Z29: 0 | AB29: 0 | AC29: 0
A30: =IF(AND(INTRO!$E$37="Non endémique",INTRO!$E$41="Non endémique")," ",IF(COUNTRY_INFO!A30=0," ",COUNTRY_INFO!A30)) -> Chad | B30: =IF(AND(INTRO!$E$37="Non endémique",INTRO!$E$41="Non endémique")," ",IF(COUNTRY_INFO!B30=0," ",COUNTRY_INFO!B30)) -> Ennedi Est | C30: =IF(AND(INTRO!$E$37="Non endémique",INTRO!$E$41="Non endémique")," ",IF(COUNTRY_INFO!C30=0," ",COUNTRY_INFO!C30)) -> Kaoura | D30: =IF(AND(INTRO!$E$37="Non endémique",INTRO!$E$41="Non endémique"),0,IF(AND(OR(COUNTRY_INFO!$H30=0,COUNTRY_INFO!$H30=4,COUNTRY_INFO!$H30=99),OR(COUNTRY_INFO!$J30=0,COUNTRY_INFO!$J30=4)),0,COUNTRY_INFO!$E30)) -> 3534 | E30: =IF(AND(INTRO!$E$37="Non endémique",INTRO!$E$41="Non endémique"),0,IF(AND(OR(COUNTRY_INFO!$H30=0,COUNTRY_INFO!$H30=4,COUNTRY_INFO!$H30=99),OR(COUNTRY_INFO!$J30=0,COUNTRY_INFO!$J30=4)),0,COUNTRY_INFO!$F30)) -> 7000 | F30: 10534 | G30: =IF(AND(INTRO!$E$37="Non endémique",INTRO!$E$41="Non endémique"),0,COUNTRY_INFO!Q30) -> 0 | H30: =IF(AND(INTRO!$E$37="Non endémique",INTRO!$E$41="Non endémique"),0,COUNTRY_INFO!S30) -> 0 | I30: =IF($G30=1,IVM!$G30,0) -> 0 | J30: =IF($G30=0, " ", IF(COUNTRY_INFO!$H30=1, IF(COUNTRY_INFO!$L30=1, 0," ")," ")) ->  | M30: =IF($L30="ALB", IF(INTRO!$E$39="Non endémique",IF($H30<>0,$D30*($H30-$G30),0),$D30*$H30), 0) -> 0 | N30: 0 | P30: 0 | Q30: =IF($L30="MBD", IF(INTRO!$E$39="Non endémique",IF($H30<>0,$D30*($H30-$G30),0),$D30*$H30),0) -> 0 | R30: 0 | T30: 0 | V30: 0 | W30: 0 | Y30: 0 | Z30: 0 | AB30: 0 | AC30: 0
A31: =IF(AND(INTRO!$E$37="Non endémique",INTRO!$E$41="Non endémique")," ",IF(COUNTRY_INFO!A31=0," ",COUNTRY_INFO!A31)) -> Chad | B31: =IF(AND(INTRO!$E$37="Non endémique",INTRO!$E$41="Non endémique")," ",IF(COUNTRY_INFO!B31=0," ",COUNTRY_INFO!B31)) -> Ennedi Ouest | C31: =IF(AND(INTRO!$E$37="Non endémique",INTRO!$E$41="Non endémique")," ",IF(COUNTRY_INFO!C31=0," ",COUNTRY_INFO!C31)) -> Fada | D31: =IF(AND(INTRO!$E$37="Non endémique",INTRO!$E$41="Non endémique"),0,IF(AND(OR(COUNTRY_INFO!$H31=0,COUNTRY_INFO!$H31=4,COUNTRY_INFO!$H31=99),OR(COUNTRY_INFO!$J31=0,COUNTRY_INFO!$J31=4)),0,COUNTRY_INFO!$E31)) -> 9205 | E31: =IF(AND(INTRO!$E$37="Non endémique",INTRO!$E$41="Non endémique"),0,IF(AND(OR(COUNTRY_INFO!$H31=0,COUNTRY_INFO!$H31=4,COUNTRY_INFO!$H31=99),OR(COUNTRY_INFO!$J31=0,COUNTRY_INFO!$J31=4)),0,COUNTRY_INFO!$F31)) -> 18232 | F31: 27437 | G31: =IF(AND(INTRO!$E$37="Non endémique",INTRO!$E$41="Non endémique"),0,COUNTRY_INFO!Q31) -> 0 | H31: =IF(AND(INTRO!$E$37="Non endémique",INTRO!$E$41="Non endémique"),0,COUNTRY_INFO!S31) -> 0 | I31: =IF($G31=1,IVM!$G31,0) -> 0 | J31: =IF($G31=0, " ", IF(COUNTRY_INFO!$H31=1, IF(COUNTRY_INFO!$L31=1, 0," ")," ")) ->  | M31: =IF($L31="ALB", IF(INTRO!$E$39="Non endémique",IF($H31<>0,$D31*($H31-$G31),0),$D31*$H31), 0) -> 0 | N31: 0 | P31: 0 | Q31: =IF($L31="MBD", IF(INTRO!$E$39="Non endémique",IF($H31<>0,$D31*($H31-$G31),0),$D31*$H31),0) -> 0 | R31: 0 | T31: 0 | V31: 0 | W31: 0 | Y31: 0 | Z31: 0 | AB31: 0 | AC31: 0
A32: =IF(AND(INTRO!$E$37="Non endémique",INTRO!$E$41="Non endémique")," ",IF(COUNTRY_INFO!A32=0," ",COUNTRY_INFO!A32)) -> Chad | B32: =IF(AND(INTRO!$E$37="Non endémique",INTRO!$E$41="Non endémique")," ",IF(COUNTRY_INFO!B32=0," ",COUNTRY_INFO!B32)) -> Ennedi Ouest | C32: =IF(AND(INTRO!$E$37="Non endémique",INTRO!$E$41="Non endémique")," ",IF(COUNTRY_INFO!C32=0," ",COUNTRY_INFO!C32)) -> Kalaït | D32: =IF(AND(INTRO!$E$37="Non endémique",INTRO!$E$41="Non endémique"),0,IF(AND(OR(COUNTRY_INFO!$H32=0,COUNTRY_INFO!$H32=4,COUNTRY_INFO!$H32=99),OR(COUNTRY_INFO!$J32=0,COUNTRY_INFO!$J32=4)),0,COUNTRY_INFO!$E32)) -> 4991 | E32: =IF(AND(INTRO!$E$37="Non endémique",INTRO!$E$41="Non endémique"),0,IF(AND(OR(COUNTRY_INFO!$H32=0,COUNTRY_INFO!$H32=4,COUNTRY_INFO!$H32=99),OR(COUNTRY_INFO!$J32=0,COUNTRY_INFO!$J32=4)),0,COUNTRY_INFO!$F32)) -> 9886 | F32: 14877 | G32: =IF(AND(INTRO!$E$37="Non endémique",INTRO!$E$41="Non endémique"),0,COUNTRY_INFO!Q32) -> 0 | H32: =IF(AND(INTRO!$E$37="Non endémique",INTRO!$E$41="Non endémique"),0,COUNTRY_INFO!S32) -> 0 | I32: =IF($G32=1,IVM!$G32,0) -> 0 | J32: =IF($G32=0, " ", IF(COUNTRY_INFO!$H32=1, IF(COUNTRY_INFO!$L32=1, 0," ")," ")) ->  | M32: =IF($L32="ALB", IF(INTRO!$E$39="Non endémique",IF($H32<>0,$D32*($H32-$G32),0),$D32*$H32), 0) -> 0 | N32: 0 | P32: 0 | Q32: =IF($L32="MBD", IF(INTRO!$E$39="Non endémique",IF($H32<>0,$D32*($H32-$G32),0),$D32*$H32),0) -> 0 | R32: 0 | T32: 0 | V32: 0 | W32: 0 | Y32: 0 | Z32: 0 | AB32: 0 | AC32: 0
A33: =IF(AND(INTRO!$E$37="Non endémique",INTRO!$E$41="Non endémique")," ",IF(COUNTRY_INFO!A33=0," ",COUNTRY_INFO!A33)) -> Chad | B33: =IF(AND(INTRO!$E$37="Non endémique",INTRO!$E$41="Non endémique")," ",IF(COUNTRY_INFO!B33=0," ",COUNTRY_INFO!B33)) -> Guéra | C33: =IF(AND(INTRO!$E$37="Non endémique",INTRO!$E$41="Non endémique")," ",IF(COUNTRY_INFO!C33=0," ",COUNTRY_INFO!C33)) -> Barou | D33: =IF(AND(INTRO!$E$37="Non endémique",INTRO!$E$41="Non endémique"),0,IF(AND(OR(COUNTRY_INFO!$H33=0,COUNTRY_INFO!$H33=4,COUNTRY_INFO!$H33=99),OR(COUNTRY_INFO!$J33=0,COUNTRY_INFO!$J33=4)),0,COUNTRY_INFO!$E33)) -> 0 | E33: =IF(AND(INTRO!$E$37="Non endémique",INTRO!$E$41="Non endémique"),0,IF(AND(OR(COUNTRY_INFO!$H33=0,COUNTRY_INFO!$H33=4,COUNTRY_INFO!$H33=99),OR(COUNTRY_INFO!$J33=0,COUNTRY_INFO!$J33=4)),0,COUNTRY_INFO!$F33)) -> 0 | F33: 0 | G33: =IF(AND(INTRO!$E$37="Non endémique",INTRO!$E$41="Non endémique"),0,COUNTRY_INFO!Q33) -> 0 | H33: =IF(AND(INTRO!$E$37="Non endémique",INTRO!$E$41="Non endémique"),0,COUNTRY_INFO!S33) -> 0 | I33: =IF($G33=1,IVM!$G33,0) -> 0 | J33: =IF($G33=0, " ", IF(COUNTRY_INFO!$H33=1, IF(COUNTRY_INFO!$L33=1, 0," ")," ")) ->  | M33: =IF($L33="ALB", IF(INTRO!$E$39="Non endémique",IF($H33<>0,$D33*($H33-$G33),0),$D33*$H33), 0) -> 0 | N33: 0 | P33: 0 | Q33: =IF($L33="MBD", IF(INTRO!$E$39="Non endémique",IF($H33<>0,$D33*($H33-$G33),0),$D33*$H33),0) -> 0 | R33: 0 | T33: 0 | V33: 0 | W33: 0 | Y33: 0 | Z33: 0 | AB33: 0 | AC33: 0
A34: =IF(AND(INTRO!$E$37="Non endémique",INTRO!$E$41="Non endémique")," ",IF(COUNTRY_INFO!A34=0," ",COUNTRY_INFO!A34)) -> Chad | B34: =IF(AND(INTRO!$E$37="Non endémique",INTRO!$E$41="Non endémique")," ",IF(COUNTRY_INFO!B34=0," ",COUNTRY_INFO!B34)) -> Guéra | C34: =IF(AND(INTRO!$E$37="Non endémique",INTRO!$E$41="Non endémique")," ",IF(COUNTRY_INFO!C34=0," ",COUNTRY_INFO!C34)) -> Bitkine | D34: =IF(AND(INTRO!$E$37="Non endémique",INTRO!$E$41="Non endémique"),0,IF(AND(OR(COUNTRY_INFO!$H34=0,COUNTRY_INFO!$H34=4,COUNTRY_INFO!$H34=99),OR(COUNTRY_INFO!$J34=0,COUNTRY_INFO!$J34=4)),0,COUNTRY_INFO!$E34)) -> 39212 | E34: =IF(AND(INTRO!$E$37="Non endémique",INTRO!$E$41="Non endémique"),0,IF(AND(OR(COUNTRY_INFO!$H34=0,COUNTRY_INFO!$H34=4,COUNTRY_INFO!$H34=99),OR(COUNTRY_INFO!$J34=0,COUNTRY_INFO!$J34=4)),0,COUNTRY_INFO!$F34)) -> 77665 | F34: 116877 | G34: =IF(AND(INTRO!$E$37="Non endémique",INTRO!$E$41="Non endémique"),0,COUNTRY_INFO!Q34) -> 0 | H34: =IF(AND(INTRO!$E$37="Non endémique",INTRO!$E$41="Non endémique"),0,COUNTRY_INFO!S34) -> 0 | I34: =IF($G34=1,IVM!$G34,0) -> 0 | J34: =IF($G34=0, " ", IF(COUNTRY_INFO!$H34=1, IF(COUNTRY_INFO!$L34=1, 0," ")," ")) ->  | M34: =IF($L34="ALB", IF(INTRO!$E$39="Non endémique",IF($H34<>0,$D34*($H34-$G34),0),$D34*$H34), 0) -> 0 | N34: 0 | P34: 0 | Q34: =IF($L34="MBD", IF(INTRO!$E$39="Non endémique",IF($H34<>0,$D34*($H34-$G34),0),$D34*$H34),0) -> 0 | R34: 0 | T34: 0 | V34: 0 | W34: 0 | Y34: 0 | Z34: 0 | AB34: 0 | AC34: 0
A35: =IF(AND(INTRO!$E$37="Non endémique",INTRO!$E$41="Non endémique")," ",IF(COUNTRY_INFO!A35=0," ",COUNTRY_INFO!A35)) -> Chad | B35: =IF(AND(INTRO!$E$37="Non endémique",INTRO!$E$41="Non endémique")," ",IF(COUNTRY_INFO!B35=0," ",COUNTRY_INFO!B35)) -> Guéra | C35: =IF(AND(INTRO!$E$37="Non endémique",INTRO!$E$41="Non endémique")," ",IF(COUNTRY_INFO!C35=0," ",COUNTRY_INFO!C35)) -> Mangalmé | D35: =IF(AND(INTRO!$E$37="Non endémique",INTRO!$E$41="Non endémique"),0,IF(AND(OR(COUNTRY_INFO!$H35=0,COUNTRY_INFO!$H35=4,COUNTRY_INFO!$H35=99),OR(COUNTRY_INFO!$J35=0,COUNTRY_INFO!$J35=4)),0,COUNTRY_INFO!$E35)) -> 0 | E35: =IF(AND(INTRO!$E$37="Non endémique",INTRO!$E$41="Non endémique"),0,IF(AND(OR(COUNTRY_INFO!$H35=0,COUNTRY_INFO!$H35=4,COUNTRY_INFO!$H35=99),OR(COUNTRY_INFO!$J35=0,COUNTRY_INFO!$J35=4)),0,COUNTRY_INFO!$F35)) -> 0 | F35: 0 | G35: =IF(AND(INTRO!$E$37="Non endémique",INTRO!$E$41="Non endémique"),0,COUNTRY_INFO!Q35) -> 0 | H35: =IF(AND(INTRO!$E$37="Non endémique",INTRO!$E$41="Non endémique"),0,COUNTRY_INFO!S35) -> 0 | I35: =IF($G35=1,IVM!$G35,0) -> 0 | J35: =IF($G35=0, " ", IF(COUNTRY_INFO!$H35=1, IF(COUNTRY_INFO!$L35=1, 0," ")," ")) ->  | M35: =IF($L35="ALB", IF(INTRO!$E$39="Non endémique",IF($H35<>0,$D35*($H35-$G35),0),$D35*$H35), 0) -> 0 | N35: 0 | P35: 0 | Q35: =IF($L35="MBD", IF(INTRO!$E$39="Non endémique",IF($H35<>0,$D35*($H35-$G35),0),$D35*$H35),0) -> 0 | R35: 0 | T35: 0 | V35: 0 | W35: 0 | Y35: 0 | Z35: 0 | AB35: 0 | AC35: 0
A36: =IF(AND(INTRO!$E$37="Non endémique",INTRO!$E$41="Non endémique")," ",IF(COUNTRY_INFO!A36=0," ",COUNTRY_INFO!A36)) -> Chad | B36: =IF(AND(INTRO!$E$37="Non endémique",INTRO!$E$41="Non endémique")," ",IF(COUNTRY_INFO!B36=0," ",COUNTRY_INFO!B36)) -> Guéra | C36: =IF(AND(INTRO!$E$37="Non endémique",INTRO!$E$41="Non endémique")," ",IF(COUNTRY_INFO!C36=0," ",COUNTRY_INFO!C36)) -> Melfi | D36: =IF(AND(INTRO!$E$37="Non endémique",INTRO!$E$41="Non endémique"),0,IF(AND(OR(COUNTRY_INFO!$H36=0,COUNTRY_INFO!$H36=4,COUNTRY_INFO!$H36=99),OR(COUNTRY_INFO!$J36=0,COUNTRY_INFO!$J36=4)),0,COUNTRY_INFO!$E36)) -> 24256 | E36: =IF(AND(INTRO!$E$37="Non endémique",INTRO!$E$41="Non endémique"),0,IF(AND(OR(COUNTRY_INFO!$H36=0,COUNTRY_INFO!$H36=4,COUNTRY_INFO!$H36=99),OR(COUNTRY_INFO!$J36=0,COUNTRY_INFO!$J36=4)),0,COUNTRY_INFO!$F36)) -> 48043 | F36: 72299 | G36: =IF(AND(INTRO!$E$37="Non endémique",INTRO!$E$41="Non endémique"),0,COUNTRY_INFO!Q36) -> 0 | H36: =IF(AND(INTRO!$E$37="Non endémique",INTRO!$E$41="Non endémique"),0,COUNTRY_INFO!S36) -> 0 | I36: =IF($G36=1,IVM!$G36,0) -> 0 | J36: =IF($G36=0, " ", IF(COUNTRY_INFO!$H36=1, IF(COUNTRY_INFO!$L36=1, 0," ")," ")) ->  | M36: =IF($L36="ALB", IF(INTRO!$E$39="Non endémique",IF($H36<>0,$D36*($H36-$G36),0),$D36*$H36), 0) -> 0 | N36: 0 | P36: 0 | Q36: =IF($L36="MBD", IF(INTRO!$E$39="Non endémique",IF($H36<>0,$D36*($H36-$G36),0),$D36*$H36),0) -> 0 | R36: 0 | T36: 0 | V36: 0 | W36: 0 | Y36: 0 | Z36: 0 | AB36: 0 | AC36: 0
A37: =IF(AND(INTRO!$E$37="Non endémique",INTRO!$E$41="Non endémique")," ",IF(COUNTRY_INFO!A37=0," ",COUNTRY_INFO!A37)) -> Chad | B37: =IF(AND(INTRO!$E$37="Non endémique",INTRO!$E$41="Non endémique")," ",IF(COUNTRY_INFO!B37=0," ",COUNTRY_INFO!B37)) -> Guéra | C37: =IF(AND(INTRO!$E$37="Non endémique",INTRO!$E$41="Non endémique")," ",IF(COUNTRY_INFO!C37=0," ",COUNTRY_INFO!C37)) -> Mongo | D37: =IF(AND(INTRO!$E$37="Non endémique",INTRO!$E$41="Non endémique"),0,IF(AND(OR(COUNTRY_INFO!$H37=0,COUNTRY_INFO!$H37=4,COUNTRY_INFO!$H37=99),OR(COUNTRY_INFO!$J37=0,COUNTRY_INFO!$J37=4)),0,COUNTRY_INFO!$E37)) -> 0 | E37: =IF(AND(INTRO!$E$37="Non endémique",INTRO!$E$41="Non endémique"),0,IF(AND(OR(COUNTRY_INFO!$H37=0,COUNTRY_INFO!$H37=4,COUNTRY_INFO!$H37=99),OR(COUNTRY_INFO!$J37=0,COUNTRY_INFO!$J37=4)),0,COUNTRY_INFO!$F37)) -> 0 | F37: 0 | G37: =IF(AND(INTRO!$E$37="Non endémique",INTRO!$E$41="Non endémique"),0,COUNTRY_INFO!Q37) -> 0 | H37: =IF(AND(INTRO!$E$37="Non endémique",INTRO!$E$41="Non endémique"),0,COUNTRY_INFO!S37) -> 0 | I37: =IF($G37=1,IVM!$G37,0) -> 0 | J37: =IF($G37=0, " ", IF(COUNTRY_INFO!$H37=1, IF(COUNTRY_INFO!$L37=1, 0," ")," ")) ->  | M37: =IF($L37="ALB", IF(INTRO!$E$39="Non endémique",IF($H37<>0,$D37*($H37-$G37),0),$D37*$H37), 0) -> 0 | N37: 0 | P37: 0 | Q37: =IF($L37="MBD", IF(INTRO!$E$39="Non endémique",IF($H37<>0,$D37*($H37-$G37),0),$D37*$H37),0) -> 0 | R37: 0 | T37: 0 | V37: 0 | W37: 0 | Y37: 0 | Z37: 0 | AB37: 0 | AC37: 0
A38: =IF(AND(INTRO!$E$37="Non endémique",INTRO!$E$41="Non endémique")," ",IF(COUNTRY_INFO!A38=0," ",COUNTRY_INFO!A38)) -> Chad | B38: =IF(AND(INTRO!$E$37="Non endémique",INTRO!$E$41="Non endémique")," ",IF(COUNTRY_INFO!B38=0," ",COUNTRY_INFO!B38)) -> Hadjer Lamis | C38: =IF(AND(INTRO!$E$37="Non endémique",INTRO!$E$41="Non endémique")," ",IF(COUNTRY_INFO!C38=0," ",COUNTRY_INFO!C38)) -> Bokoro | D38: =IF(AND(INTRO!$E$37="Non endémique",INTRO!$E$41="Non endémique"),0,IF(AND(OR(COUNTRY_INFO!$H38=0,COUNTRY_INFO!$H38=4,COUNTRY_INFO!$H38=99),OR(COUNTRY_INFO!$J38=0,COUNTRY_INFO!$J38=4)),0,COUNTRY_INFO!$E38)) -> 37985 | E38: =IF(AND(INTRO!$E$37="Non endémique",INTRO!$E$41="Non endémique"),0,IF(AND(OR(COUNTRY_INFO!$H38=0,COUNTRY_INFO!$H38=4,COUNTRY_INFO!$H38=99),OR(COUNTRY_INFO!$J38=0,COUNTRY_INFO!$J38=4)),0,COUNTRY_INFO!$F38)) -> 75234 | F38: 113219 | G38: =IF(AND(INTRO!$E$37="Non endémique",INTRO!$E$41="Non endémique"),0,COUNTRY_INFO!Q38) -> 0 | H38: =IF(AND(INTRO!$E$37="Non endémique",INTRO!$E$41="Non endémique"),0,COUNTRY_INFO!S38) -> 0 | I38: =IF($G38=1,IVM!$G38,0) -> 0 | J38: =IF($G38=0, " ", IF(COUNTRY_INFO!$H38=1, IF(COUNTRY_INFO!$L38=1, 0," ")," ")) ->  | M38: =IF($L38="ALB", IF(INTRO!$E$39="Non endémique",IF($H38<>0,$D38*($H38-$G38),0),$D38*$H38), 0) -> 0 | N38: 0 | P38: 0 | Q38: =IF($L38="MBD", IF(INTRO!$E$39="Non endémique",IF($H38<>0,$D38*($H38-$G38),0),$D38*$H38),0) -> 0 | R38: 0 | T38: 0 | V38: 0 | W38: 0 | Y38: 0 | Z38: 0 | AB38: 0 | AC38: 0
A39: =IF(AND(INTRO!$E$37="Non endémique",INTRO!$E$41="Non endémique")," ",IF(COUNTRY_INFO!A39=0," ",COUNTRY_INFO!A39)) -> Chad | B39: =IF(AND(INTRO!$E$37="Non endémique",INTRO!$E$41="Non endémique")," ",IF(COUNTRY_INFO!B39=0," ",COUNTRY_INFO!B39)) -> Hadjer Lamis | C39: =IF(AND(INTRO!$E$37="Non endémique",INTRO!$E$41="Non endémique")," ",IF(COUNTRY_INFO!C39=0," ",COUNTRY_INFO!C39)) -> Gama | D39: =IF(AND(INTRO!$E$37="Non endémique",INTRO!$E$41="Non endémique"),0,IF(AND(OR(COUNTRY_INFO!$H39=0,COUNTRY_INFO!$H39=4,COUNTRY_INFO!$H39=99),OR(COUNTRY_INFO!$J39=0,COUNTRY_INFO!$J39=4)),0,COUNTRY_INFO!$E39)) -> 15519 | E39: =IF(AND(INTRO!$E$37="Non endémique",INTRO!$E$41="Non endémique"),0,IF(AND(OR(COUNTRY_INFO!$H39=0,COUNTRY_INFO!$H39=4,COUNTRY_INFO!$H39=99),OR(COUNTRY_INFO!$J39=0,COUNTRY_INFO!$J39=4)),0,COUNTRY_INFO!$F39)) -> 30737 | F39: 46256 | G39: =IF(AND(INTRO!$E$37="Non endémique",INTRO!$E$41="Non endémique"),0,COUNTRY_INFO!Q39) -> 0 | H39: =IF(AND(INTRO!$E$37="Non endémique",INTRO!$E$41="Non endémique"),0,COUNTRY_INFO!S39) -> 0 | I39: =IF($G39=1,IVM!$G39,0) -> 0 | J39: =IF($G39=0, " ", IF(COUNTRY_INFO!$H39=1, IF(COUNTRY_INFO!$L39=1, 0," ")," ")) ->  | M39: =IF($L39="ALB", IF(INTRO!$E$39="Non endémique",IF($H39<>0,$D39*($H39-$G39),0),$D39*$H39), 0) -> 0 | N39: 0 | P39: 0 | Q39: =IF($L39="MBD", IF(INTRO!$E$39="Non endémique",IF($H39<>0,$D39*($H39-$G39),0),$D39*$H39),0) -> 0 | R39: 0 | T39: 0 | V39: 0 | W39: 0 | Y39: 0 | Z39: 0 | AB39: 0 | AC39: 0
A40: =IF(AND(INTRO!$E$37="Non endémique",INTRO!$E$41="Non endémique")," ",IF(COUNTRY_INFO!A40=0," ",COUNTRY_INFO!A40)) -> Chad | B40: =IF(AND(INTRO!$E$37="Non endémique",INTRO!$E$41="Non endémique")," ",IF(COUNTRY_INFO!B40=0," ",COUNTRY_INFO!B40)) -> Hadjer Lamis | C40: =IF(AND(INTRO!$E$37="Non endémique",INTRO!$E$41="Non endémique")," ",IF(COUNTRY_INFO!C40=0," ",COUNTRY_INFO!C40)) -> Mani | D40: =IF(AND(INTRO!$E$37="Non endémique",INTRO!$E$41="Non endémique"),0,IF(AND(OR(COUNTRY_INFO!$H40=0,COUNTRY_INFO!$H40=4,COUNTRY_INFO!$H40=99),OR(COUNTRY_INFO!$J40=0,COUNTRY_INFO!$J40=4)),0,COUNTRY_INFO!$E40)) -> 22933 | E40: =IF(AND(INTRO!$E$37="Non endémique",INTRO!$E$41="Non endémique"),0,IF(AND(OR(COUNTRY_INFO!$H40=0,COUNTRY_INFO!$H40=4,COUNTRY_INFO!$H40=99),OR(COUNTRY_INFO!$J40=0,COUNTRY_INFO!$J40=4)),0,COUNTRY_INFO!$F40)) -> 45423 | F40: 68356 | G40: =IF(AND(INTRO!$E$37="Non endémique",INTRO!$E$41="Non endémique"),0,COUNTRY_INFO!Q40) -> 0 | H40: =IF(AND(INTRO!$E$37="Non endémique",INTRO!$E$41="Non endémique"),0,COUNTRY_INFO!S40) -> 0 | I40: =IF($G40=1,IVM!$G40,0) -> 0 | J40: =IF($G40=0, " ", IF(COUNTRY_INFO!$H40=1, IF(COUNTRY_INFO!$L40=1, 0," ")," ")) ->  | M40: =IF($L40="ALB", IF(INTRO!$E$39="Non endémique",IF($H40<>0,$D40*($H40-$G40),0),$D40*$H40), 0) -> 0 | N40: 0 | P40: 0 | Q40: =IF($L40="MBD", IF(INTRO!$E$39="Non endémique",IF($H40<>0,$D40*($H40-$G40),0),$D40*$H40),0) -> 0 | R40: 0 | T40: 0 | V40: 0 | W40: 0 | Y40: 0 | Z40: 0 | AB40: 0 | AC40: 0
A41: =IF(AND(INTRO!$E$37="Non endémique",INTRO!$E$41="Non endémique")," ",IF(COUNTRY_INFO!A41=0," ",COUNTRY_INFO!A41)) -> Chad | B41: =IF(AND(INTRO!$E$37="Non endémique",INTRO!$E$41="Non endémique")," ",IF(COUNTRY_INFO!B41=0," ",COUNTRY_INFO!B41)) -> Hadjer Lamis | C41: =IF(AND(INTRO!$E$37="Non endémique",INTRO!$E$41="Non endémique")," ",IF(COUNTRY_INFO!C41=0," ",COUNTRY_INFO!C41)) -> Massaguet | D41: =IF(AND(INTRO!$E$37="Non endémique",INTRO!$E$41="Non endémique"),0,IF(AND(OR(COUNTRY_INFO!$H41=0,COUNTRY_INFO!$H41=4,COUNTRY_INFO!$H41=99),OR(COUNTRY_INFO!$J41=0,COUNTRY_INFO!$J41=4)),0,COUNTRY_INFO!$E41)) -> 12212 | E41: =IF(AND(INTRO!$E$37="Non endémique",INTRO!$E$41="Non endémique"),0,IF(AND(OR(COUNTRY_INFO!$H41=0,COUNTRY_INFO!$H41=4,COUNTRY_INFO!$H41=99),OR(COUNTRY_INFO!$J41=0,COUNTRY_INFO!$J41=4)),0,COUNTRY_INFO!$F41)) -> 24189 | F41: =SUM(D41:E41) -> 36401 | G41: =IF(AND(INTRO!$E$37="Non endémique",INTRO!$E$41="Non endémique"),0,COUNTRY_INFO!Q41) -> 0 | H41: =IF(AND(INTRO!$E$37="Non endémique",INTRO!$E$41="Non endémique"),0,COUNTRY_INFO!S41) -> 0 | I41: =IF($G41=1,IVM!$G41,0) -> 0 | J41: =IF($G41=0, " ", IF(COUNTRY_INFO!$H41=1, IF(COUNTRY_INFO!$L41=1, 0," ")," ")) ->  | M41: =IF($L41="ALB", IF(INTRO!$E$39="Non endémique",IF($H41<>0,$D41*($H41-$G41),0),$D41*$H41), 0) -> 0 | N41: =IF($L41="ALB", IF($H41=0, 0, IF(AND($I41=0, OR($J41=0,$J41=" ")), $E41*$H41, IF(AND($I41=0, $J41>0), IF(($H41-$K41)<=0, 0, $E41*(MAX($H41,$K41)-MIN($H41,$K41))), IF(AND($I41>0, $J41=0), $E41*($H41-$G41), IF($J41=" ", 0, $J41*$E41/($I41+$J41)*$K41+$I41*$E41/($I41+$J41)*($H41-$G41)))))), 0) -> 0 | P41: =SUM(M41:O41) -> 0 | Q41: =IF($L41="MBD", IF(INTRO!$E$39="Non endémique",IF($H41<>0,$D41*($H41-$G41),0),$D41*$H41),0) -> 0 | R41: =IF($L41="MBD", IF($H41=0, 0, IF(AND($I41=0, OR($J41=0,$J41=" ")), $E41*$H41, IF(AND($I41=0, $J41>0), IF(($H41-$K41)<=0, 0, $E41*(MAX($H41,$K41)-MIN($H41,$K41))), IF(AND($I41>0, $J41=0), $E41*($H41-$G41), IF($J41=" ", 0, $J41*$E41/($I41+$J41)*$K41+$I41*$E41/($I41+$J41)*($H41-$G41)))))), 0) -> 0 | T41: =SUM(Q41:S41) -> 0 | V41: =IF($J41<>" ", IF(($I41+$J41*$K41)>$U41, ($I41+$J41*$K41)-$U41,0), IF($I41>$U41, $I41-$U41, 0)) -> 0 | W41: =IF($J41<>" ", ROUNDUP(($I41+$J41*$K41)/200,0), ROUNDUP($I41/200,0)) -> 0 | Y41: =IF($N41>$X41,$N41-$X41,0) -> 0 | Z41: =ROUNDUP($N41/200,0) -> 0 | AB41: =IF($R41>$AA41,$R41-$AA41,0) -> 0 | AC41: =ROUNDUP($R41/150,0) -> 0
A42: =IF(AND(INTRO!$E$37="Non endémique",INTRO!$E$41="Non endémique")," ",IF(COUNTRY_INFO!A42=0," ",COUNTRY_INFO!A42)) -> Chad | B42: =IF(AND(INTRO!$E$37="Non endémique",INTRO!$E$41="Non endémique")," ",IF(COUNTRY_INFO!B42=0," ",COUNTRY_INFO!B42)) -> Hadjer Lamis | C42: =IF(AND(INTRO!$E$37="Non endémique",INTRO!$E$41="Non endémique")," ",IF(COUNTRY_INFO!C42=0," ",COUNTRY_INFO!C42)) -> Massakory | D42: =IF(AND(INTRO!$E$37="Non endémique",INTRO!$E$41="Non endémique"),0,IF(AND(OR(COUNTRY_INFO!$H42=0,COUNTRY_INFO!$H42=4,COUNTRY_INFO!$H42=99),OR(COUNTRY_INFO!$J42=0,COUNTRY_INFO!$J42=4)),0,COUNTRY_INFO!$E42)) -> 44111 | E42: =IF(AND(INTRO!$E$37="Non endémique",INTRO!$E$41="Non endémique"),0,IF(AND(OR(COUNTRY_INFO!$H42=0,COUNTRY_INFO!$H42=4,COUNTRY_INFO!$H42=99),OR(COUNTRY_INFO!$J42=0,COUNTRY_INFO!$J42=4)),0,COUNTRY_INFO!$F42)) -> 87367 | F42: 131478 | G42: =IF(AND(INTRO!$E$37="Non endémique",INTRO!$E$41="Non endémique"),0,COUNTRY_INFO!Q42) -> 0 | H42: =IF(AND(INTRO!$E$37="Non endémique",INTRO!$E$41="Non endémique"),0,COUNTRY_INFO!S42) -> 0 | I42: =IF($G42=1,IVM!$G42,0) -> 0 | J42: =IF($G42=0, " ", IF(COUNTRY_INFO!$H42=1, IF(COUNTRY_INFO!$L42=1, 0," ")," ")) ->  | M42: =IF($L42="ALB", IF(INTRO!$E$39="Non endémique",IF($H42<>0,$D42*($H42-$G42),0),$D42*$H42), 0) -> 0 | N42: 0 | P42: 0 | Q42: =IF($L42="MBD", IF(INTRO!$E$39="Non endémique",IF($H42<>0,$D42*($H42-$G42),0),$D42*$H42),0) -> 0 | R42: 0 | T42: 0 | V42: 0 | W42: 0 | Y42: 0 | Z42: 0 | AB42: 0 | AC42: 0
A43: =IF(AND(INTRO!$E$37="Non endémique",INTRO!$E$41="Non endémique")," ",IF(COUNTRY_INFO!A43=0," ",COUNTRY_INFO!A43)) -> Chad | B43: =IF(AND(INTRO!$E$37="Non endémique",INTRO!$E$41="Non endémique")," ",IF(COUNTRY_INFO!B43=0," ",COUNTRY_INFO!B43)) -> Kanem | C43: =IF(AND(INTRO!$E$37="Non endémique",INTRO!$E$41="Non endémique")," ",IF(COUNTRY_INFO!C43=0," ",COUNTRY_INFO!C43)) -> Mao | D43: =IF(AND(INTRO!$E$37="Non endémique",INTRO!$E$41="Non endémique"),0,IF(AND(OR(COUNTRY_INFO!$H43=0,COUNTRY_INFO!$H43=4,COUNTRY_INFO!$H43=99),OR(COUNTRY_INFO!$J43=0,COUNTRY_INFO!$J43=4)),0,COUNTRY_INFO!$E43)) -> 27623 | E43: =IF(AND(INTRO!$E$37="Non endémique",INTRO!$E$41="Non endémique"),0,IF(AND(OR(COUNTRY_INFO!$H43=0,COUNTRY_INFO!$H43=4,COUNTRY_INFO!$H43=99),OR(COUNTRY_INFO!$J43=0,COUNTRY_INFO!$J43=4)),0,COUNTRY_INFO!$F43)) -> 54710 | F43: 82333 | G43: =IF(AND(INTRO!$E$37="Non endémique",INTRO!$E$41="Non endémique"),0,COUNTRY_INFO!Q43) -> 0 | H43: =IF(AND(INTRO!$E$37="Non endémique",INTRO!$E$41="Non endémique"),0,COUNTRY_INFO!S43) -> 0 | I43: =IF($G43=1,IVM!$G43,0) -> 0 | J43: =IF($G43=0, " ", IF(COUNTRY_INFO!$H43=1, IF(COUNTRY_INFO!$L43=1, 0," ")," ")) ->  | M43: =IF($L43="ALB", IF(INTRO!$E$39="Non endémique",IF($H43<>0,$D43*($H43-$G43),0),$D43*$H43), 0) -> 0 | N43: 0 | P43: 0 | Q43: =IF($L43="MBD", IF(INTRO!$E$39="Non endémique",IF($H43<>0,$D43*($H43-$G43),0),$D43*$H43),0) -> 0 | R43: 0 | T43: 0 | V43: 0 | W43: 0 | Y43: 0 | Z43: 0 | AB43: 0 | AC43: 0
A44: =IF(AND(INTRO!$E$37="Non endémique",INTRO!$E$41="Non endémique")," ",IF(COUNTRY_INFO!A44=0," ",COUNTRY_INFO!A44)) -> Chad | B44: =IF(AND(INTRO!$E$37="Non endémique",INTRO!$E$41="Non endémique")," ",IF(COUNTRY_INFO!B44=0," ",COUNTRY_INFO!B44)) -> Kanem | C44: =IF(AND(INTRO!$E$37="Non endémique",INTRO!$E$41="Non endémique")," ",IF(COUNTRY_INFO!C44=0," ",COUNTRY_INFO!C44)) -> Mondo | D44: =IF(AND(INTRO!$E$37="Non endémique",INTRO!$E$41="Non endémique"),0,IF(AND(OR(COUNTRY_INFO!$H44=0,COUNTRY_INFO!$H44=4,COUNTRY_INFO!$H44=99),OR(COUNTRY_INFO!$J44=0,COUNTRY_INFO!$J44=4)),0,COUNTRY_INFO!$E44)) -> 0 | E44: =IF(AND(INTRO!$E$37="Non endémique",INTRO!$E$41="Non endémique"),0,IF(AND(OR(COUNTRY_INFO!$H44=0,COUNTRY_INFO!$H44=4,COUNTRY_INFO!$H44=99),OR(COUNTRY_INFO!$J44=0,COUNTRY_INFO!$J44=4)),0,COUNTRY_INFO!$F44)) -> 0 | F44: 0 | G44: =IF(AND(INTRO!$E$37="Non endémique",INTRO!$E$41="Non endémique"),0,COUNTRY_INFO!Q44) -> 0 | H44: =IF(AND(INTRO!$E$37="Non endémique",INTRO!$E$41="Non endémique"),0,COUNTRY_INFO!S44) -> 0 | I44: =IF($G44=1,IVM!$G44,0) -> 0 | J44: =IF($G44=0, " ", IF(COUNTRY_INFO!$H44=1, IF(COUNTRY_INFO!$L44=1, 0," ")," ")) ->  | M44: =IF($L44="ALB", IF(INTRO!$E$39="Non endémique",IF($H44<>0,$D44*($H44-$G44),0),$D44*$H44), 0) -> 0 | N44: 0 | P44: 0 | Q44: =IF($L44="MBD", IF(INTRO!$E$39="Non endémique",IF($H44<>0,$D44*($H44-$G44),0),$D44*$H44),0) -> 0 | R44: 0 | T44: 0 | V44: 0 | W44: 0 | Y44: 0 | Z44: 0 | AB44: 0 | AC44: 0
A45: =IF(AND(INTRO!$E$37="Non endémique",INTRO!$E$41="Non endémique")," ",IF(COUNTRY_INFO!A45=0," ",COUNTRY_INFO!A45)) -> Chad | B45: =IF(AND(INTRO!$E$37="Non endémique",INTRO!$E$41="Non endémique")," ",IF(COUNTRY_INFO!B45=0," ",COUNTRY_INFO!B45)) -> Kanem | C45: =IF(AND(INTRO!$E$37="Non endémique",INTRO!$E$41="Non endémique")," ",IF(COUNTRY_INFO!C45=0," ",COUNTRY_INFO!C45)) -> Nokou | D45: =IF(AND(INTRO!$E$37="Non endémique",INTRO!$E$41="Non endémique"),0,IF(AND(OR(COUNTRY_INFO!$H45=0,COUNTRY_INFO!$H45=4,COUNTRY_INFO!$H45=99),OR(COUNTRY_INFO!$J45=0,COUNTRY_INFO!$J45=4)),0,COUNTRY_INFO!$E45)) -> 0 | E45: =IF(AND(INTRO!$E$37="Non endémique",INTRO!$E$41="Non endémique"),0,IF(AND(OR(COUNTRY_INFO!$H45=0,COUNTRY_INFO!$H45=4,COUNTRY_INFO!$H45=99),OR(COUNTRY_INFO!$J45=0,COUNTRY_INFO!$J45=4)),0,COUNTRY_INFO!$F45)) -> 0 | F45: 0 | G45: =IF(AND(INTRO!$E$37="Non endémique",INTRO!$E$41="Non endémique"),0,COUNTRY_INFO!Q45) -> 0 | H45: =IF(AND(INTRO!$E$37="Non endémique",INTRO!$E$41="Non endémique"),0,COUNTRY_INFO!S45) -> 0 | I45: =IF($G45=1,IVM!$G45,0) -> 0 | J45: =IF($G45=0, " ", IF(COUNTRY_INFO!$H45=1, IF(COUNTRY_INFO!$L45=1, 0," ")," ")) ->  | M45: =IF($L45="ALB", IF(INTRO!$E$39="Non endémique",IF($H45<>0,$D45*($H45-$G45),0),$D45*$H45), 0) -> 0 | N45: 0 | P45: 0 | Q45: =IF($L45="MBD", IF(INTRO!$E$39="Non endémique",IF($H45<>0,$D45*($H45-$G45),0),$D45*$H45),0) -> 0 | R45: 0 | T45: 0 | V45: 0 | W45: 0 | Y45: 0 | Z45: 0 | AB45: 0 | AC45: 0
A46: =IF(AND(INTRO!$E$37="Non endémique",INTRO!$E$41="Non endémique")," ",IF(COUNTRY_INFO!A46=0," ",COUNTRY_INFO!A46)) -> Chad | B46: =IF(AND(INTRO!$E$37="Non endémique",INTRO!$E$41="Non endémique")," ",IF(COUNTRY_INFO!B46=0," ",COUNTRY_INFO!B46)) -> Kanem | C46: =IF(AND(INTRO!$E$37="Non endémique",INTRO!$E$41="Non endémique")," ",IF(COUNTRY_INFO!C46=0," ",COUNTRY_INFO!C46)) -> Ntiona | D46: =IF(AND(INTRO!$E$37="Non endémique",INTRO!$E$41="Non endémique"),0,IF(AND(OR(COUNTRY_INFO!$H46=0,COUNTRY_INFO!$H46=4,COUNTRY_INFO!$H46=99),OR(COUNTRY_INFO!$J46=0,COUNTRY_INFO!$J46=4)),0,COUNTRY_INFO!$E46)) -> 8251 | E46: =IF(AND(INTRO!$E$37="Non endémique",INTRO!$E$41="Non endémique"),0,IF(AND(OR(COUNTRY_INFO!$H46=0,COUNTRY_INFO!$H46=4,COUNTRY_INFO!$H46=99),OR(COUNTRY_INFO!$J46=0,COUNTRY_INFO!$J46=4)),0,COUNTRY_INFO!$F46)) -> 16342 | F46: 24593 | G46: =IF(AND(INTRO!$E$37="Non endémique",INTRO!$E$41="Non endémique"),0,COUNTRY_INFO!Q46) -> 0 | H46: =IF(AND(INTRO!$E$37="Non endémique",INTRO!$E$41="Non endémique"),0,COUNTRY_INFO!S46) -> 0 | I46: =IF($G46=1,IVM!$G46,0) -> 0 | J46: =IF($G46=0, " ", IF(COUNTRY_INFO!$H46=1, IF(COUNTRY_INFO!$L46=1, 0," ")," ")) ->  | M46: =IF($L46="ALB", IF(INTRO!$E$39="Non endémique",IF($H46<>0,$D46*($H46-$G46),0),$D46*$H46), 0) -> 0 | N46: 0 | P46: 0 | Q46: =IF($L46="MBD", IF(INTRO!$E$39="Non endémique",IF($H46<>0,$D46*($H46-$G46),0),$D46*$H46),0) -> 0 | R46: 0 | T46: 0 | V46: 0 | W46: 0 | Y46: 0 | Z46: 0 | AB46: 0 | AC46: 0
A47: =IF(AND(INTRO!$E$37="Non endémique",INTRO!$E$41="Non endémique")," ",IF(COUNTRY_INFO!A47=0," ",COUNTRY_INFO!A47)) -> Chad | B47: =IF(AND(INTRO!$E$37="Non endémique",INTRO!$E$41="Non endémique")," ",IF(COUNTRY_INFO!B47=0," ",COUNTRY_INFO!B47)) -> Kanem | C47: =IF(AND(INTRO!$E$37="Non endémique",INTRO!$E$41="Non endémique")," ",IF(COUNTRY_INFO!C47=0," ",COUNTRY_INFO!C47)) -> Rig-Rig | D47: =IF(AND(INTRO!$E$37="Non endémique",INTRO!$E$41="Non endémique"),0,IF(AND(OR(COUNTRY_INFO!$H47=0,COUNTRY_INFO!$H47=4,COUNTRY_INFO!$H47=99),OR(COUNTRY_INFO!$J47=0,COUNTRY_INFO!$J47=4)),0,COUNTRY_INFO!$E47)) -> 0 | E47: =IF(AND(INTRO!$E$37="Non endémique",INTRO!$E$41="Non endémique"),0,IF(AND(OR(COUNTRY_INFO!$H47=0,COUNTRY_INFO!$H47=4,COUNTRY_INFO!$H47=99),OR(COUNTRY_INFO!$J47=0,COUNTRY_INFO!$J47=4)),0,COUNTRY_INFO!$F47)) -> 0 | F47: 0 | G47: =IF(AND(INTRO!$E$37="Non endémique",INTRO!$E$41="Non endémique"),0,COUNTRY_INFO!Q47) -> 0 | H47: =IF(AND(INTRO!$E$37="Non endémique",INTRO!$E$41="Non endémique"),0,COUNTRY_INFO!S47) -> 0 | I47: =IF($G47=1,IVM!$G47,0) -> 0 | J47: =IF($G47=0, " ", IF(COUNTRY_INFO!$H47=1, IF(COUNTRY_INFO!$L47=1, 0," ")," ")) ->  | M47: =IF($L47="ALB", IF(INTRO!$E$39="Non endémique",IF($H47<>0,$D47*($H47-$G47),0),$D47*$H47), 0) -> 0 | N47: 0 | P47: 0 | Q47: =IF($L47="MBD", IF(INTRO!$E$39="Non endémique",IF($H47<>0,$D47*($H47-$G47),0),$D47*$H47),0) -> 0 | R47: 0 | T47: 0 | V47: 0 | W47: 0 | Y47: 0 | Z47: 0 | AB47: 0 | AC47: 0
A48: =IF(AND(INTRO!$E$37="Non endémique",INTRO!$E$41="Non endémique")," ",IF(COUNTRY_INFO!A48=0," ",COUNTRY_INFO!A48)) -> Chad | B48: =IF(AND(INTRO!$E$37="Non endémique",INTRO!$E$41="Non endémique")," ",IF(COUNTRY_INFO!B48=0," ",COUNTRY_INFO!B48)) -> Lac | C48: =IF(AND(INTRO!$E$37="Non endémique",INTRO!$E$41="Non endémique")," ",IF(COUNTRY_INFO!C48=0," ",COUNTRY_INFO!C48)) -> Bagassola | D48: =IF(AND(INTRO!$E$37="Non endémique",INTRO!$E$41="Non endémique"),0,IF(AND(OR(COUNTRY_INFO!$H48=0,COUNTRY_INFO!$H48=4,COUNTRY_INFO!$H48=99),OR(COUNTRY_INFO!$J48=0,COUNTRY_INFO!$J48=4)),0,COUNTRY_INFO!$E48)) -> 13993 | E48: =IF(AND(INTRO!$E$37="Non endémique",INTRO!$E$41="Non endémique"),0,IF(AND(OR(COUNTRY_INFO!$H48=0,COUNTRY_INFO!$H48=4,COUNTRY_INFO!$H48=99),OR(COUNTRY_INFO!$J48=0,COUNTRY_INFO!$J48=4)),0,COUNTRY_INFO!$F48)) -> 27715 | F48: 41708 | G48: =IF(AND(INTRO!$E$37="Non endémique",INTRO!$E$41="Non endémique"),0,COUNTRY_INFO!Q48) -> 0 | H48: =IF(AND(INTRO!$E$37="Non endémique",INTRO!$E$41="Non endémique"),0,COUNTRY_INFO!S48) -> 0 | I48: =IF($G48=1,IVM!$G48,0) -> 0 | J48: =IF($G48=0, " ", IF(COUNTRY_INFO!$H48=1, IF(COUNTRY_INFO!$L48=1, 0," ")," ")) ->  | M48: =IF($L48="ALB", IF(INTRO!$E$39="Non endémique",IF($H48<>0,$D48*($H48-$G48),0),$D48*$H48), 0) -> 0 | N48: 0 | P48: 0 | Q48: =IF($L48="MBD", IF(INTRO!$E$39="Non endémique",IF($H48<>0,$D48*($H48-$G48),0),$D48*$H48),0) -> 0 | R48: 0 | T48: 0 | V48: 0 | W48: 0 | Y48: 0 | Z48: 0 | AB48: 0 | AC48: 0
A49: =IF(AND(INTRO!$E$37="Non endémique",INTRO!$E$41="Non endémique")," ",IF(COUNTRY_INFO!A49=0," ",COUNTRY_INFO!A49)) -> Chad | B49: =IF(AND(INTRO!$E$37="Non endémique",INTRO!$E$41="Non endémique")," ",IF(COUNTRY_INFO!B49=0," ",COUNTRY_INFO!B49)) -> Lac | C49: =IF(AND(INTRO!$E$37="Non endémique",INTRO!$E$41="Non endémique")," ",IF(COUNTRY_INFO!C49=0," ",COUNTRY_INFO!C49)) -> Bol | D49: =IF(AND(INTRO!$E$37="Non endémique",INTRO!$E$41="Non endémique"),0,IF(AND(OR(COUNTRY_INFO!$H49=0,COUNTRY_INFO!$H49=4,COUNTRY_INFO!$H49=99),OR(COUNTRY_INFO!$J49=0,COUNTRY_INFO!$J49=4)),0,COUNTRY_INFO!$E49)) -> 29094 | E49: =IF(AND(INTRO!$E$37="Non endémique",INTRO!$E$41="Non endémique"),0,IF(AND(OR(COUNTRY_INFO!$H49=0,COUNTRY_INFO!$H49=4,COUNTRY_INFO!$H49=99),OR(COUNTRY_INFO!$J49=0,COUNTRY_INFO!$J49=4)),0,COUNTRY_INFO!$F49)) -> 57625 | F49: 86719 | G49: =IF(AND(INTRO!$E$37="Non endémique",INTRO!$E$41="Non endémique"),0,COUNTRY_INFO!Q49) -> 0 | H49: =IF(AND(INTRO!$E$37="Non endémique",INTRO!$E$41="Non endémique"),0,COUNTRY_INFO!S49) -> 0 | I49: =IF($G49=1,IVM!$G49,0) -> 0 | J49: =IF($G49=0, " ", IF(COUNTRY_INFO!$H49=1, IF(COUNTRY_INFO!$L49=1, 0," ")," ")) ->  | M49: =IF($L49="ALB", IF(INTRO!$E$39="Non endémique",IF($H49<>0,$D49*($H49-$G49),0),$D49*$H49), 0) -> 0 | N49: 0 | P49: 0 | Q49: =IF($L49="MBD", IF(INTRO!$E$39="Non endémique",IF($H49<>0,$D49*($H49-$G49),0),$D49*$H49),0) -> 0 | R49: 0 | T49: 0 | V49: 0 | W49: 0 | Y49: 0 | Z49: 0 | AB49: 0 | AC49: 0
A50: =IF(AND(INTRO!$E$37="Non endémique",INTRO!$E$41="Non endémique")," ",IF(COUNTRY_INFO!A50=0," ",COUNTRY_INFO!A50)) -> Chad | B50: =IF(AND(INTRO!$E$37="Non endémique",INTRO!$E$41="Non endémique")," ",IF(COUNTRY_INFO!B50=0," ",COUNTRY_INFO!B50)) -> Lac | C50: =IF(AND(INTRO!$E$37="Non endémique",INTRO!$E$41="Non endémique")," ",IF(COUNTRY_INFO!C50=0," ",COUNTRY_INFO!C50)) -> Isserom | D50: =IF(AND(INTRO!$E$37="Non endémique",INTRO!$E$41="Non endémique"),0,IF(AND(OR(COUNTRY_INFO!$H50=0,COUNTRY_INFO!$H50=4,COUNTRY_INFO!$H50=99),OR(COUNTRY_INFO!$J50=0,COUNTRY_INFO!$J50=4)),0,COUNTRY_INFO!$E50)) -> 10041 | E50: =IF(AND(INTRO!$E$37="Non endémique",INTRO!$E$41="Non endémique"),0,IF(AND(OR(COUNTRY_INFO!$H50=0,COUNTRY_INFO!$H50=4,COUNTRY_INFO!$H50=99),OR(COUNTRY_INFO!$J50=0,COUNTRY_INFO!$J50=4)),0,COUNTRY_INFO!$F50)) -> 19888 | F50: 29929 | G50: =IF(AND(INTRO!$E$37="Non endémique",INTRO!$E$41="Non endémique"),0,COUNTRY_INFO!Q50) -> 0 | H50: =IF(AND(INTRO!$E$37="Non endémique",INTRO!$E$41="Non endémique"),0,COUNTRY_INFO!S50) -> 0 | I50: =IF($G50=1,IVM!$G50,0) -> 0 | J50: =IF($G50=0, " ", IF(COUNTRY_INFO!$H50=1, IF(COUNTRY_INFO!$L50=1, 0," ")," ")) ->  | M50: =IF($L50="ALB", IF(INTRO!$E$39="Non endémique",IF($H50<>0,$D50*($H50-$G50),0),$D50*$H50), 0) -> 0 | N50: 0 | P50: 0 | Q50: =IF($L50="MBD", IF(INTRO!$E$39="Non endémique",IF($H50<>0,$D50*($H50-$G50),0),$D50*$H50),0) -> 0 | R50: 0 | T50: 0 | V50: 0 | W50: 0 | Y50: 0 | Z50: 0 | AB50: 0 | AC50: 0
A51: =IF(AND(INTRO!$E$37="Non endémique",INTRO!$E$41="Non endémique")," ",IF(COUNTRY_INFO!A51=0," ",COUNTRY_INFO!A51)) -> Chad | B51: =IF(AND(INTRO!$E$37="Non endémique",INTRO!$E$41="Non endémique")," ",IF(COUNTRY_INFO!B51=0," ",COUNTRY_INFO!B51)) -> Lac | C51: =IF(AND(INTRO!$E$37="Non endémique",INTRO!$E$41="Non endémique")," ",IF(COUNTRY_INFO!C51=0," ",COUNTRY_INFO!C51)) -> Kouloudia | D51: =IF(AND(INTRO!$E$37="Non endémique",INTRO!$E$41="Non endémique"),0,IF(AND(OR(COUNTRY_INFO!$H51=0,COUNTRY_INFO!$H51=4,COUNTRY_INFO!$H51=99),OR(COUNTRY_INFO!$J51=0,COUNTRY_INFO!$J51=4)),0,COUNTRY_INFO!$E51)) -> 12200 | E51: =IF(AND(INTRO!$E$37="Non endémique",INTRO!$E$41="Non endémique"),0,IF(AND(OR(COUNTRY_INFO!$H51=0,COUNTRY_INFO!$H51=4,COUNTRY_INFO!$H51=99),OR(COUNTRY_INFO!$J51=0,COUNTRY_INFO!$J51=4)),0,COUNTRY_INFO!$F51)) -> 24164 | F51: 36364 | G51: =IF(AND(INTRO!$E$37="Non endémique",INTRO!$E$41="Non endémique"),0,COUNTRY_INFO!Q51) -> 0 | H51: =IF(AND(INTRO!$E$37="Non endémique",INTRO!$E$41="Non endémique"),0,COUNTRY_INFO!S51) -> 0 | I51: =IF($G51=1,IVM!$G51,0) -> 0 | J51: =IF($G51=0, " ", IF(COUNTRY_INFO!$H51=1, IF(COUNTRY_INFO!$L51=1, 0," ")," ")) ->  | M51: =IF($L51="ALB", IF(INTRO!$E$39="Non endémique",IF($H51<>0,$D51*($H51-$G51),0),$D51*$H51), 0) -> 0 | N51: 0 | P51: 0 | Q51: =IF($L51="MBD", IF(INTRO!$E$39="Non endémique",IF($H51<>0,$D51*($H51-$G51),0),$D51*$H51),0) -> 0 | R51: 0 | T51: 0 | V51: 0 | W51: 0 | Y51: 0 | Z51: 0 | AB51: 0 | AC51: 0
A52: =IF(AND(INTRO!$E$37="Non endémique",INTRO!$E$41="Non endémique")," ",IF(COUNTRY_INFO!A52=0," ",COUNTRY_INFO!A52)) -> Chad | B52: =IF(AND(INTRO!$E$37="Non endémique",INTRO!$E$41="Non endémique")," ",IF(COUNTRY_INFO!B52=0," ",COUNTRY_INFO!B52)) -> Lac | C52: =IF(AND(INTRO!$E$37="Non endémique",INTRO!$E$41="Non endémique")," ",IF(COUNTRY_INFO!C52=0," ",COUNTRY_INFO!C52)) -> Liwa | D52: =IF(AND(INTRO!$E$37="Non endémique",INTRO!$E$41="Non endémique"),0,IF(AND(OR(COUNTRY_INFO!$H52=0,COUNTRY_INFO!$H52=4,COUNTRY_INFO!$H52=99),OR(COUNTRY_INFO!$J52=0,COUNTRY_INFO!$J52=4)),0,COUNTRY_INFO!$E52)) -> 9114 | E52: =IF(AND(INTRO!$E$37="Non endémique",INTRO!$E$41="Non endémique"),0,IF(AND(OR(COUNTRY_INFO!$H52=0,COUNTRY_INFO!$H52=4,COUNTRY_INFO!$H52=99),OR(COUNTRY_INFO!$J52=0,COUNTRY_INFO!$J52=4)),0,COUNTRY_INFO!$F52)) -> 18052 | F52: 27166 | G52: =IF(AND(INTRO!$E$37="Non endémique",INTRO!$E$41="Non endémique"),0,COUNTRY_INFO!Q52) -> 0 | H52: =IF(AND(INTRO!$E$37="Non endémique",INTRO!$E$41="Non endémique"),0,COUNTRY_INFO!S52) -> 0 | I52: =IF($G52=1,IVM!$G52,0) -> 0 | J52: =IF($G52=0, " ", IF(COUNTRY_INFO!$H52=1, IF(COUNTRY_INFO!$L52=1, 0," ")," ")) ->  | M52: =IF($L52="ALB", IF(INTRO!$E$39="Non endémique",IF($H52<>0,$D52*($H52-$G52),0),$D52*$H52), 0) -> 0 | N52: 0 | P52: 0 | Q52: =IF($L52="MBD", IF(INTRO!$E$39="Non endémique",IF($H52<>0,$D52*($H52-$G52),0),$D52*$H52),0) -> 0 | R52: 0 | T52: 0 | V52: 0 | W52: 0 | Y52: 0 | Z52: 0 | AB52: 0 | AC52: 0
A53: =IF(AND(INTRO!$E$37="Non endémique",INTRO!$E$41="Non endémique")," ",IF(COUNTRY_INFO!A53=0," ",COUNTRY_INFO!A53)) -> Chad | B53: =IF(AND(INTRO!$E$37="Non endémique",INTRO!$E$41="Non endémique")," ",IF(COUNTRY_INFO!B53=0," ",COUNTRY_INFO!B53)) -> Lac | C53: =IF(AND(INTRO!$E$37="Non endémique",INTRO!$E$41="Non endémique")," ",IF(COUNTRY_INFO!C53=0," ",COUNTRY_INFO!C53)) -> Ngouri | D53: =IF(AND(INTRO!$E$37="Non endémique",INTRO!$E$41="Non endémique"),0,IF(AND(OR(COUNTRY_INFO!$H53=0,COUNTRY_INFO!$H53=4,COUNTRY_INFO!$H53=99),OR(COUNTRY_INFO!$J53=0,COUNTRY_INFO!$J53=4)),0,COUNTRY_INFO!$E53)) -> 27149 | E53: =IF(AND(INTRO!$E$37="Non endémique",INTRO!$E$41="Non endémique"),0,IF(AND(OR(COUNTRY_INFO!$H53=0,COUNTRY_INFO!$H53=4,COUNTRY_INFO!$H53=99),OR(COUNTRY_INFO!$J53=0,COUNTRY_INFO!$J53=4)),0,COUNTRY_INFO!$F53)) -> 53772 | F53: 80921 | G53: =IF(AND(INTRO!$E$37="Non endémique",INTRO!$E$41="Non endémique"),0,COUNTRY_INFO!Q53) -> 0 | H53: =IF(AND(INTRO!$E$37="Non endémique",INTRO!$E$41="Non endémique"),0,COUNTRY_INFO!S53) -> 0 | I53: =IF($G53=1,IVM!$G53,0) -> 0 | J53: =IF($G53=0, " ", IF(COUNTRY_INFO!$H53=1, IF(COUNTRY_INFO!$L53=1, 0," ")," ")) ->  | M53: =IF($L53="ALB", IF(INTRO!$E$39="Non endémique",IF($H53<>0,$D53*($H53-$G53),0),$D53*$H53), 0) -> 0 | N53: 0 | P53: 0 | Q53: =IF($L53="MBD", IF(INTRO!$E$39="Non endémique",IF($H53<>0,$D53*($H53-$G53),0),$D53*$H53),0) -> 0 | R53: 0 | T53: 0 | V53: 0 | W53: 0 | Y53: 0 | Z53: 0 | AB53: 0 | AC53: 0
A54: =IF(AND(INTRO!$E$37="Non endémique",INTRO!$E$41="Non endémique")," ",IF(COUNTRY_INFO!A54=0," ",COUNTRY_INFO!A54)) -> Chad | B54: =IF(AND(INTRO!$E$37="Non endémique",INTRO!$E$41="Non endémique")," ",IF(COUNTRY_INFO!B54=0," ",COUNTRY_INFO!B54)) -> Logone Occidental | C54: =IF(AND(INTRO!$E$37="Non endémique",INTRO!$E$41="Non endémique")," ",IF(COUNTRY_INFO!C54=0," ",COUNTRY_INFO!C54)) -> Benamar | D54: =IF(AND(INTRO!$E$37="Non endémique",INTRO!$E$41="Non endémique"),0,IF(AND(OR(COUNTRY_INFO!$H54=0,COUNTRY_INFO!$H54=4,COUNTRY_INFO!$H54=99),OR(COUNTRY_INFO!$J54=0,COUNTRY_INFO!$J54=4)),0,COUNTRY_INFO!$E54)) -> 21105 | E54: =IF(AND(INTRO!$E$37="Non endémique",INTRO!$E$41="Non endémique"),0,IF(AND(OR(COUNTRY_INFO!$H54=0,COUNTRY_INFO!$H54=4,COUNTRY_INFO!$H54=99),OR(COUNTRY_INFO!$J54=0,COUNTRY_INFO!$J54=4)),0,COUNTRY_INFO!$F54)) -> 41802 | F54: 62907 | G54: =IF(AND(INTRO!$E$37="Non endémique",INTRO!$E$41="Non endémique"),0,COUNTRY_INFO!Q54) -> 1 | H54: =IF(AND(INTRO!$E$37="Non endémique",INTRO!$E$41="Non endémique"),0,COUNTRY_INFO!S54) -> 0 | I54: =IF($G54=1,IVM!$G54,0) -> 109067 | J54: =IF($G54=0, " ", IF(COUNTRY_INFO!$H54=1, IF(COUNTRY_INFO!$L54=1, 0," ")," ")) ->  | M54: =IF($L54="ALB", IF(INTRO!$E$39="Non endémique",IF($H54<>0,$D54*($H54-$G54),0),$D54*$H54), 0) -> 0 | N54: 0 | P54: 0 | Q54: =IF($L54="MBD", IF(INTRO!$E$39="Non endémique",IF($H54<>0,$D54*($H54-$G54),0),$D54*$H54),0) -> 0 | R54: 0 | T54: 0 | V54: 109067 | W54: 546 | Y54: 0 | Z54: 0 | AB54: 0 | AC54: 0
A55: =IF(AND(INTRO!$E$37="Non endémique",INTRO!$E$41="Non endémique")," ",IF(COUNTRY_INFO!A55=0," ",COUNTRY_INFO!A55)) -> Chad | B55: =IF(AND(INTRO!$E$37="Non endémique",INTRO!$E$41="Non endémique")," ",IF(COUNTRY_INFO!B55=0," ",COUNTRY_INFO!B55)) -> Logone Occidental | C55: =IF(AND(INTRO!$E$37="Non endémique",INTRO!$E$41="Non endémique")," ",IF(COUNTRY_INFO!C55=0," ",COUNTRY_INFO!C55)) -> Benoye | D55: =IF(AND(INTRO!$E$37="Non endémique",INTRO!$E$41="Non endémique"),0,IF(AND(OR(COUNTRY_INFO!$H55=0,COUNTRY_INFO!$H55=4,COUNTRY_INFO!$H55=99),OR(COUNTRY_INFO!$J55=0,COUNTRY_INFO!$J55=4)),0,COUNTRY_INFO!$E55)) -> 28453 | E55: =IF(AND(INTRO!$E$37="Non endémique",INTRO!$E$41="Non endémique"),0,IF(AND(OR(COUNTRY_INFO!$H55=0,COUNTRY_INFO!$H55=4,COUNTRY_INFO!$H55=99),OR(COUNTRY_INFO!$J55=0,COUNTRY_INFO!$J55=4)),0,COUNTRY_INFO!$F55)) -> 56355 | F55: 84808 | G55: =IF(AND(INTRO!$E$37="Non endémique",INTRO!$E$41="Non endémique"),0,COUNTRY_INFO!Q55) -> 1 | H55: =IF(AND(INTRO!$E$37="Non endémique",INTRO!$E$41="Non endémique"),0,COUNTRY_INFO!S55) -> 0 | I55: =IF($G55=1,IVM!$G55,0) -> 147038 | J55: =IF($G55=0, " ", IF(COUNTRY_INFO!$H55=1, IF(COUNTRY_INFO!$L55=1, 0," ")," ")) ->  | M55: =IF($L55="ALB", IF(INTRO!$E$39="Non endémique",IF($H55<>0,$D55*($H55-$G55),0),$D55*$H55), 0) -> 0 | N55: 0 | P55: 0 | Q55: =IF($L55="MBD", IF(INTRO!$E$39="Non endémique",IF($H55<>0,$D55*($H55-$G55),0),$D55*$H55),0) -> 0 | R55: 0 | T55: 0 | V55: 147038 | W55: 736 | Y55: 0 | Z55: 0 | AB55: 0 | AC55: 0
A56: =IF(AND(INTRO!$E$37="Non endémique",INTRO!$E$41="Non endémique")," ",IF(COUNTRY_INFO!A56=0," ",COUNTRY_INFO!A56)) -> Chad | B56: =IF(AND(INTRO!$E$37="Non endémique",INTRO!$E$41="Non endémique")," ",IF(COUNTRY_INFO!B56=0," ",COUNTRY_INFO!B56)) -> Logone Occidental | C56: =IF(AND(INTRO!$E$37="Non endémique",INTRO!$E$41="Non endémique")," ",IF(COUNTRY_INFO!C56=0," ",COUNTRY_INFO!C56)) -> Laokassy | D56: =IF(AND(INTRO!$E$37="Non endémique",INTRO!$E$41="Non endémique"),0,IF(AND(OR(COUNTRY_INFO!$H56=0,COUNTRY_INFO!$H56=4,COUNTRY_INFO!$H56=99),OR(COUNTRY_INFO!$J56=0,COUNTRY_INFO!$J56=4)),0,COUNTRY_INFO!$E56)) -> 30577 | E56: =IF(AND(INTRO!$E$37="Non endémique",INTRO!$E$41="Non endémique"),0,IF(AND(OR(COUNTRY_INFO!$H56=0,COUNTRY_INFO!$H56=4,COUNTRY_INFO!$H56=99),OR(COUNTRY_INFO!$J56=0,COUNTRY_INFO!$J56=4)),0,COUNTRY_INFO!$F56)) -> 60563 | F56: 91140 | G56: =IF(AND(INTRO!$E$37="Non endémique",INTRO!$E$41="Non endémique"),0,COUNTRY_INFO!Q56) -> 1 | H56: =IF(AND(INTRO!$E$37="Non endémique",INTRO!$E$41="Non endémique"),0,COUNTRY_INFO!S56) -> 0 | I56: =IF($G56=1,IVM!$G56,0) -> 158016 | J56: =IF($G56=0, " ", IF(COUNTRY_INFO!$H56=1, IF(COUNTRY_INFO!$L56=1, 0," ")," ")) ->  | M56: =IF($L56="ALB", IF(INTRO!$E$39="Non endémique",IF($H56<>0,$D56*($H56-$G56),0),$D56*$H56), 0) -> 0 | N56: 0 | P56: 0 | Q56: =IF($L56="MBD", IF(INTRO!$E$39="Non endémique",IF($H56<>0,$D56*($H56-$G56),0),$D56*$H56),0) -> 0 | R56: 0 | T56: 0 | V56: 158016 | W56: 791 | Y56: 0 | Z56: 0 | AB56: 0 | AC56: 0
A57: =IF(AND(INTRO!$E$37="Non endémique",INTRO!$E$41="Non endémique")," ",IF(COUNTRY_INFO!A57=0," ",COUNTRY_INFO!A57)) -> Chad | B57: =IF(AND(INTRO!$E$37="Non endémique",INTRO!$E$41="Non endémique")," ",IF(COUNTRY_INFO!B57=0," ",COUNTRY_INFO!B57)) -> Logone Occidental | C57: =IF(AND(INTRO!$E$37="Non endémique",INTRO!$E$41="Non endémique")," ",IF(COUNTRY_INFO!C57=0," ",COUNTRY_INFO!C57)) -> Moundou | D57: =IF(AND(INTRO!$E$37="Non endémique",INTRO!$E$41="Non endémique"),0,IF(AND(OR(COUNTRY_INFO!$H57=0,COUNTRY_INFO!$H57=4,COUNTRY_INFO!$H57=99),OR(COUNTRY_INFO!$J57=0,COUNTRY_INFO!$J57=4)),0,COUNTRY_INFO!$E57)) -> 51080 | E57: =IF(AND(INTRO!$E$37="Non endémique",INTRO!$E$41="Non endémique"),0,IF(AND(OR(COUNTRY_INFO!$H57=0,COUNTRY_INFO!$H57=4,COUNTRY_INFO!$H57=99),OR(COUNTRY_INFO!$J57=0,COUNTRY_INFO!$J57=4)),0,COUNTRY_INFO!$F57)) -> 101171 | F57: 152251 | G57: =IF(AND(INTRO!$E$37="Non endémique",INTRO!$E$41="Non endémique"),0,COUNTRY_INFO!Q57) -> 1 | H57: =IF(AND(INTRO!$E$37="Non endémique",INTRO!$E$41="Non endémique"),0,COUNTRY_INFO!S57) -> 0 | I57: =IF($G57=1,IVM!$G57,0) -> 263967 | J57: =IF($G57=0, " ", IF(COUNTRY_INFO!$H57=1, IF(COUNTRY_INFO!$L57=1, 0," ")," ")) ->  | M57: =IF($L57="ALB", IF(INTRO!$E$39="Non endémique",IF($H57<>0,$D57*($H57-$G57),0),$D57*$H57), 0) -> 0 | N57: 0 | P57: 0 | Q57: =IF($L57="MBD", IF(INTRO!$E$39="Non endémique",IF($H57<>0,$D57*($H57-$G57),0),$D57*$H57),0) -> 0 | R57: 0 | T57: 0 | V57: 263967 | W57: 1320 | Y57: 0 | Z57: 0 | AB57: 0 | AC57: 0
A58: =IF(AND(INTRO!$E$37="Non endémique",INTRO!$E$41="Non endémique")," ",IF(COUNTRY_INFO!A58=0," ",COUNTRY_INFO!A58)) -> Chad | B58: =IF(AND(INTRO!$E$37="Non endémique",INTRO!$E$41="Non endémique")," ",IF(COUNTRY_INFO!B58=0," ",COUNTRY_INFO!B58)) -> Logone Orientlal | C58: =IF(AND(INTRO!$E$37="Non endémique",INTRO!$E$41="Non endémique")," ",IF(COUNTRY_INFO!C58=0," ",COUNTRY_INFO!C58)) -> Baibokoum | D58: =IF(AND(INTRO!$E$37="Non endémique",INTRO!$E$41="Non endémique"),0,IF(AND(OR(COUNTRY_INFO!$H58=0,COUNTRY_INFO!$H58=4,COUNTRY_INFO!$H58=99),OR(COUNTRY_INFO!$J58=0,COUNTRY_INFO!$J58=4)),0,COUNTRY_INFO!$E58)) -> 13510 | E58: =IF(AND(INTRO!$E$37="Non endémique",INTRO!$E$41="Non endémique"),0,IF(AND(OR(COUNTRY_INFO!$H58=0,COUNTRY_INFO!$H58=4,COUNTRY_INFO!$H58=99),OR(COUNTRY_INFO!$J58=0,COUNTRY_INFO!$J58=4)),0,COUNTRY_INFO!$F58)) -> 26759 | F58: 40269 | G58: =IF(AND(INTRO!$E$37="Non endémique",INTRO!$E$41="Non endémique"),0,COUNTRY_INFO!Q58) -> 1 | H58: =IF(AND(INTRO!$E$37="Non endémique",INTRO!$E$41="Non endémique"),0,COUNTRY_INFO!S58) -> 0 | I58: =IF($G58=1,IVM!$G58,0) -> 69817 | J58: =IF($G58=0, " ", IF(COUNTRY_INFO!$H58=1, IF(COUNTRY_INFO!$L58=1, 0," ")," ")) ->  | M58: =IF($L58="ALB", IF(INTRO!$E$39="Non endémique",IF($H58<>0,$D58*($H58-$G58),0),$D58*$H58), 0) -> 0 | N58: 0 | P58: 0 | Q58: =IF($L58="MBD", IF(INTRO!$E$39="Non endémique",IF($H58<>0,$D58*($H58-$G58),0),$D58*$H58),0) -> 0 | R58: 0 | T58: 0 | V58: 69817 | W58: 350 | Y58: 0 | Z58: 0 | AB58: 0 | AC58: 0
A59: =IF(AND(INTRO!$E$37="Non endémique",INTRO!$E$41="Non endémique")," ",IF(COUNTRY_INFO!A59=0," ",COUNTRY_INFO!A59)) -> Chad | B59: =IF(AND(INTRO!$E$37="Non endémique",INTRO!$E$41="Non endémique")," ",IF(COUNTRY_INFO!B59=0," ",COUNTRY_INFO!B59)) -> Logone Orientlal | C59: =IF(AND(INTRO!$E$37="Non endémique",INTRO!$E$41="Non endémique")," ",IF(COUNTRY_INFO!C59=0," ",COUNTRY_INFO!C59)) -> Bebedja | D59: =IF(AND(INTRO!$E$37="Non endémique",INTRO!$E$41="Non endémique"),0,IF(AND(OR(COUNTRY_INFO!$H59=0,COUNTRY_INFO!$H59=4,COUNTRY_INFO!$H59=99),OR(COUNTRY_INFO!$J59=0,COUNTRY_INFO!$J59=4)),0,COUNTRY_INFO!$E59)) -> 28269 | E59: =IF(AND(INTRO!$E$37="Non endémique",INTRO!$E$41="Non endémique"),0,IF(AND(OR(COUNTRY_INFO!$H59=0,COUNTRY_INFO!$H59=4,COUNTRY_INFO!$H59=99),OR(COUNTRY_INFO!$J59=0,COUNTRY_INFO!$J59=4)),0,COUNTRY_INFO!$F59)) -> 55991 | F59: 84260 | G59: =IF(AND(INTRO!$E$37="Non endémique",INTRO!$E$41="Non endémique"),0,COUNTRY_INFO!Q59) -> 1 | H59: =IF(AND(INTRO!$E$37="Non endémique",INTRO!$E$41="Non endémique"),0,COUNTRY_INFO!S59) -> 0 | I59: =IF($G59=1,IVM!$G59,0) -> 146087 | J59: =IF($G59=0, " ", IF(COUNTRY_INFO!$H59=1, IF(COUNTRY_INFO!$L59=1, 0," ")," ")) ->  | M59: =IF($L59="ALB", IF(INTRO!$E$39="Non endémique",IF($H59<>0,$D59*($H59-$G59),0),$D59*$H59), 0) -> 0 | N59: 0 | P59: 0 | Q59: =IF($L59="MBD", IF(INTRO!$E$39="Non endémique",IF($H59<>0,$D59*($H59-$G59),0),$D59*$H59),0) -> 0 | R59: 0 | T59: 0 | V59: 146087 | W59: 731 | Y59: 0 | Z59: 0 | AB59: 0 | AC59: 0
A60: =IF(AND(INTRO!$E$37="Non endémique",INTRO!$E$41="Non endémique")," ",IF(COUNTRY_INFO!A60=0," ",COUNTRY_INFO!A60)) -> Chad | B60: =IF(AND(INTRO!$E$37="Non endémique",INTRO!$E$41="Non endémique")," ",IF(COUNTRY_INFO!B60=0," ",COUNTRY_INFO!B60)) -> Logone Orientlal | C60: =IF(AND(INTRO!$E$37="Non endémique",INTRO!$E$41="Non endémique")," ",IF(COUNTRY_INFO!C60=0," ",COUNTRY_INFO!C60)) -> Beboto | D60: =IF(AND(INTRO!$E$37="Non endémique",INTRO!$E$41="Non endémique"),0,IF(AND(OR(COUNTRY_INFO!$H60=0,COUNTRY_INFO!$H60=4,COUNTRY_INFO!$H60=99),OR(COUNTRY_INFO!$J60=0,COUNTRY_INFO!$J60=4)),0,COUNTRY_INFO!$E60)) -> 15469 | E60: =IF(AND(INTRO!$E$37="Non endémique",INTRO!$E$41="Non endémique"),0,IF(AND(OR(COUNTRY_INFO!$H60=0,COUNTRY_INFO!$H60=4,COUNTRY_INFO!$H60=99),OR(COUNTRY_INFO!$J60=0,COUNTRY_INFO!$J60=4)),0,COUNTRY_INFO!$F60)) -> 30639 | F60: 46108 | G60: =IF(AND(INTRO!$E$37="Non endémique",INTRO!$E$41="Non endémique"),0,COUNTRY_INFO!Q60) -> 1 | H60: =IF(AND(INTRO!$E$37="Non endémique",INTRO!$E$41="Non endémique"),0,COUNTRY_INFO!S60) -> 0 | I60: =IF($G60=1,IVM!$G60,0) -> 79941 | J60: =IF($G60=0, " ", IF(COUNTRY_INFO!$H60=1, IF(COUNTRY_INFO!$L60=1, 0," ")," ")) ->  | M60: =IF($L60="ALB", IF(INTRO!$E$39="Non endémique",IF($H60<>0,$D60*($H60-$G60),0),$D60*$H60), 0) -> 0 | N60: 0 | P60: 0 | Q60: =IF($L60="MBD", IF(INTRO!$E$39="Non endémique",IF($H60<>0,$D60*($H60-$G60),0),$D60*$H60),0) -> 0 | R60: 0 | T60: 0 | V60: 79941 | W60: 400 | Y60: 0 | Z60: 0 | AB60: 0 | AC60: 0
A61: =IF(AND(INTRO!$E$37="Non endémique",INTRO!$E$41="Non endémique")," ",IF(COUNTRY_INFO!A61=0," ",COUNTRY_INFO!A61)) -> Chad | B61: =IF(AND(INTRO!$E$37="Non endémique",INTRO!$E$41="Non endémique")," ",IF(COUNTRY_INFO!B61=0," ",COUNTRY_INFO!B61)) -> Logone Orientlal | C61: =IF(AND(INTRO!$E$37="Non endémique",INTRO!$E$41="Non endémique")," ",IF(COUNTRY_INFO!C61=0," ",COUNTRY_INFO!C61)) -> Bessao | D61: =IF(AND(INTRO!$E$37="Non endémique",INTRO!$E$41="Non endémique"),0,IF(AND(OR(COUNTRY_INFO!$H61=0,COUNTRY_INFO!$H61=4,COUNTRY_INFO!$H61=99),OR(COUNTRY_INFO!$J61=0,COUNTRY_INFO!$J61=4)),0,COUNTRY_INFO!$E61)) -> 27305 | E61: =IF(AND(INTRO!$E$37="Non endémique",INTRO!$E$41="Non endémique"),0,IF(AND(OR(COUNTRY_INFO!$H61=0,COUNTRY_INFO!$H61=4,COUNTRY_INFO!$H61=99),OR(COUNTRY_INFO!$J61=0,COUNTRY_INFO!$J61=4)),0,COUNTRY_INFO!$F61)) -> 54081 | F61: 81386 | G61: =IF(AND(INTRO!$E$37="Non endémique",INTRO!$E$41="Non endémique"),0,COUNTRY_INFO!Q61) -> 1 | H61: =IF(AND(INTRO!$E$37="Non endémique",INTRO!$E$41="Non endémique"),0,COUNTRY_INFO!S61) -> 0 | I61: =IF($G61=1,IVM!$G61,0) -> 141105 | J61: =IF($G61=0, " ", IF(COUNTRY_INFO!$H61=1, IF(COUNTRY_INFO!$L61=1, 0," ")," ")) ->  | M61: =IF($L61="ALB", IF(INTRO!$E$39="Non endémique",IF($H61<>0,$D61*($H61-$G61),0),$D61*$H61), 0) -> 0 | N61: 0 | P61: 0 | Q61: =IF($L61="MBD", IF(INTRO!$E$39="Non endémique",IF($H61<>0,$D61*($H61-$G61),0),$D61*$H61),0) -> 0 | R61: 0 | T61: 0 | V61: 141105 | W61: 706 | Y61: 0 | Z61: 0 | AB61: 0 | AC61: 0
A62: =IF(AND(INTRO!$E$37="Non endémique",INTRO!$E$41="Non endémique")," ",IF(COUNTRY_INFO!A62=0," ",COUNTRY_INFO!A62)) -> Chad | B62: =IF(AND(INTRO!$E$37="Non endémique",INTRO!$E$41="Non endémique")," ",IF(COUNTRY_INFO!B62=0," ",COUNTRY_INFO!B62)) -> Logone Orientlal | C62: =IF(AND(INTRO!$E$37="Non endémique",INTRO!$E$41="Non endémique")," ",IF(COUNTRY_INFO!C62=0," ",COUNTRY_INFO!C62)) -> Bodo | D62: =IF(AND(INTRO!$E$37="Non endémique",INTRO!$E$41="Non endémique"),0,IF(AND(OR(COUNTRY_INFO!$H62=0,COUNTRY_INFO!$H62=4,COUNTRY_INFO!$H62=99),OR(COUNTRY_INFO!$J62=0,COUNTRY_INFO!$J62=4)),0,COUNTRY_INFO!$E62)) -> 15450 | E62: =IF(AND(INTRO!$E$37="Non endémique",INTRO!$E$41="Non endémique"),0,IF(AND(OR(COUNTRY_INFO!$H62=0,COUNTRY_INFO!$H62=4,COUNTRY_INFO!$H62=99),OR(COUNTRY_INFO!$J62=0,COUNTRY_INFO!$J62=4)),0,COUNTRY_INFO!$F62)) -> 30602 | F62: 46052 | G62: =IF(AND(INTRO!$E$37="Non endémique",INTRO!$E$41="Non endémique"),0,COUNTRY_INFO!Q62) -> 1 | H62: =IF(AND(INTRO!$E$37="Non endémique",INTRO!$E$41="Non endémique"),0,COUNTRY_INFO!S62) -> 0 | I62: =IF($G62=1,IVM!$G62,0) -> 79844 | J62: =IF($G62=0, " ", IF(COUNTRY_INFO!$H62=1, IF(COUNTRY_INFO!$L62=1, 0," ")," ")) ->  | M62: =IF($L62="ALB", IF(INTRO!$E$39="Non endémique",IF($H62<>0,$D62*($H62-$G62),0),$D62*$H62), 0) -> 0 | N62: 0 | P62: 0 | Q62: =IF($L62="MBD", IF(INTRO!$E$39="Non endémique",IF($H62<>0,$D62*($H62-$G62),0),$D62*$H62),0) -> 0 | R62: 0 | T62: 0 | V62: 79844 | W62: 400 | Y62: 0 | Z62: 0 | AB62: 0 | AC62: 0
A63: =IF(AND(INTRO!$E$37="Non endémique",INTRO!$E$41="Non endémique")," ",IF(COUNTRY_INFO!A63=0," ",COUNTRY_INFO!A63)) -> Chad | B63: =IF(AND(INTRO!$E$37="Non endémique",INTRO!$E$41="Non endémique")," ",IF(COUNTRY_INFO!B63=0," ",COUNTRY_INFO!B63)) -> Logone Orientlal | C63: =IF(AND(INTRO!$E$37="Non endémique",INTRO!$E$41="Non endémique")," ",IF(COUNTRY_INFO!C63=0," ",COUNTRY_INFO!C63)) -> Doba | D63: =IF(AND(INTRO!$E$37="Non endémique",INTRO!$E$41="Non endémique"),0,IF(AND(OR(COUNTRY_INFO!$H63=0,COUNTRY_INFO!$H63=4,COUNTRY_INFO!$H63=99),OR(COUNTRY_INFO!$J63=0,COUNTRY_INFO!$J63=4)),0,COUNTRY_INFO!$E63)) -> 34341 | E63: =IF(AND(INTRO!$E$37="Non endémique",INTRO!$E$41="Non endémique"),0,IF(AND(OR(COUNTRY_INFO!$H63=0,COUNTRY_INFO!$H63=4,COUNTRY_INFO!$H63=99),OR(COUNTRY_INFO!$J63=0,COUNTRY_INFO!$J63=4)),0,COUNTRY_INFO!$F63)) -> 68018 | F63: 102359 | G63: =IF(AND(INTRO!$E$37="Non endémique",INTRO!$E$41="Non endémique"),0,COUNTRY_INFO!Q63) -> 1 | H63: =IF(AND(INTRO!$E$37="Non endémique",INTRO!$E$41="Non endémique"),0,COUNTRY_INFO!S63) -> 0 | I63: =IF($G63=1,IVM!$G63,0) -> 177468 | J63: =IF($G63=0, " ", IF(COUNTRY_INFO!$H63=1, IF(COUNTRY_INFO!$L63=1, 0," ")," ")) ->  | M63: =IF($L63="ALB", IF(INTRO!$E$39="Non endémique",IF($H63<>0,$D63*($H63-$G63),0),$D63*$H63), 0) -> 0 | N63: 0 | P63: 0 | Q63: =IF($L63="MBD", IF(INTRO!$E$39="Non endémique",IF($H63<>0,$D63*($H63-$G63),0),$D63*$H63),0) -> 0 | R63: 0 | T63: 0 | V63: 177468 | W63: 888 | Y63: 0 | Z63: 0 | AB63: 0 | AC63: 0
A64: =IF(AND(INTRO!$E$37="Non endémique",INTRO!$E$41="Non endémique")," ",IF(COUNTRY_INFO!A64=0," ",COUNTRY_INFO!A64)) -> Chad | B64: =IF(AND(INTRO!$E$37="Non endémique",INTRO!$E$41="Non endémique")," ",IF(COUNTRY_INFO!B64=0," ",COUNTRY_INFO!B64)) -> Logone Orientlal | C64: =IF(AND(INTRO!$E$37="Non endémique",INTRO!$E$41="Non endémique")," ",IF(COUNTRY_INFO!C64=0," ",COUNTRY_INFO!C64)) -> DONIA | D64: =IF(AND(INTRO!$E$37="Non endémique",INTRO!$E$41="Non endémique"),0,IF(AND(OR(COUNTRY_INFO!$H64=0,COUNTRY_INFO!$H64=4,COUNTRY_INFO!$H64=99),OR(COUNTRY_INFO!$J64=0,COUNTRY_INFO!$J64=4)),0,COUNTRY_INFO!$E64)) -> 13171 | E64: =IF(AND(INTRO!$E$37="Non endémique",INTRO!$E$41="Non endémique"),0,IF(AND(OR(COUNTRY_INFO!$H64=0,COUNTRY_INFO!$H64=4,COUNTRY_INFO!$H64=99),OR(COUNTRY_INFO!$J64=0,COUNTRY_INFO!$J64=4)),0,COUNTRY_INFO!$F64)) -> 26088 | F64: 39259 | G64: =IF(AND(INTRO!$E$37="Non endémique",INTRO!$E$41="Non endémique"),0,COUNTRY_INFO!Q64) -> 1 | H64: =IF(AND(INTRO!$E$37="Non endémique",INTRO!$E$41="Non endémique"),0,COUNTRY_INFO!S64) -> 0 | I64: =IF($G64=1,IVM!$G64,0) -> 68067 | J64: =IF($G64=0, " ", IF(COUNTRY_INFO!$H64=1, IF(COUNTRY_INFO!$L64=1, 0," ")," ")) ->  | M64: =IF($L64="ALB", IF(INTRO!$E$39="Non endémique",IF($H64<>0,$D64*($H64-$G64),0),$D64*$H64), 0) -> 0 | N64: 0 | P64: 0 | Q64: =IF($L64="MBD", IF(INTRO!$E$39="Non endémique",IF($H64<>0,$D64*($H64-$G64),0),$D64*$H64),0) -> 0 | R64: 0 | T64: 0 | V64: 68067 | W64: 341 | Y64: 0 | Z64: 0 | AB64: 0 | AC64: 0
A65: =IF(AND(INTRO!$E$37="Non endémique",INTRO!$E$41="Non endémique")," ",IF(COUNTRY_INFO!A65=0," ",COUNTRY_INFO!A65)) -> Chad | B65: =IF(AND(INTRO!$E$37="Non endémique",INTRO!$E$41="Non endémique")," ",IF(COUNTRY_INFO!B65=0," ",COUNTRY_INFO!B65)) -> Logone Orientlal | C65: =IF(AND(INTRO!$E$37="Non endémique",INTRO!$E$41="Non endémique")," ",IF(COUNTRY_INFO!C65=0," ",COUNTRY_INFO!C65)) -> Goré | D65: =IF(AND(INTRO!$E$37="Non endémique",INTRO!$E$41="Non endémique"),0,IF(AND(OR(COUNTRY_INFO!$H65=0,COUNTRY_INFO!$H65=4,COUNTRY_INFO!$H65=99),OR(COUNTRY_INFO!$J65=0,COUNTRY_INFO!$J65=4)),0,COUNTRY_INFO!$E65)) -> 25267 | E65: =IF(AND(INTRO!$E$37="Non endémique",INTRO!$E$41="Non endémique"),0,IF(AND(OR(COUNTRY_INFO!$H65=0,COUNTRY_INFO!$H65=4,COUNTRY_INFO!$H65=99),OR(COUNTRY_INFO!$J65=0,COUNTRY_INFO!$J65=4)),0,COUNTRY_INFO!$F65)) -> 50046 | F65: 75313 | G65: =IF(AND(INTRO!$E$37="Non endémique",INTRO!$E$41="Non endémique"),0,COUNTRY_INFO!Q65) -> 1 | H65: =IF(AND(INTRO!$E$37="Non endémique",INTRO!$E$41="Non endémique"),0,COUNTRY_INFO!S65) -> 0 | I65: =IF($G65=1,IVM!$G65,0) -> 130575 | J65: =IF($G65=0, " ", IF(COUNTRY_INFO!$H65=1, IF(COUNTRY_INFO!$L65=1, 0," ")," ")) ->  | M65: =IF($L65="ALB", IF(INTRO!$E$39="Non endémique",IF($H65<>0,$D65*($H65-$G65),0),$D65*$H65), 0) -> 0 | N65: 0 | P65: 0 | Q65: =IF($L65="MBD", IF(INTRO!$E$39="Non endémique",IF($H65<>0,$D65*($H65-$G65),0),$D65*$H65),0) -> 0 | R65: 0 | T65: 0 | V65: 130575 | W65: 653 | Y65: 0 | Z65: 0 | AB65: 0 | AC65: 0
A66: =IF(AND(INTRO!$E$37="Non endémique",INTRO!$E$41="Non endémique")," ",IF(COUNTRY_INFO!A66=0," ",COUNTRY_INFO!A66)) -> Chad | B66: =IF(AND(INTRO!$E$37="Non endémique",INTRO!$E$41="Non endémique")," ",IF(COUNTRY_INFO!B66=0," ",COUNTRY_INFO!B66)) -> Logone Orientlal | C66: =IF(AND(INTRO!$E$37="Non endémique",INTRO!$E$41="Non endémique")," ",IF(COUNTRY_INFO!C66=0," ",COUNTRY_INFO!C66)) -> Kara | D66: =IF(AND(INTRO!$E$37="Non endémique",INTRO!$E$41="Non endémique"),0,IF(AND(OR(COUNTRY_INFO!$H66=0,COUNTRY_INFO!$H66=4,COUNTRY_INFO!$H66=99),OR(COUNTRY_INFO!$J66=0,COUNTRY_INFO!$J66=4)),0,COUNTRY_INFO!$E66)) -> 9814 | E66: =IF(AND(INTRO!$E$37="Non endémique",INTRO!$E$41="Non endémique"),0,IF(AND(OR(COUNTRY_INFO!$H66=0,COUNTRY_INFO!$H66=4,COUNTRY_INFO!$H66=99),OR(COUNTRY_INFO!$J66=0,COUNTRY_INFO!$J66=4)),0,COUNTRY_INFO!$F66)) -> 19439 | F66: 29253 | G66: =IF(AND(INTRO!$E$37="Non endémique",INTRO!$E$41="Non endémique"),0,COUNTRY_INFO!Q66) -> 1 | H66: =IF(AND(INTRO!$E$37="Non endémique",INTRO!$E$41="Non endémique"),0,COUNTRY_INFO!S66) -> 0 | I66: =IF($G66=1,IVM!$G66,0) -> 50718 | J66: =IF($G66=0, " ", IF(COUNTRY_INFO!$H66=1, IF(COUNTRY_INFO!$L66=1, 0," ")," ")) ->  | M66: =IF($L66="ALB", IF(INTRO!$E$39="Non endémique",IF($H66<>0,$D66*($H66-$G66),0),$D66*$H66), 0) -> 0 | N66: 0 | P66: 0 | Q66: =IF($L66="MBD", IF(INTRO!$E$39="Non endémique",IF($H66<>0,$D66*($H66-$G66),0),$D66*$H66),0) -> 0 | R66: 0 | T66: 0 | V66: 50718 | W66: 254 | Y66: 0 | Z66: 0 | AB66: 0 | AC66: 0
A67: =IF(AND(INTRO!$E$37="Non endémique",INTRO!$E$41="Non endémique")," ",IF(COUNTRY_INFO!A67=0," ",COUNTRY_INFO!A67)) -> Chad | B67: =IF(AND(INTRO!$E$37="Non endémique",INTRO!$E$41="Non endémique")," ",IF(COUNTRY_INFO!B67=0," ",COUNTRY_INFO!B67)) -> Logone Orientlal | C67: =IF(AND(INTRO!$E$37="Non endémique",INTRO!$E$41="Non endémique")," ",IF(COUNTRY_INFO!C67=0," ",COUNTRY_INFO!C67)) -> Larmanaye | D67: =IF(AND(INTRO!$E$37="Non endémique",INTRO!$E$41="Non endémique"),0,IF(AND(OR(COUNTRY_INFO!$H67=0,COUNTRY_INFO!$H67=4,COUNTRY_INFO!$H67=99),OR(COUNTRY_INFO!$J67=0,COUNTRY_INFO!$J67=4)),0,COUNTRY_INFO!$E67)) -> 12594 | E67: =IF(AND(INTRO!$E$37="Non endémique",INTRO!$E$41="Non endémique"),0,IF(AND(OR(COUNTRY_INFO!$H67=0,COUNTRY_INFO!$H67=4,COUNTRY_INFO!$H67=99),OR(COUNTRY_INFO!$J67=0,COUNTRY_INFO!$J67=4)),0,COUNTRY_INFO!$F67)) -> 24944 | F67: 37538 | G67: =IF(AND(INTRO!$E$37="Non endémique",INTRO!$E$41="Non endémique"),0,COUNTRY_INFO!Q67) -> 1 | H67: =IF(AND(INTRO!$E$37="Non endémique",INTRO!$E$41="Non endémique"),0,COUNTRY_INFO!S67) -> 1 | I67: =IF($G67=1,IVM!$G67,0) -> 65082 | J67: =IF($G67=0, " ", IF(COUNTRY_INFO!$H67=1, IF(COUNTRY_INFO!$L67=1, 0," ")," ")) ->  | L67: ALB | M67: =IF($L67="ALB", IF(INTRO!$E$39="Non endémique",IF($H67<>0,$D67*($H67-$G67),0),$D67*$H67), 0) -> 12594 | N67: 0 | P67: 12594 | Q67: =IF($L67="MBD", IF(INTRO!$E$39="Non endémique",IF($H67<>0,$D67*($H67-$G67),0),$D67*$H67),0) -> 0 | R67: 0 | T67: 0 | V67: 65082 | W67: 326 | Y67: 0 | Z67: 0 | AB67: 0 | AC67: 0
A68: =IF(AND(INTRO!$E$37="Non endémique",INTRO!$E$41="Non endémique")," ",IF(COUNTRY_INFO!A68=0," ",COUNTRY_INFO!A68)) -> Chad | B68: =IF(AND(INTRO!$E$37="Non endémique",INTRO!$E$41="Non endémique")," ",IF(COUNTRY_INFO!B68=0," ",COUNTRY_INFO!B68)) -> Mandoul | C68: =IF(AND(INTRO!$E$37="Non endémique",INTRO!$E$41="Non endémique")," ",IF(COUNTRY_INFO!C68=0," ",COUNTRY_INFO!C68)) -> Bedaya | D68: =IF(AND(INTRO!$E$37="Non endémique",INTRO!$E$41="Non endémique"),0,IF(AND(OR(COUNTRY_INFO!$H68=0,COUNTRY_INFO!$H68=4,COUNTRY_INFO!$H68=99),OR(COUNTRY_INFO!$J68=0,COUNTRY_INFO!$J68=4)),0,COUNTRY_INFO!$E68)) -> 16290 | E68: =IF(AND(INTRO!$E$37="Non endémique",INTRO!$E$41="Non endémique"),0,IF(AND(OR(COUNTRY_INFO!$H68=0,COUNTRY_INFO!$H68=4,COUNTRY_INFO!$H68=99),OR(COUNTRY_INFO!$J68=0,COUNTRY_INFO!$J68=4)),0,COUNTRY_INFO!$F68)) -> 32264 | F68: 48554 | G68: =IF(AND(INTRO!$E$37="Non endémique",INTRO!$E$41="Non endémique"),0,COUNTRY_INFO!Q68) -> 1 | H68: =IF(AND(INTRO!$E$37="Non endémique",INTRO!$E$41="Non endémique"),0,COUNTRY_INFO!S68) -> 0 | I68: =IF($G68=1,IVM!$G68,0) -> 84181 | J68: =IF($G68=0, " ", IF(COUNTRY_INFO!$H68=1, IF(COUNTRY_INFO!$L68=1, 0," ")," ")) ->  | M68: =IF($L68="ALB", IF(INTRO!$E$39="Non endémique",IF($H68<>0,$D68*($H68-$G68),0),$D68*$H68), 0) -> 0 | N68: 0 | P68: 0 | Q68: =IF($L68="MBD", IF(INTRO!$E$39="Non endémique",IF($H68<>0,$D68*($H68-$G68),0),$D68*$H68),0) -> 0 | R68: 0 | T68: 0 | V68: 84181 | W68: 421 | Y68: 0 | Z68: 0 | AB68: 0 | AC68: 0
A69: =IF(AND(INTRO!$E$37="Non endémique",INTRO!$E$41="Non endémique")," ",IF(COUNTRY_INFO!A69=0," ",COUNTRY_INFO!A69)) -> Chad | B69: =IF(AND(INTRO!$E$37="Non endémique",INTRO!$E$41="Non endémique")," ",IF(COUNTRY_INFO!B69=0," ",COUNTRY_INFO!B69)) -> Mandoul | C69: =IF(AND(INTRO!$E$37="Non endémique",INTRO!$E$41="Non endémique")," ",IF(COUNTRY_INFO!C69=0," ",COUNTRY_INFO!C69)) -> Bedjondo | D69: =IF(AND(INTRO!$E$37="Non endémique",INTRO!$E$41="Non endémique"),0,IF(AND(OR(COUNTRY_INFO!$H69=0,COUNTRY_INFO!$H69=4,COUNTRY_INFO!$H69=99),OR(COUNTRY_INFO!$J69=0,COUNTRY_INFO!$J69=4)),0,COUNTRY_INFO!$E69)) -> 0 | E69: =IF(AND(INTRO!$E$37="Non endémique",INTRO!$E$41="Non endémique"),0,IF(AND(OR(COUNTRY_INFO!$H69=0,COUNTRY_INFO!$H69=4,COUNTRY_INFO!$H69=99),OR(COUNTRY_INFO!$J69=0,COUNTRY_INFO!$J69=4)),0,COUNTRY_INFO!$F69)) -> 0 | F69: 0 | G69: =IF(AND(INTRO!$E$37="Non endémique",INTRO!$E$41="Non endémique"),0,COUNTRY_INFO!Q69) -> 0 | H69: =IF(AND(INTRO!$E$37="Non endémique",INTRO!$E$41="Non endémique"),0,COUNTRY_INFO!S69) -> 0 | I69: =IF($G69=1,IVM!$G69,0) -> 0 | J69: =IF($G69=0, " ", IF(COUNTRY_INFO!$H69=1, IF(COUNTRY_INFO!$L69=1, 0," ")," ")) ->  | M69: =IF($L69="ALB", IF(INTRO!$E$39="Non endémique",IF($H69<>0,$D69*($H69-$G69),0),$D69*$H69), 0) -> 0 | N69: 0 | P69: 0 | Q69: =IF($L69="MBD", IF(INTRO!$E$39="Non endémique",IF($H69<>0,$D69*($H69-$G69),0),$D69*$H69),0) -> 0 | R69: 0 | T69: 0 | V69: 0 | W69: 0 | Y69: 0 | Z69: 0 | AB69: 0 | AC69: 0
A70: =IF(AND(INTRO!$E$37="Non endémique",INTRO!$E$41="Non endémique")," ",IF(COUNTRY_INFO!A70=0," ",COUNTRY_INFO!A70)) -> Chad | B70: =IF(AND(INTRO!$E$37="Non endémique",INTRO!$E$41="Non endémique")," ",IF(COUNTRY_INFO!B70=0," ",COUNTRY_INFO!B70)) -> Mandoul | C70: =IF(AND(INTRO!$E$37="Non endémique",INTRO!$E$41="Non endémique")," ",IF(COUNTRY_INFO!C70=0," ",COUNTRY_INFO!C70)) -> Bekourou | D70: =IF(AND(INTRO!$E$37="Non endémique",INTRO!$E$41="Non endémique"),0,IF(AND(OR(COUNTRY_INFO!$H70=0,COUNTRY_INFO!$H70=4,COUNTRY_INFO!$H70=99),OR(COUNTRY_INFO!$J70=0,COUNTRY_INFO!$J70=4)),0,COUNTRY_INFO!$E70)) -> 0 | E70: =IF(AND(INTRO!$E$37="Non endémique",INTRO!$E$41="Non endémique"),0,IF(AND(OR(COUNTRY_INFO!$H70=0,COUNTRY_INFO!$H70=4,COUNTRY_INFO!$H70=99),OR(COUNTRY_INFO!$J70=0,COUNTRY_INFO!$J70=4)),0,COUNTRY_INFO!$F70)) -> 0 | F70: 0 | G70: =IF(AND(INTRO!$E$37="Non endémique",INTRO!$E$41="Non endémique"),0,COUNTRY_INFO!Q70) -> 0 | H70: =IF(AND(INTRO!$E$37="Non endémique",INTRO!$E$41="Non endémique"),0,COUNTRY_INFO!S70) -> 0 | I70: =IF($G70=1,IVM!$G70,0) -> 0 | J70: =IF($G70=0, " ", IF(COUNTRY_INFO!$H70=1, IF(COUNTRY_INFO!$L70=1, 0," ")," ")) ->  | M70: =IF($L70="ALB", IF(INTRO!$E$39="Non endémique",IF($H70<>0,$D70*($H70-$G70),0),$D70*$H70), 0) -> 0 | N70: 0 | P70: 0 | Q70: =IF($L70="MBD", IF(INTRO!$E$39="Non endémique",IF($H70<>0,$D70*($H70-$G70),0),$D70*$H70),0) -> 0 | R70: 0 | T70: 0 | V70: 0 | W70: 0 | Y70: 0 | Z70: 0 | AB70: 0 | AC70: 0
A71: =IF(AND(INTRO!$E$37="Non endémique",INTRO!$E$41="Non endémique")," ",IF(COUNTRY_INFO!A71=0," ",COUNTRY_INFO!A71)) -> Chad | B71: =IF(AND(INTRO!$E$37="Non endémique",INTRO!$E$41="Non endémique")," ",IF(COUNTRY_INFO!B71=0," ",COUNTRY_INFO!B71)) -> Mandoul | C71: =IF(AND(INTRO!$E$37="Non endémique",INTRO!$E$41="Non endémique")," ",IF(COUNTRY_INFO!C71=0," ",COUNTRY_INFO!C71)) -> Bouna | D71: =IF(AND(INTRO!$E$37="Non endémique",INTRO!$E$41="Non endémique"),0,IF(AND(OR(COUNTRY_INFO!$H71=0,COUNTRY_INFO!$H71=4,COUNTRY_INFO!$H71=99),OR(COUNTRY_INFO!$J71=0,COUNTRY_INFO!$J71=4)),0,COUNTRY_INFO!$E71)) -> 16290 | E71: =IF(AND(INTRO!$E$37="Non endémique",INTRO!$E$41="Non endémique"),0,IF(AND(OR(COUNTRY_INFO!$H71=0,COUNTRY_INFO!$H71=4,COUNTRY_INFO!$H71=99),OR(COUNTRY_INFO!$J71=0,COUNTRY_INFO!$J71=4)),0,COUNTRY_INFO!$F71)) -> 32264 | F71: 48554 | G71: =IF(AND(INTRO!$E$37="Non endémique",INTRO!$E$41="Non endémique"),0,COUNTRY_INFO!Q71) -> 0 | H71: =IF(AND(INTRO!$E$37="Non endémique",INTRO!$E$41="Non endémique"),0,COUNTRY_INFO!S71) -> 0 | I71: =IF($G71=1,IVM!$G71,0) -> 0 | J71: =IF($G71=0, " ", IF(COUNTRY_INFO!$H71=1, IF(COUNTRY_INFO!$L71=1, 0," ")," ")) ->  | M71: =IF($L71="ALB", IF(INTRO!$E$39="Non endémique",IF($H71<>0,$D71*($H71-$G71),0),$D71*$H71), 0) -> 0 | N71: 0 | P71: 0 | Q71: =IF($L71="MBD", IF(INTRO!$E$39="Non endémique",IF($H71<>0,$D71*($H71-$G71),0),$D71*$H71),0) -> 0 | R71: 0 | T71: 0 | V71: 0 | W71: 0 | Y71: 0 | Z71: 0 | AB71: 0 | AC71: 0
A72: =IF(AND(INTRO!$E$37="Non endémique",INTRO!$E$41="Non endémique")," ",IF(COUNTRY_INFO!A72=0," ",COUNTRY_INFO!A72)) -> Chad | B72: =IF(AND(INTRO!$E$37="Non endémique",INTRO!$E$41="Non endémique")," ",IF(COUNTRY_INFO!B72=0," ",COUNTRY_INFO!B72)) -> Mandoul | C72: =IF(AND(INTRO!$E$37="Non endémique",INTRO!$E$41="Non endémique")," ",IF(COUNTRY_INFO!C72=0," ",COUNTRY_INFO!C72)) -> Goundi | D72: =IF(AND(INTRO!$E$37="Non endémique",INTRO!$E$41="Non endémique"),0,IF(AND(OR(COUNTRY_INFO!$H72=0,COUNTRY_INFO!$H72=4,COUNTRY_INFO!$H72=99),OR(COUNTRY_INFO!$J72=0,COUNTRY_INFO!$J72=4)),0,COUNTRY_INFO!$E72)) -> 31031 | E72: =IF(AND(INTRO!$E$37="Non endémique",INTRO!$E$41="Non endémique"),0,IF(AND(OR(COUNTRY_INFO!$H72=0,COUNTRY_INFO!$H72=4,COUNTRY_INFO!$H72=99),OR(COUNTRY_INFO!$J72=0,COUNTRY_INFO!$J72=4)),0,COUNTRY_INFO!$F72)) -> 61462 | F72: 92493 | G72: =IF(AND(INTRO!$E$37="Non endémique",INTRO!$E$41="Non endémique"),0,COUNTRY_INFO!Q72) -> 0 | H72: =IF(AND(INTRO!$E$37="Non endémique",INTRO!$E$41="Non endémique"),0,COUNTRY_INFO!S72) -> 0 | I72: =IF($G72=1,IVM!$G72,0) -> 0 | J72: =IF($G72=0, " ", IF(COUNTRY_INFO!$H72=1, IF(COUNTRY_INFO!$L72=1, 0," ")," ")) ->  | M72: =IF($L72="ALB", IF(INTRO!$E$39="Non endémique",IF($H72<>0,$D72*($H72-$G72),0),$D72*$H72), 0) -> 0 | N72: 0 | P72: 0 | Q72: =IF($L72="MBD", IF(INTRO!$E$39="Non endémique",IF($H72<>0,$D72*($H72-$G72),0),$D72*$H72),0) -> 0 | R72: 0 | T72: 0 | V72: 0 | W72: 0 | Y72: 0 | Z72: 0 | AB72: 0 | AC72: 0
A73: =IF(AND(INTRO!$E$37="Non endémique",INTRO!$E$41="Non endémique")," ",IF(COUNTRY_INFO!A73=0," ",COUNTRY_INFO!A73)) -> Chad | B73: =IF(AND(INTRO!$E$37="Non endémique",INTRO!$E$41="Non endémique")," ",IF(COUNTRY_INFO!B73=0," ",COUNTRY_INFO!B73)) -> Mandoul | C73: =IF(AND(INTRO!$E$37="Non endémique",INTRO!$E$41="Non endémique")," ",IF(COUNTRY_INFO!C73=0," ",COUNTRY_INFO!C73)) -> Koumra | D73: =IF(AND(INTRO!$E$37="Non endémique",INTRO!$E$41="Non endémique"),0,IF(AND(OR(COUNTRY_INFO!$H73=0,COUNTRY_INFO!$H73=4,COUNTRY_INFO!$H73=99),OR(COUNTRY_INFO!$J73=0,COUNTRY_INFO!$J73=4)),0,COUNTRY_INFO!$E73)) -> 36782 | E73: =IF(AND(INTRO!$E$37="Non endémique",INTRO!$E$41="Non endémique"),0,IF(AND(OR(COUNTRY_INFO!$H73=0,COUNTRY_INFO!$H73=4,COUNTRY_INFO!$H73=99),OR(COUNTRY_INFO!$J73=0,COUNTRY_INFO!$J73=4)),0,COUNTRY_INFO!$F73)) -> 72852 | F73: =SUM(D73:E73) -> 109634 | G73: =IF(AND(INTRO!$E$37="Non endémique",INTRO!$E$41="Non endémique"),0,COUNTRY_INFO!Q73) -> 1 | H73: =IF(AND(INTRO!$E$37="Non endémique",INTRO!$E$41="Non endémique"),0,COUNTRY_INFO!S73) -> 0 | I73: =IF($G73=1,IVM!$G73,0) -> 190080 | J73: =IF($G73=0, " ", IF(COUNTRY_INFO!$H73=1, IF(COUNTRY_INFO!$L73=1, 0," ")," ")) ->  | M73: =IF($L73="ALB", IF(INTRO!$E$39="Non endémique",IF($H73<>0,$D73*($H73-$G73),0),$D73*$H73), 0) -> 0 | N73: =IF($L73="ALB", IF($H73=0, 0, IF(AND($I73=0, OR($J73=0,$J73=" ")), $E73*$H73, IF(AND($I73=0, $J73>0), IF(($H73-$K73)<=0, 0, $E73*(MAX($H73,$K73)-MIN($H73,$K73))), IF(AND($I73>0, $J73=0), $E73*($H73-$G73), IF($J73=" ", 0, $J73*$E73/($I73+$J73)*$K73+$I73*$E73/($I73+$J73)*($H73-$G73)))))), 0) -> 0 | P73: =SUM(M73:O73) -> 0 | Q73: =IF($L73="MBD", IF(INTRO!$E$39="Non endémique",IF($H73<>0,$D73*($H73-$G73),0),$D73*$H73),0) -> 0 | R73: =IF($L73="MBD", IF($H73=0, 0, IF(AND($I73=0, OR($J73=0,$J73=" ")), $E73*$H73, IF(AND($I73=0, $J73>0), IF(($H73-$K73)<=0, 0, $E73*(MAX($H73,$K73)-MIN($H73,$K73))), IF(AND($I73>0, $J73=0), $E73*($H73-$G73), IF($J73=" ", 0, $J73*$E73/($I73+$J73)*$K73+$I73*$E73/($I73+$J73)*($H73-$G73)))))), 0) -> 0 | T73: =SUM(Q73:S73) -> 0 | V73: =IF($J73<>" ", IF(($I73+$J73*$K73)>$U73, ($I73+$J73*$K73)-$U73,0), IF($I73>$U73, $I73-$U73, 0)) -> 190080 | W73: =IF($J73<>" ", ROUNDUP(($I73+$J73*$K73)/200,0), ROUNDUP($I73/200,0)) -> 951 | Y73: =IF($N73>$X73,$N73-$X73,0) -> 0 | Z73: =ROUNDUP($N73/200,0) -> 0 | AB73: =IF($R73>$AA73,$R73-$AA73,0) -> 0 | AC73: =ROUNDUP($R73/150,0) -> 0
A74: =IF(AND(INTRO!$E$37="Non endémique",INTRO!$E$41="Non endémique")," ",IF(COUNTRY_INFO!A74=0," ",COUNTRY_INFO!A74)) -> Chad | B74: =IF(AND(INTRO!$E$37="Non endémique",INTRO!$E$41="Non endémique")," ",IF(COUNTRY_INFO!B74=0," ",COUNTRY_INFO!B74)) -> Mandoul | C74: =IF(AND(INTRO!$E$37="Non endémique",INTRO!$E$41="Non endémique")," ",IF(COUNTRY_INFO!C74=0," ",COUNTRY_INFO!C74)) -> Moissala | D74: =IF(AND(INTRO!$E$37="Non endémique",INTRO!$E$41="Non endémique"),0,IF(AND(OR(COUNTRY_INFO!$H74=0,COUNTRY_INFO!$H74=4,COUNTRY_INFO!$H74=99),OR(COUNTRY_INFO!$J74=0,COUNTRY_INFO!$J74=4)),0,COUNTRY_INFO!$E74)) -> 0 | E74: =IF(AND(INTRO!$E$37="Non endémique",INTRO!$E$41="Non endémique"),0,IF(AND(OR(COUNTRY_INFO!$H74=0,COUNTRY_INFO!$H74=4,COUNTRY_INFO!$H74=99),OR(COUNTRY_INFO!$J74=0,COUNTRY_INFO!$J74=4)),0,COUNTRY_INFO!$F74)) -> 0 | F74: 0 | G74: =IF(AND(INTRO!$E$37="Non endémique",INTRO!$E$41="Non endémique"),0,COUNTRY_INFO!Q74) -> 0 | H74: =IF(AND(INTRO!$E$37="Non endémique",INTRO!$E$41="Non endémique"),0,COUNTRY_INFO!S74) -> 0 | I74: =IF($G74=1,IVM!$G74,0) -> 0 | J74: =IF($G74=0, " ", IF(COUNTRY_INFO!$H74=1, IF(COUNTRY_INFO!$L74=1, 0," ")," ")) ->  | M74: =IF($L74="ALB", IF(INTRO!$E$39="Non endémique",IF($H74<>0,$D74*($H74-$G74),0),$D74*$H74), 0) -> 0 | N74: 0 | P74: 0 | Q74: =IF($L74="MBD", IF(INTRO!$E$39="Non endémique",IF($H74<>0,$D74*($H74-$G74),0),$D74*$H74),0) -> 0 | R74: 0 | T74: 0 | V74: 0 | W74: 0 | Y74: 0 | Z74: 0 | AB74: 0 | AC74: 0
A75: =IF(AND(INTRO!$E$37="Non endémique",INTRO!$E$41="Non endémique")," ",IF(COUNTRY_INFO!A75=0," ",COUNTRY_INFO!A75)) -> Chad | B75: =IF(AND(INTRO!$E$37="Non endémique",INTRO!$E$41="Non endémique")," ",IF(COUNTRY_INFO!B75=0," ",COUNTRY_INFO!B75)) -> Mayo Kebbi Est | C75: =IF(AND(INTRO!$E$37="Non endémique",INTRO!$E$41="Non endémique")," ",IF(COUNTRY_INFO!C75=0," ",COUNTRY_INFO!C75)) -> Bongor | D75: =IF(AND(INTRO!$E$37="Non endémique",INTRO!$E$41="Non endémique"),0,IF(AND(OR(COUNTRY_INFO!$H75=0,COUNTRY_INFO!$H75=4,COUNTRY_INFO!$H75=99),OR(COUNTRY_INFO!$J75=0,COUNTRY_INFO!$J75=4)),0,COUNTRY_INFO!$E75)) -> 24909 | E75: =IF(AND(INTRO!$E$37="Non endémique",INTRO!$E$41="Non endémique"),0,IF(AND(OR(COUNTRY_INFO!$H75=0,COUNTRY_INFO!$H75=4,COUNTRY_INFO!$H75=99),OR(COUNTRY_INFO!$J75=0,COUNTRY_INFO!$J75=4)),0,COUNTRY_INFO!$F75)) -> 49336 | F75: 74245 | G75: =IF(AND(INTRO!$E$37="Non endémique",INTRO!$E$41="Non endémique"),0,COUNTRY_INFO!Q75) -> 0 | H75: =IF(AND(INTRO!$E$37="Non endémique",INTRO!$E$41="Non endémique"),0,COUNTRY_INFO!S75) -> 0 | I75: =IF($G75=1,IVM!$G75,0) -> 0 | J75: =IF($G75=0, " ", IF(COUNTRY_INFO!$H75=1, IF(COUNTRY_INFO!$L75=1, 0," ")," ")) ->  | M75: =IF($L75="ALB", IF(INTRO!$E$39="Non endémique",IF($H75<>0,$D75*($H75-$G75),0),$D75*$H75), 0) -> 0 | N75: 0 | P75: 0 | Q75: =IF($L75="MBD", IF(INTRO!$E$39="Non endémique",IF($H75<>0,$D75*($H75-$G75),0),$D75*$H75),0) -> 0 | R75: 0 | T75: 0 | V75: 0 | W75: 0 | Y75: 0 | Z75: 0 | AB75: 0 | AC75: 0
A76: =IF(AND(INTRO!$E$37="Non endémique",INTRO!$E$41="Non endémique")," ",IF(COUNTRY_INFO!A76=0," ",COUNTRY_INFO!A76)) -> Chad | B76: =IF(AND(INTRO!$E$37="Non endémique",INTRO!$E$41="Non endémique")," ",IF(COUNTRY_INFO!B76=0," ",COUNTRY_INFO!B76)) -> Mayo Kebbi Est | C76: =IF(AND(INTRO!$E$37="Non endémique",INTRO!$E$41="Non endémique")," ",IF(COUNTRY_INFO!C76=0," ",COUNTRY_INFO!C76)) -> Fianga | D76: =IF(AND(INTRO!$E$37="Non endémique",INTRO!$E$41="Non endémique"),0,IF(AND(OR(COUNTRY_INFO!$H76=0,COUNTRY_INFO!$H76=4,COUNTRY_INFO!$H76=99),OR(COUNTRY_INFO!$J76=0,COUNTRY_INFO!$J76=4)),0,COUNTRY_INFO!$E76)) -> 22620 | E76: =IF(AND(INTRO!$E$37="Non endémique",INTRO!$E$41="Non endémique"),0,IF(AND(OR(COUNTRY_INFO!$H76=0,COUNTRY_INFO!$H76=4,COUNTRY_INFO!$H76=99),OR(COUNTRY_INFO!$J76=0,COUNTRY_INFO!$J76=4)),0,COUNTRY_INFO!$F76)) -> 44802 | F76: 67422 | G76: =IF(AND(INTRO!$E$37="Non endémique",INTRO!$E$41="Non endémique"),0,COUNTRY_INFO!Q76) -> 0 | H76: =IF(AND(INTRO!$E$37="Non endémique",INTRO!$E$41="Non endémique"),0,COUNTRY_INFO!S76) -> 0 | I76: =IF($G76=1,IVM!$G76,0) -> 0 | J76: =IF($G76=0, " ", IF(COUNTRY_INFO!$H76=1, IF(COUNTRY_INFO!$L76=1, 0," ")," ")) ->  | M76: =IF($L76="ALB", IF(INTRO!$E$39="Non endémique",IF($H76<>0,$D76*($H76-$G76),0),$D76*$H76), 0) -> 0 | N76: 0 | P76: 0 | Q76: =IF($L76="MBD", IF(INTRO!$E$39="Non endémique",IF($H76<>0,$D76*($H76-$G76),0),$D76*$H76),0) -> 0 | R76: 0 | T76: 0 | V76: 0 | W76: 0 | Y76: 0 | Z76: 0 | AB76: 0 | AC76: 0
A77: =IF(AND(INTRO!$E$37="Non endémique",INTRO!$E$41="Non endémique")," ",IF(COUNTRY_INFO!A77=0," ",COUNTRY_INFO!A77)) -> Chad | B77: =IF(AND(INTRO!$E$37="Non endémique",INTRO!$E$41="Non endémique")," ",IF(COUNTRY_INFO!B77=0," ",COUNTRY_INFO!B77)) -> Mayo Kebbi Est | C77: =IF(AND(INTRO!$E$37="Non endémique",INTRO!$E$41="Non endémique")," ",IF(COUNTRY_INFO!C77=0," ",COUNTRY_INFO!C77)) -> Gounou Gaya | D77: =IF(AND(INTRO!$E$37="Non endémique",INTRO!$E$41="Non endémique"),0,IF(AND(OR(COUNTRY_INFO!$H77=0,COUNTRY_INFO!$H77=4,COUNTRY_INFO!$H77=99),OR(COUNTRY_INFO!$J77=0,COUNTRY_INFO!$J77=4)),0,COUNTRY_INFO!$E77)) -> 19363 | E77: =IF(AND(INTRO!$E$37="Non endémique",INTRO!$E$41="Non endémique"),0,IF(AND(OR(COUNTRY_INFO!$H77=0,COUNTRY_INFO!$H77=4,COUNTRY_INFO!$H77=99),OR(COUNTRY_INFO!$J77=0,COUNTRY_INFO!$J77=4)),0,COUNTRY_INFO!$F77)) -> 38350 | F77: 57713 | G77: =IF(AND(INTRO!$E$37="Non endémique",INTRO!$E$41="Non endémique"),0,COUNTRY_INFO!Q77) -> 0 | H77: =IF(AND(INTRO!$E$37="Non endémique",INTRO!$E$41="Non endémique"),0,COUNTRY_INFO!S77) -> 1 | I77: =IF($G77=1,IVM!$G77,0) -> 0 | J77: =IF($G77=0, " ", IF(COUNTRY_INFO!$H77=1, IF(COUNTRY_INFO!$L77=1, 0," ")," ")) ->  | L77: MBD | M77: =IF($L77="ALB", IF(INTRO!$E$39="Non endémique",IF($H77<>0,$D77*($H77-$G77),0),$D77*$H77), 0) -> 0 | N77: 0 | P77: 0 | Q77: =IF($L77="MBD", IF(INTRO!$E$39="Non endémique",IF($H77<>0,$D77*($H77-$G77),0),$D77*$H77),0) -> 19363 | R77: 38350 | T77: 57713 | V77: 0 | W77: 0 | Y77: 0 | Z77: 0 | AB77: 38350 | AC77: 256
A78: =IF(AND(INTRO!$E$37="Non endémique",INTRO!$E$41="Non endémique")," ",IF(COUNTRY_INFO!A78=0," ",COUNTRY_INFO!A78)) -> Chad | B78: =IF(AND(INTRO!$E$37="Non endémique",INTRO!$E$41="Non endémique")," ",IF(COUNTRY_INFO!B78=0," ",COUNTRY_INFO!B78)) -> Mayo Kebbi Est | C78: =IF(AND(INTRO!$E$37="Non endémique",INTRO!$E$41="Non endémique")," ",IF(COUNTRY_INFO!C78=0," ",COUNTRY_INFO!C78)) -> Guelinding | D78: =IF(AND(INTRO!$E$37="Non endémique",INTRO!$E$41="Non endémique"),0,IF(AND(OR(COUNTRY_INFO!$H78=0,COUNTRY_INFO!$H78=4,COUNTRY_INFO!$H78=99),OR(COUNTRY_INFO!$J78=0,COUNTRY_INFO!$J78=4)),0,COUNTRY_INFO!$E78)) -> 13658 | E78: =IF(AND(INTRO!$E$37="Non endémique",INTRO!$E$41="Non endémique"),0,IF(AND(OR(COUNTRY_INFO!$H78=0,COUNTRY_INFO!$H78=4,COUNTRY_INFO!$H78=99),OR(COUNTRY_INFO!$J78=0,COUNTRY_INFO!$J78=4)),0,COUNTRY_INFO!$F78)) -> 27051 | F78: 40709 | G78: =IF(AND(INTRO!$E$37="Non endémique",INTRO!$E$41="Non endémique"),0,COUNTRY_INFO!Q78) -> 1 | H78: =IF(AND(INTRO!$E$37="Non endémique",INTRO!$E$41="Non endémique"),0,COUNTRY_INFO!S78) -> 0 | I78: =IF($G78=1,IVM!$G78,0) -> 70579 | J78: =IF($G78=0, " ", IF(COUNTRY_INFO!$H78=1, IF(COUNTRY_INFO!$L78=1, 0," ")," ")) ->  | M78: =IF($L78="ALB", IF(INTRO!$E$39="Non endémique",IF($H78<>0,$D78*($H78-$G78),0),$D78*$H78), 0) -> 0 | N78: 0 | P78: 0 | Q78: =IF($L78="MBD", IF(INTRO!$E$39="Non endémique",IF($H78<>0,$D78*($H78-$G78),0),$D78*$H78),0) -> 0 | R78: 0 | T78: 0 | V78: 70579 | W78: 353 | Y78: 0 | Z78: 0 | AB78: 0 | AC78: 0
A79: =IF(AND(INTRO!$E$37="Non endémique",INTRO!$E$41="Non endémique")," ",IF(COUNTRY_INFO!A79=0," ",COUNTRY_INFO!A79)) -> Chad | B79: =IF(AND(INTRO!$E$37="Non endémique",INTRO!$E$41="Non endémique")," ",IF(COUNTRY_INFO!B79=0," ",COUNTRY_INFO!B79)) -> Mayo Kebbi Est | C79: =IF(AND(INTRO!$E$37="Non endémique",INTRO!$E$41="Non endémique")," ",IF(COUNTRY_INFO!C79=0," ",COUNTRY_INFO!C79)) -> Moulkou | D79: =IF(AND(INTRO!$E$37="Non endémique",INTRO!$E$41="Non endémique"),0,IF(AND(OR(COUNTRY_INFO!$H79=0,COUNTRY_INFO!$H79=4,COUNTRY_INFO!$H79=99),OR(COUNTRY_INFO!$J79=0,COUNTRY_INFO!$J79=4)),0,COUNTRY_INFO!$E79)) -> 11424 | E79: =IF(AND(INTRO!$E$37="Non endémique",INTRO!$E$41="Non endémique"),0,IF(AND(OR(COUNTRY_INFO!$H79=0,COUNTRY_INFO!$H79=4,COUNTRY_INFO!$H79=99),OR(COUNTRY_INFO!$J79=0,COUNTRY_INFO!$J79=4)),0,COUNTRY_INFO!$F79)) -> 22627 | F79: 34051 | G79: =IF(AND(INTRO!$E$37="Non endémique",INTRO!$E$41="Non endémique"),0,COUNTRY_INFO!Q79) -> 1 | H79: =IF(AND(INTRO!$E$37="Non endémique",INTRO!$E$41="Non endémique"),0,COUNTRY_INFO!S79) -> 0 | I79: =IF($G79=1,IVM!$G79,0) -> 59037 | J79: =IF($G79=0, " ", IF(COUNTRY_INFO!$H79=1, IF(COUNTRY_INFO!$L79=1, 0," ")," ")) ->  | M79: =IF($L79="ALB", IF(INTRO!$E$39="Non endémique",IF($H79<>0,$D79*($H79-$G79),0),$D79*$H79), 0) -> 0 | N79: 0 | P79: 0 | Q79: =IF($L79="MBD", IF(INTRO!$E$39="Non endémique",IF($H79<>0,$D79*($H79-$G79),0),$D79*$H79),0) -> 0 | R79: 0 | T79: 0 | V79: 59037 | W79: 296 | Y79: 0 | Z79: 0 | AB79: 0 | AC79: 0
A80: =IF(AND(INTRO!$E$37="Non endémique",INTRO!$E$41="Non endémique")," ",IF(COUNTRY_INFO!A80=0," ",COUNTRY_INFO!A80)) -> Chad | B80: =IF(AND(INTRO!$E$37="Non endémique",INTRO!$E$41="Non endémique")," ",IF(COUNTRY_INFO!B80=0," ",COUNTRY_INFO!B80)) -> Mayo Kebbi Est | C80: =IF(AND(INTRO!$E$37="Non endémique",INTRO!$E$41="Non endémique")," ",IF(COUNTRY_INFO!C80=0," ",COUNTRY_INFO!C80)) -> Pont Carol | D80: =IF(AND(INTRO!$E$37="Non endémique",INTRO!$E$41="Non endémique"),0,IF(AND(OR(COUNTRY_INFO!$H80=0,COUNTRY_INFO!$H80=4,COUNTRY_INFO!$H80=99),OR(COUNTRY_INFO!$J80=0,COUNTRY_INFO!$J80=4)),0,COUNTRY_INFO!$E80)) -> 12673 | E80: =IF(AND(INTRO!$E$37="Non endémique",INTRO!$E$41="Non endémique"),0,IF(AND(OR(COUNTRY_INFO!$H80=0,COUNTRY_INFO!$H80=4,COUNTRY_INFO!$H80=99),OR(COUNTRY_INFO!$J80=0,COUNTRY_INFO!$J80=4)),0,COUNTRY_INFO!$F80)) -> 25101 | F80: 37774 | G80: =IF(AND(INTRO!$E$37="Non endémique",INTRO!$E$41="Non endémique"),0,COUNTRY_INFO!Q80) -> 0 | H80: =IF(AND(INTRO!$E$37="Non endémique",INTRO!$E$41="Non endémique"),0,COUNTRY_INFO!S80) -> 1 | I80: =IF($G80=1,IVM!$G80,0) -> 0 | J80: =IF($G80=0, " ", IF(COUNTRY_INFO!$H80=1, IF(COUNTRY_INFO!$L80=1, 0," ")," ")) ->  | L80: MBD | M80: =IF($L80="ALB", IF(INTRO!$E$39="Non endémique",IF($H80<>0,$D80*($H80-$G80),0),$D80*$H80), 0) -> 0 | N80: 0 | P80: 0 | Q80: =IF($L80="MBD", IF(INTRO!$E$39="Non endémique",IF($H80<>0,$D80*($H80-$G80),0),$D80*$H80),0) -> 12673 | R80: 25101 | T80: 37774 | V80: 0 | W80: 0 | Y80: 0 | Z80: 0 | AB80: 25101 | AC80: 168
A81: =IF(AND(INTRO!$E$37="Non endémique",INTRO!$E$41="Non endémique")," ",IF(COUNTRY_INFO!A81=0," ",COUNTRY_INFO!A81)) -> Chad | B81: =IF(AND(INTRO!$E$37="Non endémique",INTRO!$E$41="Non endémique")," ",IF(COUNTRY_INFO!B81=0," ",COUNTRY_INFO!B81)) -> Mayo Kebbi Est | C81: =IF(AND(INTRO!$E$37="Non endémique",INTRO!$E$41="Non endémique")," ",IF(COUNTRY_INFO!C81=0," ",COUNTRY_INFO!C81)) -> Youé | D81: =IF(AND(INTRO!$E$37="Non endémique",INTRO!$E$41="Non endémique"),0,IF(AND(OR(COUNTRY_INFO!$H81=0,COUNTRY_INFO!$H81=4,COUNTRY_INFO!$H81=99),OR(COUNTRY_INFO!$J81=0,COUNTRY_INFO!$J81=4)),0,COUNTRY_INFO!$E81)) -> 22227 | E81: =IF(AND(INTRO!$E$37="Non endémique",INTRO!$E$41="Non endémique"),0,IF(AND(OR(COUNTRY_INFO!$H81=0,COUNTRY_INFO!$H81=4,COUNTRY_INFO!$H81=99),OR(COUNTRY_INFO!$J81=0,COUNTRY_INFO!$J81=4)),0,COUNTRY_INFO!$F81)) -> 44023 | F81: 66250 | G81: =IF(AND(INTRO!$E$37="Non endémique",INTRO!$E$41="Non endémique"),0,COUNTRY_INFO!Q81) -> 0 | H81: =IF(AND(INTRO!$E$37="Non endémique",INTRO!$E$41="Non endémique"),0,COUNTRY_INFO!S81) -> 0 | I81: =IF($G81=1,IVM!$G81,0) -> 0 | J81: =IF($G81=0, " ", IF(COUNTRY_INFO!$H81=1, IF(COUNTRY_INFO!$L81=1, 0," ")," ")) ->  | M81: =IF($L81="ALB", IF(INTRO!$E$39="Non endémique",IF($H81<>0,$D81*($H81-$G81),0),$D81*$H81), 0) -> 0 | N81: 0 | P81: 0 | Q81: =IF($L81="MBD", IF(INTRO!$E$39="Non endémique",IF($H81<>0,$D81*($H81-$G81),0),$D81*$H81),0) -> 0 | R81: 0 | T81: 0 | V81: 0 | W81: 0 | Y81: 0 | Z81: 0 | AB81: 0 | AC81: 0
A82: =IF(AND(INTRO!$E$37="Non endémique",INTRO!$E$41="Non endémique")," ",IF(COUNTRY_INFO!A82=0," ",COUNTRY_INFO!A82)) -> Chad | B82: =IF(AND(INTRO!$E$37="Non endémique",INTRO!$E$41="Non endémique")," ",IF(COUNTRY_INFO!B82=0," ",COUNTRY_INFO!B82)) -> Mayo Kebbi Ouest | C82: =IF(AND(INTRO!$E$37="Non endémique",INTRO!$E$41="Non endémique")," ",IF(COUNTRY_INFO!C82=0," ",COUNTRY_INFO!C82)) -> Binder | D82: =IF(AND(INTRO!$E$37="Non endémique",INTRO!$E$41="Non endémique"),0,IF(AND(OR(COUNTRY_INFO!$H82=0,COUNTRY_INFO!$H82=4,COUNTRY_INFO!$H82=99),OR(COUNTRY_INFO!$J82=0,COUNTRY_INFO!$J82=4)),0,COUNTRY_INFO!$E82)) -> 12472 | E82: =IF(AND(INTRO!$E$37="Non endémique",INTRO!$E$41="Non endémique"),0,IF(AND(OR(COUNTRY_INFO!$H82=0,COUNTRY_INFO!$H82=4,COUNTRY_INFO!$H82=99),OR(COUNTRY_INFO!$J82=0,COUNTRY_INFO!$J82=4)),0,COUNTRY_INFO!$F82)) -> 24702 | F82: 37174 | G82: =IF(AND(INTRO!$E$37="Non endémique",INTRO!$E$41="Non endémique"),0,COUNTRY_INFO!Q82) -> 0 | H82: =IF(AND(INTRO!$E$37="Non endémique",INTRO!$E$41="Non endémique"),0,COUNTRY_INFO!S82) -> 0 | I82: =IF($G82=1,IVM!$G82,0) -> 0 | J82: =IF($G82=0, " ", IF(COUNTRY_INFO!$H82=1, IF(COUNTRY_INFO!$L82=1, 0," ")," ")) ->  | M82: =IF($L82="ALB", IF(INTRO!$E$39="Non endémique",IF($H82<>0,$D82*($H82-$G82),0),$D82*$H82), 0) -> 0 | N82: 0 | P82: 0 | Q82: =IF($L82="MBD", IF(INTRO!$E$39="Non endémique",IF($H82<>0,$D82*($H82-$G82),0),$D82*$H82),0) -> 0 | R82: 0 | T82: 0 | V82: 0 | W82: 0 | Y82: 0 | Z82: 0 | AB82: 0 | AC82: 0
A83: =IF(AND(INTRO!$E$37="Non endémique",INTRO!$E$41="Non endémique")," ",IF(COUNTRY_INFO!A83=0," ",COUNTRY_INFO!A83)) -> Chad | B83: =IF(AND(INTRO!$E$37="Non endémique",INTRO!$E$41="Non endémique")," ",IF(COUNTRY_INFO!B83=0," ",COUNTRY_INFO!B83)) -> Mayo Kebbi Ouest | C83: =IF(AND(INTRO!$E$37="Non endémique",INTRO!$E$41="Non endémique")," ",IF(COUNTRY_INFO!C83=0," ",COUNTRY_INFO!C83)) -> Gagal | D83: =IF(AND(INTRO!$E$37="Non endémique",INTRO!$E$41="Non endémique"),0,IF(AND(OR(COUNTRY_INFO!$H83=0,COUNTRY_INFO!$H83=4,COUNTRY_INFO!$H83=99),OR(COUNTRY_INFO!$J83=0,COUNTRY_INFO!$J83=4)),0,COUNTRY_INFO!$E83)) -> 22588 | E83: =IF(AND(INTRO!$E$37="Non endémique",INTRO!$E$41="Non endémique"),0,IF(AND(OR(COUNTRY_INFO!$H83=0,COUNTRY_INFO!$H83=4,COUNTRY_INFO!$H83=99),OR(COUNTRY_INFO!$J83=0,COUNTRY_INFO!$J83=4)),0,COUNTRY_INFO!$F83)) -> 44738 | F83: 67326 | G83: =IF(AND(INTRO!$E$37="Non endémique",INTRO!$E$41="Non endémique"),0,COUNTRY_INFO!Q83) -> 0 | H83: =IF(AND(INTRO!$E$37="Non endémique",INTRO!$E$41="Non endémique"),0,COUNTRY_INFO!S83) -> 0 | I83: =IF($G83=1,IVM!$G83,0) -> 0 | J83: =IF($G83=0, " ", IF(COUNTRY_INFO!$H83=1, IF(COUNTRY_INFO!$L83=1, 0," ")," ")) ->  | M83: =IF($L83="ALB", IF(INTRO!$E$39="Non endémique",IF($H83<>0,$D83*($H83-$G83),0),$D83*$H83), 0) -> 0 | N83: 0 | P83: 0 | Q83: =IF($L83="MBD", IF(INTRO!$E$39="Non endémique",IF($H83<>0,$D83*($H83-$G83),0),$D83*$H83),0) -> 0 | R83: 0 | T83: 0 | V83: 0 | W83: 0 | Y83: 0 | Z83: 0 | AB83: 0 | AC83: 0
A84: =IF(AND(INTRO!$E$37="Non endémique",INTRO!$E$41="Non endémique")," ",IF(COUNTRY_INFO!A84=0," ",COUNTRY_INFO!A84)) -> Chad | B84: =IF(AND(INTRO!$E$37="Non endémique",INTRO!$E$41="Non endémique")," ",IF(COUNTRY_INFO!B84=0," ",COUNTRY_INFO!B84)) -> Mayo Kebbi Ouest | C84: =IF(AND(INTRO!$E$37="Non endémique",INTRO!$E$41="Non endémique")," ",IF(COUNTRY_INFO!C84=0," ",COUNTRY_INFO!C84)) -> Guegou | D84: =IF(AND(INTRO!$E$37="Non endémique",INTRO!$E$41="Non endémique"),0,IF(AND(OR(COUNTRY_INFO!$H84=0,COUNTRY_INFO!$H84=4,COUNTRY_INFO!$H84=99),OR(COUNTRY_INFO!$J84=0,COUNTRY_INFO!$J84=4)),0,COUNTRY_INFO!$E84)) -> 6295 | E84: =IF(AND(INTRO!$E$37="Non endémique",INTRO!$E$41="Non endémique"),0,IF(AND(OR(COUNTRY_INFO!$H84=0,COUNTRY_INFO!$H84=4,COUNTRY_INFO!$H84=99),OR(COUNTRY_INFO!$J84=0,COUNTRY_INFO!$J84=4)),0,COUNTRY_INFO!$F84)) -> 12468 | F84: 18763 | G84: =IF(AND(INTRO!$E$37="Non endémique",INTRO!$E$41="Non endémique"),0,COUNTRY_INFO!Q84) -> 0 | H84: =IF(AND(INTRO!$E$37="Non endémique",INTRO!$E$41="Non endémique"),0,COUNTRY_INFO!S84) -> 0 | I84: =IF($G84=1,IVM!$G84,0) -> 0 | J84: =IF($G84=0, " ", IF(COUNTRY_INFO!$H84=1, IF(COUNTRY_INFO!$L84=1, 0," ")," ")) ->  | M84: =IF($L84="ALB", IF(INTRO!$E$39="Non endémique",IF($H84<>0,$D84*($H84-$G84),0),$D84*$H84), 0) -> 0 | N84: 0 | P84: 0 | Q84: =IF($L84="MBD", IF(INTRO!$E$39="Non endémique",IF($H84<>0,$D84*($H84-$G84),0),$D84*$H84),0) -> 0 | R84: 0 | T84: 0 | V84: 0 | W84: 0 | Y84: 0 | Z84: 0 | AB84: 0 | AC84: 0
A85: =IF(AND(INTRO!$E$37="Non endémique",INTRO!$E$41="Non endémique")," ",IF(COUNTRY_INFO!A85=0," ",COUNTRY_INFO!A85)) -> Chad | B85: =IF(AND(INTRO!$E$37="Non endémique",INTRO!$E$41="Non endémique")," ",IF(COUNTRY_INFO!B85=0," ",COUNTRY_INFO!B85)) -> Mayo Kebbi Ouest | C85: =IF(AND(INTRO!$E$37="Non endémique",INTRO!$E$41="Non endémique")," ",IF(COUNTRY_INFO!C85=0," ",COUNTRY_INFO!C85)) -> GUELO | D85: =IF(AND(INTRO!$E$37="Non endémique",INTRO!$E$41="Non endémique"),0,IF(AND(OR(COUNTRY_INFO!$H85=0,COUNTRY_INFO!$H85=4,COUNTRY_INFO!$H85=99),OR(COUNTRY_INFO!$J85=0,COUNTRY_INFO!$J85=4)),0,COUNTRY_INFO!$E85)) -> 7945 | E85: =IF(AND(INTRO!$E$37="Non endémique",INTRO!$E$41="Non endémique"),0,IF(AND(OR(COUNTRY_INFO!$H85=0,COUNTRY_INFO!$H85=4,COUNTRY_INFO!$H85=99),OR(COUNTRY_INFO!$J85=0,COUNTRY_INFO!$J85=4)),0,COUNTRY_INFO!$F85)) -> 15736 | F85: 23681 | G85: =IF(AND(INTRO!$E$37="Non endémique",INTRO!$E$41="Non endémique"),0,COUNTRY_INFO!Q85) -> 0 | H85: =IF(AND(INTRO!$E$37="Non endémique",INTRO!$E$41="Non endémique"),0,COUNTRY_INFO!S85) -> 0 | I85: =IF($G85=1,IVM!$G85,0) -> 0 | J85: =IF($G85=0, " ", IF(COUNTRY_INFO!$H85=1, IF(COUNTRY_INFO!$L85=1, 0," ")," ")) ->  | M85: =IF($L85="ALB", IF(INTRO!$E$39="Non endémique",IF($H85<>0,$D85*($H85-$G85),0),$D85*$H85), 0) -> 0 | N85: 0 | P85: 0 | Q85: =IF($L85="MBD", IF(INTRO!$E$39="Non endémique",IF($H85<>0,$D85*($H85-$G85),0),$D85*$H85),0) -> 0 | R85: 0 | T85: 0 | V85: 0 | W85: 0 | Y85: 0 | Z85: 0 | AB85: 0 | AC85: 0
A86: =IF(AND(INTRO!$E$37="Non endémique",INTRO!$E$41="Non endémique")," ",IF(COUNTRY_INFO!A86=0," ",COUNTRY_INFO!A86)) -> Chad | B86: =IF(AND(INTRO!$E$37="Non endémique",INTRO!$E$41="Non endémique")," ",IF(COUNTRY_INFO!B86=0," ",COUNTRY_INFO!B86)) -> Mayo Kebbi Ouest | C86: =IF(AND(INTRO!$E$37="Non endémique",INTRO!$E$41="Non endémique")," ",IF(COUNTRY_INFO!C86=0," ",COUNTRY_INFO!C86)) -> Lagon | D86: =IF(AND(INTRO!$E$37="Non endémique",INTRO!$E$41="Non endémique"),0,IF(AND(OR(COUNTRY_INFO!$H86=0,COUNTRY_INFO!$H86=4,COUNTRY_INFO!$H86=99),OR(COUNTRY_INFO!$J86=0,COUNTRY_INFO!$J86=4)),0,COUNTRY_INFO!$E86)) -> 12625 | E86: =IF(AND(INTRO!$E$37="Non endémique",INTRO!$E$41="Non endémique"),0,IF(AND(OR(COUNTRY_INFO!$H86=0,COUNTRY_INFO!$H86=4,COUNTRY_INFO!$H86=99),OR(COUNTRY_INFO!$J86=0,COUNTRY_INFO!$J86=4)),0,COUNTRY_INFO!$F86)) -> 25006 | F86: 37631 | G86: =IF(AND(INTRO!$E$37="Non endémique",INTRO!$E$41="Non endémique"),0,COUNTRY_INFO!Q86) -> 0 | H86: =IF(AND(INTRO!$E$37="Non endémique",INTRO!$E$41="Non endémique"),0,COUNTRY_INFO!S86) -> 0 | I86: =IF($G86=1,IVM!$G86,0) -> 0 | J86: =IF($G86=0, " ", IF(COUNTRY_INFO!$H86=1, IF(COUNTRY_INFO!$L86=1, 0," ")," ")) ->  | M86: =IF($L86="ALB", IF(INTRO!$E$39="Non endémique",IF($H86<>0,$D86*($H86-$G86),0),$D86*$H86), 0) -> 0 | N86: 0 | P86: 0 | Q86: =IF($L86="MBD", IF(INTRO!$E$39="Non endémique",IF($H86<>0,$D86*($H86-$G86),0),$D86*$H86),0) -> 0 | R86: 0 | T86: 0 | V86: 0 | W86: 0 | Y86: 0 | Z86: 0 | AB86: 0 | AC86: 0
A87: =IF(AND(INTRO!$E$37="Non endémique",INTRO!$E$41="Non endémique")," ",IF(COUNTRY_INFO!A87=0," ",COUNTRY_INFO!A87)) -> Chad | B87: =IF(AND(INTRO!$E$37="Non endémique",INTRO!$E$41="Non endémique")," ",IF(COUNTRY_INFO!B87=0," ",COUNTRY_INFO!B87)) -> Mayo Kebbi Ouest | C87: =IF(AND(INTRO!$E$37="Non endémique",INTRO!$E$41="Non endémique")," ",IF(COUNTRY_INFO!C87=0," ",COUNTRY_INFO!C87)) -> Lamé | D87: =IF(AND(INTRO!$E$37="Non endémique",INTRO!$E$41="Non endémique"),0,IF(AND(OR(COUNTRY_INFO!$H87=0,COUNTRY_INFO!$H87=4,COUNTRY_INFO!$H87=99),OR(COUNTRY_INFO!$J87=0,COUNTRY_INFO!$J87=4)),0,COUNTRY_INFO!$E87)) -> 13478 | E87: =IF(AND(INTRO!$E$37="Non endémique",INTRO!$E$41="Non endémique"),0,IF(AND(OR(COUNTRY_INFO!$H87=0,COUNTRY_INFO!$H87=4,COUNTRY_INFO!$H87=99),OR(COUNTRY_INFO!$J87=0,COUNTRY_INFO!$J87=4)),0,COUNTRY_INFO!$F87)) -> 26696 | F87: 40174 | G87: =IF(AND(INTRO!$E$37="Non endémique",INTRO!$E$41="Non endémique"),0,COUNTRY_INFO!Q87) -> 0 | H87: =IF(AND(INTRO!$E$37="Non endémique",INTRO!$E$41="Non endémique"),0,COUNTRY_INFO!S87) -> 0 | I87: =IF($G87=1,IVM!$G87,0) -> 0 | J87: =IF($G87=0, " ", IF(COUNTRY_INFO!$H87=1, IF(COUNTRY_INFO!$L87=1, 0," ")," ")) ->  | M87: =IF($L87="ALB", IF(INTRO!$E$39="Non endémique",IF($H87<>0,$D87*($H87-$G87),0),$D87*$H87), 0) -> 0 | N87: 0 | P87: 0 | Q87: =IF($L87="MBD", IF(INTRO!$E$39="Non endémique",IF($H87<>0,$D87*($H87-$G87),0),$D87*$H87),0) -> 0 | R87: 0 | T87: 0 | V87: 0 | W87: 0 | Y87: 0 | Z87: 0 | AB87: 0 | AC87: 0
A88: =IF(AND(INTRO!$E$37="Non endémique",INTRO!$E$41="Non endémique")," ",IF(COUNTRY_INFO!A88=0," ",COUNTRY_INFO!A88)) -> Chad | B88: =IF(AND(INTRO!$E$37="Non endémique",INTRO!$E$41="Non endémique")," ",IF(COUNTRY_INFO!B88=0," ",COUNTRY_INFO!B88)) -> Mayo Kebbi Ouest | C88: =IF(AND(INTRO!$E$37="Non endémique",INTRO!$E$41="Non endémique")," ",IF(COUNTRY_INFO!C88=0," ",COUNTRY_INFO!C88)) -> Lere | D88: =IF(AND(INTRO!$E$37="Non endémique",INTRO!$E$41="Non endémique"),0,IF(AND(OR(COUNTRY_INFO!$H88=0,COUNTRY_INFO!$H88=4,COUNTRY_INFO!$H88=99),OR(COUNTRY_INFO!$J88=0,COUNTRY_INFO!$J88=4)),0,COUNTRY_INFO!$E88)) -> 22779 | E88: =IF(AND(INTRO!$E$37="Non endémique",INTRO!$E$41="Non endémique"),0,IF(AND(OR(COUNTRY_INFO!$H88=0,COUNTRY_INFO!$H88=4,COUNTRY_INFO!$H88=99),OR(COUNTRY_INFO!$J88=0,COUNTRY_INFO!$J88=4)),0,COUNTRY_INFO!$F88)) -> 45116 | F88: 67895 | G88: =IF(AND(INTRO!$E$37="Non endémique",INTRO!$E$41="Non endémique"),0,COUNTRY_INFO!Q88) -> 0 | H88: =IF(AND(INTRO!$E$37="Non endémique",INTRO!$E$41="Non endémique"),0,COUNTRY_INFO!S88) -> 0 | I88: =IF($G88=1,IVM!$G88,0) -> 0 | J88: =IF($G88=0, " ", IF(COUNTRY_INFO!$H88=1, IF(COUNTRY_INFO!$L88=1, 0," ")," ")) ->  | M88: =IF($L88="ALB", IF(INTRO!$E$39="Non endémique",IF($H88<>0,$D88*($H88-$G88),0),$D88*$H88), 0) -> 0 | N88: 0 | P88: 0 | Q88: =IF($L88="MBD", IF(INTRO!$E$39="Non endémique",IF($H88<>0,$D88*($H88-$G88),0),$D88*$H88),0) -> 0 | R88: 0 | T88: 0 | V88: 0 | W88: 0 | Y88: 0 | Z88: 0 | AB88: 0 | AC88: 0
A89: =IF(AND(INTRO!$E$37="Non endémique",INTRO!$E$41="Non endémique")," ",IF(COUNTRY_INFO!A89=0," ",COUNTRY_INFO!A89)) -> Chad | B89: =IF(AND(INTRO!$E$37="Non endémique",INTRO!$E$41="Non endémique")," ",IF(COUNTRY_INFO!B89=0," ",COUNTRY_INFO!B89)) -> Mayo Kebbi Ouest | C89: =IF(AND(INTRO!$E$37="Non endémique",INTRO!$E$41="Non endémique")," ",IF(COUNTRY_INFO!C89=0," ",COUNTRY_INFO!C89)) -> Pala | D89: =IF(AND(INTRO!$E$37="Non endémique",INTRO!$E$41="Non endémique"),0,IF(AND(OR(COUNTRY_INFO!$H89=0,COUNTRY_INFO!$H89=4,COUNTRY_INFO!$H89=99),OR(COUNTRY_INFO!$J89=0,COUNTRY_INFO!$J89=4)),0,COUNTRY_INFO!$E89)) -> 71219 | E89: =IF(AND(INTRO!$E$37="Non endémique",INTRO!$E$41="Non endémique"),0,IF(AND(OR(COUNTRY_INFO!$H89=0,COUNTRY_INFO!$H89=4,COUNTRY_INFO!$H89=99),OR(COUNTRY_INFO!$J89=0,COUNTRY_INFO!$J89=4)),0,COUNTRY_INFO!$F89)) -> 141059 | F89: 212278 | G89: =IF(AND(INTRO!$E$37="Non endémique",INTRO!$E$41="Non endémique"),0,COUNTRY_INFO!Q89) -> 0 | H89: =IF(AND(INTRO!$E$37="Non endémique",INTRO!$E$41="Non endémique"),0,COUNTRY_INFO!S89) -> 0 | I89: =IF($G89=1,IVM!$G89,0) -> 0 | J89: =IF($G89=0, " ", IF(COUNTRY_INFO!$H89=1, IF(COUNTRY_INFO!$L89=1, 0," ")," ")) ->  | M89: =IF($L89="ALB", IF(INTRO!$E$39="Non endémique",IF($H89<>0,$D89*($H89-$G89),0),$D89*$H89), 0) -> 0 | N89: 0 | P89: 0 | Q89: =IF($L89="MBD", IF(INTRO!$E$39="Non endémique",IF($H89<>0,$D89*($H89-$G89),0),$D89*$H89),0) -> 0 | R89: 0 | T89: 0 | V89: 0 | W89: 0 | Y89: 0 | Z89: 0 | AB89: 0 | AC89: 0
A90: =IF(AND(INTRO!$E$37="Non endémique",INTRO!$E$41="Non endémique")," ",IF(COUNTRY_INFO!A90=0," ",COUNTRY_INFO!A90)) -> Chad | B90: =IF(AND(INTRO!$E$37="Non endémique",INTRO!$E$41="Non endémique")," ",IF(COUNTRY_INFO!B90=0," ",COUNTRY_INFO!B90)) -> Mayo Kebbi Ouest | C90: =IF(AND(INTRO!$E$37="Non endémique",INTRO!$E$41="Non endémique")," ",IF(COUNTRY_INFO!C90=0," ",COUNTRY_INFO!C90)) -> Torrock | D90: =IF(AND(INTRO!$E$37="Non endémique",INTRO!$E$41="Non endémique"),0,IF(AND(OR(COUNTRY_INFO!$H90=0,COUNTRY_INFO!$H90=4,COUNTRY_INFO!$H90=99),OR(COUNTRY_INFO!$J90=0,COUNTRY_INFO!$J90=4)),0,COUNTRY_INFO!$E90)) -> 11643 | E90: =IF(AND(INTRO!$E$37="Non endémique",INTRO!$E$41="Non endémique"),0,IF(AND(OR(COUNTRY_INFO!$H90=0,COUNTRY_INFO!$H90=4,COUNTRY_INFO!$H90=99),OR(COUNTRY_INFO!$J90=0,COUNTRY_INFO!$J90=4)),0,COUNTRY_INFO!$F90)) -> 23060 | F90: 34703 | G90: =IF(AND(INTRO!$E$37="Non endémique",INTRO!$E$41="Non endémique"),0,COUNTRY_INFO!Q90) -> 0 | H90: =IF(AND(INTRO!$E$37="Non endémique",INTRO!$E$41="Non endémique"),0,COUNTRY_INFO!S90) -> 0 | I90: =IF($G90=1,IVM!$G90,0) -> 0 | J90: =IF($G90=0, " ", IF(COUNTRY_INFO!$H90=1, IF(COUNTRY_INFO!$L90=1, 0," ")," ")) ->  | M90: =IF($L90="ALB", IF(INTRO!$E$39="Non endémique",IF($H90<>0,$D90*($H90-$G90),0),$D90*$H90), 0) -> 0 | N90: 0 | P90: 0 | Q90: =IF($L90="MBD", IF(INTRO!$E$39="Non endémique",IF($H90<>0,$D90*($H90-$G90),0),$D90*$H90),0) -> 0 | R90: 0 | T90: 0 | V90: 0 | W90: 0 | Y90: 0 | Z90: 0 | AB90: 0 | AC90: 0
A91: =IF(AND(INTRO!$E$37="Non endémique",INTRO!$E$41="Non endémique")," ",IF(COUNTRY_INFO!A91=0," ",COUNTRY_INFO!A91)) -> Chad | B91: =IF(AND(INTRO!$E$37="Non endémique",INTRO!$E$41="Non endémique")," ",IF(COUNTRY_INFO!B91=0," ",COUNTRY_INFO!B91)) -> Moyen Chari | C91: =IF(AND(INTRO!$E$37="Non endémique",INTRO!$E$41="Non endémique")," ",IF(COUNTRY_INFO!C91=0," ",COUNTRY_INFO!C91)) -> Biobe Singako | D91: =IF(AND(INTRO!$E$37="Non endémique",INTRO!$E$41="Non endémique"),0,IF(AND(OR(COUNTRY_INFO!$H91=0,COUNTRY_INFO!$H91=4,COUNTRY_INFO!$H91=99),OR(COUNTRY_INFO!$J91=0,COUNTRY_INFO!$J91=4)),0,COUNTRY_INFO!$E91)) -> 13726 | E91: =IF(AND(INTRO!$E$37="Non endémique",INTRO!$E$41="Non endémique"),0,IF(AND(OR(COUNTRY_INFO!$H91=0,COUNTRY_INFO!$H91=4,COUNTRY_INFO!$H91=99),OR(COUNTRY_INFO!$J91=0,COUNTRY_INFO!$J91=4)),0,COUNTRY_INFO!$F91)) -> 27187 | F91: 40913 | G91: =IF(AND(INTRO!$E$37="Non endémique",INTRO!$E$41="Non endémique"),0,COUNTRY_INFO!Q91) -> 1 | H91: =IF(AND(INTRO!$E$37="Non endémique",INTRO!$E$41="Non endémique"),0,COUNTRY_INFO!S91) -> 0 | I91: =IF($G91=1,IVM!$G91,0) -> 70934 | J91: =IF($G91=0, " ", IF(COUNTRY_INFO!$H91=1, IF(COUNTRY_INFO!$L91=1, 0," ")," ")) ->  | M91: =IF($L91="ALB", IF(INTRO!$E$39="Non endémique",IF($H91<>0,$D91*($H91-$G91),0),$D91*$H91), 0) -> 0 | N91: 0 | P91: 0 | Q91: =IF($L91="MBD", IF(INTRO!$E$39="Non endémique",IF($H91<>0,$D91*($H91-$G91),0),$D91*$H91),0) -> 0 | R91: 0 | T91: 0 | V91: 70934 | W91: 355 | Y91: 0 | Z91: 0 | AB91: 0 | AC91: 0
A92: =IF(AND(INTRO!$E$37="Non endémique",INTRO!$E$41="Non endémique")," ",IF(COUNTRY_INFO!A92=0," ",COUNTRY_INFO!A92)) -> Chad | B92: =IF(AND(INTRO!$E$37="Non endémique",INTRO!$E$41="Non endémique")," ",IF(COUNTRY_INFO!B92=0," ",COUNTRY_INFO!B92)) -> Moyen Chari | C92: =IF(AND(INTRO!$E$37="Non endémique",INTRO!$E$41="Non endémique")," ",IF(COUNTRY_INFO!C92=0," ",COUNTRY_INFO!C92)) -> Danamadji | D92: =IF(AND(INTRO!$E$37="Non endémique",INTRO!$E$41="Non endémique"),0,IF(AND(OR(COUNTRY_INFO!$H92=0,COUNTRY_INFO!$H92=4,COUNTRY_INFO!$H92=99),OR(COUNTRY_INFO!$J92=0,COUNTRY_INFO!$J92=4)),0,COUNTRY_INFO!$E92)) -> 46201 | E92: =IF(AND(INTRO!$E$37="Non endémique",INTRO!$E$41="Non endémique"),0,IF(AND(OR(COUNTRY_INFO!$H92=0,COUNTRY_INFO!$H92=4,COUNTRY_INFO!$H92=99),OR(COUNTRY_INFO!$J92=0,COUNTRY_INFO!$J92=4)),0,COUNTRY_INFO!$F92)) -> 91508 | F92: 137709 | G92: =IF(AND(INTRO!$E$37="Non endémique",INTRO!$E$41="Non endémique"),0,COUNTRY_INFO!Q92) -> 1 | H92: =IF(AND(INTRO!$E$37="Non endémique",INTRO!$E$41="Non endémique"),0,COUNTRY_INFO!S92) -> 0 | I92: =IF($G92=1,IVM!$G92,0) -> 238756 | J92: =IF($G92=0, " ", IF(COUNTRY_INFO!$H92=1, IF(COUNTRY_INFO!$L92=1, 0," ")," ")) ->  | M92: =IF($L92="ALB", IF(INTRO!$E$39="Non endémique",IF($H92<>0,$D92*($H92-$G92),0),$D92*$H92), 0) -> 0 | N92: 0 | P92: 0 | Q92: =IF($L92="MBD", IF(INTRO!$E$39="Non endémique",IF($H92<>0,$D92*($H92-$G92),0),$D92*$H92),0) -> 0 | R92: 0 | T92: 0 | V92: 238756 | W92: 1194 | Y92: 0 | Z92: 0 | AB92: 0 | AC92: 0
A93: =IF(AND(INTRO!$E$37="Non endémique",INTRO!$E$41="Non endémique")," ",IF(COUNTRY_INFO!A93=0," ",COUNTRY_INFO!A93)) -> Chad | B93: =IF(AND(INTRO!$E$37="Non endémique",INTRO!$E$41="Non endémique")," ",IF(COUNTRY_INFO!B93=0," ",COUNTRY_INFO!B93)) -> Moyen Chari | C93: =IF(AND(INTRO!$E$37="Non endémique",INTRO!$E$41="Non endémique")," ",IF(COUNTRY_INFO!C93=0," ",COUNTRY_INFO!C93)) -> Korbol | D93: =IF(AND(INTRO!$E$37="Non endémique",INTRO!$E$41="Non endémique"),0,IF(AND(OR(COUNTRY_INFO!$H93=0,COUNTRY_INFO!$H93=4,COUNTRY_INFO!$H93=99),OR(COUNTRY_INFO!$J93=0,COUNTRY_INFO!$J93=4)),0,COUNTRY_INFO!$E93)) -> 22658 | E93: =IF(AND(INTRO!$E$37="Non endémique",INTRO!$E$41="Non endémique"),0,IF(AND(OR(COUNTRY_INFO!$H93=0,COUNTRY_INFO!$H93=4,COUNTRY_INFO!$H93=99),OR(COUNTRY_INFO!$J93=0,COUNTRY_INFO!$J93=4)),0,COUNTRY_INFO!$F93)) -> 44877 | F93: 67535 | G93: =IF(AND(INTRO!$E$37="Non endémique",INTRO!$E$41="Non endémique"),0,COUNTRY_INFO!Q93) -> 1 | H93: =IF(AND(INTRO!$E$37="Non endémique",INTRO!$E$41="Non endémique"),0,COUNTRY_INFO!S93) -> 1 | I93: =IF($G93=1,IVM!$G93,0) -> 117089 | J93: =IF($G93=0, " ", IF(COUNTRY_INFO!$H93=1, IF(COUNTRY_INFO!$L93=1, 0," ")," ")) ->  | L93: MBD | M93: =IF($L93="ALB", IF(INTRO!$E$39="Non endémique",IF($H93<>0,$D93*($H93-$G93),0),$D93*$H93), 0) -> 0 | N93: 0 | P93: 0 | Q93: =IF($L93="MBD", IF(INTRO!$E$39="Non endémique",IF($H93<>0,$D93*($H93-$G93),0),$D93*$H93),0) -> 22658 | R93: 0 | T93: 22658 | V93: 117089 | W93: 586 | Y93: 0 | Z93: 0 | AB93: 0 | AC93: 0
A94: =IF(AND(INTRO!$E$37="Non endémique",INTRO!$E$41="Non endémique")," ",IF(COUNTRY_INFO!A94=0," ",COUNTRY_INFO!A94)) -> Chad | B94: =IF(AND(INTRO!$E$37="Non endémique",INTRO!$E$41="Non endémique")," ",IF(COUNTRY_INFO!B94=0," ",COUNTRY_INFO!B94)) -> Moyen Chari | C94: =IF(AND(INTRO!$E$37="Non endémique",INTRO!$E$41="Non endémique")," ",IF(COUNTRY_INFO!C94=0," ",COUNTRY_INFO!C94)) -> Kyabe | D94: =IF(AND(INTRO!$E$37="Non endémique",INTRO!$E$41="Non endémique"),0,IF(AND(OR(COUNTRY_INFO!$H94=0,COUNTRY_INFO!$H94=4,COUNTRY_INFO!$H94=99),OR(COUNTRY_INFO!$J94=0,COUNTRY_INFO!$J94=4)),0,COUNTRY_INFO!$E94)) -> 18562 | E94: =IF(AND(INTRO!$E$37="Non endémique",INTRO!$E$41="Non endémique"),0,IF(AND(OR(COUNTRY_INFO!$H94=0,COUNTRY_INFO!$H94=4,COUNTRY_INFO!$H94=99),OR(COUNTRY_INFO!$J94=0,COUNTRY_INFO!$J94=4)),0,COUNTRY_INFO!$F94)) -> 36766 | F94: 55328 | G94: =IF(AND(INTRO!$E$37="Non endémique",INTRO!$E$41="Non endémique"),0,COUNTRY_INFO!Q94) -> 1 | H94: =IF(AND(INTRO!$E$37="Non endémique",INTRO!$E$41="Non endémique"),0,COUNTRY_INFO!S94) -> 0 | I94: =IF($G94=1,IVM!$G94,0) -> 95926 | J94: =IF($G94=0, " ", IF(COUNTRY_INFO!$H94=1, IF(COUNTRY_INFO!$L94=1, 0," ")," ")) ->  | M94: =IF($L94="ALB", IF(INTRO!$E$39="Non endémique",IF($H94<>0,$D94*($H94-$G94),0),$D94*$H94), 0) -> 0 | N94: 0 | P94: 0 | Q94: =IF($L94="MBD", IF(INTRO!$E$39="Non endémique",IF($H94<>0,$D94*($H94-$G94),0),$D94*$H94),0) -> 0 | R94: 0 | T94: 0 | V94: 95926 | W94: 480 | Y94: 0 | Z94: 0 | AB94: 0 | AC94: 0
A95: =IF(AND(INTRO!$E$37="Non endémique",INTRO!$E$41="Non endémique")," ",IF(COUNTRY_INFO!A95=0," ",COUNTRY_INFO!A95)) -> Chad | B95: =IF(AND(INTRO!$E$37="Non endémique",INTRO!$E$41="Non endémique")," ",IF(COUNTRY_INFO!B95=0," ",COUNTRY_INFO!B95)) -> Moyen Chari | C95: =IF(AND(INTRO!$E$37="Non endémique",INTRO!$E$41="Non endémique")," ",IF(COUNTRY_INFO!C95=0," ",COUNTRY_INFO!C95)) -> Maro | D95: =IF(AND(INTRO!$E$37="Non endémique",INTRO!$E$41="Non endémique"),0,IF(AND(OR(COUNTRY_INFO!$H95=0,COUNTRY_INFO!$H95=4,COUNTRY_INFO!$H95=99),OR(COUNTRY_INFO!$J95=0,COUNTRY_INFO!$J95=4)),0,COUNTRY_INFO!$E95)) -> 39924 | E95: =IF(AND(INTRO!$E$37="Non endémique",INTRO!$E$41="Non endémique"),0,IF(AND(OR(COUNTRY_INFO!$H95=0,COUNTRY_INFO!$H95=4,COUNTRY_INFO!$H95=99),OR(COUNTRY_INFO!$J95=0,COUNTRY_INFO!$J95=4)),0,COUNTRY_INFO!$F95)) -> 79076 | F95: 119000 | G95: =IF(AND(INTRO!$E$37="Non endémique",INTRO!$E$41="Non endémique"),0,COUNTRY_INFO!Q95) -> 1 | H95: =IF(AND(INTRO!$E$37="Non endémique",INTRO!$E$41="Non endémique"),0,COUNTRY_INFO!S95) -> 0 | I95: =IF($G95=1,IVM!$G95,0) -> 206319 | J95: =IF($G95=0, " ", IF(COUNTRY_INFO!$H95=1, IF(COUNTRY_INFO!$L95=1, 0," ")," ")) ->  | M95: =IF($L95="ALB", IF(INTRO!$E$39="Non endémique",IF($H95<>0,$D95*($H95-$G95),0),$D95*$H95), 0) -> 0 | N95: 0 | P95: 0 | Q95: =IF($L95="MBD", IF(INTRO!$E$39="Non endémique",IF($H95<>0,$D95*($H95-$G95),0),$D95*$H95),0) -> 0 | R95: 0 | T95: 0 | V95: 206319 | W95: 1032 | Y95: 0 | Z95: 0 | AB95: 0 | AC95: 0
A96: =IF(AND(INTRO!$E$37="Non endémique",INTRO!$E$41="Non endémique")," ",IF(COUNTRY_INFO!A96=0," ",COUNTRY_INFO!A96)) -> Chad | B96: =IF(AND(INTRO!$E$37="Non endémique",INTRO!$E$41="Non endémique")," ",IF(COUNTRY_INFO!B96=0," ",COUNTRY_INFO!B96)) -> Moyen Chari | C96: =IF(AND(INTRO!$E$37="Non endémique",INTRO!$E$41="Non endémique")," ",IF(COUNTRY_INFO!C96=0," ",COUNTRY_INFO!C96)) -> Sarh | D96: =IF(AND(INTRO!$E$37="Non endémique",INTRO!$E$41="Non endémique"),0,IF(AND(OR(COUNTRY_INFO!$H96=0,COUNTRY_INFO!$H96=4,COUNTRY_INFO!$H96=99),OR(COUNTRY_INFO!$J96=0,COUNTRY_INFO!$J96=4)),0,COUNTRY_INFO!$E96)) -> 30476 | E96: =IF(AND(INTRO!$E$37="Non endémique",INTRO!$E$41="Non endémique"),0,IF(AND(OR(COUNTRY_INFO!$H96=0,COUNTRY_INFO!$H96=4,COUNTRY_INFO!$H96=99),OR(COUNTRY_INFO!$J96=0,COUNTRY_INFO!$J96=4)),0,COUNTRY_INFO!$F96)) -> 60362 | F96: 90838 | G96: =IF(AND(INTRO!$E$37="Non endémique",INTRO!$E$41="Non endémique"),0,COUNTRY_INFO!Q96) -> 1 | H96: =IF(AND(INTRO!$E$37="Non endémique",INTRO!$E$41="Non endémique"),0,COUNTRY_INFO!S96) -> 1 | I96: =IF($G96=1,IVM!$G96,0) -> 157492 | J96: =IF($G96=0, " ", IF(COUNTRY_INFO!$H96=1, IF(COUNTRY_INFO!$L96=1, 0," ")," ")) ->  | L96: MBD | M96: =IF($L96="ALB", IF(INTRO!$E$39="Non endémique",IF($H96<>0,$D96*($H96-$G96),0),$D96*$H96), 0) -> 0 | N96: 0 | P96: 0 | Q96: =IF($L96="MBD", IF(INTRO!$E$39="Non endémique",IF($H96<>0,$D96*($H96-$G96),0),$D96*$H96),0) -> 30476 | R96: 0 | T96: 30476 | V96: 157492 | W96: 788 | Y96: 0 | Z96: 0 | AB96: 0 | AC96: 0
A97: =IF(AND(INTRO!$E$37="Non endémique",INTRO!$E$41="Non endémique")," ",IF(COUNTRY_INFO!A97=0," ",COUNTRY_INFO!A97)) -> Chad | B97: =IF(AND(INTRO!$E$37="Non endémique",INTRO!$E$41="Non endémique")," ",IF(COUNTRY_INFO!B97=0," ",COUNTRY_INFO!B97)) -> N'Djaména | C97: =IF(AND(INTRO!$E$37="Non endémique",INTRO!$E$41="Non endémique")," ",IF(COUNTRY_INFO!C97=0," ",COUNTRY_INFO!C97)) -> N'Djaména Centre | D97: =IF(AND(INTRO!$E$37="Non endémique",INTRO!$E$41="Non endémique"),0,IF(AND(OR(COUNTRY_INFO!$H97=0,COUNTRY_INFO!$H97=4,COUNTRY_INFO!$H97=99),OR(COUNTRY_INFO!$J97=0,COUNTRY_INFO!$J97=4)),0,COUNTRY_INFO!$E97)) -> 70968 | E97: =IF(AND(INTRO!$E$37="Non endémique",INTRO!$E$41="Non endémique"),0,IF(AND(OR(COUNTRY_INFO!$H97=0,COUNTRY_INFO!$H97=4,COUNTRY_INFO!$H97=99),OR(COUNTRY_INFO!$J97=0,COUNTRY_INFO!$J97=4)),0,COUNTRY_INFO!$F97)) -> 140562 | F97: 211530 | G97: =IF(AND(INTRO!$E$37="Non endémique",INTRO!$E$41="Non endémique"),0,COUNTRY_INFO!Q97) -> 0 | H97: =IF(AND(INTRO!$E$37="Non endémique",INTRO!$E$41="Non endémique"),0,COUNTRY_INFO!S97) -> 0 | I97: =IF($G97=1,IVM!$G97,0) -> 0 | J97: =IF($G97=0, " ", IF(COUNTRY_INFO!$H97=1, IF(COUNTRY_INFO!$L97=1, 0," ")," ")) ->  | M97: =IF($L97="ALB", IF(INTRO!$E$39="Non endémique",IF($H97<>0,$D97*($H97-$G97),0),$D97*$H97), 0) -> 0 | N97: 0 | P97: 0 | Q97: =IF($L97="MBD", IF(INTRO!$E$39="Non endémique",IF($H97<>0,$D97*($H97-$G97),0),$D97*$H97),0) -> 0 | R97: 0 | T97: 0 | V97: 0 | W97: 0 | Y97: 0 | Z97: 0 | AB97: 0 | AC97: 0
A98: =IF(AND(INTRO!$E$37="Non endémique",INTRO!$E$41="Non endémique")," ",IF(COUNTRY_INFO!A98=0," ",COUNTRY_INFO!A98)) -> Chad | B98: =IF(AND(INTRO!$E$37="Non endémique",INTRO!$E$41="Non endémique")," ",IF(COUNTRY_INFO!B98=0," ",COUNTRY_INFO!B98)) -> N'Djaména | C98: =IF(AND(INTRO!$E$37="Non endémique",INTRO!$E$41="Non endémique")," ",IF(COUNTRY_INFO!C98=0," ",COUNTRY_INFO!C98)) -> N'Djaména Est | D98: =IF(AND(INTRO!$E$37="Non endémique",INTRO!$E$41="Non endémique"),0,IF(AND(OR(COUNTRY_INFO!$H98=0,COUNTRY_INFO!$H98=4,COUNTRY_INFO!$H98=99),OR(COUNTRY_INFO!$J98=0,COUNTRY_INFO!$J98=4)),0,COUNTRY_INFO!$E98)) -> 0 | E98: =IF(AND(INTRO!$E$37="Non endémique",INTRO!$E$41="Non endémique"),0,IF(AND(OR(COUNTRY_INFO!$H98=0,COUNTRY_INFO!$H98=4,COUNTRY_INFO!$H98=99),OR(COUNTRY_INFO!$J98=0,COUNTRY_INFO!$J98=4)),0,COUNTRY_INFO!$F98)) -> 0 | F98: 0 | G98: =IF(AND(INTRO!$E$37="Non endémique",INTRO!$E$41="Non endémique"),0,COUNTRY_INFO!Q98) -> 0 | H98: =IF(AND(INTRO!$E$37="Non endémique",INTRO!$E$41="Non endémique"),0,COUNTRY_INFO!S98) -> 0 | I98: =IF($G98=1,IVM!$G98,0) -> 0 | J98: =IF($G98=0, " ", IF(COUNTRY_INFO!$H98=1, IF(COUNTRY_INFO!$L98=1, 0," ")," ")) ->  | M98: =IF($L98="ALB", IF(INTRO!$E$39="Non endémique",IF($H98<>0,$D98*($H98-$G98),0),$D98*$H98), 0) -> 0 | N98: 0 | P98: 0 | Q98: =IF($L98="MBD", IF(INTRO!$E$39="Non endémique",IF($H98<>0,$D98*($H98-$G98),0),$D98*$H98),0) -> 0 | R98: 0 | T98: 0 | V98: 0 | W98: 0 | Y98: 0 | Z98: 0 | AB98: 0 | AC98: 0
A99: =IF(AND(INTRO!$E$37="Non endémique",INTRO!$E$41="Non endémique")," ",IF(COUNTRY_INFO!A99=0," ",COUNTRY_INFO!A99)) -> Chad | B99: =IF(AND(INTRO!$E$37="Non endémique",INTRO!$E$41="Non endémique")," ",IF(COUNTRY_INFO!B99=0," ",COUNTRY_INFO!B99)) -> N'Djaména | C99: =IF(AND(INTRO!$E$37="Non endémique",INTRO!$E$41="Non endémique")," ",IF(COUNTRY_INFO!C99=0," ",COUNTRY_INFO!C99)) -> N'Djaména Nord | D99: =IF(AND(INTRO!$E$37="Non endémique",INTRO!$E$41="Non endémique"),0,IF(AND(OR(COUNTRY_INFO!$H99=0,COUNTRY_INFO!$H99=4,COUNTRY_INFO!$H99=99),OR(COUNTRY_INFO!$J99=0,COUNTRY_INFO!$J99=4)),0,COUNTRY_INFO!$E99)) -> 0 | E99: =IF(AND(INTRO!$E$37="Non endémique",INTRO!$E$41="Non endémique"),0,IF(AND(OR(COUNTRY_INFO!$H99=0,COUNTRY_INFO!$H99=4,COUNTRY_INFO!$H99=99),OR(COUNTRY_INFO!$J99=0,COUNTRY_INFO!$J99=4)),0,COUNTRY_INFO!$F99)) -> 0 | F99: 0 | G99: =IF(AND(INTRO!$E$37="Non endémique",INTRO!$E$41="Non endémique"),0,COUNTRY_INFO!Q99) -> 0 | H99: =IF(AND(INTRO!$E$37="Non endémique",INTRO!$E$41="Non endémique"),0,COUNTRY_INFO!S99) -> 0 | I99: =IF($G99=1,IVM!$G99,0) -> 0 | J99: =IF($G99=0, " ", IF(COUNTRY_INFO!$H99=1, IF(COUNTRY_INFO!$L99=1, 0," ")," ")) ->  | M99: =IF($L99="ALB", IF(INTRO!$E$39="Non endémique",IF($H99<>0,$D99*($H99-$G99),0),$D99*$H99), 0) -> 0 | N99: 0 | P99: 0 | Q99: =IF($L99="MBD", IF(INTRO!$E$39="Non endémique",IF($H99<>0,$D99*($H99-$G99),0),$D99*$H99),0) -> 0 | R99: 0 | T99: 0 | V99: 0 | W99: 0 | Y99: 0 | Z99: 0 | AB99: 0 | AC99: 0
A100: =IF(AND(INTRO!$E$37="Non endémique",INTRO!$E$41="Non endémique")," ",IF(COUNTRY_INFO!A100=0," ",COUNTRY_INFO!A100)) -> Chad | B100: =IF(AND(INTRO!$E$37="Non endémique",INTRO!$E$41="Non endémique")," ",IF(COUNTRY_INFO!B100=0," ",COUNTRY_INFO!B100)) -> N'Djaména | C100: =IF(AND(INTRO!$E$37="Non endémique",INTRO!$E$41="Non endémique")," ",IF(COUNTRY_INFO!C100=0," ",COUNTRY_INFO!C100)) -> N'Djaména Sud | D100: =IF(AND(INTRO!$E$37="Non endémique",INTRO!$E$41="Non endémique"),0,IF(AND(OR(COUNTRY_INFO!$H100=0,COUNTRY_INFO!$H100=4,COUNTRY_INFO!$H100=99),OR(COUNTRY_INFO!$J100=0,COUNTRY_INFO!$J100=4)),0,COUNTRY_INFO!$E100)) -> 100603 | E100: =IF(AND(INTRO!$E$37="Non endémique",INTRO!$E$41="Non endémique"),0,IF(AND(OR(COUNTRY_INFO!$H100=0,COUNTRY_INFO!$H100=4,COUNTRY_INFO!$H100=99),OR(COUNTRY_INFO!$J100=0,COUNTRY_INFO!$J100=4)),0,COUNTRY_INFO!$F100)) -> 199258 | F100: 299861 | G100: =IF(AND(INTRO!$E$37="Non endémique",INTRO!$E$41="Non endémique"),0,COUNTRY_INFO!Q100) -> 0 | H100: =IF(AND(INTRO!$E$37="Non endémique",INTRO!$E$41="Non endémique"),0,COUNTRY_INFO!S100) -> 0 | I100: =IF($G100=1,IVM!$G100,0) -> 0 | J100: =IF($G100=0, " ", IF(COUNTRY_INFO!$H100=1, IF(COUNTRY_INFO!$L100=1, 0," ")," ")) ->  | M100: =IF($L100="ALB", IF(INTRO!$E$39="Non endémique",IF($H100<>0,$D100*($H100-$G100),0),$D100*$H100), 0) -> 0 | N100: 0 | P100: 0 | Q100: =IF($L100="MBD", IF(INTRO!$E$39="Non endémique",IF($H100<>0,$D100*($H100-$G100),0),$D100*$H100),0) -> 0 | R100: 0 | T100: 0 | V100: 0 | W100: 0 | Y100: 0 | Z100: 0 | AB100: 0 | AC100: 0
A101: =IF(AND(INTRO!$E$37="Non endémique",INTRO!$E$41="Non endémique")," ",IF(COUNTRY_INFO!A101=0," ",COUNTRY_INFO!A101)) -> Chad | B101: =IF(AND(INTRO!$E$37="Non endémique",INTRO!$E$41="Non endémique")," ",IF(COUNTRY_INFO!B101=0," ",COUNTRY_INFO!B101)) -> Ouaddai | C101: =IF(AND(INTRO!$E$37="Non endémique",INTRO!$E$41="Non endémique")," ",IF(COUNTRY_INFO!C101=0," ",COUNTRY_INFO!C101)) -> Abdi | D101: =IF(AND(INTRO!$E$37="Non endémique",INTRO!$E$41="Non endémique"),0,IF(AND(OR(COUNTRY_INFO!$H101=0,COUNTRY_INFO!$H101=4,COUNTRY_INFO!$H101=99),OR(COUNTRY_INFO!$J101=0,COUNTRY_INFO!$J101=4)),0,COUNTRY_INFO!$E101)) -> 25031 | E101: =IF(AND(INTRO!$E$37="Non endémique",INTRO!$E$41="Non endémique"),0,IF(AND(OR(COUNTRY_INFO!$H101=0,COUNTRY_INFO!$H101=4,COUNTRY_INFO!$H101=99),OR(COUNTRY_INFO!$J101=0,COUNTRY_INFO!$J101=4)),0,COUNTRY_INFO!$F101)) -> 49578 | F101: 74609 | G101: =IF(AND(INTRO!$E$37="Non endémique",INTRO!$E$41="Non endémique"),0,COUNTRY_INFO!Q101) -> 0 | H101: =IF(AND(INTRO!$E$37="Non endémique",INTRO!$E$41="Non endémique"),0,COUNTRY_INFO!S101) -> 0 | I101: =IF($G101=1,IVM!$G101,0) -> 0 | J101: =IF($G101=0, " ", IF(COUNTRY_INFO!$H101=1, IF(COUNTRY_INFO!$L101=1, 0," ")," ")) ->  | M101: =IF($L101="ALB", IF(INTRO!$E$39="Non endémique",IF($H101<>0,$D101*($H101-$G101),0),$D101*$H101), 0) -> 0 | N101: 0 | P101: 0 | Q101: =IF($L101="MBD", IF(INTRO!$E$39="Non endémique",IF($H101<>0,$D101*($H101-$G101),0),$D101*$H101),0) -> 0 | R101: 0 | T101: 0 | V101: 0 | W101: 0 | Y101: 0 | Z101: 0 | AB101: 0 | AC101: 0
A102: =IF(AND(INTRO!$E$37="Non endémique",INTRO!$E$41="Non endémique")," ",IF(COUNTRY_INFO!A102=0," ",COUNTRY_INFO!A102)) -> Chad | B102: =IF(AND(INTRO!$E$37="Non endémique",INTRO!$E$41="Non endémique")," ",IF(COUNTRY_INFO!B102=0," ",COUNTRY_INFO!B102)) -> Ouaddai | C102: =IF(AND(INTRO!$E$37="Non endémique",INTRO!$E$41="Non endémique")," ",IF(COUNTRY_INFO!C102=0," ",COUNTRY_INFO!C102)) -> Abeche | D102: =IF(AND(INTRO!$E$37="Non endémique",INTRO!$E$41="Non endémique"),0,IF(AND(OR(COUNTRY_INFO!$H102=0,COUNTRY_INFO!$H102=4,COUNTRY_INFO!$H102=99),OR(COUNTRY_INFO!$J102=0,COUNTRY_INFO!$J102=4)),0,COUNTRY_INFO!$E102)) -> 56477 | E102: =IF(AND(INTRO!$E$37="Non endémique",INTRO!$E$41="Non endémique"),0,IF(AND(OR(COUNTRY_INFO!$H102=0,COUNTRY_INFO!$H102=4,COUNTRY_INFO!$H102=99),OR(COUNTRY_INFO!$J102=0,COUNTRY_INFO!$J102=4)),0,COUNTRY_INFO!$F102)) -> 111861 | F102: 168338 | G102: =IF(AND(INTRO!$E$37="Non endémique",INTRO!$E$41="Non endémique"),0,COUNTRY_INFO!Q102) -> 0 | H102: =IF(AND(INTRO!$E$37="Non endémique",INTRO!$E$41="Non endémique"),0,COUNTRY_INFO!S102) -> 0 | I102: =IF($G102=1,IVM!$G102,0) -> 0 | J102: =IF($G102=0, " ", IF(COUNTRY_INFO!$H102=1, IF(COUNTRY_INFO!$L102=1, 0," ")," ")) ->  | M102: =IF($L102="ALB", IF(INTRO!$E$39="Non endémique",IF($H102<>0,$D102*($H102-$G102),0),$D102*$H102), 0) -> 0 | N102: 0 | P102: 0 | Q102: =IF($L102="MBD", IF(INTRO!$E$39="Non endémique",IF($H102<>0,$D102*($H102-$G102),0),$D102*$H102),0) -> 0 | R102: 0 | T102: 0 | V102: 0 | W102: 0 | Y102: 0 | Z102: 0 | AB102: 0 | AC102: 0
A103: =IF(AND(INTRO!$E$37="Non endémique",INTRO!$E$41="Non endémique")," ",IF(COUNTRY_INFO!A103=0," ",COUNTRY_INFO!A103)) -> Chad | B103: =IF(AND(INTRO!$E$37="Non endémique",INTRO!$E$41="Non endémique")," ",IF(COUNTRY_INFO!B103=0," ",COUNTRY_INFO!B103)) -> Ouaddai | C103: =IF(AND(INTRO!$E$37="Non endémique",INTRO!$E$41="Non endémique")," ",IF(COUNTRY_INFO!C103=0," ",COUNTRY_INFO!C103)) -> Abougoudam | D103: =IF(AND(INTRO!$E$37="Non endémique",INTRO!$E$41="Non endémique"),0,IF(AND(OR(COUNTRY_INFO!$H103=0,COUNTRY_INFO!$H103=4,COUNTRY_INFO!$H103=99),OR(COUNTRY_INFO!$J103=0,COUNTRY_INFO!$J103=4)),0,COUNTRY_INFO!$E103)) -> 0 | E103: =IF(AND(INTRO!$E$37="Non endémique",INTRO!$E$41="Non endémique"),0,IF(AND(OR(COUNTRY_INFO!$H103=0,COUNTRY_INFO!$H103=4,COUNTRY_INFO!$H103=99),OR(COUNTRY_INFO!$J103=0,COUNTRY_INFO!$J103=4)),0,COUNTRY_INFO!$F103)) -> 0 | F103: 0 | G103: =IF(AND(INTRO!$E$37="Non endémique",INTRO!$E$41="Non endémique"),0,COUNTRY_INFO!Q103) -> 0 | H103: =IF(AND(INTRO!$E$37="Non endémique",INTRO!$E$41="Non endémique"),0,COUNTRY_INFO!S103) -> 0 | I103: =IF($G103=1,IVM!$G103,0) -> 0 | J103: =IF($G103=0, " ", IF(COUNTRY_INFO!$H103=1, IF(COUNTRY_INFO!$L103=1, 0," ")," ")) ->  | M103: =IF($L103="ALB", IF(INTRO!$E$39="Non endémique",IF($H103<>0,$D103*($H103-$G103),0),$D103*$H103), 0) -> 0 | N103: 0 | P103: 0 | Q103: =IF($L103="MBD", IF(INTRO!$E$39="Non endémique",IF($H103<>0,$D103*($H103-$G103),0),$D103*$H103),0) -> 0 | R103: 0 | T103: 0 | V103: 0 | W103: 0 | Y103: 0 | Z103: 0 | AB103: 0 | AC103: 0
A104: =IF(AND(INTRO!$E$37="Non endémique",INTRO!$E$41="Non endémique")," ",IF(COUNTRY_INFO!A104=0," ",COUNTRY_INFO!A104)) -> Chad | B104: =IF(AND(INTRO!$E$37="Non endémique",INTRO!$E$41="Non endémique")," ",IF(COUNTRY_INFO!B104=0," ",COUNTRY_INFO!B104)) -> Ouaddai | C104: =IF(AND(INTRO!$E$37="Non endémique",INTRO!$E$41="Non endémique")," ",IF(COUNTRY_INFO!C104=0," ",COUNTRY_INFO!C104)) -> Adré | D104: =IF(AND(INTRO!$E$37="Non endémique",INTRO!$E$41="Non endémique"),0,IF(AND(OR(COUNTRY_INFO!$H104=0,COUNTRY_INFO!$H104=4,COUNTRY_INFO!$H104=99),OR(COUNTRY_INFO!$J104=0,COUNTRY_INFO!$J104=4)),0,COUNTRY_INFO!$E104)) -> 66895 | E104: =IF(AND(INTRO!$E$37="Non endémique",INTRO!$E$41="Non endémique"),0,IF(AND(OR(COUNTRY_INFO!$H104=0,COUNTRY_INFO!$H104=4,COUNTRY_INFO!$H104=99),OR(COUNTRY_INFO!$J104=0,COUNTRY_INFO!$J104=4)),0,COUNTRY_INFO!$F104)) -> 132496 | F104: 199391 | G104: =IF(AND(INTRO!$E$37="Non endémique",INTRO!$E$41="Non endémique"),0,COUNTRY_INFO!Q104) -> 0 | H104: =IF(AND(INTRO!$E$37="Non endémique",INTRO!$E$41="Non endémique"),0,COUNTRY_INFO!S104) -> 0 | I104: =IF($G104=1,IVM!$G104,0) -> 0 | J104: =IF($G104=0, " ", IF(COUNTRY_INFO!$H104=1, IF(COUNTRY_INFO!$L104=1, 0," ")," ")) ->  | M104: =IF($L104="ALB", IF(INTRO!$E$39="Non endémique",IF($H104<>0,$D104*($H104-$G104),0),$D104*$H104), 0) -> 0 | N104: 0 | P104: 0 | Q104: =IF($L104="MBD", IF(INTRO!$E$39="Non endémique",IF($H104<>0,$D104*($H104-$G104),0),$D104*$H104),0) -> 0 | R104: 0 | T104: 0 | V104: 0 | W104: 0 | Y104: 0 | Z104: 0 | AB104: 0 | AC104: 0
A105: =IF(AND(INTRO!$E$37="Non endémique",INTRO!$E$41="Non endémique")," ",IF(COUNTRY_INFO!A105=0," ",COUNTRY_INFO!A105)) -> Chad | B105: =IF(AND(INTRO!$E$37="Non endémique",INTRO!$E$41="Non endémique")," ",IF(COUNTRY_INFO!B105=0," ",COUNTRY_INFO!B105)) -> Salamat | C105: =IF(AND(INTRO!$E$37="Non endémique",INTRO!$E$41="Non endémique")," ",IF(COUNTRY_INFO!C105=0," ",COUNTRY_INFO!C105)) -> Aboudeia | D105: =IF(AND(INTRO!$E$37="Non endémique",INTRO!$E$41="Non endémique"),0,IF(AND(OR(COUNTRY_INFO!$H105=0,COUNTRY_INFO!$H105=4,COUNTRY_INFO!$H105=99),OR(COUNTRY_INFO!$J105=0,COUNTRY_INFO!$J105=4)),0,COUNTRY_INFO!$E105)) -> 15148 | E105: =IF(AND(INTRO!$E$37="Non endémique",INTRO!$E$41="Non endémique"),0,IF(AND(OR(COUNTRY_INFO!$H105=0,COUNTRY_INFO!$H105=4,COUNTRY_INFO!$H105=99),OR(COUNTRY_INFO!$J105=0,COUNTRY_INFO!$J105=4)),0,COUNTRY_INFO!$F105)) -> 30002 | F105: =SUM(D105:E105) -> 45150 | G105: =IF(AND(INTRO!$E$37="Non endémique",INTRO!$E$41="Non endémique"),0,COUNTRY_INFO!Q105) -> 0 | H105: =IF(AND(INTRO!$E$37="Non endémique",INTRO!$E$41="Non endémique"),0,COUNTRY_INFO!S105) -> 1 | I105: =IF($G105=1,IVM!$G105,0) -> 0 | J105: =IF($G105=0, " ", IF(COUNTRY_INFO!$H105=1, IF(COUNTRY_INFO!$L105=1, 0," ")," ")) ->  | L105: MBD | M105: =IF($L105="ALB", IF(INTRO!$E$39="Non endémique",IF($H105<>0,$D105*($H105-$G105),0),$D105*$H105), 0) -> 0 | N105: =IF($L105="ALB", IF($H105=0, 0, IF(AND($I105=0, OR($J105=0,$J105=" ")), $E105*$H105, IF(AND($I105=0, $J105>0), IF(($H105-$K105)<=0, 0, $E105*(MAX($H105,$K105)-MIN($H105,$K105))), IF(AND($I105>0, $J105=0), $E105*($H105-$G105), IF($J105=" ", 0, $J105*$E105/($I105+$J105)*$K105+$I105*$E105/($I105+$J105)*($H105-$G105)))))), 0) -> 0 | P105: =SUM(M105:O105) -> 0 | Q105: =IF($L105="MBD", IF(INTRO!$E$39="Non endémique",IF($H105<>0,$D105*($H105-$G105),0),$D105*$H105),0) -> 15148 | R105: =IF($L105="MBD", IF($H105=0, 0, IF(AND($I105=0, OR($J105=0,$J105=" ")), $E105*$H105, IF(AND($I105=0, $J105>0), IF(($H105-$K105)<=0, 0, $E105*(MAX($H105,$K105)-MIN($H105,$K105))), IF(AND($I105>0, $J105=0), $E105*($H105-$G105), IF($J105=" ", 0, $J105*$E105/($I105+$J105)*$K105+$I105*$E105/($I105+$J105)*($H105-$G105)))))), 0) -> 30002 | T105: =SUM(Q105:S105) -> 45150 | V105: =IF($J105<>" ", IF(($I105+$J105*$K105)>$U105, ($I105+$J105*$K105)-$U105,0), IF($I105>$U105, $I105-$U105, 0)) -> 0 | W105: =IF($J105<>" ", ROUNDUP(($I105+$J105*$K105)/200,0), ROUNDUP($I105/200,0)) -> 0 | Y105: =IF($N105>$X105,$N105-$X105,0) -> 0 | Z105: =ROUNDUP($N105/200,0) -> 0 | AB105: =IF($R105>$AA105,$R105-$AA105,0) -> 30002 | AC105: =ROUNDUP($R105/150,0) -> 201
A106: =IF(AND(INTRO!$E$37="Non endémique",INTRO!$E$41="Non endémique")," ",IF(COUNTRY_INFO!A106=0," ",COUNTRY_INFO!A106)) -> Chad | B106: =IF(AND(INTRO!$E$37="Non endémique",INTRO!$E$41="Non endémique")," ",IF(COUNTRY_INFO!B106=0," ",COUNTRY_INFO!B106)) -> Salamat | C106: =IF(AND(INTRO!$E$37="Non endémique",INTRO!$E$41="Non endémique")," ",IF(COUNTRY_INFO!C106=0," ",COUNTRY_INFO!C106)) -> Am-Timan | D106: =IF(AND(INTRO!$E$37="Non endémique",INTRO!$E$41="Non endémique"),0,IF(AND(OR(COUNTRY_INFO!$H106=0,COUNTRY_INFO!$H106=4,COUNTRY_INFO!$H106=99),OR(COUNTRY_INFO!$J106=0,COUNTRY_INFO!$J106=4)),0,COUNTRY_INFO!$E106)) -> 42672 | E106: =IF(AND(INTRO!$E$37="Non endémique",INTRO!$E$41="Non endémique"),0,IF(AND(OR(COUNTRY_INFO!$H106=0,COUNTRY_INFO!$H106=4,COUNTRY_INFO!$H106=99),OR(COUNTRY_INFO!$J106=0,COUNTRY_INFO!$J106=4)),0,COUNTRY_INFO!$F106)) -> 84519 | F106: 127191 | G106: =IF(AND(INTRO!$E$37="Non endémique",INTRO!$E$41="Non endémique"),0,COUNTRY_INFO!Q106) -> 0 | H106: =IF(AND(INTRO!$E$37="Non endémique",INTRO!$E$41="Non endémique"),0,COUNTRY_INFO!S106) -> 1 | I106: =IF($G106=1,IVM!$G106,0) -> 0 | J106: =IF($G106=0, " ", IF(COUNTRY_INFO!$H106=1, IF(COUNTRY_INFO!$L106=1, 0," ")," ")) ->  | L106: MBD | M106: =IF($L106="ALB", IF(INTRO!$E$39="Non endémique",IF($H106<>0,$D106*($H106-$G106),0),$D106*$H106), 0) -> 0 | N106: 0 | P106: 0 | Q106: =IF($L106="MBD", IF(INTRO!$E$39="Non endémique",IF($H106<>0,$D106*($H106-$G106),0),$D106*$H106),0) -> 42672 | R106: 84519 | T106: 127191 | V106: 0 | W106: 0 | Y106: 0 | Z106: 0 | AB106: 84519 | AC106: 564
A107: =IF(AND(INTRO!$E$37="Non endémique",INTRO!$E$41="Non endémique")," ",IF(COUNTRY_INFO!A107=0," ",COUNTRY_INFO!A107)) -> Chad | B107: =IF(AND(INTRO!$E$37="Non endémique",INTRO!$E$41="Non endémique")," ",IF(COUNTRY_INFO!B107=0," ",COUNTRY_INFO!B107)) -> Salamat | C107: =IF(AND(INTRO!$E$37="Non endémique",INTRO!$E$41="Non endémique")," ",IF(COUNTRY_INFO!C107=0," ",COUNTRY_INFO!C107)) -> Haraze | D107: =IF(AND(INTRO!$E$37="Non endémique",INTRO!$E$41="Non endémique"),0,IF(AND(OR(COUNTRY_INFO!$H107=0,COUNTRY_INFO!$H107=4,COUNTRY_INFO!$H107=99),OR(COUNTRY_INFO!$J107=0,COUNTRY_INFO!$J107=4)),0,COUNTRY_INFO!$E107)) -> 12978 | E107: =IF(AND(INTRO!$E$37="Non endémique",INTRO!$E$41="Non endémique"),0,IF(AND(OR(COUNTRY_INFO!$H107=0,COUNTRY_INFO!$H107=4,COUNTRY_INFO!$H107=99),OR(COUNTRY_INFO!$J107=0,COUNTRY_INFO!$J107=4)),0,COUNTRY_INFO!$F107)) -> 25704 | F107: 38682 | G107: =IF(AND(INTRO!$E$37="Non endémique",INTRO!$E$41="Non endémique"),0,COUNTRY_INFO!Q107) -> 0 | H107: =IF(AND(INTRO!$E$37="Non endémique",INTRO!$E$41="Non endémique"),0,COUNTRY_INFO!S107) -> 0 | I107: =IF($G107=1,IVM!$G107,0) -> 0 | J107: =IF($G107=0, " ", IF(COUNTRY_INFO!$H107=1, IF(COUNTRY_INFO!$L107=1, 0," ")," ")) ->  | M107: =IF($L107="ALB", IF(INTRO!$E$39="Non endémique",IF($H107<>0,$D107*($H107-$G107),0),$D107*$H107), 0) -> 0 | N107: 0 | P107: 0 | Q107: =IF($L107="MBD", IF(INTRO!$E$39="Non endémique",IF($H107<>0,$D107*($H107-$G107),0),$D107*$H107),0) -> 0 | R107: 0 | T107: 0 | V107: 0 | W107: 0 | Y107: 0 | Z107: 0 | AB107: 0 | AC107: 0
A108: =IF(AND(INTRO!$E$37="Non endémique",INTRO!$E$41="Non endémique")," ",IF(COUNTRY_INFO!A108=0," ",COUNTRY_INFO!A108)) -> Chad | B108: =IF(AND(INTRO!$E$37="Non endémique",INTRO!$E$41="Non endémique")," ",IF(COUNTRY_INFO!B108=0," ",COUNTRY_INFO!B108)) -> Sila | C108: =IF(AND(INTRO!$E$37="Non endémique",INTRO!$E$41="Non endémique")," ",IF(COUNTRY_INFO!C108=0," ",COUNTRY_INFO!C108)) -> Am-dam | D108: =IF(AND(INTRO!$E$37="Non endémique",INTRO!$E$41="Non endémique"),0,IF(AND(OR(COUNTRY_INFO!$H108=0,COUNTRY_INFO!$H108=4,COUNTRY_INFO!$H108=99),OR(COUNTRY_INFO!$J108=0,COUNTRY_INFO!$J108=4)),0,COUNTRY_INFO!$E108)) -> 0 | E108: =IF(AND(INTRO!$E$37="Non endémique",INTRO!$E$41="Non endémique"),0,IF(AND(OR(COUNTRY_INFO!$H108=0,COUNTRY_INFO!$H108=4,COUNTRY_INFO!$H108=99),OR(COUNTRY_INFO!$J108=0,COUNTRY_INFO!$J108=4)),0,COUNTRY_INFO!$F108)) -> 0 | F108: 0 | G108: =IF(AND(INTRO!$E$37="Non endémique",INTRO!$E$41="Non endémique"),0,COUNTRY_INFO!Q108) -> 0 | H108: =IF(AND(INTRO!$E$37="Non endémique",INTRO!$E$41="Non endémique"),0,COUNTRY_INFO!S108) -> 0 | I108: =IF($G108=1,IVM!$G108,0) -> 0 | J108: =IF($G108=0, " ", IF(COUNTRY_INFO!$H108=1, IF(COUNTRY_INFO!$L108=1, 0," ")," ")) ->  | M108: =IF($L108="ALB", IF(INTRO!$E$39="Non endémique",IF($H108<>0,$D108*($H108-$G108),0),$D108*$H108), 0) -> 0 | N108: 0 | P108: 0 | Q108: =IF($L108="MBD", IF(INTRO!$E$39="Non endémique",IF($H108<>0,$D108*($H108-$G108),0),$D108*$H108),0) -> 0 | R108: 0 | T108: 0 | V108: 0 | W108: 0 | Y108: 0 | Z108: 0 | AB108: 0 | AC108: 0
A109: =IF(AND(INTRO!$E$37="Non endémique",INTRO!$E$41="Non endémique")," ",IF(COUNTRY_INFO!A109=0," ",COUNTRY_INFO!A109)) -> Chad | B109: =IF(AND(INTRO!$E$37="Non endémique",INTRO!$E$41="Non endémique")," ",IF(COUNTRY_INFO!B109=0," ",COUNTRY_INFO!B109)) -> Sila | C109: =IF(AND(INTRO!$E$37="Non endémique",INTRO!$E$41="Non endémique")," ",IF(COUNTRY_INFO!C109=0," ",COUNTRY_INFO!C109)) -> Goz-beida | D109: =IF(AND(INTRO!$E$37="Non endémique",INTRO!$E$41="Non endémique"),0,IF(AND(OR(COUNTRY_INFO!$H109=0,COUNTRY_INFO!$H109=4,COUNTRY_INFO!$H109=99),OR(COUNTRY_INFO!$J109=0,COUNTRY_INFO!$J109=4)),0,COUNTRY_INFO!$E109)) -> 39092 | E109: =IF(AND(INTRO!$E$37="Non endémique",INTRO!$E$41="Non endémique"),0,IF(AND(OR(COUNTRY_INFO!$H109=0,COUNTRY_INFO!$H109=4,COUNTRY_INFO!$H109=99),OR(COUNTRY_INFO!$J109=0,COUNTRY_INFO!$J109=4)),0,COUNTRY_INFO!$F109)) -> 77427 | F109: 116519 | G109: =IF(AND(INTRO!$E$37="Non endémique",INTRO!$E$41="Non endémique"),0,COUNTRY_INFO!Q109) -> 0 | H109: =IF(AND(INTRO!$E$37="Non endémique",INTRO!$E$41="Non endémique"),0,COUNTRY_INFO!S109) -> 0 | I109: =IF($G109=1,IVM!$G109,0) -> 0 | J109: =IF($G109=0, " ", IF(COUNTRY_INFO!$H109=1, IF(COUNTRY_INFO!$L109=1, 0," ")," ")) ->  | M109: =IF($L109="ALB", IF(INTRO!$E$39="Non endémique",IF($H109<>0,$D109*($H109-$G109),0),$D109*$H109), 0) -> 0 | N109: 0 | P109: 0 | Q109: =IF($L109="MBD", IF(INTRO!$E$39="Non endémique",IF($H109<>0,$D109*($H109-$G109),0),$D109*$H109),0) -> 0 | R109: 0 | T109: 0 | V109: 0 | W109: 0 | Y109: 0 | Z109: 0 | AB109: 0 | AC109: 0
A110: =IF(AND(INTRO!$E$37="Non endémique",INTRO!$E$41="Non endémique")," ",IF(COUNTRY_INFO!A110=0," ",COUNTRY_INFO!A110)) -> Chad | B110: =IF(AND(INTRO!$E$37="Non endémique",INTRO!$E$41="Non endémique")," ",IF(COUNTRY_INFO!B110=0," ",COUNTRY_INFO!B110)) -> Sila | C110: =IF(AND(INTRO!$E$37="Non endémique",INTRO!$E$41="Non endémique")," ",IF(COUNTRY_INFO!C110=0," ",COUNTRY_INFO!C110)) -> Koukou | D110: =IF(AND(INTRO!$E$37="Non endémique",INTRO!$E$41="Non endémique"),0,IF(AND(OR(COUNTRY_INFO!$H110=0,COUNTRY_INFO!$H110=4,COUNTRY_INFO!$H110=99),OR(COUNTRY_INFO!$J110=0,COUNTRY_INFO!$J110=4)),0,COUNTRY_INFO!$E110)) -> 12261 | E110: =IF(AND(INTRO!$E$37="Non endémique",INTRO!$E$41="Non endémique"),0,IF(AND(OR(COUNTRY_INFO!$H110=0,COUNTRY_INFO!$H110=4,COUNTRY_INFO!$H110=99),OR(COUNTRY_INFO!$J110=0,COUNTRY_INFO!$J110=4)),0,COUNTRY_INFO!$F110)) -> 24284 | F110: 36545 | G110: =IF(AND(INTRO!$E$37="Non endémique",INTRO!$E$41="Non endémique"),0,COUNTRY_INFO!Q110) -> 0 | H110: =IF(AND(INTRO!$E$37="Non endémique",INTRO!$E$41="Non endémique"),0,COUNTRY_INFO!S110) -> 0 | I110: =IF($G110=1,IVM!$G110,0) -> 0 | J110: =IF($G110=0, " ", IF(COUNTRY_INFO!$H110=1, IF(COUNTRY_INFO!$L110=1, 0," ")," ")) ->  | M110: =IF($L110="ALB", IF(INTRO!$E$39="Non endémique",IF($H110<>0,$D110*($H110-$G110),0),$D110*$H110), 0) -> 0 | N110: 0 | P110: 0 | Q110: =IF($L110="MBD", IF(INTRO!$E$39="Non endémique",IF($H110<>0,$D110*($H110-$G110),0),$D110*$H110),0) -> 0 | R110: 0 | T110: 0 | V110: 0 | W110: 0 | Y110: 0 | Z110: 0 | AB110: 0 | AC110: 0
A111: =IF(AND(INTRO!$E$37="Non endémique",INTRO!$E$41="Non endémique")," ",IF(COUNTRY_INFO!A111=0," ",COUNTRY_INFO!A111)) -> Chad | B111: =IF(AND(INTRO!$E$37="Non endémique",INTRO!$E$41="Non endémique")," ",IF(COUNTRY_INFO!B111=0," ",COUNTRY_INFO!B111)) -> Sila | C111: =IF(AND(INTRO!$E$37="Non endémique",INTRO!$E$41="Non endémique")," ",IF(COUNTRY_INFO!C111=0," ",COUNTRY_INFO!C111)) -> Tissi | D111: =IF(AND(INTRO!$E$37="Non endémique",INTRO!$E$41="Non endémique"),0,IF(AND(OR(COUNTRY_INFO!$H111=0,COUNTRY_INFO!$H111=4,COUNTRY_INFO!$H111=99),OR(COUNTRY_INFO!$J111=0,COUNTRY_INFO!$J111=4)),0,COUNTRY_INFO!$E111)) -> 0 | E111: =IF(AND(INTRO!$E$37="Non endémique",INTRO!$E$41="Non endémique"),0,IF(AND(OR(COUNTRY_INFO!$H111=0,COUNTRY_INFO!$H111=4,COUNTRY_INFO!$H111=99),OR(COUNTRY_INFO!$J111=0,COUNTRY_INFO!$J111=4)),0,COUNTRY_INFO!$F111)) -> 0 | F111: 0 | G111: =IF(AND(INTRO!$E$37="Non endémique",INTRO!$E$41="Non endémique"),0,COUNTRY_INFO!Q111) -> 0 | H111: =IF(AND(INTRO!$E$37="Non endémique",INTRO!$E$41="Non endémique"),0,COUNTRY_INFO!S111) -> 0 | I111: =IF($G111=1,IVM!$G111,0) -> 0 | J111: =IF($G111=0, " ", IF(COUNTRY_INFO!$H111=1, IF(COUNTRY_INFO!$L111=1, 0," ")," ")) ->  | M111: =IF($L111="ALB", IF(INTRO!$E$39="Non endémique",IF($H111<>0,$D111*($H111-$G111),0),$D111*$H111), 0) -> 0 | N111: 0 | P111: 0 | Q111: =IF($L111="MBD", IF(INTRO!$E$39="Non endémique",IF($H111<>0,$D111*($H111-$G111),0),$D111*$H111),0) -> 0 | R111: 0 | T111: 0 | V111: 0 | W111: 0 | Y111: 0 | Z111: 0 | AB111: 0 | AC111: 0
A112: =IF(AND(INTRO!$E$37="Non endémique",INTRO!$E$41="Non endémique")," ",IF(COUNTRY_INFO!A112=0," ",COUNTRY_INFO!A112)) -> Chad | B112: =IF(AND(INTRO!$E$37="Non endémique",INTRO!$E$41="Non endémique")," ",IF(COUNTRY_INFO!B112=0," ",COUNTRY_INFO!B112)) -> Tandjile | C112: =IF(AND(INTRO!$E$37="Non endémique",INTRO!$E$41="Non endémique")," ",IF(COUNTRY_INFO!C112=0," ",COUNTRY_INFO!C112)) -> Batchoro | D112: =IF(AND(INTRO!$E$37="Non endémique",INTRO!$E$41="Non endémique"),0,IF(AND(OR(COUNTRY_INFO!$H112=0,COUNTRY_INFO!$H112=4,COUNTRY_INFO!$H112=99),OR(COUNTRY_INFO!$J112=0,COUNTRY_INFO!$J112=4)),0,COUNTRY_INFO!$E112)) -> 15165 | E112: =IF(AND(INTRO!$E$37="Non endémique",INTRO!$E$41="Non endémique"),0,IF(AND(OR(COUNTRY_INFO!$H112=0,COUNTRY_INFO!$H112=4,COUNTRY_INFO!$H112=99),OR(COUNTRY_INFO!$J112=0,COUNTRY_INFO!$J112=4)),0,COUNTRY_INFO!$F112)) -> 30036 | F112: 45201 | G112: =IF(AND(INTRO!$E$37="Non endémique",INTRO!$E$41="Non endémique"),0,COUNTRY_INFO!Q112) -> 1 | H112: =IF(AND(INTRO!$E$37="Non endémique",INTRO!$E$41="Non endémique"),0,COUNTRY_INFO!S112) -> 0 | I112: =IF($G112=1,IVM!$G112,0) -> 78367 | J112: =IF($G112=0, " ", IF(COUNTRY_INFO!$H112=1, IF(COUNTRY_INFO!$L112=1, 0," ")," ")) ->  | M112: =IF($L112="ALB", IF(INTRO!$E$39="Non endémique",IF($H112<>0,$D112*($H112-$G112),0),$D112*$H112), 0) -> 0 | N112: 0 | P112: 0 | Q112: =IF($L112="MBD", IF(INTRO!$E$39="Non endémique",IF($H112<>0,$D112*($H112-$G112),0),$D112*$H112),0) -> 0 | R112: 0 | T112: 0 | V112: 78367 | W112: 392 | Y112: 0 | Z112: 0 | AB112: 0 | AC112: 0
A113: =IF(AND(INTRO!$E$37="Non endémique",INTRO!$E$41="Non endémique")," ",IF(COUNTRY_INFO!A113=0," ",COUNTRY_INFO!A113)) -> Chad | B113: =IF(AND(INTRO!$E$37="Non endémique",INTRO!$E$41="Non endémique")," ",IF(COUNTRY_INFO!B113=0," ",COUNTRY_INFO!B113)) -> Tandjile | C113: =IF(AND(INTRO!$E$37="Non endémique",INTRO!$E$41="Non endémique")," ",IF(COUNTRY_INFO!C113=0," ",COUNTRY_INFO!C113)) -> Bere | D113: =IF(AND(INTRO!$E$37="Non endémique",INTRO!$E$41="Non endémique"),0,IF(AND(OR(COUNTRY_INFO!$H113=0,COUNTRY_INFO!$H113=4,COUNTRY_INFO!$H113=99),OR(COUNTRY_INFO!$J113=0,COUNTRY_INFO!$J113=4)),0,COUNTRY_INFO!$E113)) -> 26682 | E113: =IF(AND(INTRO!$E$37="Non endémique",INTRO!$E$41="Non endémique"),0,IF(AND(OR(COUNTRY_INFO!$H113=0,COUNTRY_INFO!$H113=4,COUNTRY_INFO!$H113=99),OR(COUNTRY_INFO!$J113=0,COUNTRY_INFO!$J113=4)),0,COUNTRY_INFO!$F113)) -> 52847 | F113: 79529 | G113: =IF(AND(INTRO!$E$37="Non endémique",INTRO!$E$41="Non endémique"),0,COUNTRY_INFO!Q113) -> 1 | H113: =IF(AND(INTRO!$E$37="Non endémique",INTRO!$E$41="Non endémique"),0,COUNTRY_INFO!S113) -> 0 | I113: =IF($G113=1,IVM!$G113,0) -> 137885 | J113: =IF($G113=0, " ", IF(COUNTRY_INFO!$H113=1, IF(COUNTRY_INFO!$L113=1, 0," ")," ")) ->  | M113: =IF($L113="ALB", IF(INTRO!$E$39="Non endémique",IF($H113<>0,$D113*($H113-$G113),0),$D113*$H113), 0) -> 0 | N113: 0 | P113: 0 | Q113: =IF($L113="MBD", IF(INTRO!$E$39="Non endémique",IF($H113<>0,$D113*($H113-$G113),0),$D113*$H113),0) -> 0 | R113: 0 | T113: 0 | V113: 137885 | W113: 690 | Y113: 0 | Z113: 0 | AB113: 0 | AC113: 0
A114: =IF(AND(INTRO!$E$37="Non endémique",INTRO!$E$41="Non endémique")," ",IF(COUNTRY_INFO!A114=0," ",COUNTRY_INFO!A114)) -> Chad | B114: =IF(AND(INTRO!$E$37="Non endémique",INTRO!$E$41="Non endémique")," ",IF(COUNTRY_INFO!B114=0," ",COUNTRY_INFO!B114)) -> Tandjile | C114: =IF(AND(INTRO!$E$37="Non endémique",INTRO!$E$41="Non endémique")," ",IF(COUNTRY_INFO!C114=0," ",COUNTRY_INFO!C114)) -> Dafra | D114: =IF(AND(INTRO!$E$37="Non endémique",INTRO!$E$41="Non endémique"),0,IF(AND(OR(COUNTRY_INFO!$H114=0,COUNTRY_INFO!$H114=4,COUNTRY_INFO!$H114=99),OR(COUNTRY_INFO!$J114=0,COUNTRY_INFO!$J114=4)),0,COUNTRY_INFO!$E114)) -> 14225 | E114: =IF(AND(INTRO!$E$37="Non endémique",INTRO!$E$41="Non endémique"),0,IF(AND(OR(COUNTRY_INFO!$H114=0,COUNTRY_INFO!$H114=4,COUNTRY_INFO!$H114=99),OR(COUNTRY_INFO!$J114=0,COUNTRY_INFO!$J114=4)),0,COUNTRY_INFO!$F114)) -> 28174 | F114: 42399 | G114: =IF(AND(INTRO!$E$37="Non endémique",INTRO!$E$41="Non endémique"),0,COUNTRY_INFO!Q114) -> 1 | H114: =IF(AND(INTRO!$E$37="Non endémique",INTRO!$E$41="Non endémique"),0,COUNTRY_INFO!S114) -> 0 | I114: =IF($G114=1,IVM!$G114,0) -> 73509 | J114: =IF($G114=0, " ", IF(COUNTRY_INFO!$H114=1, IF(COUNTRY_INFO!$L114=1, 0," ")," ")) ->  | M114: =IF($L114="ALB", IF(INTRO!$E$39="Non endémique",IF($H114<>0,$D114*($H114-$G114),0),$D114*$H114), 0) -> 0 | N114: 0 | P114: 0 | Q114: =IF($L114="MBD", IF(INTRO!$E$39="Non endémique",IF($H114<>0,$D114*($H114-$G114),0),$D114*$H114),0) -> 0 | R114: 0 | T114: 0 | V114: 73509 | W114: 368 | Y114: 0 | Z114: 0 | AB114: 0 | AC114: 0
A115: =IF(AND(INTRO!$E$37="Non endémique",INTRO!$E$41="Non endémique")," ",IF(COUNTRY_INFO!A115=0," ",COUNTRY_INFO!A115)) -> Chad | B115: =IF(AND(INTRO!$E$37="Non endémique",INTRO!$E$41="Non endémique")," ",IF(COUNTRY_INFO!B115=0," ",COUNTRY_INFO!B115)) -> Tandjile | C115: =IF(AND(INTRO!$E$37="Non endémique",INTRO!$E$41="Non endémique")," ",IF(COUNTRY_INFO!C115=0," ",COUNTRY_INFO!C115)) -> Donamanga | D115: =IF(AND(INTRO!$E$37="Non endémique",INTRO!$E$41="Non endémique"),0,IF(AND(OR(COUNTRY_INFO!$H115=0,COUNTRY_INFO!$H115=4,COUNTRY_INFO!$H115=99),OR(COUNTRY_INFO!$J115=0,COUNTRY_INFO!$J115=4)),0,COUNTRY_INFO!$E115)) -> 19366 | E115: =IF(AND(INTRO!$E$37="Non endémique",INTRO!$E$41="Non endémique"),0,IF(AND(OR(COUNTRY_INFO!$H115=0,COUNTRY_INFO!$H115=4,COUNTRY_INFO!$H115=99),OR(COUNTRY_INFO!$J115=0,COUNTRY_INFO!$J115=4)),0,COUNTRY_INFO!$F115)) -> 38358 | F115: 57724 | G115: =IF(AND(INTRO!$E$37="Non endémique",INTRO!$E$41="Non endémique"),0,COUNTRY_INFO!Q115) -> 1 | H115: =IF(AND(INTRO!$E$37="Non endémique",INTRO!$E$41="Non endémique"),0,COUNTRY_INFO!S115) -> 0 | I115: =IF($G115=1,IVM!$G115,0) -> 100080 | J115: =IF($G115=0, " ", IF(COUNTRY_INFO!$H115=1, IF(COUNTRY_INFO!$L115=1, 0," ")," ")) ->  | M115: =IF($L115="ALB", IF(INTRO!$E$39="Non endémique",IF($H115<>0,$D115*($H115-$G115),0),$D115*$H115), 0) -> 0 | N115: 0 | P115: 0 | Q115: =IF($L115="MBD", IF(INTRO!$E$39="Non endémique",IF($H115<>0,$D115*($H115-$G115),0),$D115*$H115),0) -> 0 | R115: 0 | T115: 0 | V115: 100080 | W115: 501 | Y115: 0 | Z115: 0 | AB115: 0 | AC115: 0
A116: =IF(AND(INTRO!$E$37="Non endémique",INTRO!$E$41="Non endémique")," ",IF(COUNTRY_INFO!A116=0," ",COUNTRY_INFO!A116)) -> Chad | B116: =IF(AND(INTRO!$E$37="Non endémique",INTRO!$E$41="Non endémique")," ",IF(COUNTRY_INFO!B116=0," ",COUNTRY_INFO!B116)) -> Tandjile | C116: =IF(AND(INTRO!$E$37="Non endémique",INTRO!$E$41="Non endémique")," ",IF(COUNTRY_INFO!C116=0," ",COUNTRY_INFO!C116)) -> Guidari | D116: =IF(AND(INTRO!$E$37="Non endémique",INTRO!$E$41="Non endémique"),0,IF(AND(OR(COUNTRY_INFO!$H116=0,COUNTRY_INFO!$H116=4,COUNTRY_INFO!$H116=99),OR(COUNTRY_INFO!$J116=0,COUNTRY_INFO!$J116=4)),0,COUNTRY_INFO!$E116)) -> 6407 | E116: =IF(AND(INTRO!$E$37="Non endémique",INTRO!$E$41="Non endémique"),0,IF(AND(OR(COUNTRY_INFO!$H116=0,COUNTRY_INFO!$H116=4,COUNTRY_INFO!$H116=99),OR(COUNTRY_INFO!$J116=0,COUNTRY_INFO!$J116=4)),0,COUNTRY_INFO!$F116)) -> 12690 | F116: 19097 | G116: =IF(AND(INTRO!$E$37="Non endémique",INTRO!$E$41="Non endémique"),0,COUNTRY_INFO!Q116) -> 1 | H116: =IF(AND(INTRO!$E$37="Non endémique",INTRO!$E$41="Non endémique"),0,COUNTRY_INFO!S116) -> 0 | I116: =IF($G116=1,IVM!$G116,0) -> 33109 | J116: =IF($G116=0, " ", IF(COUNTRY_INFO!$H116=1, IF(COUNTRY_INFO!$L116=1, 0," ")," ")) ->  | M116: =IF($L116="ALB", IF(INTRO!$E$39="Non endémique",IF($H116<>0,$D116*($H116-$G116),0),$D116*$H116), 0) -> 0 | N116: 0 | P116: 0 | Q116: =IF($L116="MBD", IF(INTRO!$E$39="Non endémique",IF($H116<>0,$D116*($H116-$G116),0),$D116*$H116),0) -> 0 | R116: 0 | T116: 0 | V116: 33109 | W116: 166 | Y116: 0 | Z116: 0 | AB116: 0 | AC116: 0
A117: =IF(AND(INTRO!$E$37="Non endémique",INTRO!$E$41="Non endémique")," ",IF(COUNTRY_INFO!A117=0," ",COUNTRY_INFO!A117)) -> Chad | B117: =IF(AND(INTRO!$E$37="Non endémique",INTRO!$E$41="Non endémique")," ",IF(COUNTRY_INFO!B117=0," ",COUNTRY_INFO!B117)) -> Tandjile | C117: =IF(AND(INTRO!$E$37="Non endémique",INTRO!$E$41="Non endémique")," ",IF(COUNTRY_INFO!C117=0," ",COUNTRY_INFO!C117)) -> Kelo | D117: =IF(AND(INTRO!$E$37="Non endémique",INTRO!$E$41="Non endémique"),0,IF(AND(OR(COUNTRY_INFO!$H117=0,COUNTRY_INFO!$H117=4,COUNTRY_INFO!$H117=99),OR(COUNTRY_INFO!$J117=0,COUNTRY_INFO!$J117=4)),0,COUNTRY_INFO!$E117)) -> 35103 | E117: =IF(AND(INTRO!$E$37="Non endémique",INTRO!$E$41="Non endémique"),0,IF(AND(OR(COUNTRY_INFO!$H117=0,COUNTRY_INFO!$H117=4,COUNTRY_INFO!$H117=99),OR(COUNTRY_INFO!$J117=0,COUNTRY_INFO!$J117=4)),0,COUNTRY_INFO!$F117)) -> 69526 | F117: 104629 | G117: =IF(AND(INTRO!$E$37="Non endémique",INTRO!$E$41="Non endémique"),0,COUNTRY_INFO!Q117) -> 1 | H117: =IF(AND(INTRO!$E$37="Non endémique",INTRO!$E$41="Non endémique"),0,COUNTRY_INFO!S117) -> 0 | I117: =IF($G117=1,IVM!$G117,0) -> 181402 | J117: =IF($G117=0, " ", IF(COUNTRY_INFO!$H117=1, IF(COUNTRY_INFO!$L117=1, 0," ")," ")) ->  | M117: =IF($L117="ALB", IF(INTRO!$E$39="Non endémique",IF($H117<>0,$D117*($H117-$G117),0),$D117*$H117), 0) -> 0 | N117: 0 | P117: 0 | Q117: =IF($L117="MBD", IF(INTRO!$E$39="Non endémique",IF($H117<>0,$D117*($H117-$G117),0),$D117*$H117),0) -> 0 | R117: 0 | T117: 0 | V117: 181402 | W117: 908 | Y117: 0 | Z117: 0 | AB117: 0 | AC117: 0
A118: =IF(AND(INTRO!$E$37="Non endémique",INTRO!$E$41="Non endémique")," ",IF(COUNTRY_INFO!A118=0," ",COUNTRY_INFO!A118)) -> Chad | B118: =IF(AND(INTRO!$E$37="Non endémique",INTRO!$E$41="Non endémique")," ",IF(COUNTRY_INFO!B118=0," ",COUNTRY_INFO!B118)) -> Tandjile | C118: =IF(AND(INTRO!$E$37="Non endémique",INTRO!$E$41="Non endémique")," ",IF(COUNTRY_INFO!C118=0," ",COUNTRY_INFO!C118)) -> Kolon | D118: =IF(AND(INTRO!$E$37="Non endémique",INTRO!$E$41="Non endémique"),0,IF(AND(OR(COUNTRY_INFO!$H118=0,COUNTRY_INFO!$H118=4,COUNTRY_INFO!$H118=99),OR(COUNTRY_INFO!$J118=0,COUNTRY_INFO!$J118=4)),0,COUNTRY_INFO!$E118)) -> 12664 | E118: =IF(AND(INTRO!$E$37="Non endémique",INTRO!$E$41="Non endémique"),0,IF(AND(OR(COUNTRY_INFO!$H118=0,COUNTRY_INFO!$H118=4,COUNTRY_INFO!$H118=99),OR(COUNTRY_INFO!$J118=0,COUNTRY_INFO!$J118=4)),0,COUNTRY_INFO!$F118)) -> 25083 | F118: 37747 | G118: =IF(AND(INTRO!$E$37="Non endémique",INTRO!$E$41="Non endémique"),0,COUNTRY_INFO!Q118) -> 1 | H118: =IF(AND(INTRO!$E$37="Non endémique",INTRO!$E$41="Non endémique"),0,COUNTRY_INFO!S118) -> 0 | I118: =IF($G118=1,IVM!$G118,0) -> 65445 | J118: =IF($G118=0, " ", IF(COUNTRY_INFO!$H118=1, IF(COUNTRY_INFO!$L118=1, 0," ")," ")) ->  | M118: =IF($L118="ALB", IF(INTRO!$E$39="Non endémique",IF($H118<>0,$D118*($H118-$G118),0),$D118*$H118), 0) -> 0 | N118: 0 | P118: 0 | Q118: =IF($L118="MBD", IF(INTRO!$E$39="Non endémique",IF($H118<>0,$D118*($H118-$G118),0),$D118*$H118),0) -> 0 | R118: 0 | T118: 0 | V118: 65445 | W118: 328 | Y118: 0 | Z118: 0 | AB118: 0 | AC118: 0
A119: =IF(AND(INTRO!$E$37="Non endémique",INTRO!$E$41="Non endémique")," ",IF(COUNTRY_INFO!A119=0," ",COUNTRY_INFO!A119)) -> Chad | B119: =IF(AND(INTRO!$E$37="Non endémique",INTRO!$E$41="Non endémique")," ",IF(COUNTRY_INFO!B119=0," ",COUNTRY_INFO!B119)) -> Tandjile | C119: =IF(AND(INTRO!$E$37="Non endémique",INTRO!$E$41="Non endémique")," ",IF(COUNTRY_INFO!C119=0," ",COUNTRY_INFO!C119)) -> Lai | D119: =IF(AND(INTRO!$E$37="Non endémique",INTRO!$E$41="Non endémique"),0,IF(AND(OR(COUNTRY_INFO!$H119=0,COUNTRY_INFO!$H119=4,COUNTRY_INFO!$H119=99),OR(COUNTRY_INFO!$J119=0,COUNTRY_INFO!$J119=4)),0,COUNTRY_INFO!$E119)) -> 29503 | E119: =IF(AND(INTRO!$E$37="Non endémique",INTRO!$E$41="Non endémique"),0,IF(AND(OR(COUNTRY_INFO!$H119=0,COUNTRY_INFO!$H119=4,COUNTRY_INFO!$H119=99),OR(COUNTRY_INFO!$J119=0,COUNTRY_INFO!$J119=4)),0,COUNTRY_INFO!$F119)) -> 58436 | F119: 87939 | G119: =IF(AND(INTRO!$E$37="Non endémique",INTRO!$E$41="Non endémique"),0,COUNTRY_INFO!Q119) -> 1 | H119: =IF(AND(INTRO!$E$37="Non endémique",INTRO!$E$41="Non endémique"),0,COUNTRY_INFO!S119) -> 0 | I119: =IF($G119=1,IVM!$G119,0) -> 152466 | J119: =IF($G119=0, " ", IF(COUNTRY_INFO!$H119=1, IF(COUNTRY_INFO!$L119=1, 0," ")," ")) ->  | M119: =IF($L119="ALB", IF(INTRO!$E$39="Non endémique",IF($H119<>0,$D119*($H119-$G119),0),$D119*$H119), 0) -> 0 | N119: 0 | P119: 0 | Q119: =IF($L119="MBD", IF(INTRO!$E$39="Non endémique",IF($H119<>0,$D119*($H119-$G119),0),$D119*$H119),0) -> 0 | R119: 0 | T119: 0 | V119: 152466 | W119: 763 | Y119: 0 | Z119: 0 | AB119: 0 | AC119: 0
A120: =IF(AND(INTRO!$E$37="Non endémique",INTRO!$E$41="Non endémique")," ",IF(COUNTRY_INFO!A120=0," ",COUNTRY_INFO!A120)) -> Chad | B120: =IF(AND(INTRO!$E$37="Non endémique",INTRO!$E$41="Non endémique")," ",IF(COUNTRY_INFO!B120=0," ",COUNTRY_INFO!B120)) -> Tibesti | C120: =IF(AND(INTRO!$E$37="Non endémique",INTRO!$E$41="Non endémique")," ",IF(COUNTRY_INFO!C120=0," ",COUNTRY_INFO!C120)) -> Bardaï | D120: =IF(AND(INTRO!$E$37="Non endémique",INTRO!$E$41="Non endémique"),0,IF(AND(OR(COUNTRY_INFO!$H120=0,COUNTRY_INFO!$H120=4,COUNTRY_INFO!$H120=99),OR(COUNTRY_INFO!$J120=0,COUNTRY_INFO!$J120=4)),0,COUNTRY_INFO!$E120)) -> 0 | E120: =IF(AND(INTRO!$E$37="Non endémique",INTRO!$E$41="Non endémique"),0,IF(AND(OR(COUNTRY_INFO!$H120=0,COUNTRY_INFO!$H120=4,COUNTRY_INFO!$H120=99),OR(COUNTRY_INFO!$J120=0,COUNTRY_INFO!$J120=4)),0,COUNTRY_INFO!$F120)) -> 0 | F120: 0 | G120: =IF(AND(INTRO!$E$37="Non endémique",INTRO!$E$41="Non endémique"),0,COUNTRY_INFO!Q120) -> 0 | H120: =IF(AND(INTRO!$E$37="Non endémique",INTRO!$E$41="Non endémique"),0,COUNTRY_INFO!S120) -> 0 | I120: =IF($G120=1,IVM!$G120,0) -> 0 | J120: =IF($G120=0, " ", IF(COUNTRY_INFO!$H120=1, IF(COUNTRY_INFO!$L120=1, 0," ")," ")) ->  | M120: =IF($L120="ALB", IF(INTRO!$E$39="Non endémique",IF($H120<>0,$D120*($H120-$G120),0),$D120*$H120), 0) -> 0 | N120: 0 | P120: 0 | Q120: =IF($L120="MBD", IF(INTRO!$E$39="Non endémique",IF($H120<>0,$D120*($H120-$G120),0),$D120*$H120),0) -> 0 | R120: 0 | T120: 0 | V120: 0 | W120: 0 | Y120: 0 | Z120: 0 | AB120: 0 | AC120: 0
A121: =IF(AND(INTRO!$E$37="Non endémique",INTRO!$E$41="Non endémique")," ",IF(COUNTRY_INFO!A121=0," ",COUNTRY_INFO!A121)) -> Chad | B121: =IF(AND(INTRO!$E$37="Non endémique",INTRO!$E$41="Non endémique")," ",IF(COUNTRY_INFO!B121=0," ",COUNTRY_INFO!B121)) -> Tibesti | C121: =IF(AND(INTRO!$E$37="Non endémique",INTRO!$E$41="Non endémique")," ",IF(COUNTRY_INFO!C121=0," ",COUNTRY_INFO!C121)) -> Zouar | D121: =IF(AND(INTRO!$E$37="Non endémique",INTRO!$E$41="Non endémique"),0,IF(AND(OR(COUNTRY_INFO!$H121=0,COUNTRY_INFO!$H121=4,COUNTRY_INFO!$H121=99),OR(COUNTRY_INFO!$J121=0,COUNTRY_INFO!$J121=4)),0,COUNTRY_INFO!$E121)) -> 0 | E121: =IF(AND(INTRO!$E$37="Non endémique",INTRO!$E$41="Non endémique"),0,IF(AND(OR(COUNTRY_INFO!$H121=0,COUNTRY_INFO!$H121=4,COUNTRY_INFO!$H121=99),OR(COUNTRY_INFO!$J121=0,COUNTRY_INFO!$J121=4)),0,COUNTRY_INFO!$F121)) -> 0 | F121: 0 | G121: =IF(AND(INTRO!$E$37="Non endémique",INTRO!$E$41="Non endémique"),0,COUNTRY_INFO!Q121) -> 0 | H121: =IF(AND(INTRO!$E$37="Non endémique",INTRO!$E$41="Non endémique"),0,COUNTRY_INFO!S121) -> 0 | I121: =IF($G121=1,IVM!$G121,0) -> 0 | J121: =IF($G121=0, " ", IF(COUNTRY_INFO!$H121=1, IF(COUNTRY_INFO!$L121=1, 0," ")," ")) ->  | M121: =IF($L121="ALB", IF(INTRO!$E$39="Non endémique",IF($H121<>0,$D121*($H121-$G121),0),$D121*$H121), 0) -> 0 | N121: 0 | P121: 0 | Q121: =IF($L121="MBD", IF(INTRO!$E$39="Non endémique",IF($H121<>0,$D121*($H121-$G121),0),$D121*$H121),0) -> 0 | R121: 0 | T121: 0 | V121: 0 | W121: 0 | Y121: 0 | Z121: 0 | AB121: 0 | AC121: 0
A122: =IF(AND(INTRO!$E$37="Non endémique",INTRO!$E$41="Non endémique")," ",IF(COUNTRY_INFO!A122=0," ",COUNTRY_INFO!A122)) -> Chad | B122: =IF(AND(INTRO!$E$37="Non endémique",INTRO!$E$41="Non endémique")," ",IF(COUNTRY_INFO!B122=0," ",COUNTRY_INFO!B122)) -> Wadi Fira | C122: =IF(AND(INTRO!$E$37="Non endémique",INTRO!$E$41="Non endémique")," ",IF(COUNTRY_INFO!C122=0," ",COUNTRY_INFO!C122)) -> amzoer | D122: =IF(AND(INTRO!$E$37="Non endémique",INTRO!$E$41="Non endémique"),0,IF(AND(OR(COUNTRY_INFO!$H122=0,COUNTRY_INFO!$H122=4,COUNTRY_INFO!$H122=99),OR(COUNTRY_INFO!$J122=0,COUNTRY_INFO!$J122=4)),0,COUNTRY_INFO!$E122)) -> 8930 | E122: =IF(AND(INTRO!$E$37="Non endémique",INTRO!$E$41="Non endémique"),0,IF(AND(OR(COUNTRY_INFO!$H122=0,COUNTRY_INFO!$H122=4,COUNTRY_INFO!$H122=99),OR(COUNTRY_INFO!$J122=0,COUNTRY_INFO!$J122=4)),0,COUNTRY_INFO!$F122)) -> 17688 | F122: 26618 | G122: =IF(AND(INTRO!$E$37="Non endémique",INTRO!$E$41="Non endémique"),0,COUNTRY_INFO!Q122) -> 0 | H122: =IF(AND(INTRO!$E$37="Non endémique",INTRO!$E$41="Non endémique"),0,COUNTRY_INFO!S122) -> 0 | I122: =IF($G122=1,IVM!$G122,0) -> 0 | J122: =IF($G122=0, " ", IF(COUNTRY_INFO!$H122=1, IF(COUNTRY_INFO!$L122=1, 0," ")," ")) ->  | M122: =IF($L122="ALB", IF(INTRO!$E$39="Non endémique",IF($H122<>0,$D122*($H122-$G122),0),$D122*$H122), 0) -> 0 | N122: 0 | P122: 0 | Q122: =IF($L122="MBD", IF(INTRO!$E$39="Non endémique",IF($H122<>0,$D122*($H122-$G122),0),$D122*$H122),0) -> 0 | R122: 0 | T122: 0 | V122: 0 | W122: 0 | Y122: 0 | Z122: 0 | AB122: 0 | AC122: 0
A123: =IF(AND(INTRO!$E$37="Non endémique",INTRO!$E$41="Non endémique")," ",IF(COUNTRY_INFO!A123=0," ",COUNTRY_INFO!A123)) -> Chad | B123: =IF(AND(INTRO!$E$37="Non endémique",INTRO!$E$41="Non endémique")," ",IF(COUNTRY_INFO!B123=0," ",COUNTRY_INFO!B123)) -> Wadi Fira | C123: =IF(AND(INTRO!$E$37="Non endémique",INTRO!$E$41="Non endémique")," ",IF(COUNTRY_INFO!C123=0," ",COUNTRY_INFO!C123)) -> Arada | D123: =IF(AND(INTRO!$E$37="Non endémique",INTRO!$E$41="Non endémique"),0,IF(AND(OR(COUNTRY_INFO!$H123=0,COUNTRY_INFO!$H123=4,COUNTRY_INFO!$H123=99),OR(COUNTRY_INFO!$J123=0,COUNTRY_INFO!$J123=4)),0,COUNTRY_INFO!$E123)) -> 6326 | E123: =IF(AND(INTRO!$E$37="Non endémique",INTRO!$E$41="Non endémique"),0,IF(AND(OR(COUNTRY_INFO!$H123=0,COUNTRY_INFO!$H123=4,COUNTRY_INFO!$H123=99),OR(COUNTRY_INFO!$J123=0,COUNTRY_INFO!$J123=4)),0,COUNTRY_INFO!$F123)) -> 12529 | F123: 18855 | G123: =IF(AND(INTRO!$E$37="Non endémique",INTRO!$E$41="Non endémique"),0,COUNTRY_INFO!Q123) -> 0 | H123: =IF(AND(INTRO!$E$37="Non endémique",INTRO!$E$41="Non endémique"),0,COUNTRY_INFO!S123) -> 0 | I123: =IF($G123=1,IVM!$G123,0) -> 0 | J123: =IF($G123=0, " ", IF(COUNTRY_INFO!$H123=1, IF(COUNTRY_INFO!$L123=1, 0," ")," ")) ->  | M123: =IF($L123="ALB", IF(INTRO!$E$39="Non endémique",IF($H123<>0,$D123*($H123-$G123),0),$D123*$H123), 0) -> 0 | N123: 0 | P123: 0 | Q123: =IF($L123="MBD", IF(INTRO!$E$39="Non endémique",IF($H123<>0,$D123*($H123-$G123),0),$D123*$H123),0) -> 0 | R123: 0 | T123: 0 | V123: 0 | W123: 0 | Y123: 0 | Z123: 0 | AB123: 0 | AC123: 0
A124: =IF(AND(INTRO!$E$37="Non endémique",INTRO!$E$41="Non endémique")," ",IF(COUNTRY_INFO!A124=0," ",COUNTRY_INFO!A124)) -> Chad | B124: =IF(AND(INTRO!$E$37="Non endémique",INTRO!$E$41="Non endémique")," ",IF(COUNTRY_INFO!B124=0," ",COUNTRY_INFO!B124)) -> Wadi Fira | C124: =IF(AND(INTRO!$E$37="Non endémique",INTRO!$E$41="Non endémique")," ",IF(COUNTRY_INFO!C124=0," ",COUNTRY_INFO!C124)) -> Biltine | D124: =IF(AND(INTRO!$E$37="Non endémique",INTRO!$E$41="Non endémique"),0,IF(AND(OR(COUNTRY_INFO!$H124=0,COUNTRY_INFO!$H124=4,COUNTRY_INFO!$H124=99),OR(COUNTRY_INFO!$J124=0,COUNTRY_INFO!$J124=4)),0,COUNTRY_INFO!$E124)) -> 21954 | E124: =IF(AND(INTRO!$E$37="Non endémique",INTRO!$E$41="Non endémique"),0,IF(AND(OR(COUNTRY_INFO!$H124=0,COUNTRY_INFO!$H124=4,COUNTRY_INFO!$H124=99),OR(COUNTRY_INFO!$J124=0,COUNTRY_INFO!$J124=4)),0,COUNTRY_INFO!$F124)) -> 43483 | F124: 65437 | G124: =IF(AND(INTRO!$E$37="Non endémique",INTRO!$E$41="Non endémique"),0,COUNTRY_INFO!Q124) -> 0 | H124: =IF(AND(INTRO!$E$37="Non endémique",INTRO!$E$41="Non endémique"),0,COUNTRY_INFO!S124) -> 0 | I124: =IF($G124=1,IVM!$G124,0) -> 0 | J124: =IF($G124=0, " ", IF(COUNTRY_INFO!$H124=1, IF(COUNTRY_INFO!$L124=1, 0," ")," ")) ->  | M124: =IF($L124="ALB", IF(INTRO!$E$39="Non endémique",IF($H124<>0,$D124*($H124-$G124),0),$D124*$H124), 0) -> 0 | N124: 0 | P124: 0 | Q124: =IF($L124="MBD", IF(INTRO!$E$39="Non endémique",IF($H124<>0,$D124*($H124-$G124),0),$D124*$H124),0) -> 0 | R124: 0 | T124: 0 | V124: 0 | W124: 0 | Y124: 0 | Z124: 0 | AB124: 0 | AC124: 0
